{"text_format":"1","workbook":"xlsx","n_sheets":6,"sheets":["STATEMENT","NewInvoice","Codes","Invoices","Payments","Customers"],"not_rendered":{"charts":1,"images":23,"macros":1,"external_links":0,"defined_names":5,"comments":1,"pivot_tables":0},"unopened":[],"bounds":{"document_bytes":16777216,"sheet_cells":100000,"rows_first":2000,"rows_last":500,"rows_between":2000,"halvings":0,"cell_chars":16384,"cell_head_chars":4096},"cells_cut":0,"cells_raw":0,"read":"whole","date_system":"1900"}

{"sheet":"STATEMENT","index":0,"n_rows":94,"n_cols":9,"rows_kept":94,"cut":false,"hidden":false,"merged":[[91,3,91,4],[92,3,92,4],[93,3,93,4],[65,3,65,6],[11,3,11,7],[5,3,5,5],[5,6,5,7],[9,5,9,6],[9,3,9,4],[0,7,0,11],[1,8,1,11],[2,8,2,11],[1,1,1,3],[3,8,3,11],[6,1,6,2],[7,1,7,10],[0,1,0,4],[8,3,8,4],[8,5,8,6]]}
["Statement","Naief Akeel Alzofairy Est.\nForever Living Products Sole Agent in the Middle East",null,null,null,null,null,"مؤسسة نايف عقيل الظفيري \nالوكيل الحصري لشركة فورايفر ليفينج الشرق الاوسط "]
[null,"Address: Mussa Bin Nasir St ",null,null," "," ",null,null,"العنوان: شارع موسى بن نصير"]
[null,"Phone: 0112151970 : Fax 0112151971",null,null,null,null,null,null,"هاتف: 0112151970 - فاكس: 0112151971"]
[null,"VAT Registration No: :300095228700003",null,null,null,null,null,null,"الرقم الضريبي :300095228700003  "]
[]
[null,null,null,"Statement of Account",null,null,"كشف حساب عميل"]
[null,null,null,null,"Date:",{"$f":"TODAY()","v":"2018-11-19"},"التاريخ"]
[null," "]
[null,null,null,"Customer Name: ",null,"Dallah Healthcare Co. / Dallah Hospital",null,"اســــــــم الــــــعــــمــيـــــــــل:"]
[null,null,null,"FBO ID",null,{"$f":"IF(F9=\"\",\"\",VLOOKUP(F9,Customers!C2:D625,2,0))","v":775962},null,"وكــــــــــالة رقــــــــــــــــم:"]
[]
[null,null,null,"Invoices   الفواتير"]
[null,null,null,"#","Invoice #\nرقم الفاتورة","Invoice Amount\nمبلغ الفاتورة","Invoice Date\nتاريخ الفاتورة","Notes\nملاحظات"]
[null,null,null,{"$f":"IF(OR(Table1[[#This Row],[Invoice '#\nرقم الفاتورة]]=\"\",Table1[[#This Row],[Invoice '#\nرقم الفاتورة]]=\"Nothing Follows\"),\"\",ROW()-13)","v":1},{"$f":"IF(E13=\"No Invoices\",\"\",IFERROR(VLOOKUP(ROWS($E$14:E14),Invoices!$A$2:$G$300,4,0),\"No Invoices/s\"))","v":28},{"$f":"IFERROR(VLOOKUP(Table1[[#This Row],[Invoice '#\nرقم الفاتورة]],Table4[[Invoice '#\nرقم الفاتورة]:[Notes\nملاحظات]],2,0),\"\")","v":3540.23},{"$f":"IFERROR(VLOOKUP(Table1[[#This Row],[Invoice '#\nرقم الفاتورة]],Table4[[Invoice '#\nرقم الفاتورة]:[Notes\nملاحظات]],3,0),\"\")","v":"2017-07-04"}]
[null,null,null,{"$f":"IF(OR(Table1[[#This Row],[Invoice '#\nرقم الفاتورة]]=\"\",Table1[[#This Row],[Invoice '#\nرقم الفاتورة]]=\"Nothing Follows\"),\"\",ROW()-13)","v":2},{"$f":"IF(OR(E14=\"The End\",E14=\"\",E14=\"No Invoices/s\"),\"\",IF(E14=\"No Invoices\",\"\",IFERROR(VLOOKUP(ROWS($E$14:E15),Invoices!$A$2:$G$300,4,0),\"The End\")))","v":27},{"$f":"IFERROR(VLOOKUP(Table1[[#This Row],[Invoice '#\nرقم الفاتورة]],Table4[[Invoice '#\nرقم الفاتورة]:[Notes\nملاحظات]],2,0),\"\")","v":1523.63},{"$f":"IFERROR(VLOOKUP(Table1[[#This Row],[Invoice '#\nرقم الفاتورة]],Table4[[Invoice '#\nرقم الفاتورة]:[Notes\nملاحظات]],3,0),\"\")","v":"2017-07-04"}]
[null,null,null,{"$f":"IF(OR(Table1[[#This Row],[Invoice '#\nرقم الفاتورة]]=\"\",Table1[[#This Row],[Invoice '#\nرقم الفاتورة]]=\"Nothing Follows\"),\"\",ROW()-13)","v":3},{"$f":"IF(OR(E15=\"The End\",E15=\"\",E15=\"No Invoices/s\"),\"\",IF(E15=\"No Invoices\",\"\",IFERROR(VLOOKUP(ROWS($E$14:E16),Invoices!$A$2:$G$300,4,0),\"The End\")))","v":18},{"$f":"IFERROR(VLOOKUP(Table1[[#This Row],[Invoice '#\nرقم الفاتورة]],Table4[[Invoice '#\nرقم الفاتورة]:[Notes\nملاحظات]],2,0),\"\")","v":637},{"$f":"IFERROR(VLOOKUP(Table1[[#This Row],[Invoice '#\nرقم الفاتورة]],Table4[[Invoice '#\nرقم الفاتورة]:[Notes\nملاحظات]],3,0),\"\")","v":"2017-09-17"}]
[null,null,null,{"$f":"IF(OR(Table1[[#This Row],[Invoice '#\nرقم الفاتورة]]=\"\",Table1[[#This Row],[Invoice '#\nرقم الفاتورة]]=\"Nothing Follows\"),\"\",ROW()-13)","v":4},{"$f":"IF(OR(E16=\"The End\",E16=\"\",E16=\"No Invoices/s\"),\"\",IF(E16=\"No Invoices\",\"\",IFERROR(VLOOKUP(ROWS($E$14:E17),Invoices!$A$2:$G$300,4,0),\"The End\")))","v":41},{"$f":"IFERROR(VLOOKUP(Table1[[#This Row],[Invoice '#\nرقم الفاتورة]],Table4[[Invoice '#\nرقم الفاتورة]:[Notes\nملاحظات]],2,0),\"\")","v":2008},{"$f":"IFERROR(VLOOKUP(Table1[[#This Row],[Invoice '#\nرقم الفاتورة]],Table4[[Invoice '#\nرقم الفاتورة]:[Notes\nملاحظات]],3,0),\"\")","v":"2017-10-28"}]
[null,null,null,{"$f":"IF(OR(Table1[[#This Row],[Invoice '#\nرقم الفاتورة]]=\"\",Table1[[#This Row],[Invoice '#\nرقم الفاتورة]]=\"Nothing Follows\"),\"\",ROW()-13)","v":5},{"$f":"IF(OR(E17=\"The End\",E17=\"\",E17=\"No Invoices/s\"),\"\",IF(E17=\"No Invoices\",\"\",IFERROR(VLOOKUP(ROWS($E$14:E18),Invoices!$A$2:$G$300,4,0),\"The End\")))","v":65},{"$f":"IFERROR(VLOOKUP(Table1[[#This Row],[Invoice '#\nرقم الفاتورة]],Table4[[Invoice '#\nرقم الفاتورة]:[Notes\nملاحظات]],2,0),\"\")","v":2344.96},{"$f":"IFERROR(VLOOKUP(Table1[[#This Row],[Invoice '#\nرقم الفاتورة]],Table4[[Invoice '#\nرقم الفاتورة]:[Notes\nملاحظات]],3,0),\"\")","v":"2017-10-30"}]
[null,null,null,{"$f":"IF(OR(Table1[[#This Row],[Invoice '#\nرقم الفاتورة]]=\"\",Table1[[#This Row],[Invoice '#\nرقم الفاتورة]]=\"Nothing Follows\"),\"\",ROW()-13)","v":6},{"$f":"IF(OR(E18=\"The End\",E18=\"\",E18=\"No Invoices/s\"),\"\",IF(E18=\"No Invoices\",\"\",IFERROR(VLOOKUP(ROWS($E$14:E19),Invoices!$A$2:$G$300,4,0),\"The End\")))","v":23268},{"$f":"IFERROR(VLOOKUP(Table1[[#This Row],[Invoice '#\nرقم الفاتورة]],Table4[[Invoice '#\nرقم الفاتورة]:[Notes\nملاحظات]],2,0),\"\")","v":998.26},{"$f":"IFERROR(VLOOKUP(Table1[[#This Row],[Invoice '#\nرقم الفاتورة]],Table4[[Invoice '#\nرقم الفاتورة]:[Notes\nملاحظات]],3,0),\"\")","v":"2017-11-12"}]
[null,null,null,{"$f":"IF(OR(Table1[[#This Row],[Invoice '#\nرقم الفاتورة]]=\"\",Table1[[#This Row],[Invoice '#\nرقم الفاتورة]]=\"Nothing Follows\"),\"\",ROW()-13)","v":7},{"$f":"IF(OR(E19=\"The End\",E19=\"\",E19=\"No Invoices/s\"),\"\",IF(E19=\"No Invoices\",\"\",IFERROR(VLOOKUP(ROWS($E$14:E20),Invoices!$A$2:$G$300,4,0),\"The End\")))","v":12},{"$f":"IFERROR(VLOOKUP(Table1[[#This Row],[Invoice '#\nرقم الفاتورة]],Table4[[Invoice '#\nرقم الفاتورة]:[Notes\nملاحظات]],2,0),\"\")","v":3782.76},{"$f":"IFERROR(VLOOKUP(Table1[[#This Row],[Invoice '#\nرقم الفاتورة]],Table4[[Invoice '#\nرقم الفاتورة]:[Notes\nملاحظات]],3,0),\"\")","v":"2018-01-23"}]
[null,null,7,{"$f":"IF(OR(Table1[[#This Row],[Invoice '#\nرقم الفاتورة]]=\"\",Table1[[#This Row],[Invoice '#\nرقم الفاتورة]]=\"Nothing Follows\"),\"\",ROW()-13)","v":8},{"$f":"IF(OR(E20=\"The End\",E20=\"\",E20=\"No Invoices/s\"),\"\",IF(E20=\"No Invoices\",\"\",IFERROR(VLOOKUP(ROWS($E$14:E21),Invoices!$A$2:$G$300,4,0),\"The End\")))","v":35},{"$f":"IFERROR(VLOOKUP(Table1[[#This Row],[Invoice '#\nرقم الفاتورة]],Table4[[Invoice '#\nرقم الفاتورة]:[Notes\nملاحظات]],2,0),\"\")","v":1250.3399999999999},{"$f":"IFERROR(VLOOKUP(Table1[[#This Row],[Invoice '#\nرقم الفاتورة]],Table4[[Invoice '#\nرقم الفاتورة]:[Notes\nملاحظات]],3,0),\"\")","v":"2018-02-13"}]
[null,null,null,{"$f":"IF(OR(Table1[[#This Row],[Invoice '#\nرقم الفاتورة]]=\"\",Table1[[#This Row],[Invoice '#\nرقم الفاتورة]]=\"Nothing Follows\"),\"\",ROW()-13)","v":9},{"$f":"IF(OR(E21=\"The End\",E21=\"\",E21=\"No Invoices/s\"),\"\",IF(E21=\"No Invoices\",\"\",IFERROR(VLOOKUP(ROWS($E$14:E22),Invoices!$A$2:$G$300,4,0),\"The End\")))","v":101},{"$f":"IFERROR(VLOOKUP(Table1[[#This Row],[Invoice '#\nرقم الفاتورة]],Table4[[Invoice '#\nرقم الفاتورة]:[Notes\nملاحظات]],2,0),\"\")","v":2006.55},{"$f":"IFERROR(VLOOKUP(Table1[[#This Row],[Invoice '#\nرقم الفاتورة]],Table4[[Invoice '#\nرقم الفاتورة]:[Notes\nملاحظات]],3,0),\"\")","v":"2018-02-20"}]
[null,null,null,{"$f":"IF(OR(Table1[[#This Row],[Invoice '#\nرقم الفاتورة]]=\"\",Table1[[#This Row],[Invoice '#\nرقم الفاتورة]]=\"Nothing Follows\"),\"\",ROW()-13)","v":10},{"$f":"IF(OR(E22=\"The End\",E22=\"\",E22=\"No Invoices/s\"),\"\",IF(E22=\"No Invoices\",\"\",IFERROR(VLOOKUP(ROWS($E$14:E23),Invoices!$A$2:$G$300,4,0),\"The End\")))","v":102},{"$f":"IFERROR(VLOOKUP(Table1[[#This Row],[Invoice '#\nرقم الفاتورة]],Table4[[Invoice '#\nرقم الفاتورة]:[Notes\nملاحظات]],2,0),\"\")","v":2354.63},{"$f":"IFERROR(VLOOKUP(Table1[[#This Row],[Invoice '#\nرقم الفاتورة]],Table4[[Invoice '#\nرقم الفاتورة]:[Notes\nملاحظات]],3,0),\"\")","v":"2018-03-27"}]
[null,null,null,{"$f":"IF(OR(Table1[[#This Row],[Invoice '#\nرقم الفاتورة]]=\"\",Table1[[#This Row],[Invoice '#\nرقم الفاتورة]]=\"Nothing Follows\"),\"\",ROW()-13)","v":11},{"$f":"IF(OR(E23=\"The End\",E23=\"\",E23=\"No Invoices/s\"),\"\",IF(E23=\"No Invoices\",\"\",IFERROR(VLOOKUP(ROWS($E$14:E24),Invoices!$A$2:$G$300,4,0),\"The End\")))","v":4991},{"$f":"IFERROR(VLOOKUP(Table1[[#This Row],[Invoice '#\nرقم الفاتورة]],Table4[[Invoice '#\nرقم الفاتورة]:[Notes\nملاحظات]],2,0),\"\")","v":2956.08},{"$f":"IFERROR(VLOOKUP(Table1[[#This Row],[Invoice '#\nرقم الفاتورة]],Table4[[Invoice '#\nرقم الفاتورة]:[Notes\nملاحظات]],3,0),\"\")","v":"2018-04-04"}]
[null,null,null,{"$f":"IF(OR(Table1[[#This Row],[Invoice '#\nرقم الفاتورة]]=\"\",Table1[[#This Row],[Invoice '#\nرقم الفاتورة]]=\"Nothing Follows\"),\"\",ROW()-13)","v":12},{"$f":"IF(OR(E24=\"The End\",E24=\"\",E24=\"No Invoices/s\"),\"\",IF(E24=\"No Invoices\",\"\",IFERROR(VLOOKUP(ROWS($E$14:E25),Invoices!$A$2:$G$300,4,0),\"The End\")))","v":4600},{"$f":"IFERROR(VLOOKUP(Table1[[#This Row],[Invoice '#\nرقم الفاتورة]],Table4[[Invoice '#\nرقم الفاتورة]:[Notes\nملاحظات]],2,0),\"\")","v":1576.58},{"$f":"IFERROR(VLOOKUP(Table1[[#This Row],[Invoice '#\nرقم الفاتورة]],Table4[[Invoice '#\nرقم الفاتورة]:[Notes\nملاحظات]],3,0),\"\")","v":"2018-05-24"}]
[null,null,null,{"$f":"IF(OR(Table1[[#This Row],[Invoice '#\nرقم الفاتورة]]=\"\",Table1[[#This Row],[Invoice '#\nرقم الفاتورة]]=\"Nothing Follows\"),\"\",ROW()-13)","v":13},{"$f":"IF(OR(E25=\"The End\",E25=\"\",E25=\"No Invoices/s\"),\"\",IF(E25=\"No Invoices\",\"\",IFERROR(VLOOKUP(ROWS($E$14:E26),Invoices!$A$2:$G$300,4,0),\"The End\")))","v":4810},{"$f":"IFERROR(VLOOKUP(Table1[[#This Row],[Invoice '#\nرقم الفاتورة]],Table4[[Invoice '#\nرقم الفاتورة]:[Notes\nملاحظات]],2,0),\"\")","v":2813.61},{"$f":"IFERROR(VLOOKUP(Table1[[#This Row],[Invoice '#\nرقم الفاتورة]],Table4[[Invoice '#\nرقم الفاتورة]:[Notes\nملاحظات]],3,0),\"\")","v":"2018-06-27"}]
[null,null,null,{"$f":"IF(OR(Table1[[#This Row],[Invoice '#\nرقم الفاتورة]]=\"\",Table1[[#This Row],[Invoice '#\nرقم الفاتورة]]=\"Nothing Follows\"),\"\",ROW()-13)","v":14},{"$f":"IF(OR(E26=\"The End\",E26=\"\",E26=\"No Invoices/s\"),\"\",IF(E26=\"No Invoices\",\"\",IFERROR(VLOOKUP(ROWS($E$14:E27),Invoices!$A$2:$G$300,4,0),\"The End\")))","v":4999},{"$f":"IFERROR(VLOOKUP(Table1[[#This Row],[Invoice '#\nرقم الفاتورة]],Table4[[Invoice '#\nرقم الفاتورة]:[Notes\nملاحظات]],2,0),\"\")","v":7169.66},{"$f":"IFERROR(VLOOKUP(Table1[[#This Row],[Invoice '#\nرقم الفاتورة]],Table4[[Invoice '#\nرقم الفاتورة]:[Notes\nملاحظات]],3,0),\"\")","v":"2018-08-02"}]
[null,null,null,{"$f":"IF(OR(Table1[[#This Row],[Invoice '#\nرقم الفاتورة]]=\"\",Table1[[#This Row],[Invoice '#\nرقم الفاتورة]]=\"Nothing Follows\"),\"\",ROW()-13)","v":15},{"$f":"IF(OR(E27=\"The End\",E27=\"\",E27=\"No Invoices/s\"),\"\",IF(E27=\"No Invoices\",\"\",IFERROR(VLOOKUP(ROWS($E$14:E28),Invoices!$A$2:$G$300,4,0),\"The End\")))","v":5001},{"$f":"IFERROR(VLOOKUP(Table1[[#This Row],[Invoice '#\nرقم الفاتورة]],Table4[[Invoice '#\nرقم الفاتورة]:[Notes\nملاحظات]],2,0),\"\")","v":2204.48},{"$f":"IFERROR(VLOOKUP(Table1[[#This Row],[Invoice '#\nرقم الفاتورة]],Table4[[Invoice '#\nرقم الفاتورة]:[Notes\nملاحظات]],3,0),\"\")","v":"2018-08-09"}]
[null,null,null,{"$f":"IF(OR(Table1[[#This Row],[Invoice '#\nرقم الفاتورة]]=\"\",Table1[[#This Row],[Invoice '#\nرقم الفاتورة]]=\"Nothing Follows\"),\"\",ROW()-13)","v":16},{"$f":"IF(OR(E28=\"The End\",E28=\"\",E28=\"No Invoices/s\"),\"\",IF(E28=\"No Invoices\",\"\",IFERROR(VLOOKUP(ROWS($E$14:E29),Invoices!$A$2:$G$300,4,0),\"The End\")))","v":5629},{"$f":"IFERROR(VLOOKUP(Table1[[#This Row],[Invoice '#\nرقم الفاتورة]],Table4[[Invoice '#\nرقم الفاتورة]:[Notes\nملاحظات]],2,0),\"\")","v":1870.05},{"$f":"IFERROR(VLOOKUP(Table1[[#This Row],[Invoice '#\nرقم الفاتورة]],Table4[[Invoice '#\nرقم الفاتورة]:[Notes\nملاحظات]],3,0),\"\")","v":"2018-10-07"}]
[null,null,null,{"$f":"IF(OR(Table1[[#This Row],[Invoice '#\nرقم الفاتورة]]=\"\",Table1[[#This Row],[Invoice '#\nرقم الفاتورة]]=\"Nothing Follows\"),\"\",ROW()-13)","v":17},{"$f":"IF(OR(E29=\"The End\",E29=\"\",E29=\"No Invoices/s\"),\"\",IF(E29=\"No Invoices\",\"\",IFERROR(VLOOKUP(ROWS($E$14:E30),Invoices!$A$2:$G$300,4,0),\"The End\")))","v":"The End"},{"$f":"IFERROR(VLOOKUP(Table1[[#This Row],[Invoice '#\nرقم الفاتورة]],Table4[[Invoice '#\nرقم الفاتورة]:[Notes\nملاحظات]],2,0),\"\")","v":""},{"$f":"IFERROR(VLOOKUP(Table1[[#This Row],[Invoice '#\nرقم الفاتورة]],Table4[[Invoice '#\nرقم الفاتورة]:[Notes\nملاحظات]],3,0),\"\")","v":""}]
[null,null,null,{"$f":"IF(OR(Table1[[#This Row],[Invoice '#\nرقم الفاتورة]]=\"\",Table1[[#This Row],[Invoice '#\nرقم الفاتورة]]=\"Nothing Follows\"),\"\",ROW()-13)","v":""},{"$f":"IF(OR(E30=\"The End\",E30=\"\",E30=\"No Invoices/s\"),\"\",IF(E30=\"No Invoices\",\"\",IFERROR(VLOOKUP(ROWS($E$14:E31),Invoices!$A$2:$G$300,4,0),\"The End\")))","v":""},{"$f":"IFERROR(VLOOKUP(Table1[[#This Row],[Invoice '#\nرقم الفاتورة]],Table4[[Invoice '#\nرقم الفاتورة]:[Notes\nملاحظات]],2,0),\"\")","v":""},{"$f":"IFERROR(VLOOKUP(Table1[[#This Row],[Invoice '#\nرقم الفاتورة]],Table4[[Invoice '#\nرقم الفاتورة]:[Notes\nملاحظات]],3,0),\"\")","v":""}]
[null,null,null,{"$f":"IF(OR(Table1[[#This Row],[Invoice '#\nرقم الفاتورة]]=\"\",Table1[[#This Row],[Invoice '#\nرقم الفاتورة]]=\"Nothing Follows\"),\"\",ROW()-13)","v":""},{"$f":"IF(OR(E31=\"The End\",E31=\"\",E31=\"No Invoices/s\"),\"\",IF(E31=\"No Invoices\",\"\",IFERROR(VLOOKUP(ROWS($E$14:E32),Invoices!$A$2:$G$300,4,0),\"The End\")))","v":""},{"$f":"IFERROR(VLOOKUP(Table1[[#This Row],[Invoice '#\nرقم الفاتورة]],Table4[[Invoice '#\nرقم الفاتورة]:[Notes\nملاحظات]],2,0),\"\")","v":""},{"$f":"IFERROR(VLOOKUP(Table1[[#This Row],[Invoice '#\nرقم الفاتورة]],Table4[[Invoice '#\nرقم الفاتورة]:[Notes\nملاحظات]],3,0),\"\")","v":""}]
[null,null,null,{"$f":"IF(OR(Table1[[#This Row],[Invoice '#\nرقم الفاتورة]]=\"\",Table1[[#This Row],[Invoice '#\nرقم الفاتورة]]=\"Nothing Follows\"),\"\",ROW()-13)","v":""},{"$f":"IF(OR(E32=\"The End\",E32=\"\",E32=\"No Invoices/s\"),\"\",IF(E32=\"No Invoices\",\"\",IFERROR(VLOOKUP(ROWS($E$14:E33),Invoices!$A$2:$G$300,4,0),\"The End\")))","v":""},{"$f":"IFERROR(VLOOKUP(Table1[[#This Row],[Invoice '#\nرقم الفاتورة]],Table4[[Invoice '#\nرقم الفاتورة]:[Notes\nملاحظات]],2,0),\"\")","v":""},{"$f":"IFERROR(VLOOKUP(Table1[[#This Row],[Invoice '#\nرقم الفاتورة]],Table4[[Invoice '#\nرقم الفاتورة]:[Notes\nملاحظات]],3,0),\"\")","v":""}]
[null,null,null,{"$f":"IF(OR(Table1[[#This Row],[Invoice '#\nرقم الفاتورة]]=\"\",Table1[[#This Row],[Invoice '#\nرقم الفاتورة]]=\"Nothing Follows\"),\"\",ROW()-13)","v":""},{"$f":"IF(OR(E33=\"The End\",E33=\"\",E33=\"No Invoices/s\"),\"\",IF(E33=\"No Invoices\",\"\",IFERROR(VLOOKUP(ROWS($E$14:E34),Invoices!$A$2:$G$300,4,0),\"The End\")))","v":""},{"$f":"IFERROR(VLOOKUP(Table1[[#This Row],[Invoice '#\nرقم الفاتورة]],Table4[[Invoice '#\nرقم الفاتورة]:[Notes\nملاحظات]],2,0),\"\")","v":""},{"$f":"IFERROR(VLOOKUP(Table1[[#This Row],[Invoice '#\nرقم الفاتورة]],Table4[[Invoice '#\nرقم الفاتورة]:[Notes\nملاحظات]],3,0),\"\")","v":""}]
[null,null,null,{"$f":"IF(OR(Table1[[#This Row],[Invoice '#\nرقم الفاتورة]]=\"\",Table1[[#This Row],[Invoice '#\nرقم الفاتورة]]=\"Nothing Follows\"),\"\",ROW()-13)","v":""},{"$f":"IF(OR(E34=\"The End\",E34=\"\",E34=\"No Invoices/s\"),\"\",IF(E34=\"No Invoices\",\"\",IFERROR(VLOOKUP(ROWS($E$14:E35),Invoices!$A$2:$G$300,4,0),\"The End\")))","v":""},{"$f":"IFERROR(VLOOKUP(Table1[[#This Row],[Invoice '#\nرقم الفاتورة]],Table4[[Invoice '#\nرقم الفاتورة]:[Notes\nملاحظات]],2,0),\"\")","v":""},{"$f":"IFERROR(VLOOKUP(Table1[[#This Row],[Invoice '#\nرقم الفاتورة]],Table4[[Invoice '#\nرقم الفاتورة]:[Notes\nملاحظات]],3,0),\"\")","v":""}]
[null,null,null,{"$f":"IF(OR(Table1[[#This Row],[Invoice '#\nرقم الفاتورة]]=\"\",Table1[[#This Row],[Invoice '#\nرقم الفاتورة]]=\"Nothing Follows\"),\"\",ROW()-13)","v":""},{"$f":"IF(OR(E35=\"The End\",E35=\"\",E35=\"No Invoices/s\"),\"\",IF(E35=\"No Invoices\",\"\",IFERROR(VLOOKUP(ROWS($E$14:E36),Invoices!$A$2:$G$300,4,0),\"The End\")))","v":""},{"$f":"IFERROR(VLOOKUP(Table1[[#This Row],[Invoice '#\nرقم الفاتورة]],Table4[[Invoice '#\nرقم الفاتورة]:[Notes\nملاحظات]],2,0),\"\")","v":""},{"$f":"IFERROR(VLOOKUP(Table1[[#This Row],[Invoice '#\nرقم الفاتورة]],Table4[[Invoice '#\nرقم الفاتورة]:[Notes\nملاحظات]],3,0),\"\")","v":""}]
[null,null,null,{"$f":"IF(OR(Table1[[#This Row],[Invoice '#\nرقم الفاتورة]]=\"\",Table1[[#This Row],[Invoice '#\nرقم الفاتورة]]=\"Nothing Follows\"),\"\",ROW()-13)","v":""},{"$f":"IF(OR(E36=\"The End\",E36=\"\",E36=\"No Invoices/s\"),\"\",IF(E36=\"No Invoices\",\"\",IFERROR(VLOOKUP(ROWS($E$14:E63),Invoices!$A$2:$G$300,4,0),\"The End\")))","v":""},{"$f":"IFERROR(VLOOKUP(Table1[[#This Row],[Invoice '#\nرقم الفاتورة]],Table4[[Invoice '#\nرقم الفاتورة]:[Notes\nملاحظات]],2,0),\"\")","v":""},{"$f":"IFERROR(VLOOKUP(Table1[[#This Row],[Invoice '#\nرقم الفاتورة]],Table4[[Invoice '#\nرقم الفاتورة]:[Notes\nملاحظات]],3,0),\"\")","v":""}]
[null,null,null,{"$f":"IF(OR(Table1[[#This Row],[Invoice '#\nرقم الفاتورة]]=\"\",Table1[[#This Row],[Invoice '#\nرقم الفاتورة]]=\"Nothing Follows\"),\"\",ROW()-13)","v":""},{"$f":"IF(OR(E37=\"The End\",E37=\"\",E37=\"No Invoices/s\"),\"\",IF(E37=\"No Invoices\",\"\",IFERROR(VLOOKUP(ROWS($E$14:E64),Invoices!$A$2:$G$300,4,0),\"The End\")))","v":""},{"$f":"IFERROR(VLOOKUP(Table1[[#This Row],[Invoice '#\nرقم الفاتورة]],Table4[[Invoice '#\nرقم الفاتورة]:[Notes\nملاحظات]],2,0),\"\")","v":""},{"$f":"IFERROR(VLOOKUP(Table1[[#This Row],[Invoice '#\nرقم الفاتورة]],Table4[[Invoice '#\nرقم الفاتورة]:[Notes\nملاحظات]],3,0),\"\")","v":""}]
[null,null,null,{"$f":"IF(OR(Table1[[#This Row],[Invoice '#\nرقم الفاتورة]]=\"\",Table1[[#This Row],[Invoice '#\nرقم الفاتورة]]=\"Nothing Follows\"),\"\",ROW()-13)","v":""},{"$f":"IF(OR(E38=\"The End\",E38=\"\",E38=\"No Invoices/s\"),\"\",IF(E38=\"No Invoices\",\"\",IFERROR(VLOOKUP(ROWS($E$14:E66),Invoices!$A$2:$G$300,4,0),\"The End\")))","v":""},{"$f":"IFERROR(VLOOKUP(Table1[[#This Row],[Invoice '#\nرقم الفاتورة]],Table4[[Invoice '#\nرقم الفاتورة]:[Notes\nملاحظات]],2,0),\"\")","v":""},{"$f":"IFERROR(VLOOKUP(Table1[[#This Row],[Invoice '#\nرقم الفاتورة]],Table4[[Invoice '#\nرقم الفاتورة]:[Notes\nملاحظات]],3,0),\"\")","v":""}]
[null,null,null,{"$f":"IF(OR(Table1[[#This Row],[Invoice '#\nرقم الفاتورة]]=\"\",Table1[[#This Row],[Invoice '#\nرقم الفاتورة]]=\"Nothing Follows\"),\"\",ROW()-13)","v":""},{"$f":"IF(OR(E39=\"The End\",E39=\"\",E39=\"No Invoices/s\"),\"\",IF(E39=\"No Invoices\",\"\",IFERROR(VLOOKUP(ROWS($E$14:E67),Invoices!$A$2:$G$300,4,0),\"The End\")))","v":""},{"$f":"IFERROR(VLOOKUP(Table1[[#This Row],[Invoice '#\nرقم الفاتورة]],Table4[[Invoice '#\nرقم الفاتورة]:[Notes\nملاحظات]],2,0),\"\")","v":""},{"$f":"IFERROR(VLOOKUP(Table1[[#This Row],[Invoice '#\nرقم الفاتورة]],Table4[[Invoice '#\nرقم الفاتورة]:[Notes\nملاحظات]],3,0),\"\")","v":""}]
[null,null,null,{"$f":"IF(OR(Table1[[#This Row],[Invoice '#\nرقم الفاتورة]]=\"\",Table1[[#This Row],[Invoice '#\nرقم الفاتورة]]=\"Nothing Follows\"),\"\",ROW()-13)","v":""},{"$f":"IF(OR(E40=\"The End\",E40=\"\",E40=\"No Invoices/s\"),\"\",IF(E40=\"No Invoices\",\"\",IFERROR(VLOOKUP(ROWS($E$14:E68),Invoices!$A$2:$G$300,4,0),\"The End\")))","v":""},{"$f":"IFERROR(VLOOKUP(Table1[[#This Row],[Invoice '#\nرقم الفاتورة]],Table4[[Invoice '#\nرقم الفاتورة]:[Notes\nملاحظات]],2,0),\"\")","v":""},{"$f":"IFERROR(VLOOKUP(Table1[[#This Row],[Invoice '#\nرقم الفاتورة]],Table4[[Invoice '#\nرقم الفاتورة]:[Notes\nملاحظات]],3,0),\"\")","v":""}]
[null,null,null,{"$f":"IF(OR(Table1[[#This Row],[Invoice '#\nرقم الفاتورة]]=\"\",Table1[[#This Row],[Invoice '#\nرقم الفاتورة]]=\"Nothing Follows\"),\"\",ROW()-13)","v":""},{"$f":"IF(OR(E41=\"The End\",E41=\"\",E41=\"No Invoices/s\"),\"\",IF(E41=\"No Invoices\",\"\",IFERROR(VLOOKUP(ROWS($E$14:E69),Invoices!$A$2:$G$300,4,0),\"The End\")))","v":""},{"$f":"IFERROR(VLOOKUP(Table1[[#This Row],[Invoice '#\nرقم الفاتورة]],Table4[[Invoice '#\nرقم الفاتورة]:[Notes\nملاحظات]],2,0),\"\")","v":""},{"$f":"IFERROR(VLOOKUP(Table1[[#This Row],[Invoice '#\nرقم الفاتورة]],Table4[[Invoice '#\nرقم الفاتورة]:[Notes\nملاحظات]],3,0),\"\")","v":""}]
[null,null,null,{"$f":"IF(OR(Table1[[#This Row],[Invoice '#\nرقم الفاتورة]]=\"\",Table1[[#This Row],[Invoice '#\nرقم الفاتورة]]=\"Nothing Follows\"),\"\",ROW()-13)","v":""},{"$f":"IF(OR(E42=\"The End\",E42=\"\",E42=\"No Invoices/s\"),\"\",IF(E42=\"No Invoices\",\"\",IFERROR(VLOOKUP(ROWS($E$14:E70),Invoices!$A$2:$G$300,4,0),\"The End\")))","v":""},{"$f":"IFERROR(VLOOKUP(Table1[[#This Row],[Invoice '#\nرقم الفاتورة]],Table4[[Invoice '#\nرقم الفاتورة]:[Notes\nملاحظات]],2,0),\"\")","v":""},{"$f":"IFERROR(VLOOKUP(Table1[[#This Row],[Invoice '#\nرقم الفاتورة]],Table4[[Invoice '#\nرقم الفاتورة]:[Notes\nملاحظات]],3,0),\"\")","v":""}]
[null,null,null,{"$f":"IF(OR(Table1[[#This Row],[Invoice '#\nرقم الفاتورة]]=\"\",Table1[[#This Row],[Invoice '#\nرقم الفاتورة]]=\"Nothing Follows\"),\"\",ROW()-13)","v":""},{"$f":"IF(OR(E43=\"The End\",E43=\"\",E43=\"No Invoices/s\"),\"\",IF(E43=\"No Invoices\",\"\",IFERROR(VLOOKUP(ROWS($E$14:E71),Invoices!$A$2:$G$300,4,0),\"The End\")))","v":""},{"$f":"IFERROR(VLOOKUP(Table1[[#This Row],[Invoice '#\nرقم الفاتورة]],Table4[[Invoice '#\nرقم الفاتورة]:[Notes\nملاحظات]],2,0),\"\")","v":""},{"$f":"IFERROR(VLOOKUP(Table1[[#This Row],[Invoice '#\nرقم الفاتورة]],Table4[[Invoice '#\nرقم الفاتورة]:[Notes\nملاحظات]],3,0),\"\")","v":""}]
[null,null,null,{"$f":"IF(OR(Table1[[#This Row],[Invoice '#\nرقم الفاتورة]]=\"\",Table1[[#This Row],[Invoice '#\nرقم الفاتورة]]=\"Nothing Follows\"),\"\",ROW()-13)","v":""},{"$f":"IF(OR(E44=\"The End\",E44=\"\",E44=\"No Invoices/s\"),\"\",IF(E44=\"No Invoices\",\"\",IFERROR(VLOOKUP(ROWS($E$14:E72),Invoices!$A$2:$G$300,4,0),\"The End\")))","v":""},{"$f":"IFERROR(VLOOKUP(Table1[[#This Row],[Invoice '#\nرقم الفاتورة]],Table4[[Invoice '#\nرقم الفاتورة]:[Notes\nملاحظات]],2,0),\"\")","v":""},{"$f":"IFERROR(VLOOKUP(Table1[[#This Row],[Invoice '#\nرقم الفاتورة]],Table4[[Invoice '#\nرقم الفاتورة]:[Notes\nملاحظات]],3,0),\"\")","v":""}]
[null,null,null,{"$f":"IF(OR(Table1[[#This Row],[Invoice '#\nرقم الفاتورة]]=\"\",Table1[[#This Row],[Invoice '#\nرقم الفاتورة]]=\"Nothing Follows\"),\"\",ROW()-13)","v":""},{"$f":"IF(OR(E45=\"The End\",E45=\"\",E45=\"No Invoices/s\"),\"\",IF(E45=\"No Invoices\",\"\",IFERROR(VLOOKUP(ROWS($E$14:E73),Invoices!$A$2:$G$300,4,0),\"The End\")))","v":""},{"$f":"IFERROR(VLOOKUP(Table1[[#This Row],[Invoice '#\nرقم الفاتورة]],Table4[[Invoice '#\nرقم الفاتورة]:[Notes\nملاحظات]],2,0),\"\")","v":""},{"$f":"IFERROR(VLOOKUP(Table1[[#This Row],[Invoice '#\nرقم الفاتورة]],Table4[[Invoice '#\nرقم الفاتورة]:[Notes\nملاحظات]],3,0),\"\")","v":""}]
[null,null,null,{"$f":"IF(OR(Table1[[#This Row],[Invoice '#\nرقم الفاتورة]]=\"\",Table1[[#This Row],[Invoice '#\nرقم الفاتورة]]=\"Nothing Follows\"),\"\",ROW()-13)","v":""},{"$f":"IF(OR(E46=\"The End\",E46=\"\",E46=\"No Invoices/s\"),\"\",IF(E46=\"No Invoices\",\"\",IFERROR(VLOOKUP(ROWS($E$14:E74),Invoices!$A$2:$G$300,4,0),\"The End\")))","v":""},{"$f":"IFERROR(VLOOKUP(Table1[[#This Row],[Invoice '#\nرقم الفاتورة]],Table4[[Invoice '#\nرقم الفاتورة]:[Notes\nملاحظات]],2,0),\"\")","v":""},{"$f":"IFERROR(VLOOKUP(Table1[[#This Row],[Invoice '#\nرقم الفاتورة]],Table4[[Invoice '#\nرقم الفاتورة]:[Notes\nملاحظات]],3,0),\"\")","v":""}]
[null,null,null,{"$f":"IF(OR(Table1[[#This Row],[Invoice '#\nرقم الفاتورة]]=\"\",Table1[[#This Row],[Invoice '#\nرقم الفاتورة]]=\"Nothing Follows\"),\"\",ROW()-13)","v":""},{"$f":"IF(OR(E47=\"The End\",E47=\"\",E47=\"No Invoices/s\"),\"\",IF(E47=\"No Invoices\",\"\",IFERROR(VLOOKUP(ROWS($E$14:E75),Invoices!$A$2:$G$300,4,0),\"The End\")))","v":""},{"$f":"IFERROR(VLOOKUP(Table1[[#This Row],[Invoice '#\nرقم الفاتورة]],Table4[[Invoice '#\nرقم الفاتورة]:[Notes\nملاحظات]],2,0),\"\")","v":""},{"$f":"IFERROR(VLOOKUP(Table1[[#This Row],[Invoice '#\nرقم الفاتورة]],Table4[[Invoice '#\nرقم الفاتورة]:[Notes\nملاحظات]],3,0),\"\")","v":""}]
[null,null,null,{"$f":"IF(OR(Table1[[#This Row],[Invoice '#\nرقم الفاتورة]]=\"\",Table1[[#This Row],[Invoice '#\nرقم الفاتورة]]=\"Nothing Follows\"),\"\",ROW()-13)","v":""},{"$f":"IF(OR(E48=\"The End\",E48=\"\",E48=\"No Invoices/s\"),\"\",IF(E48=\"No Invoices\",\"\",IFERROR(VLOOKUP(ROWS($E$14:E76),Invoices!$A$2:$G$300,4,0),\"The End\")))","v":""},{"$f":"IFERROR(VLOOKUP(Table1[[#This Row],[Invoice '#\nرقم الفاتورة]],Table4[[Invoice '#\nرقم الفاتورة]:[Notes\nملاحظات]],2,0),\"\")","v":""},{"$f":"IFERROR(VLOOKUP(Table1[[#This Row],[Invoice '#\nرقم الفاتورة]],Table4[[Invoice '#\nرقم الفاتورة]:[Notes\nملاحظات]],3,0),\"\")","v":""}]
[null,null,null,{"$f":"IF(OR(Table1[[#This Row],[Invoice '#\nرقم الفاتورة]]=\"\",Table1[[#This Row],[Invoice '#\nرقم الفاتورة]]=\"Nothing Follows\"),\"\",ROW()-13)","v":""},{"$f":"IF(OR(E49=\"The End\",E49=\"\",E49=\"No Invoices/s\"),\"\",IF(E49=\"No Invoices\",\"\",IFERROR(VLOOKUP(ROWS($E$14:E77),Invoices!$A$2:$G$300,4,0),\"The End\")))","v":""},{"$f":"IFERROR(VLOOKUP(Table1[[#This Row],[Invoice '#\nرقم الفاتورة]],Table4[[Invoice '#\nرقم الفاتورة]:[Notes\nملاحظات]],2,0),\"\")","v":""},{"$f":"IFERROR(VLOOKUP(Table1[[#This Row],[Invoice '#\nرقم الفاتورة]],Table4[[Invoice '#\nرقم الفاتورة]:[Notes\nملاحظات]],3,0),\"\")","v":""}]
[null,null,null,{"$f":"IF(OR(Table1[[#This Row],[Invoice '#\nرقم الفاتورة]]=\"\",Table1[[#This Row],[Invoice '#\nرقم الفاتورة]]=\"Nothing Follows\"),\"\",ROW()-13)","v":""},{"$f":"IF(OR(E50=\"The End\",E50=\"\",E50=\"No Invoices/s\"),\"\",IF(E50=\"No Invoices\",\"\",IFERROR(VLOOKUP(ROWS($E$14:E78),Invoices!$A$2:$G$300,4,0),\"The End\")))","v":""},{"$f":"IFERROR(VLOOKUP(Table1[[#This Row],[Invoice '#\nرقم الفاتورة]],Table4[[Invoice '#\nرقم الفاتورة]:[Notes\nملاحظات]],2,0),\"\")","v":""},{"$f":"IFERROR(VLOOKUP(Table1[[#This Row],[Invoice '#\nرقم الفاتورة]],Table4[[Invoice '#\nرقم الفاتورة]:[Notes\nملاحظات]],3,0),\"\")","v":""}]
[null,null,null,{"$f":"IF(OR(Table1[[#This Row],[Invoice '#\nرقم الفاتورة]]=\"\",Table1[[#This Row],[Invoice '#\nرقم الفاتورة]]=\"Nothing Follows\"),\"\",ROW()-13)","v":""},{"$f":"IF(OR(E51=\"The End\",E51=\"\",E51=\"No Invoices/s\"),\"\",IF(E51=\"No Invoices\",\"\",IFERROR(VLOOKUP(ROWS($E$14:E79),Invoices!$A$2:$G$300,4,0),\"The End\")))","v":""},{"$f":"IFERROR(VLOOKUP(Table1[[#This Row],[Invoice '#\nرقم الفاتورة]],Table4[[Invoice '#\nرقم الفاتورة]:[Notes\nملاحظات]],2,0),\"\")","v":""},{"$f":"IFERROR(VLOOKUP(Table1[[#This Row],[Invoice '#\nرقم الفاتورة]],Table4[[Invoice '#\nرقم الفاتورة]:[Notes\nملاحظات]],3,0),\"\")","v":""}]
[null,null,null,{"$f":"IF(OR(Table1[[#This Row],[Invoice '#\nرقم الفاتورة]]=\"\",Table1[[#This Row],[Invoice '#\nرقم الفاتورة]]=\"Nothing Follows\"),\"\",ROW()-13)","v":""},{"$f":"IF(OR(E52=\"The End\",E52=\"\",E52=\"No Invoices/s\"),\"\",IF(E52=\"No Invoices\",\"\",IFERROR(VLOOKUP(ROWS($E$14:E80),Invoices!$A$2:$G$300,4,0),\"The End\")))","v":""},{"$f":"IFERROR(VLOOKUP(Table1[[#This Row],[Invoice '#\nرقم الفاتورة]],Table4[[Invoice '#\nرقم الفاتورة]:[Notes\nملاحظات]],2,0),\"\")","v":""},{"$f":"IFERROR(VLOOKUP(Table1[[#This Row],[Invoice '#\nرقم الفاتورة]],Table4[[Invoice '#\nرقم الفاتورة]:[Notes\nملاحظات]],3,0),\"\")","v":""}]
[null,null,null,{"$f":"IF(OR(Table1[[#This Row],[Invoice '#\nرقم الفاتورة]]=\"\",Table1[[#This Row],[Invoice '#\nرقم الفاتورة]]=\"Nothing Follows\"),\"\",ROW()-13)","v":""},{"$f":"IF(OR(E53=\"The End\",E53=\"\",E53=\"No Invoices/s\"),\"\",IF(E53=\"No Invoices\",\"\",IFERROR(VLOOKUP(ROWS($E$14:E81),Invoices!$A$2:$G$300,4,0),\"The End\")))","v":""},{"$f":"IFERROR(VLOOKUP(Table1[[#This Row],[Invoice '#\nرقم الفاتورة]],Table4[[Invoice '#\nرقم الفاتورة]:[Notes\nملاحظات]],2,0),\"\")","v":""},{"$f":"IFERROR(VLOOKUP(Table1[[#This Row],[Invoice '#\nرقم الفاتورة]],Table4[[Invoice '#\nرقم الفاتورة]:[Notes\nملاحظات]],3,0),\"\")","v":""}]
[null,null,null,{"$f":"IF(OR(Table1[[#This Row],[Invoice '#\nرقم الفاتورة]]=\"\",Table1[[#This Row],[Invoice '#\nرقم الفاتورة]]=\"Nothing Follows\"),\"\",ROW()-13)","v":""},{"$f":"IF(OR(E54=\"The End\",E54=\"\",E54=\"No Invoices/s\"),\"\",IF(E54=\"No Invoices\",\"\",IFERROR(VLOOKUP(ROWS($E$14:E82),Invoices!$A$2:$G$300,4,0),\"The End\")))","v":""},{"$f":"IFERROR(VLOOKUP(Table1[[#This Row],[Invoice '#\nرقم الفاتورة]],Table4[[Invoice '#\nرقم الفاتورة]:[Notes\nملاحظات]],2,0),\"\")","v":""},{"$f":"IFERROR(VLOOKUP(Table1[[#This Row],[Invoice '#\nرقم الفاتورة]],Table4[[Invoice '#\nرقم الفاتورة]:[Notes\nملاحظات]],3,0),\"\")","v":""}]
[null,null,null,{"$f":"IF(OR(Table1[[#This Row],[Invoice '#\nرقم الفاتورة]]=\"\",Table1[[#This Row],[Invoice '#\nرقم الفاتورة]]=\"Nothing Follows\"),\"\",ROW()-13)","v":""},{"$f":"IF(OR(E55=\"The End\",E55=\"\",E55=\"No Invoices/s\"),\"\",IF(E55=\"No Invoices\",\"\",IFERROR(VLOOKUP(ROWS($E$14:E83),Invoices!$A$2:$G$300,4,0),\"The End\")))","v":""},{"$f":"IFERROR(VLOOKUP(Table1[[#This Row],[Invoice '#\nرقم الفاتورة]],Table4[[Invoice '#\nرقم الفاتورة]:[Notes\nملاحظات]],2,0),\"\")","v":""},{"$f":"IFERROR(VLOOKUP(Table1[[#This Row],[Invoice '#\nرقم الفاتورة]],Table4[[Invoice '#\nرقم الفاتورة]:[Notes\nملاحظات]],3,0),\"\")","v":""}]
[null,null,null,{"$f":"IF(OR(Table1[[#This Row],[Invoice '#\nرقم الفاتورة]]=\"\",Table1[[#This Row],[Invoice '#\nرقم الفاتورة]]=\"Nothing Follows\"),\"\",ROW()-13)","v":""},{"$f":"IF(OR(E56=\"The End\",E56=\"\",E56=\"No Invoices/s\"),\"\",IF(E56=\"No Invoices\",\"\",IFERROR(VLOOKUP(ROWS($E$14:E84),Invoices!$A$2:$G$300,4,0),\"The End\")))","v":""},{"$f":"IFERROR(VLOOKUP(Table1[[#This Row],[Invoice '#\nرقم الفاتورة]],Table4[[Invoice '#\nرقم الفاتورة]:[Notes\nملاحظات]],2,0),\"\")","v":""},{"$f":"IFERROR(VLOOKUP(Table1[[#This Row],[Invoice '#\nرقم الفاتورة]],Table4[[Invoice '#\nرقم الفاتورة]:[Notes\nملاحظات]],3,0),\"\")","v":""}]
[null,null,null,{"$f":"IF(OR(Table1[[#This Row],[Invoice '#\nرقم الفاتورة]]=\"\",Table1[[#This Row],[Invoice '#\nرقم الفاتورة]]=\"Nothing Follows\"),\"\",ROW()-13)","v":""},{"$f":"IF(OR(E57=\"The End\",E57=\"\",E57=\"No Invoices/s\"),\"\",IF(E57=\"No Invoices\",\"\",IFERROR(VLOOKUP(ROWS($E$14:E85),Invoices!$A$2:$G$300,4,0),\"The End\")))","v":""},{"$f":"IFERROR(VLOOKUP(Table1[[#This Row],[Invoice '#\nرقم الفاتورة]],Table4[[Invoice '#\nرقم الفاتورة]:[Notes\nملاحظات]],2,0),\"\")","v":""},{"$f":"IFERROR(VLOOKUP(Table1[[#This Row],[Invoice '#\nرقم الفاتورة]],Table4[[Invoice '#\nرقم الفاتورة]:[Notes\nملاحظات]],3,0),\"\")","v":""}]
[null,null,null,{"$f":"IF(OR(Table1[[#This Row],[Invoice '#\nرقم الفاتورة]]=\"\",Table1[[#This Row],[Invoice '#\nرقم الفاتورة]]=\"Nothing Follows\"),\"\",ROW()-13)","v":""},{"$f":"IF(OR(E58=\"The End\",E58=\"\",E58=\"No Invoices/s\"),\"\",IF(E58=\"No Invoices\",\"\",IFERROR(VLOOKUP(ROWS($E$14:E86),Invoices!$A$2:$G$300,4,0),\"The End\")))","v":""},{"$f":"IFERROR(VLOOKUP(Table1[[#This Row],[Invoice '#\nرقم الفاتورة]],Table4[[Invoice '#\nرقم الفاتورة]:[Notes\nملاحظات]],2,0),\"\")","v":""},{"$f":"IFERROR(VLOOKUP(Table1[[#This Row],[Invoice '#\nرقم الفاتورة]],Table4[[Invoice '#\nرقم الفاتورة]:[Notes\nملاحظات]],3,0),\"\")","v":""}]
[null,null,null,{"$f":"IF(OR(Table1[[#This Row],[Invoice '#\nرقم الفاتورة]]=\"\",Table1[[#This Row],[Invoice '#\nرقم الفاتورة]]=\"Nothing Follows\"),\"\",ROW()-13)","v":""},{"$f":"IF(OR(E59=\"The End\",E59=\"\",E59=\"No Invoices/s\"),\"\",IF(E59=\"No Invoices\",\"\",IFERROR(VLOOKUP(ROWS($E$14:E87),Invoices!$A$2:$G$300,4,0),\"The End\")))","v":""},{"$f":"IFERROR(VLOOKUP(Table1[[#This Row],[Invoice '#\nرقم الفاتورة]],Table4[[Invoice '#\nرقم الفاتورة]:[Notes\nملاحظات]],2,0),\"\")","v":""},{"$f":"IFERROR(VLOOKUP(Table1[[#This Row],[Invoice '#\nرقم الفاتورة]],Table4[[Invoice '#\nرقم الفاتورة]:[Notes\nملاحظات]],3,0),\"\")","v":""}]
[null,null,null,{"$f":"IF(OR(Table1[[#This Row],[Invoice '#\nرقم الفاتورة]]=\"\",Table1[[#This Row],[Invoice '#\nرقم الفاتورة]]=\"Nothing Follows\"),\"\",ROW()-13)","v":""},{"$f":"IF(OR(E60=\"The End\",E60=\"\",E60=\"No Invoices/s\"),\"\",IF(E60=\"No Invoices\",\"\",IFERROR(VLOOKUP(ROWS($E$14:E88),Invoices!$A$2:$G$300,4,0),\"The End\")))","v":""},{"$f":"IFERROR(VLOOKUP(Table1[[#This Row],[Invoice '#\nرقم الفاتورة]],Table4[[Invoice '#\nرقم الفاتورة]:[Notes\nملاحظات]],2,0),\"\")","v":""},{"$f":"IFERROR(VLOOKUP(Table1[[#This Row],[Invoice '#\nرقم الفاتورة]],Table4[[Invoice '#\nرقم الفاتورة]:[Notes\nملاحظات]],3,0),\"\")","v":""}]
[null,null,null,{"$f":"IF(OR(Table1[[#This Row],[Invoice '#\nرقم الفاتورة]]=\"\",Table1[[#This Row],[Invoice '#\nرقم الفاتورة]]=\"Nothing Follows\"),\"\",ROW()-13)","v":""},{"$f":"IF(OR(E61=\"The End\",E61=\"\",E61=\"No Invoices/s\"),\"\",IF(E61=\"No Invoices\",\"\",IFERROR(VLOOKUP(ROWS($E$14:E89),Invoices!$A$2:$G$300,4,0),\"The End\")))","v":""},{"$f":"IFERROR(VLOOKUP(Table1[[#This Row],[Invoice '#\nرقم الفاتورة]],Table4[[Invoice '#\nرقم الفاتورة]:[Notes\nملاحظات]],2,0),\"\")","v":""},{"$f":"IFERROR(VLOOKUP(Table1[[#This Row],[Invoice '#\nرقم الفاتورة]],Table4[[Invoice '#\nرقم الفاتورة]:[Notes\nملاحظات]],3,0),\"\")","v":""}]
[null,null,null,{"$f":"IF(OR(Table1[[#This Row],[Invoice '#\nرقم الفاتورة]]=\"\",Table1[[#This Row],[Invoice '#\nرقم الفاتورة]]=\"Nothing Follows\"),\"\",ROW()-13)","v":""},{"$f":"IF(OR(E62=\"The End\",E62=\"\",E62=\"No Invoices/s\"),\"\",IF(E62=\"No Invoices\",\"\",IFERROR(VLOOKUP(ROWS($E$14:E90),Invoices!$A$2:$G$300,4,0),\"The End\")))","v":""},{"$f":"IFERROR(VLOOKUP(Table1[[#This Row],[Invoice '#\nرقم الفاتورة]],Table4[[Invoice '#\nرقم الفاتورة]:[Notes\nملاحظات]],2,0),\"\")","v":""},{"$f":"IFERROR(VLOOKUP(Table1[[#This Row],[Invoice '#\nرقم الفاتورة]],Table4[[Invoice '#\nرقم الفاتورة]:[Notes\nملاحظات]],3,0),\"\")","v":""}]
[null,null,null,null,{"$f":"COUNT(Table1['#])-1& \"  invoice/s\"","v":"16  invoice/s"},{"$f":"SUBTOTAL(109,Table1[Invoice Amount\nمبلغ الفاتورة])","v":39036.820000000014}]
[]
[null,null,null,"Payments   الدفعات"]
[null,null,null,"#1","Payment Date\nتاريخ الدفعة"," Amount\nمبلغ ","Notes\nملاحظات"]
[null,null,null,{"$f":"IF(OR(E67=\"No Payment/s\",E67=\"The End\"),\"\",IF(E67=\"\",\"\",ROW()-67))","v":1},{"$f":"IF(Table2[[#This Row],['#1]]=\"\",\"\",IFERROR(VLOOKUP(Table2[[#This Row],['#1]],Payments!$A$2:$F$51,4,0),\"No Payment/s\"))","v":"2017-10-26"},{"$f":"IFERROR(VLOOKUP(Table2[[#This Row],['#1]],Payments!$A$2:$F$51,5,0),\"\")","v":3540.23},{"$f":"IFERROR(VLOOKUP(Table2[[#This Row],['#1]],Payments!$A$2:$F$51,6,0),\"\")","v":"INV 28"}]
[null,null,null,2,{"$f":"IF(OR(Table2[[#This Row],['#1]]=\"\",E68=\"The End\",E68=\"Nothing Follows\"),\"\",IFERROR(VLOOKUP(Table2[[#This Row],['#1]],Payments!$A$2:$F$51,4,0),\"The End\"))","v":"2017-10-26"},{"$f":"IFERROR(VLOOKUP(Table2[[#This Row],['#1]],Payments!$A$2:$F$51,5,0),\"\")","v":1523.63},{"$f":"IFERROR(VLOOKUP(Table2[[#This Row],['#1]],Payments!$A$2:$F$51,6,0),\"\")","v":"INV 27"}]
[null,null,null,3,{"$f":"IF(OR(Table2[[#This Row],['#1]]=\"\",E69=\"The End\",E69=\"Nothing Follows\"),\"\",IFERROR(VLOOKUP(Table2[[#This Row],['#1]],Payments!$A$2:$F$51,4,0),\"The End\"))","v":"2018-01-17"},{"$f":"IFERROR(VLOOKUP(Table2[[#This Row],['#1]],Payments!$A$2:$F$51,5,0),\"\")","v":2344.96},{"$f":"IFERROR(VLOOKUP(Table2[[#This Row],['#1]],Payments!$A$2:$F$51,6,0),\"\")","v":"INV 65"}]
[null,null,null,4,{"$f":"IF(OR(Table2[[#This Row],['#1]]=\"\",E70=\"The End\",E70=\"Nothing Follows\"),\"\",IFERROR(VLOOKUP(Table2[[#This Row],['#1]],Payments!$A$2:$F$51,4,0),\"The End\"))","v":"2018-01-17"},{"$f":"IFERROR(VLOOKUP(Table2[[#This Row],['#1]],Payments!$A$2:$F$51,5,0),\"\")","v":2008},{"$f":"IFERROR(VLOOKUP(Table2[[#This Row],['#1]],Payments!$A$2:$F$51,6,0),\"\")","v":"INV 41"}]
[null,null,null,5,{"$f":"IF(OR(Table2[[#This Row],['#1]]=\"\",E71=\"The End\",E71=\"Nothing Follows\"),\"\",IFERROR(VLOOKUP(Table2[[#This Row],['#1]],Payments!$A$2:$F$51,4,0),\"The End\"))","v":"2018-01-17"},{"$f":"IFERROR(VLOOKUP(Table2[[#This Row],['#1]],Payments!$A$2:$F$51,5,0),\"\")","v":998.26},{"$f":"IFERROR(VLOOKUP(Table2[[#This Row],['#1]],Payments!$A$2:$F$51,6,0),\"\")","v":"INV 23268"}]
[null,null,null,6,{"$f":"IF(OR(Table2[[#This Row],['#1]]=\"\",E72=\"The End\",E72=\"Nothing Follows\"),\"\",IFERROR(VLOOKUP(Table2[[#This Row],['#1]],Payments!$A$2:$F$51,4,0),\"The End\"))","v":"2018-01-17"},{"$f":"IFERROR(VLOOKUP(Table2[[#This Row],['#1]],Payments!$A$2:$F$51,5,0),\"\")","v":637},{"$f":"IFERROR(VLOOKUP(Table2[[#This Row],['#1]],Payments!$A$2:$F$51,6,0),\"\")","v":"INV 18"}]
[null,null,null,7,{"$f":"IF(OR(Table2[[#This Row],['#1]]=\"\",E73=\"The End\",E73=\"Nothing Follows\"),\"\",IFERROR(VLOOKUP(Table2[[#This Row],['#1]],Payments!$A$2:$F$51,4,0),\"The End\"))","v":"2018-03-10"},{"$f":"IFERROR(VLOOKUP(Table2[[#This Row],['#1]],Payments!$A$2:$F$51,5,0),\"\")","v":3782.76},{"$f":"IFERROR(VLOOKUP(Table2[[#This Row],['#1]],Payments!$A$2:$F$51,6,0),\"\")","v":"INV 12"}]
[null,null,null,8,{"$f":"IF(OR(Table2[[#This Row],['#1]]=\"\",E74=\"The End\",E74=\"Nothing Follows\"),\"\",IFERROR(VLOOKUP(Table2[[#This Row],['#1]],Payments!$A$2:$F$51,4,0),\"The End\"))","v":"2018-04-28"},{"$f":"IFERROR(VLOOKUP(Table2[[#This Row],['#1]],Payments!$A$2:$F$51,5,0),\"\")","v":2354.63},{"$f":"IFERROR(VLOOKUP(Table2[[#This Row],['#1]],Payments!$A$2:$F$51,6,0),\"\")","v":"INV 102"}]
[null,null,null,9,{"$f":"IF(OR(Table2[[#This Row],['#1]]=\"\",E75=\"The End\",E75=\"Nothing Follows\"),\"\",IFERROR(VLOOKUP(Table2[[#This Row],['#1]],Payments!$A$2:$F$51,4,0),\"The End\"))","v":"2018-04-28"},{"$f":"IFERROR(VLOOKUP(Table2[[#This Row],['#1]],Payments!$A$2:$F$51,5,0),\"\")","v":2006.55},{"$f":"IFERROR(VLOOKUP(Table2[[#This Row],['#1]],Payments!$A$2:$F$51,6,0),\"\")","v":"INV 101"}]
[null,null,null,10,{"$f":"IF(OR(Table2[[#This Row],['#1]]=\"\",E76=\"The End\",E76=\"Nothing Follows\"),\"\",IFERROR(VLOOKUP(Table2[[#This Row],['#1]],Payments!$A$2:$F$51,4,0),\"The End\"))","v":"2018-04-28"},{"$f":"IFERROR(VLOOKUP(Table2[[#This Row],['#1]],Payments!$A$2:$F$51,5,0),\"\")","v":1250.3399999999999},{"$f":"IFERROR(VLOOKUP(Table2[[#This Row],['#1]],Payments!$A$2:$F$51,6,0),\"\")","v":"INV 35"}]
[null,null,null,11,{"$f":"IF(OR(Table2[[#This Row],['#1]]=\"\",E77=\"The End\",E77=\"Nothing Follows\"),\"\",IFERROR(VLOOKUP(Table2[[#This Row],['#1]],Payments!$A$2:$F$51,4,0),\"The End\"))","v":"2018-05-31"},{"$f":"IFERROR(VLOOKUP(Table2[[#This Row],['#1]],Payments!$A$2:$F$51,5,0),\"\")","v":2956.08},{"$f":"IFERROR(VLOOKUP(Table2[[#This Row],['#1]],Payments!$A$2:$F$51,6,0),\"\")","v":"INV 4991"}]
[null,null,null,12,{"$f":"IF(OR(Table2[[#This Row],['#1]]=\"\",E78=\"The End\",E78=\"Nothing Follows\"),\"\",IFERROR(VLOOKUP(Table2[[#This Row],['#1]],Payments!$A$2:$F$51,4,0),\"The End\"))","v":"2018-06-26"},{"$f":"IFERROR(VLOOKUP(Table2[[#This Row],['#1]],Payments!$A$2:$F$51,5,0),\"\")","v":1576.58},{"$f":"IFERROR(VLOOKUP(Table2[[#This Row],['#1]],Payments!$A$2:$F$51,6,0),\"\")","v":"INV 4600"}]
[null,null,null,13,{"$f":"IF(OR(Table2[[#This Row],['#1]]=\"\",E79=\"The End\",E79=\"Nothing Follows\"),\"\",IFERROR(VLOOKUP(Table2[[#This Row],['#1]],Payments!$A$2:$F$51,4,0),\"The End\"))","v":"2018-08-09"},{"$f":"IFERROR(VLOOKUP(Table2[[#This Row],['#1]],Payments!$A$2:$F$51,5,0),\"\")","v":2813.61},{"$f":"IFERROR(VLOOKUP(Table2[[#This Row],['#1]],Payments!$A$2:$F$51,6,0),\"\")","v":"INV 4810"}]
[null,null,null,14,{"$f":"IF(OR(Table2[[#This Row],['#1]]=\"\",E80=\"The End\",E80=\"Nothing Follows\"),\"\",IFERROR(VLOOKUP(Table2[[#This Row],['#1]],Payments!$A$2:$F$51,4,0),\"The End\"))","v":"2018-10-10"},{"$f":"IFERROR(VLOOKUP(Table2[[#This Row],['#1]],Payments!$A$2:$F$51,5,0),\"\")","v":7169.66},{"$f":"IFERROR(VLOOKUP(Table2[[#This Row],['#1]],Payments!$A$2:$F$51,6,0),\"\")","v":"INV 4999"}]
[null,null,null,15,{"$f":"IF(OR(Table2[[#This Row],['#1]]=\"\",E81=\"The End\",E81=\"Nothing Follows\"),\"\",IFERROR(VLOOKUP(Table2[[#This Row],['#1]],Payments!$A$2:$F$51,4,0),\"The End\"))","v":"2018-10-10"},{"$f":"IFERROR(VLOOKUP(Table2[[#This Row],['#1]],Payments!$A$2:$F$51,5,0),\"\")","v":2204.48},{"$f":"IFERROR(VLOOKUP(Table2[[#This Row],['#1]],Payments!$A$2:$F$51,6,0),\"\")","v":"INV 5001"}]
[null,null,null,16,{"$f":"IF(OR(Table2[[#This Row],['#1]]=\"\",E82=\"The End\",E82=\"Nothing Follows\"),\"\",IFERROR(VLOOKUP(Table2[[#This Row],['#1]],Payments!$A$2:$F$51,4,0),\"The End\"))","v":"The End"},{"$f":"IFERROR(VLOOKUP(Table2[[#This Row],['#1]],Payments!$A$2:$F$51,5,0),\"\")","v":""},{"$f":"IFERROR(VLOOKUP(Table2[[#This Row],['#1]],Payments!$A$2:$F$51,6,0),\"\")","v":""}]
[null,null,null,"",{"$f":"IF(OR(Table2[[#This Row],['#1]]=\"\",E83=\"The End\",E83=\"Nothing Follows\"),\"\",IFERROR(VLOOKUP(Table2[[#This Row],['#1]],Payments!$A$2:$F$51,4,0),\"The End\"))","v":""},{"$f":"IFERROR(VLOOKUP(Table2[[#This Row],['#1]],Payments!$A$2:$F$51,5,0),\"\")","v":""},{"$f":"IFERROR(VLOOKUP(Table2[[#This Row],['#1]],Payments!$A$2:$F$51,6,0),\"\")","v":""}]
[null,null,null,"",{"$f":"IF(OR(Table2[[#This Row],['#1]]=\"\",E84=\"The End\",E84=\"Nothing Follows\"),\"\",IFERROR(VLOOKUP(Table2[[#This Row],['#1]],Payments!$A$2:$F$51,4,0),\"The End\"))","v":""},{"$f":"IFERROR(VLOOKUP(Table2[[#This Row],['#1]],Payments!$A$2:$F$51,5,0),\"\")","v":""},{"$f":"IFERROR(VLOOKUP(Table2[[#This Row],['#1]],Payments!$A$2:$F$51,6,0),\"\")","v":""}]
[null,null,null,"",{"$f":"IF(OR(Table2[[#This Row],['#1]]=\"\",E85=\"The End\",E85=\"Nothing Follows\"),\"\",IFERROR(VLOOKUP(Table2[[#This Row],['#1]],Payments!$A$2:$F$51,4,0),\"The End\"))","v":""},{"$f":"IFERROR(VLOOKUP(Table2[[#This Row],['#1]],Payments!$A$2:$F$51,5,0),\"\")","v":""},{"$f":"IFERROR(VLOOKUP(Table2[[#This Row],['#1]],Payments!$A$2:$F$51,6,0),\"\")","v":""}]
[null,null,null,"",{"$f":"IF(Table2[[#This Row],['#1]]=\"\",\"\",IFERROR(VLOOKUP(Table2[[#This Row],['#1]],Payments!$A$2:$F$51,4,0),\"Nothing Follows\"))","v":""},{"$f":"IFERROR(VLOOKUP(Table2[[#This Row],['#1]],Payments!$A$2:$F$51,5,0),\"\")","v":""},{"$f":"IFERROR(VLOOKUP(Table2[[#This Row],['#1]],Payments!$A$2:$F$51,6,0),\"\")","v":""}]
[null,null,null,"",{"$f":"IF(Table2[[#This Row],['#1]]=\"\",\"\",IFERROR(VLOOKUP(Table2[[#This Row],['#1]],Payments!$A$2:$F$51,4,0),\"Nothing Follows\"))","v":""},{"$f":"IFERROR(VLOOKUP(Table2[[#This Row],['#1]],Payments!$A$2:$F$51,5,0),\"\")","v":""},{"$f":"IFERROR(VLOOKUP(Table2[[#This Row],['#1]],Payments!$A$2:$F$51,6,0),\"\")","v":""}]
[null,null,null,"",{"$f":"IF(Table2[[#This Row],['#1]]=\"\",\"\",IFERROR(VLOOKUP(Table2[[#This Row],['#1]],Payments!$A$2:$F$51,4,0),\"Nothing Follows\"))","v":""},{"$f":"IFERROR(VLOOKUP(Table2[[#This Row],['#1]],Payments!$A$2:$F$51,5,0),\"\")","v":""},{"$f":"IFERROR(VLOOKUP(Table2[[#This Row],['#1]],Payments!$A$2:$F$51,6,0),\"\")","v":""}]
[null,null,null,null,{"$f":"COUNT(Table2['#1])-1& \"  payment/s\"","v":"15  payment/s"},{"$f":"SUBTOTAL(109,Table2[] Table2[ Amount\nمبلغ ] )","v":37166.770000000011}]
[]
[null,null,null,"Total Invoices",null,{"$f":"Table1[[#Totals],[Invoice Amount\nمبلغ الفاتورة]]","v":39036.820000000014}]
[null,null,null,"Payments",null,{"$f":"Table2[[#Totals],[ Amount\nمبلغ ]]","v":37166.770000000011}]
[null,null,null,"Balance",null,{"$f":"F92-F93","v":1870.0500000000029}]

{"sheet":"NewInvoice","index":1,"n_rows":41,"n_cols":13,"rows_kept":41,"cut":false,"hidden":false,"merged":[[0,1,0,4],[0,7,0,10],[40,7,40,10],[2,7,2,8],[3,8,3,10],[6,1,6,2],[1,7,1,10],[2,9,2,10],[40,1,40,3],[32,1,32,3],[7,1,7,2],[1,2,1,3],[5,1,5,2],[5,7,5,8],[6,7,6,8],[7,7,7,8]]}
["NEW INVOICE","Naief Akeel Alzofairy Est.\nForever Living Products Sole Agent in the Middle East",null,null,null,null,null,"مؤسسة نايف عقيل الظفيري \nالوكيل الحصري لشركة فورايفر ليفينج الشرق الاوسط "]
[null,"Address: ","Riyadh, Sulaymaniyeh, Mussa Bin Nusair St ",null," "," ",null,"العنوان: الرياض - السليمانية - شارع موسى بن نصير"]
[null,"Phone: ","0112151970","Fax: 0112151971",null,null,null," فاكس: 0112151971",null,"هاتف: 0112151970"]
[null,"VAT Registration No: :300095228700003",null,null,null,null,null,null,"الرقم الضريبي :300095228700003  "]
[]
[null,"Invoice No.",null,23,"فاتورة رقم:",null,"Invoice Date:",{"$f":"TODAY()","v":"2018-11-19"},null,null,"تـــــــــــــــــــــــــــــــاريـــــــــــــــــــخ الفاتورة:"]
[null,"Customer Name:",null,"Dallah Healthcare Co. / Dallah Hospital","اسم العـميـــــل:",null,"FBO ID:",{"$f":"IF(D7=\"\",\"\",VLOOKUP(D7,Customers!$C$2:$Q$601,2,0))","v":775962},null,null,"رقـــــــــــــــــم الــــــــــــوكـــــــــــــــالـــــــــــــة:"]
[null,"Customer Address:",null,{"$f":"IF(D7=\"\",\"\",VLOOKUP(D7,Customers!$C$2:$Q$601,10,0))","v":"King Fahd Road, Alnakheel Street , Riyadh, KSA"},"عنوان العميل",null,"VAT Registration",{"$f":"IF(D7=\"\",\"\",VLOOKUP(D7,Customers!$C$2:$N$601,7,0))","v":300049358500003},null,null,"الرقــم الضريبي للعميــــل:"]
[]
[null,null,null,null,null,0.48]
[null,"Code","Qty","DESCRIPTION","U. Price","Discount \n","Net U. \nPrice","TOTAL","VAT","TOTAL \nwith VAT","U. Sale \nPrice+VAT","U.CC","Tot. CC"]
[null,15,14,{"$f":"IF(Table7[[#This Row],[Code]]=\"\",\"\",VLOOKUP(Table7[[#This Row],[Code]],Codes!$B$2:$E$2231,2,0))","v":"Forever Alove Vera Gel "},{"$f":"IF(Table7[[#This Row],[Code]]=\"\",\"\",VLOOKUP(Table7[[#This Row],[Code]],Codes!$B$2:$E$2231,3,0))","v":98},{"$f":"IF(OR(Table7[[#This Row],[Code]]=\"\",Table7[[#This Row],[Qty]]=\"\"),\"\",Table7[U. Price]*$F$10)","v":47.04},{"$f":"IF(OR(Table7[[#This Row],[Code]]=\"\",Table7[[#This Row],[Qty]]=\"\"),\"\",Table7[U. Price]-Table7[Discount \n])","v":50.96},{"$f":"IF(OR(Table7[[#This Row],[Code]]=\"\",Table7[[#This Row],[Qty]]=\"\"),\"\",Table7[Qty]*Table7[Net U. \nPrice])","v":713.44},{"$f":"IF(OR(Table7[[#This Row],[Code]]=\"\",Table7[[#This Row],[Qty]]=\"\"),\"\",Table7[TOTAL]*0.05)","v":35.672000000000004},{"$f":"IF(OR(Table7[[#This Row],[Code]]=\"\",Table7[[#This Row],[Qty]]=\"\"),\"\",Table7[TOTAL]+Table7[VAT])","v":749.11200000000008},{"$f":"IF(OR(Table7[[#This Row],[Code]]=\"\",Table7[[#This Row],[Qty]]=\"\"),\"\",E12*1.05)","v":102.9},{"$f":"IF(Table7[[#This Row],[Code]]=\"\",\"\",VLOOKUP(Table7[[#This Row],[Code]],Codes!$B$2:$E$2231,4,0))","v":0.113},{"$f":"IF(OR(Table7[[#This Row],[Code]]=\"\",Table7[[#This Row],[Qty]]=\"\"),\"\",Table7[[#This Row],[Qty]]*Table7[[#This Row],[U.CC]])","v":1.5820000000000001}]
[null,null,null,{"$f":"IF(Table7[[#This Row],[Code]]=\"\",\"\",VLOOKUP(Table7[[#This Row],[Code]],Codes!$B$2:$E$2231,2,0))","v":""},{"$f":"IF(Table7[[#This Row],[Code]]=\"\",\"\",VLOOKUP(Table7[[#This Row],[Code]],Codes!$B$2:$E$2231,3,0))","v":""},{"$f":"IF(OR(Table7[[#This Row],[Code]]=\"\",Table7[[#This Row],[Qty]]=\"\"),\"\",Table7[U. Price]*$F$10)","v":""},{"$f":"IF(OR(Table7[[#This Row],[Code]]=\"\",Table7[[#This Row],[Qty]]=\"\"),\"\",Table7[U. Price]-Table7[Discount \n])","v":""},{"$f":"IF(OR(Table7[[#This Row],[Code]]=\"\",Table7[[#This Row],[Qty]]=\"\"),\"\",Table7[Qty]*Table7[Net U. \nPrice])","v":""},{"$f":"IF(OR(Table7[[#This Row],[Code]]=\"\",Table7[[#This Row],[Qty]]=\"\"),\"\",Table7[TOTAL]*0.05)","v":""},{"$f":"IF(OR(Table7[[#This Row],[Code]]=\"\",Table7[[#This Row],[Qty]]=\"\"),\"\",Table7[TOTAL]+Table7[VAT])","v":""},{"$f":"IF(OR(Table7[[#This Row],[Code]]=\"\",Table7[[#This Row],[Qty]]=\"\"),\"\",E13*1.05)","v":""},{"$f":"IF(Table7[[#This Row],[Code]]=\"\",\"\",VLOOKUP(Table7[[#This Row],[Code]],Codes!$B$2:$E$2231,4,0))","v":""},{"$f":"IF(OR(Table7[[#This Row],[Code]]=\"\",Table7[[#This Row],[Qty]]=\"\"),\"\",Table7[[#This Row],[Qty]]*Table7[[#This Row],[U.CC]])","v":""}]
[null,null,null,{"$f":"IF(Table7[[#This Row],[Code]]=\"\",\"\",VLOOKUP(Table7[[#This Row],[Code]],Codes!$B$2:$E$2231,2,0))","v":""},{"$f":"IF(Table7[[#This Row],[Code]]=\"\",\"\",VLOOKUP(Table7[[#This Row],[Code]],Codes!$B$2:$E$2231,3,0))","v":""},{"$f":"IF(OR(Table7[[#This Row],[Code]]=\"\",Table7[[#This Row],[Qty]]=\"\"),\"\",Table7[U. Price]*$F$10)","v":""},{"$f":"IF(OR(Table7[[#This Row],[Code]]=\"\",Table7[[#This Row],[Qty]]=\"\"),\"\",Table7[U. Price]-Table7[Discount \n])","v":""},{"$f":"IF(OR(Table7[[#This Row],[Code]]=\"\",Table7[[#This Row],[Qty]]=\"\"),\"\",Table7[Qty]*Table7[Net U. \nPrice])","v":""},{"$f":"IF(OR(Table7[[#This Row],[Code]]=\"\",Table7[[#This Row],[Qty]]=\"\"),\"\",Table7[TOTAL]*0.05)","v":""},{"$f":"IF(OR(Table7[[#This Row],[Code]]=\"\",Table7[[#This Row],[Qty]]=\"\"),\"\",Table7[TOTAL]+Table7[VAT])","v":""},{"$f":"IF(OR(Table7[[#This Row],[Code]]=\"\",Table7[[#This Row],[Qty]]=\"\"),\"\",E14*1.05)","v":""},{"$f":"IF(Table7[[#This Row],[Code]]=\"\",\"\",VLOOKUP(Table7[[#This Row],[Code]],Codes!$B$2:$E$2231,4,0))","v":""},{"$f":"IF(OR(Table7[[#This Row],[Code]]=\"\",Table7[[#This Row],[Qty]]=\"\"),\"\",Table7[[#This Row],[Qty]]*Table7[[#This Row],[U.CC]])","v":""}]
[null,null,null,{"$f":"IF(Table7[[#This Row],[Code]]=\"\",\"\",VLOOKUP(Table7[[#This Row],[Code]],Codes!$B$2:$E$2231,2,0))","v":""},{"$f":"IF(Table7[[#This Row],[Code]]=\"\",\"\",VLOOKUP(Table7[[#This Row],[Code]],Codes!$B$2:$E$2231,3,0))","v":""},{"$f":"IF(OR(Table7[[#This Row],[Code]]=\"\",Table7[[#This Row],[Qty]]=\"\"),\"\",Table7[U. Price]*$F$10)","v":""},{"$f":"IF(OR(Table7[[#This Row],[Code]]=\"\",Table7[[#This Row],[Qty]]=\"\"),\"\",Table7[U. Price]-Table7[Discount \n])","v":""},{"$f":"IF(OR(Table7[[#This Row],[Code]]=\"\",Table7[[#This Row],[Qty]]=\"\"),\"\",Table7[Qty]*Table7[Net U. \nPrice])","v":""},{"$f":"IF(OR(Table7[[#This Row],[Code]]=\"\",Table7[[#This Row],[Qty]]=\"\"),\"\",Table7[TOTAL]*0.05)","v":""},{"$f":"IF(OR(Table7[[#This Row],[Code]]=\"\",Table7[[#This Row],[Qty]]=\"\"),\"\",Table7[TOTAL]+Table7[VAT])","v":""},{"$f":"IF(OR(Table7[[#This Row],[Code]]=\"\",Table7[[#This Row],[Qty]]=\"\"),\"\",E15*1.05)","v":""},{"$f":"IF(Table7[[#This Row],[Code]]=\"\",\"\",VLOOKUP(Table7[[#This Row],[Code]],Codes!$B$2:$E$2231,4,0))","v":""},{"$f":"IF(OR(Table7[[#This Row],[Code]]=\"\",Table7[[#This Row],[Qty]]=\"\"),\"\",Table7[[#This Row],[Qty]]*Table7[[#This Row],[U.CC]])","v":""}]
[null,null,null,{"$f":"IF(Table7[[#This Row],[Code]]=\"\",\"\",VLOOKUP(Table7[[#This Row],[Code]],Codes!$B$2:$E$2231,2,0))","v":""},{"$f":"IF(Table7[[#This Row],[Code]]=\"\",\"\",VLOOKUP(Table7[[#This Row],[Code]],Codes!$B$2:$E$2231,3,0))","v":""},{"$f":"IF(OR(Table7[[#This Row],[Code]]=\"\",Table7[[#This Row],[Qty]]=\"\"),\"\",Table7[U. Price]*$F$10)","v":""},{"$f":"IF(OR(Table7[[#This Row],[Code]]=\"\",Table7[[#This Row],[Qty]]=\"\"),\"\",Table7[U. Price]-Table7[Discount \n])","v":""},{"$f":"IF(OR(Table7[[#This Row],[Code]]=\"\",Table7[[#This Row],[Qty]]=\"\"),\"\",Table7[Qty]*Table7[Net U. \nPrice])","v":""},{"$f":"IF(OR(Table7[[#This Row],[Code]]=\"\",Table7[[#This Row],[Qty]]=\"\"),\"\",Table7[TOTAL]*0.05)","v":""},{"$f":"IF(OR(Table7[[#This Row],[Code]]=\"\",Table7[[#This Row],[Qty]]=\"\"),\"\",Table7[TOTAL]+Table7[VAT])","v":""},{"$f":"IF(OR(Table7[[#This Row],[Code]]=\"\",Table7[[#This Row],[Qty]]=\"\"),\"\",E16*1.05)","v":""},{"$f":"IF(Table7[[#This Row],[Code]]=\"\",\"\",VLOOKUP(Table7[[#This Row],[Code]],Codes!$B$2:$E$2231,4,0))","v":""},{"$f":"IF(OR(Table7[[#This Row],[Code]]=\"\",Table7[[#This Row],[Qty]]=\"\"),\"\",Table7[[#This Row],[Qty]]*Table7[[#This Row],[U.CC]])","v":""}]
[null,null,null,{"$f":"IF(Table7[[#This Row],[Code]]=\"\",\"\",VLOOKUP(Table7[[#This Row],[Code]],Codes!$B$2:$E$2231,2,0))","v":""},{"$f":"IF(Table7[[#This Row],[Code]]=\"\",\"\",VLOOKUP(Table7[[#This Row],[Code]],Codes!$B$2:$E$2231,3,0))","v":""},{"$f":"IF(OR(Table7[[#This Row],[Code]]=\"\",Table7[[#This Row],[Qty]]=\"\"),\"\",Table7[U. Price]*$F$10)","v":""},{"$f":"IF(OR(Table7[[#This Row],[Code]]=\"\",Table7[[#This Row],[Qty]]=\"\"),\"\",Table7[U. Price]-Table7[Discount \n])","v":""},{"$f":"IF(OR(Table7[[#This Row],[Code]]=\"\",Table7[[#This Row],[Qty]]=\"\"),\"\",Table7[Qty]*Table7[Net U. \nPrice])","v":""},{"$f":"IF(OR(Table7[[#This Row],[Code]]=\"\",Table7[[#This Row],[Qty]]=\"\"),\"\",Table7[TOTAL]*0.05)","v":""},{"$f":"IF(OR(Table7[[#This Row],[Code]]=\"\",Table7[[#This Row],[Qty]]=\"\"),\"\",Table7[TOTAL]+Table7[VAT])","v":""},{"$f":"IF(OR(Table7[[#This Row],[Code]]=\"\",Table7[[#This Row],[Qty]]=\"\"),\"\",E17*1.05)","v":""},{"$f":"IF(Table7[[#This Row],[Code]]=\"\",\"\",VLOOKUP(Table7[[#This Row],[Code]],Codes!$B$2:$E$2231,4,0))","v":""},{"$f":"IF(OR(Table7[[#This Row],[Code]]=\"\",Table7[[#This Row],[Qty]]=\"\"),\"\",Table7[[#This Row],[Qty]]*Table7[[#This Row],[U.CC]])","v":""}]
[null,null,null,{"$f":"IF(Table7[[#This Row],[Code]]=\"\",\"\",VLOOKUP(Table7[[#This Row],[Code]],Codes!$B$2:$E$2231,2,0))","v":""},{"$f":"IF(Table7[[#This Row],[Code]]=\"\",\"\",VLOOKUP(Table7[[#This Row],[Code]],Codes!$B$2:$E$2231,3,0))","v":""},{"$f":"IF(OR(Table7[[#This Row],[Code]]=\"\",Table7[[#This Row],[Qty]]=\"\"),\"\",Table7[U. Price]*$F$10)","v":""},{"$f":"IF(OR(Table7[[#This Row],[Code]]=\"\",Table7[[#This Row],[Qty]]=\"\"),\"\",Table7[U. Price]-Table7[Discount \n])","v":""},{"$f":"IF(OR(Table7[[#This Row],[Code]]=\"\",Table7[[#This Row],[Qty]]=\"\"),\"\",Table7[Qty]*Table7[Net U. \nPrice])","v":""},{"$f":"IF(OR(Table7[[#This Row],[Code]]=\"\",Table7[[#This Row],[Qty]]=\"\"),\"\",Table7[TOTAL]*0.05)","v":""},{"$f":"IF(OR(Table7[[#This Row],[Code]]=\"\",Table7[[#This Row],[Qty]]=\"\"),\"\",Table7[TOTAL]+Table7[VAT])","v":""},{"$f":"IF(OR(Table7[[#This Row],[Code]]=\"\",Table7[[#This Row],[Qty]]=\"\"),\"\",E18*1.05)","v":""},{"$f":"IF(Table7[[#This Row],[Code]]=\"\",\"\",VLOOKUP(Table7[[#This Row],[Code]],Codes!$B$2:$E$2231,4,0))","v":""},{"$f":"IF(OR(Table7[[#This Row],[Code]]=\"\",Table7[[#This Row],[Qty]]=\"\"),\"\",Table7[[#This Row],[Qty]]*Table7[[#This Row],[U.CC]])","v":""}]
[null,null,null,{"$f":"IF(Table7[[#This Row],[Code]]=\"\",\"\",VLOOKUP(Table7[[#This Row],[Code]],Codes!$B$2:$E$2231,2,0))","v":""},{"$f":"IF(Table7[[#This Row],[Code]]=\"\",\"\",VLOOKUP(Table7[[#This Row],[Code]],Codes!$B$2:$E$2231,3,0))","v":""},{"$f":"IF(OR(Table7[[#This Row],[Code]]=\"\",Table7[[#This Row],[Qty]]=\"\"),\"\",Table7[U. Price]*$F$10)","v":""},{"$f":"IF(OR(Table7[[#This Row],[Code]]=\"\",Table7[[#This Row],[Qty]]=\"\"),\"\",Table7[U. Price]-Table7[Discount \n])","v":""},{"$f":"IF(OR(Table7[[#This Row],[Code]]=\"\",Table7[[#This Row],[Qty]]=\"\"),\"\",Table7[Qty]*Table7[Net U. \nPrice])","v":""},{"$f":"IF(OR(Table7[[#This Row],[Code]]=\"\",Table7[[#This Row],[Qty]]=\"\"),\"\",Table7[TOTAL]*0.05)","v":""},{"$f":"IF(OR(Table7[[#This Row],[Code]]=\"\",Table7[[#This Row],[Qty]]=\"\"),\"\",Table7[TOTAL]+Table7[VAT])","v":""},{"$f":"IF(OR(Table7[[#This Row],[Code]]=\"\",Table7[[#This Row],[Qty]]=\"\"),\"\",E19*1.05)","v":""},{"$f":"IF(Table7[[#This Row],[Code]]=\"\",\"\",VLOOKUP(Table7[[#This Row],[Code]],Codes!$B$2:$E$2231,4,0))","v":""},{"$f":"IF(OR(Table7[[#This Row],[Code]]=\"\",Table7[[#This Row],[Qty]]=\"\"),\"\",Table7[[#This Row],[Qty]]*Table7[[#This Row],[U.CC]])","v":""}]
[null,null,null,{"$f":"IF(Table7[[#This Row],[Code]]=\"\",\"\",VLOOKUP(Table7[[#This Row],[Code]],Codes!$B$2:$E$2231,2,0))","v":""},{"$f":"IF(Table7[[#This Row],[Code]]=\"\",\"\",VLOOKUP(Table7[[#This Row],[Code]],Codes!$B$2:$E$2231,3,0))","v":""},{"$f":"IF(OR(Table7[[#This Row],[Code]]=\"\",Table7[[#This Row],[Qty]]=\"\"),\"\",Table7[U. Price]*$F$10)","v":""},{"$f":"IF(OR(Table7[[#This Row],[Code]]=\"\",Table7[[#This Row],[Qty]]=\"\"),\"\",Table7[U. Price]-Table7[Discount \n])","v":""},{"$f":"IF(OR(Table7[[#This Row],[Code]]=\"\",Table7[[#This Row],[Qty]]=\"\"),\"\",Table7[Qty]*Table7[Net U. \nPrice])","v":""},{"$f":"IF(OR(Table7[[#This Row],[Code]]=\"\",Table7[[#This Row],[Qty]]=\"\"),\"\",Table7[TOTAL]*0.05)","v":""},{"$f":"IF(OR(Table7[[#This Row],[Code]]=\"\",Table7[[#This Row],[Qty]]=\"\"),\"\",Table7[TOTAL]+Table7[VAT])","v":""},{"$f":"IF(OR(Table7[[#This Row],[Code]]=\"\",Table7[[#This Row],[Qty]]=\"\"),\"\",E20*1.05)","v":""},{"$f":"IF(Table7[[#This Row],[Code]]=\"\",\"\",VLOOKUP(Table7[[#This Row],[Code]],Codes!$B$2:$E$2231,4,0))","v":""},{"$f":"IF(OR(Table7[[#This Row],[Code]]=\"\",Table7[[#This Row],[Qty]]=\"\"),\"\",Table7[[#This Row],[Qty]]*Table7[[#This Row],[U.CC]])","v":""}]
[null,null,null,{"$f":"IF(Table7[[#This Row],[Code]]=\"\",\"\",VLOOKUP(Table7[[#This Row],[Code]],Codes!$B$2:$E$2231,2,0))","v":""},{"$f":"IF(Table7[[#This Row],[Code]]=\"\",\"\",VLOOKUP(Table7[[#This Row],[Code]],Codes!$B$2:$E$2231,3,0))","v":""},{"$f":"IF(OR(Table7[[#This Row],[Code]]=\"\",Table7[[#This Row],[Qty]]=\"\"),\"\",Table7[U. Price]*$F$10)","v":""},{"$f":"IF(OR(Table7[[#This Row],[Code]]=\"\",Table7[[#This Row],[Qty]]=\"\"),\"\",Table7[U. Price]-Table7[Discount \n])","v":""},{"$f":"IF(OR(Table7[[#This Row],[Code]]=\"\",Table7[[#This Row],[Qty]]=\"\"),\"\",Table7[Qty]*Table7[Net U. \nPrice])","v":""},{"$f":"IF(OR(Table7[[#This Row],[Code]]=\"\",Table7[[#This Row],[Qty]]=\"\"),\"\",Table7[TOTAL]*0.05)","v":""},{"$f":"IF(OR(Table7[[#This Row],[Code]]=\"\",Table7[[#This Row],[Qty]]=\"\"),\"\",Table7[TOTAL]+Table7[VAT])","v":""},{"$f":"IF(OR(Table7[[#This Row],[Code]]=\"\",Table7[[#This Row],[Qty]]=\"\"),\"\",E21*1.05)","v":""},{"$f":"IF(Table7[[#This Row],[Code]]=\"\",\"\",VLOOKUP(Table7[[#This Row],[Code]],Codes!$B$2:$E$2231,4,0))","v":""},{"$f":"IF(OR(Table7[[#This Row],[Code]]=\"\",Table7[[#This Row],[Qty]]=\"\"),\"\",Table7[[#This Row],[Qty]]*Table7[[#This Row],[U.CC]])","v":""}]
[null,null,null,{"$f":"IF(Table7[[#This Row],[Code]]=\"\",\"\",VLOOKUP(Table7[[#This Row],[Code]],Codes!$B$2:$E$2231,2,0))","v":""},{"$f":"IF(Table7[[#This Row],[Code]]=\"\",\"\",VLOOKUP(Table7[[#This Row],[Code]],Codes!$B$2:$E$2231,3,0))","v":""},{"$f":"IF(OR(Table7[[#This Row],[Code]]=\"\",Table7[[#This Row],[Qty]]=\"\"),\"\",Table7[U. Price]*$F$10)","v":""},{"$f":"IF(OR(Table7[[#This Row],[Code]]=\"\",Table7[[#This Row],[Qty]]=\"\"),\"\",Table7[U. Price]-Table7[Discount \n])","v":""},{"$f":"IF(OR(Table7[[#This Row],[Code]]=\"\",Table7[[#This Row],[Qty]]=\"\"),\"\",Table7[Qty]*Table7[Net U. \nPrice])","v":""},{"$f":"IF(OR(Table7[[#This Row],[Code]]=\"\",Table7[[#This Row],[Qty]]=\"\"),\"\",Table7[TOTAL]*0.05)","v":""},{"$f":"IF(OR(Table7[[#This Row],[Code]]=\"\",Table7[[#This Row],[Qty]]=\"\"),\"\",Table7[TOTAL]+Table7[VAT])","v":""},{"$f":"IF(OR(Table7[[#This Row],[Code]]=\"\",Table7[[#This Row],[Qty]]=\"\"),\"\",E22*1.05)","v":""},{"$f":"IF(Table7[[#This Row],[Code]]=\"\",\"\",VLOOKUP(Table7[[#This Row],[Code]],Codes!$B$2:$E$2231,4,0))","v":""},{"$f":"IF(OR(Table7[[#This Row],[Code]]=\"\",Table7[[#This Row],[Qty]]=\"\"),\"\",Table7[[#This Row],[Qty]]*Table7[[#This Row],[U.CC]])","v":""}]
[null,null,null,{"$f":"IF(Table7[[#This Row],[Code]]=\"\",\"\",VLOOKUP(Table7[[#This Row],[Code]],Codes!$B$2:$E$2231,2,0))","v":""},{"$f":"IF(Table7[[#This Row],[Code]]=\"\",\"\",VLOOKUP(Table7[[#This Row],[Code]],Codes!$B$2:$E$2231,3,0))","v":""},{"$f":"IF(OR(Table7[[#This Row],[Code]]=\"\",Table7[[#This Row],[Qty]]=\"\"),\"\",Table7[U. Price]*$F$10)","v":""},{"$f":"IF(OR(Table7[[#This Row],[Code]]=\"\",Table7[[#This Row],[Qty]]=\"\"),\"\",Table7[U. Price]-Table7[Discount \n])","v":""},{"$f":"IF(OR(Table7[[#This Row],[Code]]=\"\",Table7[[#This Row],[Qty]]=\"\"),\"\",Table7[Qty]*Table7[Net U. \nPrice])","v":""},{"$f":"IF(OR(Table7[[#This Row],[Code]]=\"\",Table7[[#This Row],[Qty]]=\"\"),\"\",Table7[TOTAL]*0.05)","v":""},{"$f":"IF(OR(Table7[[#This Row],[Code]]=\"\",Table7[[#This Row],[Qty]]=\"\"),\"\",Table7[TOTAL]+Table7[VAT])","v":""},{"$f":"IF(OR(Table7[[#This Row],[Code]]=\"\",Table7[[#This Row],[Qty]]=\"\"),\"\",E23*1.05)","v":""},{"$f":"IF(Table7[[#This Row],[Code]]=\"\",\"\",VLOOKUP(Table7[[#This Row],[Code]],Codes!$B$2:$E$2231,4,0))","v":""},{"$f":"IF(OR(Table7[[#This Row],[Code]]=\"\",Table7[[#This Row],[Qty]]=\"\"),\"\",Table7[[#This Row],[Qty]]*Table7[[#This Row],[U.CC]])","v":""}]
[null,null,null,{"$f":"IF(Table7[[#This Row],[Code]]=\"\",\"\",VLOOKUP(Table7[[#This Row],[Code]],Codes!$B$2:$E$2231,2,0))","v":""},{"$f":"IF(Table7[[#This Row],[Code]]=\"\",\"\",VLOOKUP(Table7[[#This Row],[Code]],Codes!$B$2:$E$2231,3,0))","v":""},{"$f":"IF(OR(Table7[[#This Row],[Code]]=\"\",Table7[[#This Row],[Qty]]=\"\"),\"\",Table7[U. Price]*$F$10)","v":""},{"$f":"IF(OR(Table7[[#This Row],[Code]]=\"\",Table7[[#This Row],[Qty]]=\"\"),\"\",Table7[U. Price]-Table7[Discount \n])","v":""},{"$f":"IF(OR(Table7[[#This Row],[Code]]=\"\",Table7[[#This Row],[Qty]]=\"\"),\"\",Table7[Qty]*Table7[Net U. \nPrice])","v":""},{"$f":"IF(OR(Table7[[#This Row],[Code]]=\"\",Table7[[#This Row],[Qty]]=\"\"),\"\",Table7[TOTAL]*0.05)","v":""},{"$f":"IF(OR(Table7[[#This Row],[Code]]=\"\",Table7[[#This Row],[Qty]]=\"\"),\"\",Table7[TOTAL]+Table7[VAT])","v":""},{"$f":"IF(OR(Table7[[#This Row],[Code]]=\"\",Table7[[#This Row],[Qty]]=\"\"),\"\",E24*1.05)","v":""},{"$f":"IF(Table7[[#This Row],[Code]]=\"\",\"\",VLOOKUP(Table7[[#This Row],[Code]],Codes!$B$2:$E$2231,4,0))","v":""},{"$f":"IF(OR(Table7[[#This Row],[Code]]=\"\",Table7[[#This Row],[Qty]]=\"\"),\"\",Table7[[#This Row],[Qty]]*Table7[[#This Row],[U.CC]])","v":""}]
[null,null,null,{"$f":"IF(Table7[[#This Row],[Code]]=\"\",\"\",VLOOKUP(Table7[[#This Row],[Code]],Codes!$B$2:$E$2231,2,0))","v":""},{"$f":"IF(Table7[[#This Row],[Code]]=\"\",\"\",VLOOKUP(Table7[[#This Row],[Code]],Codes!$B$2:$E$2231,3,0))","v":""},{"$f":"IF(OR(Table7[[#This Row],[Code]]=\"\",Table7[[#This Row],[Qty]]=\"\"),\"\",Table7[U. Price]*$F$10)","v":""},{"$f":"IF(OR(Table7[[#This Row],[Code]]=\"\",Table7[[#This Row],[Qty]]=\"\"),\"\",Table7[U. Price]-Table7[Discount \n])","v":""},{"$f":"IF(OR(Table7[[#This Row],[Code]]=\"\",Table7[[#This Row],[Qty]]=\"\"),\"\",Table7[Qty]*Table7[Net U. \nPrice])","v":""},{"$f":"IF(OR(Table7[[#This Row],[Code]]=\"\",Table7[[#This Row],[Qty]]=\"\"),\"\",Table7[TOTAL]*0.05)","v":""},{"$f":"IF(OR(Table7[[#This Row],[Code]]=\"\",Table7[[#This Row],[Qty]]=\"\"),\"\",Table7[TOTAL]+Table7[VAT])","v":""},{"$f":"IF(OR(Table7[[#This Row],[Code]]=\"\",Table7[[#This Row],[Qty]]=\"\"),\"\",E25*1.05)","v":""},{"$f":"IF(Table7[[#This Row],[Code]]=\"\",\"\",VLOOKUP(Table7[[#This Row],[Code]],Codes!$B$2:$E$2231,4,0))","v":""},{"$f":"IF(OR(Table7[[#This Row],[Code]]=\"\",Table7[[#This Row],[Qty]]=\"\"),\"\",Table7[[#This Row],[Qty]]*Table7[[#This Row],[U.CC]])","v":""}]
[null,null,null,{"$f":"IF(Table7[[#This Row],[Code]]=\"\",\"\",VLOOKUP(Table7[[#This Row],[Code]],Codes!$B$2:$E$2231,2,0))","v":""},{"$f":"IF(Table7[[#This Row],[Code]]=\"\",\"\",VLOOKUP(Table7[[#This Row],[Code]],Codes!$B$2:$E$2231,3,0))","v":""},{"$f":"IF(OR(Table7[[#This Row],[Code]]=\"\",Table7[[#This Row],[Qty]]=\"\"),\"\",Table7[U. Price]*$F$10)","v":""},{"$f":"IF(OR(Table7[[#This Row],[Code]]=\"\",Table7[[#This Row],[Qty]]=\"\"),\"\",Table7[U. Price]-Table7[Discount \n])","v":""},{"$f":"IF(OR(Table7[[#This Row],[Code]]=\"\",Table7[[#This Row],[Qty]]=\"\"),\"\",Table7[Qty]*Table7[Net U. \nPrice])","v":""},{"$f":"IF(OR(Table7[[#This Row],[Code]]=\"\",Table7[[#This Row],[Qty]]=\"\"),\"\",Table7[TOTAL]*0.05)","v":""},{"$f":"IF(OR(Table7[[#This Row],[Code]]=\"\",Table7[[#This Row],[Qty]]=\"\"),\"\",Table7[TOTAL]+Table7[VAT])","v":""},{"$f":"IF(OR(Table7[[#This Row],[Code]]=\"\",Table7[[#This Row],[Qty]]=\"\"),\"\",E26*1.05)","v":""},{"$f":"IF(Table7[[#This Row],[Code]]=\"\",\"\",VLOOKUP(Table7[[#This Row],[Code]],Codes!$B$2:$E$2231,4,0))","v":""},{"$f":"IF(OR(Table7[[#This Row],[Code]]=\"\",Table7[[#This Row],[Qty]]=\"\"),\"\",Table7[[#This Row],[Qty]]*Table7[[#This Row],[U.CC]])","v":""}]
[null,null,null,{"$f":"IF(Table7[[#This Row],[Code]]=\"\",\"\",VLOOKUP(Table7[[#This Row],[Code]],Codes!$B$2:$E$2231,2,0))","v":""},{"$f":"IF(Table7[[#This Row],[Code]]=\"\",\"\",VLOOKUP(Table7[[#This Row],[Code]],Codes!$B$2:$E$2231,3,0))","v":""},{"$f":"IF(OR(Table7[[#This Row],[Code]]=\"\",Table7[[#This Row],[Qty]]=\"\"),\"\",Table7[U. Price]*$F$10)","v":""},{"$f":"IF(OR(Table7[[#This Row],[Code]]=\"\",Table7[[#This Row],[Qty]]=\"\"),\"\",Table7[U. Price]-Table7[Discount \n])","v":""},{"$f":"IF(OR(Table7[[#This Row],[Code]]=\"\",Table7[[#This Row],[Qty]]=\"\"),\"\",Table7[Qty]*Table7[Net U. \nPrice])","v":""},{"$f":"IF(OR(Table7[[#This Row],[Code]]=\"\",Table7[[#This Row],[Qty]]=\"\"),\"\",Table7[TOTAL]*0.05)","v":""},{"$f":"IF(OR(Table7[[#This Row],[Code]]=\"\",Table7[[#This Row],[Qty]]=\"\"),\"\",Table7[TOTAL]+Table7[VAT])","v":""},{"$f":"IF(OR(Table7[[#This Row],[Code]]=\"\",Table7[[#This Row],[Qty]]=\"\"),\"\",E27*1.05)","v":""},{"$f":"IF(Table7[[#This Row],[Code]]=\"\",\"\",VLOOKUP(Table7[[#This Row],[Code]],Codes!$B$2:$E$2231,4,0))","v":""},{"$f":"IF(OR(Table7[[#This Row],[Code]]=\"\",Table7[[#This Row],[Qty]]=\"\"),\"\",Table7[[#This Row],[Qty]]*Table7[[#This Row],[U.CC]])","v":""}]
[null,null,null,{"$f":"IF(Table7[[#This Row],[Code]]=\"\",\"\",VLOOKUP(Table7[[#This Row],[Code]],Codes!$B$2:$E$2231,2,0))","v":""},{"$f":"IF(Table7[[#This Row],[Code]]=\"\",\"\",VLOOKUP(Table7[[#This Row],[Code]],Codes!$B$2:$E$2231,3,0))","v":""},{"$f":"IF(OR(Table7[[#This Row],[Code]]=\"\",Table7[[#This Row],[Qty]]=\"\"),\"\",Table7[U. Price]*$F$10)","v":""},{"$f":"IF(OR(Table7[[#This Row],[Code]]=\"\",Table7[[#This Row],[Qty]]=\"\"),\"\",Table7[U. Price]-Table7[Discount \n])","v":""},{"$f":"IF(OR(Table7[[#This Row],[Code]]=\"\",Table7[[#This Row],[Qty]]=\"\"),\"\",Table7[Qty]*Table7[Net U. \nPrice])","v":""},{"$f":"IF(OR(Table7[[#This Row],[Code]]=\"\",Table7[[#This Row],[Qty]]=\"\"),\"\",Table7[TOTAL]*0.05)","v":""},{"$f":"IF(OR(Table7[[#This Row],[Code]]=\"\",Table7[[#This Row],[Qty]]=\"\"),\"\",Table7[TOTAL]+Table7[VAT])","v":""},{"$f":"IF(OR(Table7[[#This Row],[Code]]=\"\",Table7[[#This Row],[Qty]]=\"\"),\"\",E28*1.05)","v":""},{"$f":"IF(Table7[[#This Row],[Code]]=\"\",\"\",VLOOKUP(Table7[[#This Row],[Code]],Codes!$B$2:$E$2231,4,0))","v":""},{"$f":"IF(OR(Table7[[#This Row],[Code]]=\"\",Table7[[#This Row],[Qty]]=\"\"),\"\",Table7[[#This Row],[Qty]]*Table7[[#This Row],[U.CC]])","v":""}]
[null,null,null,{"$f":"IF(Table7[[#This Row],[Code]]=\"\",\"\",VLOOKUP(Table7[[#This Row],[Code]],Codes!$B$2:$E$2231,2,0))","v":""},{"$f":"IF(Table7[[#This Row],[Code]]=\"\",\"\",VLOOKUP(Table7[[#This Row],[Code]],Codes!$B$2:$E$2231,3,0))","v":""},{"$f":"IF(OR(Table7[[#This Row],[Code]]=\"\",Table7[[#This Row],[Qty]]=\"\"),\"\",Table7[U. Price]*$F$10)","v":""},{"$f":"IF(OR(Table7[[#This Row],[Code]]=\"\",Table7[[#This Row],[Qty]]=\"\"),\"\",Table7[U. Price]-Table7[Discount \n])","v":""},{"$f":"IF(OR(Table7[[#This Row],[Code]]=\"\",Table7[[#This Row],[Qty]]=\"\"),\"\",Table7[Qty]*Table7[Net U. \nPrice])","v":""},{"$f":"IF(OR(Table7[[#This Row],[Code]]=\"\",Table7[[#This Row],[Qty]]=\"\"),\"\",Table7[TOTAL]*0.05)","v":""},{"$f":"IF(OR(Table7[[#This Row],[Code]]=\"\",Table7[[#This Row],[Qty]]=\"\"),\"\",Table7[TOTAL]+Table7[VAT])","v":""},{"$f":"IF(OR(Table7[[#This Row],[Code]]=\"\",Table7[[#This Row],[Qty]]=\"\"),\"\",E29*1.05)","v":""},{"$f":"IF(Table7[[#This Row],[Code]]=\"\",\"\",VLOOKUP(Table7[[#This Row],[Code]],Codes!$B$2:$E$2231,4,0))","v":""},{"$f":"IF(OR(Table7[[#This Row],[Code]]=\"\",Table7[[#This Row],[Qty]]=\"\"),\"\",Table7[[#This Row],[Qty]]*Table7[[#This Row],[U.CC]])","v":""}]
[null,null,null,{"$f":"IF(Table7[[#This Row],[Code]]=\"\",\"\",VLOOKUP(Table7[[#This Row],[Code]],Codes!$B$2:$E$2231,2,0))","v":""},{"$f":"IF(Table7[[#This Row],[Code]]=\"\",\"\",VLOOKUP(Table7[[#This Row],[Code]],Codes!$B$2:$E$2231,3,0))","v":""},{"$f":"IF(OR(Table7[[#This Row],[Code]]=\"\",Table7[[#This Row],[Qty]]=\"\"),\"\",Table7[U. Price]*$F$10)","v":""},{"$f":"IF(OR(Table7[[#This Row],[Code]]=\"\",Table7[[#This Row],[Qty]]=\"\"),\"\",Table7[U. Price]-Table7[Discount \n])","v":""},{"$f":"IF(OR(Table7[[#This Row],[Code]]=\"\",Table7[[#This Row],[Qty]]=\"\"),\"\",Table7[Qty]*Table7[Net U. \nPrice])","v":""},{"$f":"IF(OR(Table7[[#This Row],[Code]]=\"\",Table7[[#This Row],[Qty]]=\"\"),\"\",Table7[TOTAL]*0.05)","v":""},{"$f":"IF(OR(Table7[[#This Row],[Code]]=\"\",Table7[[#This Row],[Qty]]=\"\"),\"\",Table7[TOTAL]+Table7[VAT])","v":""},{"$f":"IF(OR(Table7[[#This Row],[Code]]=\"\",Table7[[#This Row],[Qty]]=\"\"),\"\",E30*1.05)","v":""},{"$f":"IF(Table7[[#This Row],[Code]]=\"\",\"\",VLOOKUP(Table7[[#This Row],[Code]],Codes!$B$2:$E$2231,4,0))","v":""},{"$f":"IF(OR(Table7[[#This Row],[Code]]=\"\",Table7[[#This Row],[Qty]]=\"\"),\"\",Table7[[#This Row],[Qty]]*Table7[[#This Row],[U.CC]])","v":""}]
[null,null,null,{"$f":"IF(Table7[[#This Row],[Code]]=\"\",\"\",VLOOKUP(Table7[[#This Row],[Code]],Codes!$B$2:$E$2231,2,0))","v":""},{"$f":"IF(Table7[[#This Row],[Code]]=\"\",\"\",VLOOKUP(Table7[[#This Row],[Code]],Codes!$B$2:$E$2231,3,0))","v":""},{"$f":"IF(OR(Table7[[#This Row],[Code]]=\"\",Table7[[#This Row],[Qty]]=\"\"),\"\",Table7[U. Price]*$F$10)","v":""},{"$f":"IF(OR(Table7[[#This Row],[Code]]=\"\",Table7[[#This Row],[Qty]]=\"\"),\"\",Table7[U. Price]-Table7[Discount \n])","v":""},{"$f":"IF(OR(Table7[[#This Row],[Code]]=\"\",Table7[[#This Row],[Qty]]=\"\"),\"\",Table7[Qty]*Table7[Net U. \nPrice])","v":""},{"$f":"IF(OR(Table7[[#This Row],[Code]]=\"\",Table7[[#This Row],[Qty]]=\"\"),\"\",Table7[TOTAL]*0.05)","v":""},{"$f":"IF(OR(Table7[[#This Row],[Code]]=\"\",Table7[[#This Row],[Qty]]=\"\"),\"\",Table7[TOTAL]+Table7[VAT])","v":""},{"$f":"IF(OR(Table7[[#This Row],[Code]]=\"\",Table7[[#This Row],[Qty]]=\"\"),\"\",E31*1.05)","v":""},{"$f":"IF(Table7[[#This Row],[Code]]=\"\",\"\",VLOOKUP(Table7[[#This Row],[Code]],Codes!$B$2:$E$2231,4,0))","v":""},{"$f":"IF(OR(Table7[[#This Row],[Code]]=\"\",Table7[[#This Row],[Qty]]=\"\"),\"\",Table7[[#This Row],[Qty]]*Table7[[#This Row],[U.CC]])","v":""}]
[null,{"$f":"SUBTOTAL(103,Table7[Code])","v":1},null,"Total",null,null,null,{"$f":"SUBTOTAL(109,Table7[TOTAL])","v":713.44},{"$f":"SUBTOTAL(109,Table7[VAT])","v":35.672000000000004},{"$f":"SUBTOTAL(109,Table7[TOTAL \nwith VAT])","v":749.11200000000008},null,null,{"$f":"SUBTOTAL(109,Table7[Tot. CC])&\"  CC\"","v":"1.582  CC"}]
[]
[]
[]
[]
[]
[]
[]
[]
[null,"Price includes VAT (5%)",null,null,null,null,null,"السعر يشمل ضريبة القيمة المضافة  (%5) "]

{"sheet":"Codes","index":2,"n_rows":26,"n_cols":5,"rows_kept":26,"cut":false,"hidden":false,"merged":[]}
["Codes","Code","Item","Ret Price","CC"]
[null,14,"Aloe Bath Gelèe ",71.25,8.2000000000000003E-2]
[null,15,"Forever Alove Vera Gel ",98,0.113]
[null,22,"Forever Alove Lips ",13.75,1.6E-2]
[null,28,"Forever Bright Toothgel ",29.75,3.5000000000000003E-2]
[null,51,"Aloe Proplis Crème ",76.75,8.8999999999999996E-2]
[null,61,"Aloe Vera Gelly ",58,6.7000000000000004E-2]
[null,62,"Aloe Lotion ",58,6.8000000000000005E-2]
[null,63,"Aloe Moisturizing Lotion ",58,6.8000000000000005E-2]
[null,64,"Aloe Heat Lotion ",58,6.8000000000000005E-2]
[null,67,"Aloe Evershield Deodorant ",28,3.2000000000000001E-2]
[null,70,"Gentleman's Pride",58,6.7000000000000004E-2]
[null,199,"Aloe Sunscreen  ",58,6.7000000000000004E-2]
[null,207,"Forever Bee Honey ",65.25,7.4999999999999997E-2]
[null,238,"Forever Aloe Scrub ",60.75,7.0000000000000007E-2]
[null,279," Aloe Refreshirng Toner",124.25,0.159]
[null,284,"Avocado Face & Body Soap",26.25,3.4000000000000002E-2]
[null,311,"Sonya Aloe Deep Moisturizing cream ",129.25,0.15]
[null,319,"Aloe Sunscreen Spray ",81.75,9.5000000000000001E-2]
[null,464,"Forever Fiber ",112,0.13]
[null,470,"Forever Lit Ultra ",119,0.13800000000000001]
[null,515,"Aloe Shave ",68.5,7.9000000000000001E-2]
[null,521,"Aloe - Jojoba Shampoo",68,6.9000000000000006E-2]
[null,522,"Aloe - Jojoba Conditioning ",68,8.7999999999999995E-2]
[null,523,"Aloe Hand Soap ",68,0.86]
[null,350,"Forever Sonya Hydrate Conditioner",93.75]

{"sheet":"Invoices","index":3,"n_rows":1469,"n_cols":17,"rows_kept":1469,"cut":false,"hidden":false,"merged":[]}
["INVOICES","#","Customer\nالعميل","Invoice #\nرقم الفاتورة","Invoice Amount\nمبلغ الفاتورة","Invoice Date\nتاريخ الفاتورة","Notes\nملاحظات"]
[{"$f":"IF(ISNUMBER(SEARCH(STATEMENT!$F$9,Table4[Customer\nالعميل])),MAX($A$1:A1)+1,0)","v":1},{"$f":"IF(OR(C2=\"\",Table4[[#Headers],[Customer\nالعميل]]=\"\"),\"\",MAX($B$1:B1)+1)","v":1},"Dallah Healthcare Co. / Dallah Hospital",28,3540.23,"2017-07-04"]
[{"$f":"IF(ISNUMBER(SEARCH(STATEMENT!$F$9,Table4[Customer\nالعميل])),MAX($A$1:A2)+1,0)","v":2},{"$f":"IF(OR(C3=\"\",Table4[[#Headers],[Customer\nالعميل]]=\"\"),\"\",MAX($B1:B$2)+1)","v":2},"Dallah Healthcare Co. / Dallah Hospital",27,1523.63,"2017-07-04"]
[{"$f":"IF(ISNUMBER(SEARCH(STATEMENT!$F$9,Table4[Customer\nالعميل])),MAX($A$1:A3)+1,0)","v":0},{"$f":"IF(OR(C4=\"\",Table4[[#Headers],[Customer\nالعميل]]=\"\"),\"\",MAX($B$1:B3)+1)","v":3},"Moath Abdul Raqib",16214,673.7,"2017-07-24"]
[{"$f":"IF(ISNUMBER(SEARCH(STATEMENT!$F$9,Table4[Customer\nالعميل])),MAX($A$1:A4)+1,0)","v":0},{"$f":"IF(OR(C5=\"\",Table4[[#Headers],[Customer\nالعميل]]=\"\"),\"\",MAX($B$1:B4)+1)","v":4},"Zawaq Alasal",4,1385,"2017-08-05"]
[{"$f":"IF(ISNUMBER(SEARCH(STATEMENT!$F$9,Table4[Customer\nالعميل])),MAX($A$1:A5)+1,0)","v":0},{"$f":"IF(OR(C6=\"\",Table4[[#Headers],[Customer\nالعميل]]=\"\"),\"\",MAX($B$1:B5)+1)","v":5},"AlKhair Pharmacy",10,1485.75,"2017-09-03"]
[{"$f":"IF(ISNUMBER(SEARCH(STATEMENT!$F$9,Table4[Customer\nالعميل])),MAX($A$1:A6)+1,0)","v":3},{"$f":"IF(OR(C7=\"\",Table4[[#Headers],[Customer\nالعميل]]=\"\"),\"\",MAX($B$1:B6)+1)","v":6},"Dallah Healthcare Co. / Dallah Hospital",18,637,"2017-09-17",null,null,null,null,null,null,null,null,null,null,"Jun"]
[{"$f":"IF(ISNUMBER(SEARCH(STATEMENT!$F$9,Table4[Customer\nالعميل])),MAX($A$1:A7)+1,0)","v":0},{"$f":"IF(OR(C8=\"\",Table4[[#Headers],[Customer\nالعميل]]=\"\"),\"\",MAX($B$1:B7)+1)","v":7},"Attar AlKuwait ",11,1518.53,"2017-09-23",null,null,null,null,null,null,null,null,null,null,69]
[{"$f":"IF(ISNUMBER(SEARCH(STATEMENT!$F$9,Table4[Customer\nالعميل])),MAX($A$1:A8)+1,0)","v":4},{"$f":"IF(OR(C9=\"\",Table4[[#Headers],[Customer\nالعميل]]=\"\"),\"\",MAX($B$1:B8)+1)","v":8},"Dallah Healthcare Co. / Dallah Hospital",41,2008,"2017-10-28",null,null,null,null,null,null,null,null,null,null,86]
[{"$f":"IF(ISNUMBER(SEARCH(STATEMENT!$F$9,Table4[Customer\nالعميل])),MAX($A$1:A9)+1,0)","v":5},{"$f":"IF(OR(C10=\"\",Table4[[#Headers],[Customer\nالعميل]]=\"\"),\"\",MAX($B$1:B9)+1)","v":9},"Dallah Healthcare Co. / Dallah Hospital",65,2344.96,"2017-10-30",null,null,null,null,null,null,null,null,null,null,41]
[{"$f":"IF(ISNUMBER(SEARCH(STATEMENT!$F$9,Table4[Customer\nالعميل])),MAX($A$1:A10)+1,0)","v":6},{"$f":"IF(OR(C11=\"\",Table4[[#Headers],[Customer\nالعميل]]=\"\"),\"\",MAX($B$1:B10)+1)","v":10},"Dallah Healthcare Co. / Dallah Hospital",23268,998.26,"2017-11-12",null,null,null,null,null,null,null,null,null,null,37]
[{"$f":"IF(ISNUMBER(SEARCH(STATEMENT!$F$9,Table4[Customer\nالعميل])),MAX($A$1:A11)+1,0)","v":0},{"$f":"IF(OR(C12=\"\",Table4[[#Headers],[Customer\nالعميل]]=\"\"),\"\",MAX($B$1:B11)+1)","v":11},"AlKhair Pharmacy",100,108.6,"2017-11-25",null,null,null,null,null,null,null,null,null,null,28]
[{"$f":"IF(ISNUMBER(SEARCH(STATEMENT!$F$9,Table4[Customer\nالعميل])),MAX($A$1:A12)+1,0)","v":0},{"$f":"IF(OR(C13=\"\",Table4[[#Headers],[Customer\nالعميل]]=\"\"),\"\",MAX($B$1:B12)+1)","v":12},"Attar Alhakeem",126,1049.1099999999999,"2017-11-25"]
[{"$f":"IF(ISNUMBER(SEARCH(STATEMENT!$F$9,Table4[Customer\nالعميل])),MAX($A$1:A13)+1,0)","v":0},{"$f":"IF(OR(C14=\"\",Table4[[#Headers],[Customer\nالعميل]]=\"\"),\"\",MAX($B$1:B13)+1)","v":13},"Zawaq Alasal",1101,1385,"2017-12-01"]
[{"$f":"IF(ISNUMBER(SEARCH(STATEMENT!$F$9,Table4[Customer\nالعميل])),MAX($A$1:A14)+1,0)","v":0},{"$f":"IF(OR(C15=\"\",Table4[[#Headers],[Customer\nالعميل]]=\"\"),\"\",MAX($B$1:B14)+1)","v":14},"AlKhair Pharmacy",26,777.75,"2017-02-12"]
[{"$f":"IF(ISNUMBER(SEARCH(STATEMENT!$F$9,Table4[Customer\nالعميل])),MAX($A$1:A15)+1,0)","v":0},{"$f":"IF(OR(C16=\"\",Table4[[#Headers],[Customer\nالعميل]]=\"\"),\"\",MAX($B$1:B15)+1)","v":15},"AlKhair Pharmacy",5101,125.92,"2018-10-28"]
[{"$f":"IF(ISNUMBER(SEARCH(STATEMENT!$F$9,Table4[Customer\nالعميل])),MAX($A$1:A16)+1,0)","v":0},{"$f":"IF(OR(C17=\"\",Table4[[#Headers],[Customer\nالعميل]]=\"\"),\"\",MAX($B$1:B16)+1)","v":16},"AlKhair Pharmacy",5002,155.61000000000001,"2018-10-28"]
[{"$f":"IF(ISNUMBER(SEARCH(STATEMENT!$F$9,Table4[Customer\nالعميل])),MAX($A$1:A17)+1,0)","v":7},{"$f":"IF(OR(C18=\"\",Table4[[#Headers],[Customer\nالعميل]]=\"\"),\"\",MAX($B$1:B17)+1)","v":17},"Dallah Healthcare Co. / Dallah Hospital",12,3782.76,"2018-01-23"]
[{"$f":"IF(ISNUMBER(SEARCH(STATEMENT!$F$9,Table4[Customer\nالعميل])),MAX($A$1:A18)+1,0)","v":0},{"$f":"IF(OR(C19=\"\",Table4[[#Headers],[Customer\nالعميل]]=\"\"),\"\",MAX($B$1:B18)+1)","v":18},"AlGaili Omar Bakheet",28582,958.38,"2018-01-25"]
[{"$f":"IF(ISNUMBER(SEARCH(STATEMENT!$F$9,Table4[Customer\nالعميل])),MAX($A$1:A19)+1,0)","v":0},{"$f":"IF(OR(C20=\"\",Table4[[#Headers],[Customer\nالعميل]]=\"\"),\"\",MAX($B$1:B19)+1)","v":19},"Yousri Mousa Othman",104,282.04000000000002,"2018-02-04"]
[{"$f":"IF(ISNUMBER(SEARCH(STATEMENT!$F$9,Table4[Customer\nالعميل])),MAX($A$1:A20)+1,0)","v":0},{"$f":"IF(OR(C21=\"\",Table4[[#Headers],[Customer\nالعميل]]=\"\"),\"\",MAX($B$1:B20)+1)","v":20},"Attar Alhakeem",28583,1618.55,"2018-02-08"]
[{"$f":"IF(ISNUMBER(SEARCH(STATEMENT!$F$9,Table4[Customer\nالعميل])),MAX($A$1:A21)+1,0)","v":0},{"$f":"IF(OR(C22=\"\",Table4[[#Headers],[Customer\nالعميل]]=\"\"),\"\",MAX($B$1:B21)+1)","v":21},"Attar AlKuwait ",21,1359.54,"2018-02-08"]
[{"$f":"IF(ISNUMBER(SEARCH(STATEMENT!$F$9,Table4[Customer\nالعميل])),MAX($A$1:A22)+1,0)","v":0},{"$f":"IF(OR(C23=\"\",Table4[[#Headers],[Customer\nالعميل]]=\"\"),\"\",MAX($B$1:B22)+1)","v":22},"Hala Mohamed Alomdeh",134,1831.54,"2018-02-08"]
[{"$f":"IF(ISNUMBER(SEARCH(STATEMENT!$F$9,Table4[Customer\nالعميل])),MAX($A$1:A23)+1,0)","v":8},{"$f":"IF(OR(C24=\"\",Table4[[#Headers],[Customer\nالعميل]]=\"\"),\"\",MAX($B$1:B23)+1)","v":23},"Dallah Healthcare Co. / Dallah Hospital",35,1250.3399999999999,"2018-02-13"]
[{"$f":"IF(ISNUMBER(SEARCH(STATEMENT!$F$9,Table4[Customer\nالعميل])),MAX($A$1:A24)+1,0)","v":0},{"$f":"IF(OR(C25=\"\",Table4[[#Headers],[Customer\nالعميل]]=\"\"),\"\",MAX($B$1:B24)+1)","v":24},"Mohamed Abduldayem Ahmad",135,1761.87,"2018-02-14"]
[{"$f":"IF(ISNUMBER(SEARCH(STATEMENT!$F$9,Table4[Customer\nالعميل])),MAX($A$1:A25)+1,0)","v":9},{"$f":"IF(OR(C26=\"\",Table4[[#Headers],[Customer\nالعميل]]=\"\"),\"\",MAX($B$1:B25)+1)","v":25},"Dallah Healthcare Co. / Dallah Hospital",101,2006.55,"2018-02-20"]
[{"$f":"IF(ISNUMBER(SEARCH(STATEMENT!$F$9,Table4[Customer\nالعميل])),MAX($A$1:A26)+1,0)","v":0},{"$f":"IF(OR(C27=\"\",Table4[[#Headers],[Customer\nالعميل]]=\"\"),\"\",MAX($B$1:B26)+1)","v":26},"Ibrahim Bakhit",1020,79.66,"2018-02-26"]
[{"$f":"IF(ISNUMBER(SEARCH(STATEMENT!$F$9,Table4[Customer\nالعميل])),MAX($A$1:A27)+1,0)","v":0},{"$f":"IF(OR(C28=\"\",Table4[[#Headers],[Customer\nالعميل]]=\"\"),\"\",MAX($B$1:B27)+1)","v":27},"Mohamed Jazouli",22803,1742.38,"2018-03-18"]
[{"$f":"IF(ISNUMBER(SEARCH(STATEMENT!$F$9,Table4[Customer\nالعميل])),MAX($A$1:A28)+1,0)","v":0},{"$f":"IF(OR(C29=\"\",Table4[[#Headers],[Customer\nالعميل]]=\"\"),\"\",MAX($B$1:B28)+1)","v":28},"Mohamed Jazouli",3022803,1529.08,"2018-03-18"]
[{"$f":"IF(ISNUMBER(SEARCH(STATEMENT!$F$9,Table4[Customer\nالعميل])),MAX($A$1:A29)+1,0)","v":0},{"$f":"IF(OR(C30=\"\",Table4[[#Headers],[Customer\nالعميل]]=\"\"),\"\",MAX($B$1:B29)+1)","v":29},"Yousri Mousa Othman",1021,578.79,"2018-03-19"]
[{"$f":"IF(ISNUMBER(SEARCH(STATEMENT!$F$9,Table4[Customer\nالعميل])),MAX($A$1:A30)+1,0)","v":10},{"$f":"IF(OR(C31=\"\",Table4[[#Headers],[Customer\nالعميل]]=\"\"),\"\",MAX($B$1:B30)+1)","v":30},"Dallah Healthcare Co. / Dallah Hospital",102,2354.63,"2018-03-27"]
[{"$f":"IF(ISNUMBER(SEARCH(STATEMENT!$F$9,Table4[Customer\nالعميل])),MAX($A$1:A31)+1,0)","v":11},{"$f":"IF(OR(C32=\"\",Table4[[#Headers],[Customer\nالعميل]]=\"\"),\"\",MAX($B$1:B31)+1)","v":31},"Dallah Healthcare Co. / Dallah Hospital",4991,2956.08,"2018-04-04"]
[{"$f":"IF(ISNUMBER(SEARCH(STATEMENT!$F$9,Table4[Customer\nالعميل])),MAX($A$1:A32)+1,0)","v":0},{"$f":"IF(OR(C33=\"\",Table4[[#Headers],[Customer\nالعميل]]=\"\"),\"\",MAX($B$1:B32)+1)","v":32},"Mohamed Jazouli",5000,688.13,"2018-04-26"]
[{"$f":"IF(ISNUMBER(SEARCH(STATEMENT!$F$9,Table4[Customer\nالعميل])),MAX($A$1:A33)+1,0)","v":12},{"$f":"IF(OR(C34=\"\",Table4[[#Headers],[Customer\nالعميل]]=\"\"),\"\",MAX($B$1:B33)+1)","v":33},"Dallah Healthcare Co. / Dallah Hospital",4600,1576.58,"2018-05-24"]
[{"$f":"IF(ISNUMBER(SEARCH(STATEMENT!$F$9,Table4[Customer\nالعميل])),MAX($A$1:A34)+1,0)","v":0},{"$f":"IF(OR(C35=\"\",Table4[[#Headers],[Customer\nالعميل]]=\"\"),\"\",MAX($B$1:B34)+1)","v":34},"Attar Alhakeem",28600,847.67,"2018-05-30"]
[{"$f":"IF(ISNUMBER(SEARCH(STATEMENT!$F$9,Table4[Customer\nالعميل])),MAX($A$1:A35)+1,0)","v":13},{"$f":"IF(OR(C36=\"\",Table4[[#Headers],[Customer\nالعميل]]=\"\"),\"\",MAX($B$1:B35)+1)","v":35},"Dallah Healthcare Co. / Dallah Hospital",4810,2813.61,"2018-06-27"]
[{"$f":"IF(ISNUMBER(SEARCH(STATEMENT!$F$9,Table4[Customer\nالعميل])),MAX($A$1:A36)+1,0)","v":0},{"$f":"IF(OR(C37=\"\",Table4[[#Headers],[Customer\nالعميل]]=\"\"),\"\",MAX($B$1:B36)+1)","v":36},"Attar AlKuwait ",133,249.9,"2018-08-02"]
[{"$f":"IF(ISNUMBER(SEARCH(STATEMENT!$F$9,Table4[Customer\nالعميل])),MAX($A$1:A37)+1,0)","v":14},{"$f":"IF(OR(C38=\"\",Table4[[#Headers],[Customer\nالعميل]]=\"\"),\"\",MAX($B$1:B37)+1)","v":37},"Dallah Healthcare Co. / Dallah Hospital",4999,7169.66,"2018-08-02"]
[{"$f":"IF(ISNUMBER(SEARCH(STATEMENT!$F$9,Table4[Customer\nالعميل])),MAX($A$1:A38)+1,0)","v":15},{"$f":"IF(OR(C39=\"\",Table4[[#Headers],[Customer\nالعميل]]=\"\"),\"\",MAX($B$1:B38)+1)","v":38},"Dallah Healthcare Co. / Dallah Hospital",5001,2204.48,"2018-08-09"]
[{"$f":"IF(ISNUMBER(SEARCH(STATEMENT!$F$9,Table4[Customer\nالعميل])),MAX($A$1:A39)+1,0)","v":0},{"$f":"IF(OR(C40=\"\",Table4[[#Headers],[Customer\nالعميل]]=\"\"),\"\",MAX($B$1:B39)+1)","v":39},"Attar AlKuwait ",111,1605.24,"2018-08-14"]
[{"$f":"IF(ISNUMBER(SEARCH(STATEMENT!$F$9,Table4[Customer\nالعميل])),MAX($A$1:A40)+1,0)","v":0},{"$f":"IF(OR(C41=\"\",Table4[[#Headers],[Customer\nالعميل]]=\"\"),\"\",MAX($B$1:B40)+1)","v":40},"Attar Alhakeem",29061,1822.28,"2018-08-15"]
[{"$f":"IF(ISNUMBER(SEARCH(STATEMENT!$F$9,Table4[Customer\nالعميل])),MAX($A$1:A41)+1,0)","v":16},{"$f":"IF(OR(C42=\"\",Table4[[#Headers],[Customer\nالعميل]]=\"\"),\"\",MAX($B$1:B41)+1)","v":41},"Dallah Healthcare Co. / Dallah Hospital",5629,1870.05,"2018-10-07"]
[{"$f":"IF(ISNUMBER(SEARCH(STATEMENT!$F$9,Table4[Customer\nالعميل])),MAX($A$1:A42)+1,0)","v":0},{"$f":"IF(OR(C43=\"\",Table4[[#Headers],[Customer\nالعميل]]=\"\"),\"\",MAX($B$1:B42)+1)","v":""}]
[{"$f":"IF(ISNUMBER(SEARCH(STATEMENT!$F$9,Table4[Customer\nالعميل])),MAX($A$1:A43)+1,0)","v":0},{"$f":"IF(OR(C44=\"\",Table4[[#Headers],[Customer\nالعميل]]=\"\"),\"\",MAX($B$1:B43)+1)","v":""}]
[{"$f":"IF(ISNUMBER(SEARCH(STATEMENT!$F$9,Table4[Customer\nالعميل])),MAX($A$1:A44)+1,0)","v":0},{"$f":"IF(OR(C45=\"\",Table4[[#Headers],[Customer\nالعميل]]=\"\"),\"\",MAX($B$1:B44)+1)","v":""}]
[{"$f":"IF(ISNUMBER(SEARCH(STATEMENT!$F$9,Table4[Customer\nالعميل])),MAX($A$1:A45)+1,0)","v":0},{"$f":"IF(OR(C46=\"\",Table4[[#Headers],[Customer\nالعميل]]=\"\"),\"\",MAX($B$1:B45)+1)","v":""}]
[{"$f":"IF(ISNUMBER(SEARCH(STATEMENT!$F$9,Table4[Customer\nالعميل])),MAX($A$1:A46)+1,0)","v":0},{"$f":"IF(OR(C47=\"\",Table4[[#Headers],[Customer\nالعميل]]=\"\"),\"\",MAX($B$1:B46)+1)","v":""}]
[{"$f":"IF(ISNUMBER(SEARCH(STATEMENT!$F$9,Table4[Customer\nالعميل])),MAX($A$1:A47)+1,0)","v":0},{"$f":"IF(OR(C48=\"\",Table4[[#Headers],[Customer\nالعميل]]=\"\"),\"\",MAX($B$1:B47)+1)","v":""}]
[{"$f":"IF(ISNUMBER(SEARCH(STATEMENT!$F$9,Table4[Customer\nالعميل])),MAX($A$1:A48)+1,0)","v":0},{"$f":"IF(OR(C49=\"\",Table4[[#Headers],[Customer\nالعميل]]=\"\"),\"\",MAX($B$1:B48)+1)","v":""}]
[{"$f":"IF(ISNUMBER(SEARCH(STATEMENT!$F$9,Table4[Customer\nالعميل])),MAX($A$1:A49)+1,0)","v":0},{"$f":"IF(OR(C50=\"\",Table4[[#Headers],[Customer\nالعميل]]=\"\"),\"\",MAX($B$1:B49)+1)","v":""}]
[{"$f":"IF(ISNUMBER(SEARCH(STATEMENT!$F$9,Table4[Customer\nالعميل])),MAX($A$1:A50)+1,0)","v":0},{"$f":"IF(OR(C51=\"\",Table4[[#Headers],[Customer\nالعميل]]=\"\"),\"\",MAX($B$1:B50)+1)","v":""}]
[{"$f":"IF(ISNUMBER(SEARCH(STATEMENT!$F$9,Table4[Customer\nالعميل])),MAX($A$1:A51)+1,0)","v":0},{"$f":"IF(OR(C52=\"\",Table4[[#Headers],[Customer\nالعميل]]=\"\"),\"\",MAX($B$1:B51)+1)","v":""}]
[{"$f":"IF(ISNUMBER(SEARCH(STATEMENT!$F$9,Table4[Customer\nالعميل])),MAX($A$1:A52)+1,0)","v":0},{"$f":"IF(OR(C53=\"\",Table4[[#Headers],[Customer\nالعميل]]=\"\"),\"\",MAX($B$1:B52)+1)","v":""}]
[{"$f":"IF(ISNUMBER(SEARCH(STATEMENT!$F$9,Table4[Customer\nالعميل])),MAX($A$1:A53)+1,0)","v":0},{"$f":"IF(OR(C54=\"\",Table4[[#Headers],[Customer\nالعميل]]=\"\"),\"\",MAX($B$1:B53)+1)","v":""}]
[{"$f":"IF(ISNUMBER(SEARCH(STATEMENT!$F$9,Table4[Customer\nالعميل])),MAX($A$1:A54)+1,0)","v":0},{"$f":"IF(OR(C55=\"\",Table4[[#Headers],[Customer\nالعميل]]=\"\"),\"\",MAX($B$1:B54)+1)","v":""}]
[{"$f":"IF(ISNUMBER(SEARCH(STATEMENT!$F$9,Table4[Customer\nالعميل])),MAX($A$1:A55)+1,0)","v":0},{"$f":"IF(OR(C56=\"\",Table4[[#Headers],[Customer\nالعميل]]=\"\"),\"\",MAX($B$1:B55)+1)","v":""}]
[{"$f":"IF(ISNUMBER(SEARCH(STATEMENT!$F$9,Table4[Customer\nالعميل])),MAX($A$1:A56)+1,0)","v":0},{"$f":"IF(OR(C57=\"\",Table4[[#Headers],[Customer\nالعميل]]=\"\"),\"\",MAX($B$1:B56)+1)","v":""}]
[{"$f":"IF(ISNUMBER(SEARCH(STATEMENT!$F$9,Table4[Customer\nالعميل])),MAX($A$1:A57)+1,0)","v":0},{"$f":"IF(OR(C58=\"\",Table4[[#Headers],[Customer\nالعميل]]=\"\"),\"\",MAX($B$1:B57)+1)","v":""}]
[{"$f":"IF(ISNUMBER(SEARCH(STATEMENT!$F$9,Table4[Customer\nالعميل])),MAX($A$1:A58)+1,0)","v":0},{"$f":"IF(OR(C59=\"\",Table4[[#Headers],[Customer\nالعميل]]=\"\"),\"\",MAX($B$1:B58)+1)","v":""}]
[{"$f":"IF(ISNUMBER(SEARCH(STATEMENT!$F$9,Table4[Customer\nالعميل])),MAX($A$1:A59)+1,0)","v":0},{"$f":"IF(OR(C60=\"\",Table4[[#Headers],[Customer\nالعميل]]=\"\"),\"\",MAX($B$1:B59)+1)","v":""}]
[{"$f":"IF(ISNUMBER(SEARCH(STATEMENT!$F$9,Table4[Customer\nالعميل])),MAX($A$1:A60)+1,0)","v":0},{"$f":"IF(OR(C61=\"\",Table4[[#Headers],[Customer\nالعميل]]=\"\"),\"\",MAX($B$1:B60)+1)","v":""}]
[{"$f":"IF(ISNUMBER(SEARCH(STATEMENT!$F$9,Table4[Customer\nالعميل])),MAX($A$1:A61)+1,0)","v":0},{"$f":"IF(OR(C62=\"\",Table4[[#Headers],[Customer\nالعميل]]=\"\"),\"\",MAX($B$1:B61)+1)","v":""}]
[{"$f":"IF(ISNUMBER(SEARCH(STATEMENT!$F$9,Table4[Customer\nالعميل])),MAX($A$1:A62)+1,0)","v":0},{"$f":"IF(OR(C63=\"\",Table4[[#Headers],[Customer\nالعميل]]=\"\"),\"\",MAX($B$1:B62)+1)","v":""}]
[{"$f":"IF(ISNUMBER(SEARCH(STATEMENT!$F$9,Table4[Customer\nالعميل])),MAX($A$1:A63)+1,0)","v":0},{"$f":"IF(OR(C64=\"\",Table4[[#Headers],[Customer\nالعميل]]=\"\"),\"\",MAX($B$1:B63)+1)","v":""}]
[{"$f":"IF(ISNUMBER(SEARCH(STATEMENT!$F$9,Table4[Customer\nالعميل])),MAX($A$1:A64)+1,0)","v":0},{"$f":"IF(OR(C65=\"\",Table4[[#Headers],[Customer\nالعميل]]=\"\"),\"\",MAX($B$1:B64)+1)","v":""}]
[{"$f":"IF(ISNUMBER(SEARCH(STATEMENT!$F$9,Table4[Customer\nالعميل])),MAX($A$1:A65)+1,0)","v":0},{"$f":"IF(OR(C66=\"\",Table4[[#Headers],[Customer\nالعميل]]=\"\"),\"\",MAX($B$1:B65)+1)","v":""}]
[{"$f":"IF(ISNUMBER(SEARCH(STATEMENT!$F$9,Table4[Customer\nالعميل])),MAX($A$1:A66)+1,0)","v":0},{"$f":"IF(OR(C67=\"\",Table4[[#Headers],[Customer\nالعميل]]=\"\"),\"\",MAX($B$1:B66)+1)","v":""}]
[{"$f":"IF(ISNUMBER(SEARCH(STATEMENT!$F$9,Table4[Customer\nالعميل])),MAX($A$1:A67)+1,0)","v":0},{"$f":"IF(OR(C68=\"\",Table4[[#Headers],[Customer\nالعميل]]=\"\"),\"\",MAX($B$1:B67)+1)","v":""}]
[{"$f":"IF(ISNUMBER(SEARCH(STATEMENT!$F$9,Table4[Customer\nالعميل])),MAX($A$1:A68)+1,0)","v":0},{"$f":"IF(OR(C69=\"\",Table4[[#Headers],[Customer\nالعميل]]=\"\"),\"\",MAX($B$1:B68)+1)","v":""}]
[{"$f":"IF(ISNUMBER(SEARCH(STATEMENT!$F$9,Table4[Customer\nالعميل])),MAX($A$1:A69)+1,0)","v":0},{"$f":"IF(OR(C70=\"\",Table4[[#Headers],[Customer\nالعميل]]=\"\"),\"\",MAX($B$1:B69)+1)","v":""}]
[{"$f":"IF(ISNUMBER(SEARCH(STATEMENT!$F$9,Table4[Customer\nالعميل])),MAX($A$1:A70)+1,0)","v":0},null,{"$f":"MAX(Table4['#])& \"  invoices\"","v":"41  invoices"},null,{"$f":"SUBTOTAL(109,Table4[Invoice Amount\nمبلغ الفاتورة])","v":64656.840000000011}]
[{"$f":"IF(ISNUMBER(SEARCH(STATEMENT!$F$9,Table4[Customer\nالعميل])),MAX($A$1:A71)+1,0)","v":0}]
[{"$f":"IF(ISNUMBER(SEARCH(STATEMENT!$F$9,Table4[Customer\nالعميل])),MAX($A$1:A72)+1,0)","v":0}]
[{"$f":"IF(ISNUMBER(SEARCH(STATEMENT!$F$9,Table4[Customer\nالعميل])),MAX($A$1:A73)+1,0)","v":0}]
[{"$f":"IF(ISNUMBER(SEARCH(STATEMENT!$F$9,Table4[Customer\nالعميل])),MAX($A$1:A74)+1,0)","v":0}]
[{"$f":"IF(ISNUMBER(SEARCH(STATEMENT!$F$9,Table4[Customer\nالعميل])),MAX($A$1:A75)+1,0)","v":0}]
[{"$f":"IF(ISNUMBER(SEARCH(STATEMENT!$F$9,Table4[Customer\nالعميل])),MAX($A$1:A76)+1,0)","v":0}]
[{"$f":"IF(ISNUMBER(SEARCH(STATEMENT!$F$9,Table4[Customer\nالعميل])),MAX($A$1:A77)+1,0)","v":0}]
[{"$f":"IF(ISNUMBER(SEARCH(STATEMENT!$F$9,Table4[Customer\nالعميل])),MAX($A$1:A78)+1,0)","v":0}]
[{"$f":"IF(ISNUMBER(SEARCH(STATEMENT!$F$9,Table4[Customer\nالعميل])),MAX($A$1:A79)+1,0)","v":0}]
[{"$f":"IF(ISNUMBER(SEARCH(STATEMENT!$F$9,Table4[Customer\nالعميل])),MAX($A$1:A80)+1,0)","v":0}]
[{"$f":"IF(ISNUMBER(SEARCH(STATEMENT!$F$9,Table4[Customer\nالعميل])),MAX($A$1:A81)+1,0)","v":0}]
[{"$f":"IF(ISNUMBER(SEARCH(STATEMENT!$F$9,Table4[Customer\nالعميل])),MAX($A$1:A82)+1,0)","v":0}]
[{"$f":"IF(ISNUMBER(SEARCH(STATEMENT!$F$9,Table4[Customer\nالعميل])),MAX($A$1:A83)+1,0)","v":0}]
[{"$f":"IF(ISNUMBER(SEARCH(STATEMENT!$F$9,Table4[Customer\nالعميل])),MAX($A$1:A84)+1,0)","v":0}]
[{"$f":"IF(ISNUMBER(SEARCH(STATEMENT!$F$9,Table4[Customer\nالعميل])),MAX($A$1:A85)+1,0)","v":0}]
[{"$f":"IF(ISNUMBER(SEARCH(STATEMENT!$F$9,Table4[Customer\nالعميل])),MAX($A$1:A86)+1,0)","v":0}]
[{"$f":"IF(ISNUMBER(SEARCH(STATEMENT!$F$9,Table4[Customer\nالعميل])),MAX($A$1:A87)+1,0)","v":0}]
[{"$f":"IF(ISNUMBER(SEARCH(STATEMENT!$F$9,Table4[Customer\nالعميل])),MAX($A$1:A88)+1,0)","v":0}]
[{"$f":"IF(ISNUMBER(SEARCH(STATEMENT!$F$9,Table4[Customer\nالعميل])),MAX($A$1:A89)+1,0)","v":0}]
[{"$f":"IF(ISNUMBER(SEARCH(STATEMENT!$F$9,Table4[Customer\nالعميل])),MAX($A$1:A90)+1,0)","v":0}]
[{"$f":"IF(ISNUMBER(SEARCH(STATEMENT!$F$9,Table4[Customer\nالعميل])),MAX($A$1:A91)+1,0)","v":0}]
[{"$f":"IF(ISNUMBER(SEARCH(STATEMENT!$F$9,Table4[Customer\nالعميل])),MAX($A$1:A92)+1,0)","v":0}]
[{"$f":"IF(ISNUMBER(SEARCH(STATEMENT!$F$9,Table4[Customer\nالعميل])),MAX($A$1:A93)+1,0)","v":0}]
[{"$f":"IF(ISNUMBER(SEARCH(STATEMENT!$F$9,Table4[Customer\nالعميل])),MAX($A$1:A94)+1,0)","v":0}]
[{"$f":"IF(ISNUMBER(SEARCH(STATEMENT!$F$9,Table4[Customer\nالعميل])),MAX($A$1:A95)+1,0)","v":0}]
[{"$f":"IF(ISNUMBER(SEARCH(STATEMENT!$F$9,Table4[Customer\nالعميل])),MAX($A$1:A96)+1,0)","v":0}]
[{"$f":"IF(ISNUMBER(SEARCH(STATEMENT!$F$9,Table4[Customer\nالعميل])),MAX($A$1:A97)+1,0)","v":0}]
[{"$f":"IF(ISNUMBER(SEARCH(STATEMENT!$F$9,Table4[Customer\nالعميل])),MAX($A$1:A98)+1,0)","v":0}]
[{"$f":"IF(ISNUMBER(SEARCH(STATEMENT!$F$9,Table4[Customer\nالعميل])),MAX($A$1:A99)+1,0)","v":0}]
[{"$f":"IF(ISNUMBER(SEARCH(STATEMENT!$F$9,Table4[Customer\nالعميل])),MAX($A$1:A100)+1,0)","v":0}]
[{"$f":"IF(ISNUMBER(SEARCH(STATEMENT!$F$9,Table4[Customer\nالعميل])),MAX($A$1:A101)+1,0)","v":0}]
[{"$f":"IF(ISNUMBER(SEARCH(STATEMENT!$F$9,Table4[Customer\nالعميل])),MAX($A$1:A102)+1,0)","v":0}]
[{"$f":"IF(ISNUMBER(SEARCH(STATEMENT!$F$9,Table4[Customer\nالعميل])),MAX($A$1:A103)+1,0)","v":0}]
[{"$f":"IF(ISNUMBER(SEARCH(STATEMENT!$F$9,Table4[Customer\nالعميل])),MAX($A$1:A104)+1,0)","v":0}]
[{"$f":"IF(ISNUMBER(SEARCH(STATEMENT!$F$9,Table4[Customer\nالعميل])),MAX($A$1:A105)+1,0)","v":0}]
[{"$f":"IF(ISNUMBER(SEARCH(STATEMENT!$F$9,Table4[Customer\nالعميل])),MAX($A$1:A106)+1,0)","v":0}]
[{"$f":"IF(ISNUMBER(SEARCH(STATEMENT!$F$9,Table4[Customer\nالعميل])),MAX($A$1:A107)+1,0)","v":0}]
[{"$f":"IF(ISNUMBER(SEARCH(STATEMENT!$F$9,Table4[Customer\nالعميل])),MAX($A$1:A108)+1,0)","v":0}]
[{"$f":"IF(ISNUMBER(SEARCH(STATEMENT!$F$9,Table4[Customer\nالعميل])),MAX($A$1:A109)+1,0)","v":0}]
[{"$f":"IF(ISNUMBER(SEARCH(STATEMENT!$F$9,Table4[Customer\nالعميل])),MAX($A$1:A110)+1,0)","v":0}]
[{"$f":"IF(ISNUMBER(SEARCH(STATEMENT!$F$9,Table4[Customer\nالعميل])),MAX($A$1:A111)+1,0)","v":0}]
[{"$f":"IF(ISNUMBER(SEARCH(STATEMENT!$F$9,Table4[Customer\nالعميل])),MAX($A$1:A112)+1,0)","v":0}]
[{"$f":"IF(ISNUMBER(SEARCH(STATEMENT!$F$9,Table4[Customer\nالعميل])),MAX($A$1:A113)+1,0)","v":0}]
[{"$f":"IF(ISNUMBER(SEARCH(STATEMENT!$F$9,Table4[Customer\nالعميل])),MAX($A$1:A114)+1,0)","v":0}]
[{"$f":"IF(ISNUMBER(SEARCH(STATEMENT!$F$9,Table4[Customer\nالعميل])),MAX($A$1:A115)+1,0)","v":0}]
[{"$f":"IF(ISNUMBER(SEARCH(STATEMENT!$F$9,Table4[Customer\nالعميل])),MAX($A$1:A116)+1,0)","v":0}]
[{"$f":"IF(ISNUMBER(SEARCH(STATEMENT!$F$9,Table4[Customer\nالعميل])),MAX($A$1:A117)+1,0)","v":0}]
[{"$f":"IF(ISNUMBER(SEARCH(STATEMENT!$F$9,Table4[Customer\nالعميل])),MAX($A$1:A118)+1,0)","v":0}]
[{"$f":"IF(ISNUMBER(SEARCH(STATEMENT!$F$9,Table4[Customer\nالعميل])),MAX($A$1:A119)+1,0)","v":0}]
[{"$f":"IF(ISNUMBER(SEARCH(STATEMENT!$F$9,Table4[Customer\nالعميل])),MAX($A$1:A120)+1,0)","v":0}]
[{"$f":"IF(ISNUMBER(SEARCH(STATEMENT!$F$9,Table4[Customer\nالعميل])),MAX($A$1:A121)+1,0)","v":0}]
[{"$f":"IF(ISNUMBER(SEARCH(STATEMENT!$F$9,Table4[Customer\nالعميل])),MAX($A$1:A122)+1,0)","v":0}]
[{"$f":"IF(ISNUMBER(SEARCH(STATEMENT!$F$9,Table4[Customer\nالعميل])),MAX($A$1:A123)+1,0)","v":0}]
[{"$f":"IF(ISNUMBER(SEARCH(STATEMENT!$F$9,Table4[Customer\nالعميل])),MAX($A$1:A124)+1,0)","v":0}]
[{"$f":"IF(ISNUMBER(SEARCH(STATEMENT!$F$9,Table4[Customer\nالعميل])),MAX($A$1:A125)+1,0)","v":0}]
[{"$f":"IF(ISNUMBER(SEARCH(STATEMENT!$F$9,Table4[Customer\nالعميل])),MAX($A$1:A126)+1,0)","v":0}]
[{"$f":"IF(ISNUMBER(SEARCH(STATEMENT!$F$9,Table4[Customer\nالعميل])),MAX($A$1:A127)+1,0)","v":0}]
[{"$f":"IF(ISNUMBER(SEARCH(STATEMENT!$F$9,Table4[Customer\nالعميل])),MAX($A$1:A128)+1,0)","v":0}]
[{"$f":"IF(ISNUMBER(SEARCH(STATEMENT!$F$9,Table4[Customer\nالعميل])),MAX($A$1:A129)+1,0)","v":0}]
[{"$f":"IF(ISNUMBER(SEARCH(STATEMENT!$F$9,Table4[Customer\nالعميل])),MAX($A$1:A130)+1,0)","v":0}]
[{"$f":"IF(ISNUMBER(SEARCH(STATEMENT!$F$9,Table4[Customer\nالعميل])),MAX($A$1:A131)+1,0)","v":0}]
[{"$f":"IF(ISNUMBER(SEARCH(STATEMENT!$F$9,Table4[Customer\nالعميل])),MAX($A$1:A132)+1,0)","v":0}]
[{"$f":"IF(ISNUMBER(SEARCH(STATEMENT!$F$9,Table4[Customer\nالعميل])),MAX($A$1:A133)+1,0)","v":0}]
[{"$f":"IF(ISNUMBER(SEARCH(STATEMENT!$F$9,Table4[Customer\nالعميل])),MAX($A$1:A134)+1,0)","v":0}]
[{"$f":"IF(ISNUMBER(SEARCH(STATEMENT!$F$9,Table4[Customer\nالعميل])),MAX($A$1:A135)+1,0)","v":0}]
[{"$f":"IF(ISNUMBER(SEARCH(STATEMENT!$F$9,Table4[Customer\nالعميل])),MAX($A$1:A136)+1,0)","v":0}]
[{"$f":"IF(ISNUMBER(SEARCH(STATEMENT!$F$9,Table4[Customer\nالعميل])),MAX($A$1:A137)+1,0)","v":0}]
[{"$f":"IF(ISNUMBER(SEARCH(STATEMENT!$F$9,Table4[Customer\nالعميل])),MAX($A$1:A138)+1,0)","v":0}]
[{"$f":"IF(ISNUMBER(SEARCH(STATEMENT!$F$9,Table4[Customer\nالعميل])),MAX($A$1:A139)+1,0)","v":0}]
[{"$f":"IF(ISNUMBER(SEARCH(STATEMENT!$F$9,Table4[Customer\nالعميل])),MAX($A$1:A140)+1,0)","v":0}]
[{"$f":"IF(ISNUMBER(SEARCH(STATEMENT!$F$9,Table4[Customer\nالعميل])),MAX($A$1:A141)+1,0)","v":0}]
[{"$f":"IF(ISNUMBER(SEARCH(STATEMENT!$F$9,Table4[Customer\nالعميل])),MAX($A$1:A142)+1,0)","v":0}]
[{"$f":"IF(ISNUMBER(SEARCH(STATEMENT!$F$9,Table4[Customer\nالعميل])),MAX($A$1:A143)+1,0)","v":0}]
[{"$f":"IF(ISNUMBER(SEARCH(STATEMENT!$F$9,Table4[Customer\nالعميل])),MAX($A$1:A144)+1,0)","v":0}]
[{"$f":"IF(ISNUMBER(SEARCH(STATEMENT!$F$9,Table4[Customer\nالعميل])),MAX($A$1:A145)+1,0)","v":0}]
[{"$f":"IF(ISNUMBER(SEARCH(STATEMENT!$F$9,Table4[Customer\nالعميل])),MAX($A$1:A146)+1,0)","v":0}]
[{"$f":"IF(ISNUMBER(SEARCH(STATEMENT!$F$9,Table4[Customer\nالعميل])),MAX($A$1:A147)+1,0)","v":0}]
[{"$f":"IF(ISNUMBER(SEARCH(STATEMENT!$F$9,Table4[Customer\nالعميل])),MAX($A$1:A148)+1,0)","v":0}]
[{"$f":"IF(ISNUMBER(SEARCH(STATEMENT!$F$9,Table4[Customer\nالعميل])),MAX($A$1:A149)+1,0)","v":0}]
[{"$f":"IF(ISNUMBER(SEARCH(STATEMENT!$F$9,Table4[Customer\nالعميل])),MAX($A$1:A150)+1,0)","v":0}]
[{"$f":"IF(ISNUMBER(SEARCH(STATEMENT!$F$9,Table4[Customer\nالعميل])),MAX($A$1:A151)+1,0)","v":0}]
[{"$f":"IF(ISNUMBER(SEARCH(STATEMENT!$F$9,Table4[Customer\nالعميل])),MAX($A$1:A152)+1,0)","v":0}]
[{"$f":"IF(ISNUMBER(SEARCH(STATEMENT!$F$9,Table4[Customer\nالعميل])),MAX($A$1:A153)+1,0)","v":0}]
[{"$f":"IF(ISNUMBER(SEARCH(STATEMENT!$F$9,Table4[Customer\nالعميل])),MAX($A$1:A154)+1,0)","v":0}]
[{"$f":"IF(ISNUMBER(SEARCH(STATEMENT!$F$9,Table4[Customer\nالعميل])),MAX($A$1:A155)+1,0)","v":0}]
[{"$f":"IF(ISNUMBER(SEARCH(STATEMENT!$F$9,Table4[Customer\nالعميل])),MAX($A$1:A156)+1,0)","v":0}]
[{"$f":"IF(ISNUMBER(SEARCH(STATEMENT!$F$9,Table4[Customer\nالعميل])),MAX($A$1:A157)+1,0)","v":0}]
[{"$f":"IF(ISNUMBER(SEARCH(STATEMENT!$F$9,Table4[Customer\nالعميل])),MAX($A$1:A158)+1,0)","v":0}]
[{"$f":"IF(ISNUMBER(SEARCH(STATEMENT!$F$9,Table4[Customer\nالعميل])),MAX($A$1:A159)+1,0)","v":0}]
[{"$f":"IF(ISNUMBER(SEARCH(STATEMENT!$F$9,Table4[Customer\nالعميل])),MAX($A$1:A160)+1,0)","v":0}]
[{"$f":"IF(ISNUMBER(SEARCH(STATEMENT!$F$9,Table4[Customer\nالعميل])),MAX($A$1:A161)+1,0)","v":0}]
[{"$f":"IF(ISNUMBER(SEARCH(STATEMENT!$F$9,Table4[Customer\nالعميل])),MAX($A$1:A162)+1,0)","v":0}]
[{"$f":"IF(ISNUMBER(SEARCH(STATEMENT!$F$9,Table4[Customer\nالعميل])),MAX($A$1:A163)+1,0)","v":0}]
[{"$f":"IF(ISNUMBER(SEARCH(STATEMENT!$F$9,Table4[Customer\nالعميل])),MAX($A$1:A164)+1,0)","v":0}]
[{"$f":"IF(ISNUMBER(SEARCH(STATEMENT!$F$9,Table4[Customer\nالعميل])),MAX($A$1:A165)+1,0)","v":0}]
[{"$f":"IF(ISNUMBER(SEARCH(STATEMENT!$F$9,Table4[Customer\nالعميل])),MAX($A$1:A166)+1,0)","v":0}]
[{"$f":"IF(ISNUMBER(SEARCH(STATEMENT!$F$9,Table4[Customer\nالعميل])),MAX($A$1:A167)+1,0)","v":0}]
[{"$f":"IF(ISNUMBER(SEARCH(STATEMENT!$F$9,Table4[Customer\nالعميل])),MAX($A$1:A168)+1,0)","v":0}]
[{"$f":"IF(ISNUMBER(SEARCH(STATEMENT!$F$9,Table4[Customer\nالعميل])),MAX($A$1:A169)+1,0)","v":0}]
[{"$f":"IF(ISNUMBER(SEARCH(STATEMENT!$F$9,Table4[Customer\nالعميل])),MAX($A$1:A170)+1,0)","v":0}]
[{"$f":"IF(ISNUMBER(SEARCH(STATEMENT!$F$9,Table4[Customer\nالعميل])),MAX($A$1:A171)+1,0)","v":0}]
[{"$f":"IF(ISNUMBER(SEARCH(STATEMENT!$F$9,Table4[Customer\nالعميل])),MAX($A$1:A172)+1,0)","v":0}]
[{"$f":"IF(ISNUMBER(SEARCH(STATEMENT!$F$9,Table4[Customer\nالعميل])),MAX($A$1:A173)+1,0)","v":0}]
[{"$f":"IF(ISNUMBER(SEARCH(STATEMENT!$F$9,Table4[Customer\nالعميل])),MAX($A$1:A174)+1,0)","v":0}]
[{"$f":"IF(ISNUMBER(SEARCH(STATEMENT!$F$9,Table4[Customer\nالعميل])),MAX($A$1:A175)+1,0)","v":0}]
[{"$f":"IF(ISNUMBER(SEARCH(STATEMENT!$F$9,Table4[Customer\nالعميل])),MAX($A$1:A176)+1,0)","v":0}]
[{"$f":"IF(ISNUMBER(SEARCH(STATEMENT!$F$9,Table4[Customer\nالعميل])),MAX($A$1:A177)+1,0)","v":0}]
[{"$f":"IF(ISNUMBER(SEARCH(STATEMENT!$F$9,Table4[Customer\nالعميل])),MAX($A$1:A178)+1,0)","v":0}]
[{"$f":"IF(ISNUMBER(SEARCH(STATEMENT!$F$9,Table4[Customer\nالعميل])),MAX($A$1:A179)+1,0)","v":0}]
[{"$f":"IF(ISNUMBER(SEARCH(STATEMENT!$F$9,Table4[Customer\nالعميل])),MAX($A$1:A180)+1,0)","v":0}]
[{"$f":"IF(ISNUMBER(SEARCH(STATEMENT!$F$9,Table4[Customer\nالعميل])),MAX($A$1:A181)+1,0)","v":0}]
[{"$f":"IF(ISNUMBER(SEARCH(STATEMENT!$F$9,Table4[Customer\nالعميل])),MAX($A$1:A182)+1,0)","v":0}]
[{"$f":"IF(ISNUMBER(SEARCH(STATEMENT!$F$9,Table4[Customer\nالعميل])),MAX($A$1:A183)+1,0)","v":0}]
[{"$f":"IF(ISNUMBER(SEARCH(STATEMENT!$F$9,Table4[Customer\nالعميل])),MAX($A$1:A184)+1,0)","v":0}]
[{"$f":"IF(ISNUMBER(SEARCH(STATEMENT!$F$9,Table4[Customer\nالعميل])),MAX($A$1:A185)+1,0)","v":0}]
[{"$f":"IF(ISNUMBER(SEARCH(STATEMENT!$F$9,Table4[Customer\nالعميل])),MAX($A$1:A186)+1,0)","v":0}]
[{"$f":"IF(ISNUMBER(SEARCH(STATEMENT!$F$9,Table4[Customer\nالعميل])),MAX($A$1:A187)+1,0)","v":0}]
[{"$f":"IF(ISNUMBER(SEARCH(STATEMENT!$F$9,Table4[Customer\nالعميل])),MAX($A$1:A188)+1,0)","v":0}]
[{"$f":"IF(ISNUMBER(SEARCH(STATEMENT!$F$9,Table4[Customer\nالعميل])),MAX($A$1:A189)+1,0)","v":0}]
[{"$f":"IF(ISNUMBER(SEARCH(STATEMENT!$F$9,Table4[Customer\nالعميل])),MAX($A$1:A190)+1,0)","v":0}]
[{"$f":"IF(ISNUMBER(SEARCH(STATEMENT!$F$9,Table4[Customer\nالعميل])),MAX($A$1:A191)+1,0)","v":0}]
[{"$f":"IF(ISNUMBER(SEARCH(STATEMENT!$F$9,Table4[Customer\nالعميل])),MAX($A$1:A192)+1,0)","v":0}]
[{"$f":"IF(ISNUMBER(SEARCH(STATEMENT!$F$9,Table4[Customer\nالعميل])),MAX($A$1:A193)+1,0)","v":0}]
[{"$f":"IF(ISNUMBER(SEARCH(STATEMENT!$F$9,Table4[Customer\nالعميل])),MAX($A$1:A194)+1,0)","v":0}]
[{"$f":"IF(ISNUMBER(SEARCH(STATEMENT!$F$9,Table4[Customer\nالعميل])),MAX($A$1:A195)+1,0)","v":0}]
[{"$f":"IF(ISNUMBER(SEARCH(STATEMENT!$F$9,Table4[Customer\nالعميل])),MAX($A$1:A196)+1,0)","v":0}]
[{"$f":"IF(ISNUMBER(SEARCH(STATEMENT!$F$9,Table4[Customer\nالعميل])),MAX($A$1:A197)+1,0)","v":0}]
[{"$f":"IF(ISNUMBER(SEARCH(STATEMENT!$F$9,Table4[Customer\nالعميل])),MAX($A$1:A198)+1,0)","v":0}]
[{"$f":"IF(ISNUMBER(SEARCH(STATEMENT!$F$9,Table4[Customer\nالعميل])),MAX($A$1:A199)+1,0)","v":0}]
[{"$f":"IF(ISNUMBER(SEARCH(STATEMENT!$F$9,Table4[Customer\nالعميل])),MAX($A$1:A200)+1,0)","v":0}]
[{"$f":"IF(ISNUMBER(SEARCH(STATEMENT!$F$9,Table4[Customer\nالعميل])),MAX($A$1:A201)+1,0)","v":0}]
[{"$f":"IF(ISNUMBER(SEARCH(STATEMENT!$F$9,Table4[Customer\nالعميل])),MAX($A$1:A202)+1,0)","v":0}]
[{"$f":"IF(ISNUMBER(SEARCH(STATEMENT!$F$9,Table4[Customer\nالعميل])),MAX($A$1:A203)+1,0)","v":0}]
[{"$f":"IF(ISNUMBER(SEARCH(STATEMENT!$F$9,Table4[Customer\nالعميل])),MAX($A$1:A204)+1,0)","v":0}]
[{"$f":"IF(ISNUMBER(SEARCH(STATEMENT!$F$9,Table4[Customer\nالعميل])),MAX($A$1:A205)+1,0)","v":0}]
[{"$f":"IF(ISNUMBER(SEARCH(STATEMENT!$F$9,Table4[Customer\nالعميل])),MAX($A$1:A206)+1,0)","v":0}]
[{"$f":"IF(ISNUMBER(SEARCH(STATEMENT!$F$9,Table4[Customer\nالعميل])),MAX($A$1:A207)+1,0)","v":0}]
[{"$f":"IF(ISNUMBER(SEARCH(STATEMENT!$F$9,Table4[Customer\nالعميل])),MAX($A$1:A208)+1,0)","v":0}]
[{"$f":"IF(ISNUMBER(SEARCH(STATEMENT!$F$9,Table4[Customer\nالعميل])),MAX($A$1:A209)+1,0)","v":0}]
[{"$f":"IF(ISNUMBER(SEARCH(STATEMENT!$F$9,Table4[Customer\nالعميل])),MAX($A$1:A210)+1,0)","v":0}]
[{"$f":"IF(ISNUMBER(SEARCH(STATEMENT!$F$9,Table4[Customer\nالعميل])),MAX($A$1:A211)+1,0)","v":0}]
[{"$f":"IF(ISNUMBER(SEARCH(STATEMENT!$F$9,Table4[Customer\nالعميل])),MAX($A$1:A212)+1,0)","v":0}]
[{"$f":"IF(ISNUMBER(SEARCH(STATEMENT!$F$9,Table4[Customer\nالعميل])),MAX($A$1:A213)+1,0)","v":0}]
[{"$f":"IF(ISNUMBER(SEARCH(STATEMENT!$F$9,Table4[Customer\nالعميل])),MAX($A$1:A214)+1,0)","v":0}]
[{"$f":"IF(ISNUMBER(SEARCH(STATEMENT!$F$9,Table4[Customer\nالعميل])),MAX($A$1:A215)+1,0)","v":0}]
[{"$f":"IF(ISNUMBER(SEARCH(STATEMENT!$F$9,Table4[Customer\nالعميل])),MAX($A$1:A216)+1,0)","v":0}]
[{"$f":"IF(ISNUMBER(SEARCH(STATEMENT!$F$9,Table4[Customer\nالعميل])),MAX($A$1:A217)+1,0)","v":0}]
[{"$f":"IF(ISNUMBER(SEARCH(STATEMENT!$F$9,Table4[Customer\nالعميل])),MAX($A$1:A218)+1,0)","v":0}]
[{"$f":"IF(ISNUMBER(SEARCH(STATEMENT!$F$9,Table4[Customer\nالعميل])),MAX($A$1:A219)+1,0)","v":0}]
[{"$f":"IF(ISNUMBER(SEARCH(STATEMENT!$F$9,Table4[Customer\nالعميل])),MAX($A$1:A220)+1,0)","v":0}]
[{"$f":"IF(ISNUMBER(SEARCH(STATEMENT!$F$9,Table4[Customer\nالعميل])),MAX($A$1:A221)+1,0)","v":0}]
[{"$f":"IF(ISNUMBER(SEARCH(STATEMENT!$F$9,Table4[Customer\nالعميل])),MAX($A$1:A222)+1,0)","v":0}]
[{"$f":"IF(ISNUMBER(SEARCH(STATEMENT!$F$9,Table4[Customer\nالعميل])),MAX($A$1:A223)+1,0)","v":0}]
[{"$f":"IF(ISNUMBER(SEARCH(STATEMENT!$F$9,Table4[Customer\nالعميل])),MAX($A$1:A224)+1,0)","v":0}]
[{"$f":"IF(ISNUMBER(SEARCH(STATEMENT!$F$9,Table4[Customer\nالعميل])),MAX($A$1:A225)+1,0)","v":0}]
[{"$f":"IF(ISNUMBER(SEARCH(STATEMENT!$F$9,Table4[Customer\nالعميل])),MAX($A$1:A226)+1,0)","v":0}]
[{"$f":"IF(ISNUMBER(SEARCH(STATEMENT!$F$9,Table4[Customer\nالعميل])),MAX($A$1:A227)+1,0)","v":0}]
[{"$f":"IF(ISNUMBER(SEARCH(STATEMENT!$F$9,Table4[Customer\nالعميل])),MAX($A$1:A228)+1,0)","v":0}]
[{"$f":"IF(ISNUMBER(SEARCH(STATEMENT!$F$9,Table4[Customer\nالعميل])),MAX($A$1:A229)+1,0)","v":0}]
[{"$f":"IF(ISNUMBER(SEARCH(STATEMENT!$F$9,Table4[Customer\nالعميل])),MAX($A$1:A230)+1,0)","v":0}]
[{"$f":"IF(ISNUMBER(SEARCH(STATEMENT!$F$9,Table4[Customer\nالعميل])),MAX($A$1:A231)+1,0)","v":0}]
[{"$f":"IF(ISNUMBER(SEARCH(STATEMENT!$F$9,Table4[Customer\nالعميل])),MAX($A$1:A232)+1,0)","v":0}]
[{"$f":"IF(ISNUMBER(SEARCH(STATEMENT!$F$9,Table4[Customer\nالعميل])),MAX($A$1:A233)+1,0)","v":0}]
[{"$f":"IF(ISNUMBER(SEARCH(STATEMENT!$F$9,Table4[Customer\nالعميل])),MAX($A$1:A234)+1,0)","v":0}]
[{"$f":"IF(ISNUMBER(SEARCH(STATEMENT!$F$9,Table4[Customer\nالعميل])),MAX($A$1:A235)+1,0)","v":0}]
[{"$f":"IF(ISNUMBER(SEARCH(STATEMENT!$F$9,Table4[Customer\nالعميل])),MAX($A$1:A236)+1,0)","v":0}]
[{"$f":"IF(ISNUMBER(SEARCH(STATEMENT!$F$9,Table4[Customer\nالعميل])),MAX($A$1:A237)+1,0)","v":0}]
[{"$f":"IF(ISNUMBER(SEARCH(STATEMENT!$F$9,Table4[Customer\nالعميل])),MAX($A$1:A238)+1,0)","v":0}]
[{"$f":"IF(ISNUMBER(SEARCH(STATEMENT!$F$9,Table4[Customer\nالعميل])),MAX($A$1:A239)+1,0)","v":0}]
[{"$f":"IF(ISNUMBER(SEARCH(STATEMENT!$F$9,Table4[Customer\nالعميل])),MAX($A$1:A240)+1,0)","v":0}]
[{"$f":"IF(ISNUMBER(SEARCH(STATEMENT!$F$9,Table4[Customer\nالعميل])),MAX($A$1:A241)+1,0)","v":0}]
[{"$f":"IF(ISNUMBER(SEARCH(STATEMENT!$F$9,Table4[Customer\nالعميل])),MAX($A$1:A242)+1,0)","v":0}]
[{"$f":"IF(ISNUMBER(SEARCH(STATEMENT!$F$9,Table4[Customer\nالعميل])),MAX($A$1:A243)+1,0)","v":0}]
[{"$f":"IF(ISNUMBER(SEARCH(STATEMENT!$F$9,Table4[Customer\nالعميل])),MAX($A$1:A244)+1,0)","v":0}]
[{"$f":"IF(ISNUMBER(SEARCH(STATEMENT!$F$9,Table4[Customer\nالعميل])),MAX($A$1:A245)+1,0)","v":0}]
[{"$f":"IF(ISNUMBER(SEARCH(STATEMENT!$F$9,Table4[Customer\nالعميل])),MAX($A$1:A246)+1,0)","v":0}]
[{"$f":"IF(ISNUMBER(SEARCH(STATEMENT!$F$9,Table4[Customer\nالعميل])),MAX($A$1:A247)+1,0)","v":0}]
[{"$f":"IF(ISNUMBER(SEARCH(STATEMENT!$F$9,Table4[Customer\nالعميل])),MAX($A$1:A248)+1,0)","v":0}]
[{"$f":"IF(ISNUMBER(SEARCH(STATEMENT!$F$9,Table4[Customer\nالعميل])),MAX($A$1:A249)+1,0)","v":0}]
[{"$f":"IF(ISNUMBER(SEARCH(STATEMENT!$F$9,Table4[Customer\nالعميل])),MAX($A$1:A250)+1,0)","v":0}]
[{"$f":"IF(ISNUMBER(SEARCH(STATEMENT!$F$9,Table4[Customer\nالعميل])),MAX($A$1:A251)+1,0)","v":0}]
[{"$f":"IF(ISNUMBER(SEARCH(STATEMENT!$F$9,Table4[Customer\nالعميل])),MAX($A$1:A252)+1,0)","v":0}]
[{"$f":"IF(ISNUMBER(SEARCH(STATEMENT!$F$9,Table4[Customer\nالعميل])),MAX($A$1:A253)+1,0)","v":0}]
[{"$f":"IF(ISNUMBER(SEARCH(STATEMENT!$F$9,Table4[Customer\nالعميل])),MAX($A$1:A254)+1,0)","v":0}]
[{"$f":"IF(ISNUMBER(SEARCH(STATEMENT!$F$9,Table4[Customer\nالعميل])),MAX($A$1:A255)+1,0)","v":0}]
[{"$f":"IF(ISNUMBER(SEARCH(STATEMENT!$F$9,Table4[Customer\nالعميل])),MAX($A$1:A256)+1,0)","v":0}]
[{"$f":"IF(ISNUMBER(SEARCH(STATEMENT!$F$9,Table4[Customer\nالعميل])),MAX($A$1:A257)+1,0)","v":0}]
[{"$f":"IF(ISNUMBER(SEARCH(STATEMENT!$F$9,Table4[Customer\nالعميل])),MAX($A$1:A258)+1,0)","v":0}]
[{"$f":"IF(ISNUMBER(SEARCH(STATEMENT!$F$9,Table4[Customer\nالعميل])),MAX($A$1:A259)+1,0)","v":0}]
[{"$f":"IF(ISNUMBER(SEARCH(STATEMENT!$F$9,Table4[Customer\nالعميل])),MAX($A$1:A260)+1,0)","v":0}]
[{"$f":"IF(ISNUMBER(SEARCH(STATEMENT!$F$9,Table4[Customer\nالعميل])),MAX($A$1:A261)+1,0)","v":0}]
[{"$f":"IF(ISNUMBER(SEARCH(STATEMENT!$F$9,Table4[Customer\nالعميل])),MAX($A$1:A262)+1,0)","v":0}]
[{"$f":"IF(ISNUMBER(SEARCH(STATEMENT!$F$9,Table4[Customer\nالعميل])),MAX($A$1:A263)+1,0)","v":0}]
[{"$f":"IF(ISNUMBER(SEARCH(STATEMENT!$F$9,Table4[Customer\nالعميل])),MAX($A$1:A264)+1,0)","v":0}]
[{"$f":"IF(ISNUMBER(SEARCH(STATEMENT!$F$9,Table4[Customer\nالعميل])),MAX($A$1:A265)+1,0)","v":0}]
[{"$f":"IF(ISNUMBER(SEARCH(STATEMENT!$F$9,Table4[Customer\nالعميل])),MAX($A$1:A266)+1,0)","v":0}]
[{"$f":"IF(ISNUMBER(SEARCH(STATEMENT!$F$9,Table4[Customer\nالعميل])),MAX($A$1:A267)+1,0)","v":0}]
[{"$f":"IF(ISNUMBER(SEARCH(STATEMENT!$F$9,Table4[Customer\nالعميل])),MAX($A$1:A268)+1,0)","v":0}]
[{"$f":"IF(ISNUMBER(SEARCH(STATEMENT!$F$9,Table4[Customer\nالعميل])),MAX($A$1:A269)+1,0)","v":0}]
[{"$f":"IF(ISNUMBER(SEARCH(STATEMENT!$F$9,Table4[Customer\nالعميل])),MAX($A$1:A270)+1,0)","v":0}]
[{"$f":"IF(ISNUMBER(SEARCH(STATEMENT!$F$9,Table4[Customer\nالعميل])),MAX($A$1:A271)+1,0)","v":0}]
[{"$f":"IF(ISNUMBER(SEARCH(STATEMENT!$F$9,Table4[Customer\nالعميل])),MAX($A$1:A272)+1,0)","v":0}]
[{"$f":"IF(ISNUMBER(SEARCH(STATEMENT!$F$9,Table4[Customer\nالعميل])),MAX($A$1:A273)+1,0)","v":0}]
[{"$f":"IF(ISNUMBER(SEARCH(STATEMENT!$F$9,Table4[Customer\nالعميل])),MAX($A$1:A274)+1,0)","v":0}]
[{"$f":"IF(ISNUMBER(SEARCH(STATEMENT!$F$9,Table4[Customer\nالعميل])),MAX($A$1:A275)+1,0)","v":0}]
[{"$f":"IF(ISNUMBER(SEARCH(STATEMENT!$F$9,Table4[Customer\nالعميل])),MAX($A$1:A276)+1,0)","v":0}]
[{"$f":"IF(ISNUMBER(SEARCH(STATEMENT!$F$9,Table4[Customer\nالعميل])),MAX($A$1:A277)+1,0)","v":0}]
[{"$f":"IF(ISNUMBER(SEARCH(STATEMENT!$F$9,Table4[Customer\nالعميل])),MAX($A$1:A278)+1,0)","v":0}]
[{"$f":"IF(ISNUMBER(SEARCH(STATEMENT!$F$9,Table4[Customer\nالعميل])),MAX($A$1:A279)+1,0)","v":0}]
[{"$f":"IF(ISNUMBER(SEARCH(STATEMENT!$F$9,Table4[Customer\nالعميل])),MAX($A$1:A280)+1,0)","v":0}]
[{"$f":"IF(ISNUMBER(SEARCH(STATEMENT!$F$9,Table4[Customer\nالعميل])),MAX($A$1:A281)+1,0)","v":0}]
[{"$f":"IF(ISNUMBER(SEARCH(STATEMENT!$F$9,Table4[Customer\nالعميل])),MAX($A$1:A282)+1,0)","v":0}]
[{"$f":"IF(ISNUMBER(SEARCH(STATEMENT!$F$9,Table4[Customer\nالعميل])),MAX($A$1:A283)+1,0)","v":0}]
[{"$f":"IF(ISNUMBER(SEARCH(STATEMENT!$F$9,Table4[Customer\nالعميل])),MAX($A$1:A284)+1,0)","v":0}]
[{"$f":"IF(ISNUMBER(SEARCH(STATEMENT!$F$9,Table4[Customer\nالعميل])),MAX($A$1:A285)+1,0)","v":0}]
[{"$f":"IF(ISNUMBER(SEARCH(STATEMENT!$F$9,Table4[Customer\nالعميل])),MAX($A$1:A286)+1,0)","v":0}]
[{"$f":"IF(ISNUMBER(SEARCH(STATEMENT!$F$9,Table4[Customer\nالعميل])),MAX($A$1:A287)+1,0)","v":0}]
[{"$f":"IF(ISNUMBER(SEARCH(STATEMENT!$F$9,Table4[Customer\nالعميل])),MAX($A$1:A288)+1,0)","v":0}]
[{"$f":"IF(ISNUMBER(SEARCH(STATEMENT!$F$9,Table4[Customer\nالعميل])),MAX($A$1:A289)+1,0)","v":0}]
[{"$f":"IF(ISNUMBER(SEARCH(STATEMENT!$F$9,Table4[Customer\nالعميل])),MAX($A$1:A290)+1,0)","v":0}]
[{"$f":"IF(ISNUMBER(SEARCH(STATEMENT!$F$9,Table4[Customer\nالعميل])),MAX($A$1:A291)+1,0)","v":0}]
[{"$f":"IF(ISNUMBER(SEARCH(STATEMENT!$F$9,Table4[Customer\nالعميل])),MAX($A$1:A292)+1,0)","v":0}]
[{"$f":"IF(ISNUMBER(SEARCH(STATEMENT!$F$9,Table4[Customer\nالعميل])),MAX($A$1:A293)+1,0)","v":0}]
[{"$f":"IF(ISNUMBER(SEARCH(STATEMENT!$F$9,Table4[Customer\nالعميل])),MAX($A$1:A294)+1,0)","v":0}]
[{"$f":"IF(ISNUMBER(SEARCH(STATEMENT!$F$9,Table4[Customer\nالعميل])),MAX($A$1:A295)+1,0)","v":0}]
[{"$f":"IF(ISNUMBER(SEARCH(STATEMENT!$F$9,Table4[Customer\nالعميل])),MAX($A$1:A296)+1,0)","v":0}]
[{"$f":"IF(ISNUMBER(SEARCH(STATEMENT!$F$9,Table4[Customer\nالعميل])),MAX($A$1:A297)+1,0)","v":0}]
[{"$f":"IF(ISNUMBER(SEARCH(STATEMENT!$F$9,Table4[Customer\nالعميل])),MAX($A$1:A298)+1,0)","v":0}]
[{"$f":"IF(ISNUMBER(SEARCH(STATEMENT!$F$9,Table4[Customer\nالعميل])),MAX($A$1:A299)+1,0)","v":0}]
[{"$f":"IF(ISNUMBER(SEARCH(STATEMENT!$F$9,Table4[Customer\nالعميل])),MAX($A$1:A300)+1,0)","v":0}]
[{"$f":"IF(ISNUMBER(SEARCH(STATEMENT!$F$9,Table4[Customer\nالعميل])),MAX($A$1:A301)+1,0)","v":0}]
[{"$f":"IF(ISNUMBER(SEARCH(STATEMENT!$F$9,Table4[Customer\nالعميل])),MAX($A$1:A302)+1,0)","v":0}]
[{"$f":"IF(ISNUMBER(SEARCH(STATEMENT!$F$9,Table4[Customer\nالعميل])),MAX($A$1:A303)+1,0)","v":0}]
[{"$f":"IF(ISNUMBER(SEARCH(STATEMENT!$F$9,Table4[Customer\nالعميل])),MAX($A$1:A304)+1,0)","v":0}]
[{"$f":"IF(ISNUMBER(SEARCH(STATEMENT!$F$9,Table4[Customer\nالعميل])),MAX($A$1:A305)+1,0)","v":0}]
[{"$f":"IF(ISNUMBER(SEARCH(STATEMENT!$F$9,Table4[Customer\nالعميل])),MAX($A$1:A306)+1,0)","v":0}]
[{"$f":"IF(ISNUMBER(SEARCH(STATEMENT!$F$9,Table4[Customer\nالعميل])),MAX($A$1:A307)+1,0)","v":0}]
[{"$f":"IF(ISNUMBER(SEARCH(STATEMENT!$F$9,Table4[Customer\nالعميل])),MAX($A$1:A308)+1,0)","v":0}]
[{"$f":"IF(ISNUMBER(SEARCH(STATEMENT!$F$9,Table4[Customer\nالعميل])),MAX($A$1:A309)+1,0)","v":0}]
[{"$f":"IF(ISNUMBER(SEARCH(STATEMENT!$F$9,Table4[Customer\nالعميل])),MAX($A$1:A310)+1,0)","v":0}]
[{"$f":"IF(ISNUMBER(SEARCH(STATEMENT!$F$9,Table4[Customer\nالعميل])),MAX($A$1:A311)+1,0)","v":0}]
[{"$f":"IF(ISNUMBER(SEARCH(STATEMENT!$F$9,Table4[Customer\nالعميل])),MAX($A$1:A312)+1,0)","v":0}]
[{"$f":"IF(ISNUMBER(SEARCH(STATEMENT!$F$9,Table4[Customer\nالعميل])),MAX($A$1:A313)+1,0)","v":0}]
[{"$f":"IF(ISNUMBER(SEARCH(STATEMENT!$F$9,Table4[Customer\nالعميل])),MAX($A$1:A314)+1,0)","v":0}]
[{"$f":"IF(ISNUMBER(SEARCH(STATEMENT!$F$9,Table4[Customer\nالعميل])),MAX($A$1:A315)+1,0)","v":0}]
[{"$f":"IF(ISNUMBER(SEARCH(STATEMENT!$F$9,Table4[Customer\nالعميل])),MAX($A$1:A316)+1,0)","v":0}]
[{"$f":"IF(ISNUMBER(SEARCH(STATEMENT!$F$9,Table4[Customer\nالعميل])),MAX($A$1:A317)+1,0)","v":0}]
[{"$f":"IF(ISNUMBER(SEARCH(STATEMENT!$F$9,Table4[Customer\nالعميل])),MAX($A$1:A318)+1,0)","v":0}]
[{"$f":"IF(ISNUMBER(SEARCH(STATEMENT!$F$9,Table4[Customer\nالعميل])),MAX($A$1:A319)+1,0)","v":0}]
[{"$f":"IF(ISNUMBER(SEARCH(STATEMENT!$F$9,Table4[Customer\nالعميل])),MAX($A$1:A320)+1,0)","v":0}]
[{"$f":"IF(ISNUMBER(SEARCH(STATEMENT!$F$9,Table4[Customer\nالعميل])),MAX($A$1:A321)+1,0)","v":0}]
[{"$f":"IF(ISNUMBER(SEARCH(STATEMENT!$F$9,Table4[Customer\nالعميل])),MAX($A$1:A322)+1,0)","v":0}]
[{"$f":"IF(ISNUMBER(SEARCH(STATEMENT!$F$9,Table4[Customer\nالعميل])),MAX($A$1:A323)+1,0)","v":0}]
[{"$f":"IF(ISNUMBER(SEARCH(STATEMENT!$F$9,Table4[Customer\nالعميل])),MAX($A$1:A324)+1,0)","v":0}]
[{"$f":"IF(ISNUMBER(SEARCH(STATEMENT!$F$9,Table4[Customer\nالعميل])),MAX($A$1:A325)+1,0)","v":0}]
[{"$f":"IF(ISNUMBER(SEARCH(STATEMENT!$F$9,Table4[Customer\nالعميل])),MAX($A$1:A326)+1,0)","v":0}]
[{"$f":"IF(ISNUMBER(SEARCH(STATEMENT!$F$9,Table4[Customer\nالعميل])),MAX($A$1:A327)+1,0)","v":0}]
[{"$f":"IF(ISNUMBER(SEARCH(STATEMENT!$F$9,Table4[Customer\nالعميل])),MAX($A$1:A328)+1,0)","v":0}]
[{"$f":"IF(ISNUMBER(SEARCH(STATEMENT!$F$9,Table4[Customer\nالعميل])),MAX($A$1:A329)+1,0)","v":0}]
[{"$f":"IF(ISNUMBER(SEARCH(STATEMENT!$F$9,Table4[Customer\nالعميل])),MAX($A$1:A330)+1,0)","v":0}]
[{"$f":"IF(ISNUMBER(SEARCH(STATEMENT!$F$9,Table4[Customer\nالعميل])),MAX($A$1:A331)+1,0)","v":0}]
[{"$f":"IF(ISNUMBER(SEARCH(STATEMENT!$F$9,Table4[Customer\nالعميل])),MAX($A$1:A332)+1,0)","v":0}]
[{"$f":"IF(ISNUMBER(SEARCH(STATEMENT!$F$9,Table4[Customer\nالعميل])),MAX($A$1:A333)+1,0)","v":0}]
[{"$f":"IF(ISNUMBER(SEARCH(STATEMENT!$F$9,Table4[Customer\nالعميل])),MAX($A$1:A334)+1,0)","v":0}]
[{"$f":"IF(ISNUMBER(SEARCH(STATEMENT!$F$9,Table4[Customer\nالعميل])),MAX($A$1:A335)+1,0)","v":0}]
[{"$f":"IF(ISNUMBER(SEARCH(STATEMENT!$F$9,Table4[Customer\nالعميل])),MAX($A$1:A336)+1,0)","v":0}]
[{"$f":"IF(ISNUMBER(SEARCH(STATEMENT!$F$9,Table4[Customer\nالعميل])),MAX($A$1:A337)+1,0)","v":0}]
[{"$f":"IF(ISNUMBER(SEARCH(STATEMENT!$F$9,Table4[Customer\nالعميل])),MAX($A$1:A338)+1,0)","v":0}]
[{"$f":"IF(ISNUMBER(SEARCH(STATEMENT!$F$9,Table4[Customer\nالعميل])),MAX($A$1:A339)+1,0)","v":0}]
[{"$f":"IF(ISNUMBER(SEARCH(STATEMENT!$F$9,Table4[Customer\nالعميل])),MAX($A$1:A340)+1,0)","v":0}]
[{"$f":"IF(ISNUMBER(SEARCH(STATEMENT!$F$9,Table4[Customer\nالعميل])),MAX($A$1:A341)+1,0)","v":0}]
[{"$f":"IF(ISNUMBER(SEARCH(STATEMENT!$F$9,Table4[Customer\nالعميل])),MAX($A$1:A342)+1,0)","v":0}]
[{"$f":"IF(ISNUMBER(SEARCH(STATEMENT!$F$9,Table4[Customer\nالعميل])),MAX($A$1:A343)+1,0)","v":0}]
[{"$f":"IF(ISNUMBER(SEARCH(STATEMENT!$F$9,Table4[Customer\nالعميل])),MAX($A$1:A344)+1,0)","v":0}]
[{"$f":"IF(ISNUMBER(SEARCH(STATEMENT!$F$9,Table4[Customer\nالعميل])),MAX($A$1:A345)+1,0)","v":0}]
[{"$f":"IF(ISNUMBER(SEARCH(STATEMENT!$F$9,Table4[Customer\nالعميل])),MAX($A$1:A346)+1,0)","v":0}]
[{"$f":"IF(ISNUMBER(SEARCH(STATEMENT!$F$9,Table4[Customer\nالعميل])),MAX($A$1:A347)+1,0)","v":0}]
[{"$f":"IF(ISNUMBER(SEARCH(STATEMENT!$F$9,Table4[Customer\nالعميل])),MAX($A$1:A348)+1,0)","v":0}]
[{"$f":"IF(ISNUMBER(SEARCH(STATEMENT!$F$9,Table4[Customer\nالعميل])),MAX($A$1:A349)+1,0)","v":0}]
[{"$f":"IF(ISNUMBER(SEARCH(STATEMENT!$F$9,Table4[Customer\nالعميل])),MAX($A$1:A350)+1,0)","v":0}]
[{"$f":"IF(ISNUMBER(SEARCH(STATEMENT!$F$9,Table4[Customer\nالعميل])),MAX($A$1:A351)+1,0)","v":0}]
[{"$f":"IF(ISNUMBER(SEARCH(STATEMENT!$F$9,Table4[Customer\nالعميل])),MAX($A$1:A352)+1,0)","v":0}]
[{"$f":"IF(ISNUMBER(SEARCH(STATEMENT!$F$9,Table4[Customer\nالعميل])),MAX($A$1:A353)+1,0)","v":0}]
[{"$f":"IF(ISNUMBER(SEARCH(STATEMENT!$F$9,Table4[Customer\nالعميل])),MAX($A$1:A354)+1,0)","v":0}]
[{"$f":"IF(ISNUMBER(SEARCH(STATEMENT!$F$9,Table4[Customer\nالعميل])),MAX($A$1:A355)+1,0)","v":0}]
[{"$f":"IF(ISNUMBER(SEARCH(STATEMENT!$F$9,Table4[Customer\nالعميل])),MAX($A$1:A356)+1,0)","v":0}]
[{"$f":"IF(ISNUMBER(SEARCH(STATEMENT!$F$9,Table4[Customer\nالعميل])),MAX($A$1:A357)+1,0)","v":0}]
[{"$f":"IF(ISNUMBER(SEARCH(STATEMENT!$F$9,Table4[Customer\nالعميل])),MAX($A$1:A358)+1,0)","v":0}]
[{"$f":"IF(ISNUMBER(SEARCH(STATEMENT!$F$9,Table4[Customer\nالعميل])),MAX($A$1:A359)+1,0)","v":0}]
[{"$f":"IF(ISNUMBER(SEARCH(STATEMENT!$F$9,Table4[Customer\nالعميل])),MAX($A$1:A360)+1,0)","v":0}]
[{"$f":"IF(ISNUMBER(SEARCH(STATEMENT!$F$9,Table4[Customer\nالعميل])),MAX($A$1:A361)+1,0)","v":0}]
[{"$f":"IF(ISNUMBER(SEARCH(STATEMENT!$F$9,Table4[Customer\nالعميل])),MAX($A$1:A362)+1,0)","v":0}]
[{"$f":"IF(ISNUMBER(SEARCH(STATEMENT!$F$9,Table4[Customer\nالعميل])),MAX($A$1:A363)+1,0)","v":0}]
[{"$f":"IF(ISNUMBER(SEARCH(STATEMENT!$F$9,Table4[Customer\nالعميل])),MAX($A$1:A364)+1,0)","v":0}]
[{"$f":"IF(ISNUMBER(SEARCH(STATEMENT!$F$9,Table4[Customer\nالعميل])),MAX($A$1:A365)+1,0)","v":0}]
[{"$f":"IF(ISNUMBER(SEARCH(STATEMENT!$F$9,Table4[Customer\nالعميل])),MAX($A$1:A366)+1,0)","v":0}]
[{"$f":"IF(ISNUMBER(SEARCH(STATEMENT!$F$9,Table4[Customer\nالعميل])),MAX($A$1:A367)+1,0)","v":0}]
[{"$f":"IF(ISNUMBER(SEARCH(STATEMENT!$F$9,Table4[Customer\nالعميل])),MAX($A$1:A368)+1,0)","v":0}]
[{"$f":"IF(ISNUMBER(SEARCH(STATEMENT!$F$9,Table4[Customer\nالعميل])),MAX($A$1:A369)+1,0)","v":0}]
[{"$f":"IF(ISNUMBER(SEARCH(STATEMENT!$F$9,Table4[Customer\nالعميل])),MAX($A$1:A370)+1,0)","v":0}]
[{"$f":"IF(ISNUMBER(SEARCH(STATEMENT!$F$9,Table4[Customer\nالعميل])),MAX($A$1:A371)+1,0)","v":0}]
[{"$f":"IF(ISNUMBER(SEARCH(STATEMENT!$F$9,Table4[Customer\nالعميل])),MAX($A$1:A372)+1,0)","v":0}]
[{"$f":"IF(ISNUMBER(SEARCH(STATEMENT!$F$9,Table4[Customer\nالعميل])),MAX($A$1:A373)+1,0)","v":0}]
[{"$f":"IF(ISNUMBER(SEARCH(STATEMENT!$F$9,Table4[Customer\nالعميل])),MAX($A$1:A374)+1,0)","v":0}]
[{"$f":"IF(ISNUMBER(SEARCH(STATEMENT!$F$9,Table4[Customer\nالعميل])),MAX($A$1:A375)+1,0)","v":0}]
[{"$f":"IF(ISNUMBER(SEARCH(STATEMENT!$F$9,Table4[Customer\nالعميل])),MAX($A$1:A376)+1,0)","v":0}]
[{"$f":"IF(ISNUMBER(SEARCH(STATEMENT!$F$9,Table4[Customer\nالعميل])),MAX($A$1:A377)+1,0)","v":0}]
[{"$f":"IF(ISNUMBER(SEARCH(STATEMENT!$F$9,Table4[Customer\nالعميل])),MAX($A$1:A378)+1,0)","v":0}]
[{"$f":"IF(ISNUMBER(SEARCH(STATEMENT!$F$9,Table4[Customer\nالعميل])),MAX($A$1:A379)+1,0)","v":0}]
[{"$f":"IF(ISNUMBER(SEARCH(STATEMENT!$F$9,Table4[Customer\nالعميل])),MAX($A$1:A380)+1,0)","v":0}]
[{"$f":"IF(ISNUMBER(SEARCH(STATEMENT!$F$9,Table4[Customer\nالعميل])),MAX($A$1:A381)+1,0)","v":0}]
[{"$f":"IF(ISNUMBER(SEARCH(STATEMENT!$F$9,Table4[Customer\nالعميل])),MAX($A$1:A382)+1,0)","v":0}]
[{"$f":"IF(ISNUMBER(SEARCH(STATEMENT!$F$9,Table4[Customer\nالعميل])),MAX($A$1:A383)+1,0)","v":0}]
[{"$f":"IF(ISNUMBER(SEARCH(STATEMENT!$F$9,Table4[Customer\nالعميل])),MAX($A$1:A384)+1,0)","v":0}]
[{"$f":"IF(ISNUMBER(SEARCH(STATEMENT!$F$9,Table4[Customer\nالعميل])),MAX($A$1:A385)+1,0)","v":0}]
[{"$f":"IF(ISNUMBER(SEARCH(STATEMENT!$F$9,Table4[Customer\nالعميل])),MAX($A$1:A386)+1,0)","v":0}]
[{"$f":"IF(ISNUMBER(SEARCH(STATEMENT!$F$9,Table4[Customer\nالعميل])),MAX($A$1:A387)+1,0)","v":0}]
[{"$f":"IF(ISNUMBER(SEARCH(STATEMENT!$F$9,Table4[Customer\nالعميل])),MAX($A$1:A388)+1,0)","v":0}]
[{"$f":"IF(ISNUMBER(SEARCH(STATEMENT!$F$9,Table4[Customer\nالعميل])),MAX($A$1:A389)+1,0)","v":0}]
[{"$f":"IF(ISNUMBER(SEARCH(STATEMENT!$F$9,Table4[Customer\nالعميل])),MAX($A$1:A390)+1,0)","v":0}]
[{"$f":"IF(ISNUMBER(SEARCH(STATEMENT!$F$9,Table4[Customer\nالعميل])),MAX($A$1:A391)+1,0)","v":0}]
[{"$f":"IF(ISNUMBER(SEARCH(STATEMENT!$F$9,Table4[Customer\nالعميل])),MAX($A$1:A392)+1,0)","v":0}]
[{"$f":"IF(ISNUMBER(SEARCH(STATEMENT!$F$9,Table4[Customer\nالعميل])),MAX($A$1:A393)+1,0)","v":0}]
[{"$f":"IF(ISNUMBER(SEARCH(STATEMENT!$F$9,Table4[Customer\nالعميل])),MAX($A$1:A394)+1,0)","v":0}]
[{"$f":"IF(ISNUMBER(SEARCH(STATEMENT!$F$9,Table4[Customer\nالعميل])),MAX($A$1:A395)+1,0)","v":0}]
[{"$f":"IF(ISNUMBER(SEARCH(STATEMENT!$F$9,Table4[Customer\nالعميل])),MAX($A$1:A396)+1,0)","v":0}]
[{"$f":"IF(ISNUMBER(SEARCH(STATEMENT!$F$9,Table4[Customer\nالعميل])),MAX($A$1:A397)+1,0)","v":0}]
[{"$f":"IF(ISNUMBER(SEARCH(STATEMENT!$F$9,Table4[Customer\nالعميل])),MAX($A$1:A398)+1,0)","v":0}]
[{"$f":"IF(ISNUMBER(SEARCH(STATEMENT!$F$9,Table4[Customer\nالعميل])),MAX($A$1:A399)+1,0)","v":0}]
[{"$f":"IF(ISNUMBER(SEARCH(STATEMENT!$F$9,Table4[Customer\nالعميل])),MAX($A$1:A400)+1,0)","v":0}]
[{"$f":"IF(ISNUMBER(SEARCH(STATEMENT!$F$9,Table4[Customer\nالعميل])),MAX($A$1:A401)+1,0)","v":0}]
[{"$f":"IF(ISNUMBER(SEARCH(STATEMENT!$F$9,Table4[Customer\nالعميل])),MAX($A$1:A402)+1,0)","v":0}]
[{"$f":"IF(ISNUMBER(SEARCH(STATEMENT!$F$9,Table4[Customer\nالعميل])),MAX($A$1:A403)+1,0)","v":0}]
[{"$f":"IF(ISNUMBER(SEARCH(STATEMENT!$F$9,Table4[Customer\nالعميل])),MAX($A$1:A404)+1,0)","v":0}]
[{"$f":"IF(ISNUMBER(SEARCH(STATEMENT!$F$9,Table4[Customer\nالعميل])),MAX($A$1:A405)+1,0)","v":0}]
[{"$f":"IF(ISNUMBER(SEARCH(STATEMENT!$F$9,Table4[Customer\nالعميل])),MAX($A$1:A406)+1,0)","v":0}]
[{"$f":"IF(ISNUMBER(SEARCH(STATEMENT!$F$9,Table4[Customer\nالعميل])),MAX($A$1:A407)+1,0)","v":0}]
[{"$f":"IF(ISNUMBER(SEARCH(STATEMENT!$F$9,Table4[Customer\nالعميل])),MAX($A$1:A408)+1,0)","v":0}]
[{"$f":"IF(ISNUMBER(SEARCH(STATEMENT!$F$9,Table4[Customer\nالعميل])),MAX($A$1:A409)+1,0)","v":0}]
[{"$f":"IF(ISNUMBER(SEARCH(STATEMENT!$F$9,Table4[Customer\nالعميل])),MAX($A$1:A410)+1,0)","v":0}]
[{"$f":"IF(ISNUMBER(SEARCH(STATEMENT!$F$9,Table4[Customer\nالعميل])),MAX($A$1:A411)+1,0)","v":0}]
[{"$f":"IF(ISNUMBER(SEARCH(STATEMENT!$F$9,Table4[Customer\nالعميل])),MAX($A$1:A412)+1,0)","v":0}]
[{"$f":"IF(ISNUMBER(SEARCH(STATEMENT!$F$9,Table4[Customer\nالعميل])),MAX($A$1:A413)+1,0)","v":0}]
[{"$f":"IF(ISNUMBER(SEARCH(STATEMENT!$F$9,Table4[Customer\nالعميل])),MAX($A$1:A414)+1,0)","v":0}]
[{"$f":"IF(ISNUMBER(SEARCH(STATEMENT!$F$9,Table4[Customer\nالعميل])),MAX($A$1:A415)+1,0)","v":0}]
[{"$f":"IF(ISNUMBER(SEARCH(STATEMENT!$F$9,Table4[Customer\nالعميل])),MAX($A$1:A416)+1,0)","v":0}]
[{"$f":"IF(ISNUMBER(SEARCH(STATEMENT!$F$9,Table4[Customer\nالعميل])),MAX($A$1:A417)+1,0)","v":0}]
[{"$f":"IF(ISNUMBER(SEARCH(STATEMENT!$F$9,Table4[Customer\nالعميل])),MAX($A$1:A418)+1,0)","v":0}]
[{"$f":"IF(ISNUMBER(SEARCH(STATEMENT!$F$9,Table4[Customer\nالعميل])),MAX($A$1:A419)+1,0)","v":0}]
[{"$f":"IF(ISNUMBER(SEARCH(STATEMENT!$F$9,Table4[Customer\nالعميل])),MAX($A$1:A420)+1,0)","v":0}]
[{"$f":"IF(ISNUMBER(SEARCH(STATEMENT!$F$9,Table4[Customer\nالعميل])),MAX($A$1:A421)+1,0)","v":0}]
[{"$f":"IF(ISNUMBER(SEARCH(STATEMENT!$F$9,Table4[Customer\nالعميل])),MAX($A$1:A422)+1,0)","v":0}]
[{"$f":"IF(ISNUMBER(SEARCH(STATEMENT!$F$9,Table4[Customer\nالعميل])),MAX($A$1:A423)+1,0)","v":0}]
[{"$f":"IF(ISNUMBER(SEARCH(STATEMENT!$F$9,Table4[Customer\nالعميل])),MAX($A$1:A424)+1,0)","v":0}]
[{"$f":"IF(ISNUMBER(SEARCH(STATEMENT!$F$9,Table4[Customer\nالعميل])),MAX($A$1:A425)+1,0)","v":0}]
[{"$f":"IF(ISNUMBER(SEARCH(STATEMENT!$F$9,Table4[Customer\nالعميل])),MAX($A$1:A426)+1,0)","v":0}]
[{"$f":"IF(ISNUMBER(SEARCH(STATEMENT!$F$9,Table4[Customer\nالعميل])),MAX($A$1:A427)+1,0)","v":0}]
[{"$f":"IF(ISNUMBER(SEARCH(STATEMENT!$F$9,Table4[Customer\nالعميل])),MAX($A$1:A428)+1,0)","v":0}]
[{"$f":"IF(ISNUMBER(SEARCH(STATEMENT!$F$9,Table4[Customer\nالعميل])),MAX($A$1:A429)+1,0)","v":0}]
[{"$f":"IF(ISNUMBER(SEARCH(STATEMENT!$F$9,Table4[Customer\nالعميل])),MAX($A$1:A430)+1,0)","v":0}]
[{"$f":"IF(ISNUMBER(SEARCH(STATEMENT!$F$9,Table4[Customer\nالعميل])),MAX($A$1:A431)+1,0)","v":0}]
[{"$f":"IF(ISNUMBER(SEARCH(STATEMENT!$F$9,Table4[Customer\nالعميل])),MAX($A$1:A432)+1,0)","v":0}]
[{"$f":"IF(ISNUMBER(SEARCH(STATEMENT!$F$9,Table4[Customer\nالعميل])),MAX($A$1:A433)+1,0)","v":0}]
[{"$f":"IF(ISNUMBER(SEARCH(STATEMENT!$F$9,Table4[Customer\nالعميل])),MAX($A$1:A434)+1,0)","v":0}]
[{"$f":"IF(ISNUMBER(SEARCH(STATEMENT!$F$9,Table4[Customer\nالعميل])),MAX($A$1:A435)+1,0)","v":0}]
[{"$f":"IF(ISNUMBER(SEARCH(STATEMENT!$F$9,Table4[Customer\nالعميل])),MAX($A$1:A436)+1,0)","v":0}]
[{"$f":"IF(ISNUMBER(SEARCH(STATEMENT!$F$9,Table4[Customer\nالعميل])),MAX($A$1:A437)+1,0)","v":0}]
[{"$f":"IF(ISNUMBER(SEARCH(STATEMENT!$F$9,Table4[Customer\nالعميل])),MAX($A$1:A438)+1,0)","v":0}]
[{"$f":"IF(ISNUMBER(SEARCH(STATEMENT!$F$9,Table4[Customer\nالعميل])),MAX($A$1:A439)+1,0)","v":0}]
[{"$f":"IF(ISNUMBER(SEARCH(STATEMENT!$F$9,Table4[Customer\nالعميل])),MAX($A$1:A440)+1,0)","v":0}]
[{"$f":"IF(ISNUMBER(SEARCH(STATEMENT!$F$9,Table4[Customer\nالعميل])),MAX($A$1:A441)+1,0)","v":0}]
[{"$f":"IF(ISNUMBER(SEARCH(STATEMENT!$F$9,Table4[Customer\nالعميل])),MAX($A$1:A442)+1,0)","v":0}]
[{"$f":"IF(ISNUMBER(SEARCH(STATEMENT!$F$9,Table4[Customer\nالعميل])),MAX($A$1:A443)+1,0)","v":0}]
[{"$f":"IF(ISNUMBER(SEARCH(STATEMENT!$F$9,Table4[Customer\nالعميل])),MAX($A$1:A444)+1,0)","v":0}]
[{"$f":"IF(ISNUMBER(SEARCH(STATEMENT!$F$9,Table4[Customer\nالعميل])),MAX($A$1:A445)+1,0)","v":0}]
[{"$f":"IF(ISNUMBER(SEARCH(STATEMENT!$F$9,Table4[Customer\nالعميل])),MAX($A$1:A446)+1,0)","v":0}]
[{"$f":"IF(ISNUMBER(SEARCH(STATEMENT!$F$9,Table4[Customer\nالعميل])),MAX($A$1:A447)+1,0)","v":0}]
[{"$f":"IF(ISNUMBER(SEARCH(STATEMENT!$F$9,Table4[Customer\nالعميل])),MAX($A$1:A448)+1,0)","v":0}]
[{"$f":"IF(ISNUMBER(SEARCH(STATEMENT!$F$9,Table4[Customer\nالعميل])),MAX($A$1:A449)+1,0)","v":0}]
[{"$f":"IF(ISNUMBER(SEARCH(STATEMENT!$F$9,Table4[Customer\nالعميل])),MAX($A$1:A450)+1,0)","v":0}]
[{"$f":"IF(ISNUMBER(SEARCH(STATEMENT!$F$9,Table4[Customer\nالعميل])),MAX($A$1:A451)+1,0)","v":0}]
[{"$f":"IF(ISNUMBER(SEARCH(STATEMENT!$F$9,Table4[Customer\nالعميل])),MAX($A$1:A452)+1,0)","v":0}]
[{"$f":"IF(ISNUMBER(SEARCH(STATEMENT!$F$9,Table4[Customer\nالعميل])),MAX($A$1:A453)+1,0)","v":0}]
[{"$f":"IF(ISNUMBER(SEARCH(STATEMENT!$F$9,Table4[Customer\nالعميل])),MAX($A$1:A454)+1,0)","v":0}]
[{"$f":"IF(ISNUMBER(SEARCH(STATEMENT!$F$9,Table4[Customer\nالعميل])),MAX($A$1:A455)+1,0)","v":0}]
[{"$f":"IF(ISNUMBER(SEARCH(STATEMENT!$F$9,Table4[Customer\nالعميل])),MAX($A$1:A456)+1,0)","v":0}]
[{"$f":"IF(ISNUMBER(SEARCH(STATEMENT!$F$9,Table4[Customer\nالعميل])),MAX($A$1:A457)+1,0)","v":0}]
[{"$f":"IF(ISNUMBER(SEARCH(STATEMENT!$F$9,Table4[Customer\nالعميل])),MAX($A$1:A458)+1,0)","v":0}]
[{"$f":"IF(ISNUMBER(SEARCH(STATEMENT!$F$9,Table4[Customer\nالعميل])),MAX($A$1:A459)+1,0)","v":0}]
[{"$f":"IF(ISNUMBER(SEARCH(STATEMENT!$F$9,Table4[Customer\nالعميل])),MAX($A$1:A460)+1,0)","v":0}]
[{"$f":"IF(ISNUMBER(SEARCH(STATEMENT!$F$9,Table4[Customer\nالعميل])),MAX($A$1:A461)+1,0)","v":0}]
[{"$f":"IF(ISNUMBER(SEARCH(STATEMENT!$F$9,Table4[Customer\nالعميل])),MAX($A$1:A462)+1,0)","v":0}]
[{"$f":"IF(ISNUMBER(SEARCH(STATEMENT!$F$9,Table4[Customer\nالعميل])),MAX($A$1:A463)+1,0)","v":0}]
[{"$f":"IF(ISNUMBER(SEARCH(STATEMENT!$F$9,Table4[Customer\nالعميل])),MAX($A$1:A464)+1,0)","v":0}]
[{"$f":"IF(ISNUMBER(SEARCH(STATEMENT!$F$9,Table4[Customer\nالعميل])),MAX($A$1:A465)+1,0)","v":0}]
[{"$f":"IF(ISNUMBER(SEARCH(STATEMENT!$F$9,Table4[Customer\nالعميل])),MAX($A$1:A466)+1,0)","v":0}]
[{"$f":"IF(ISNUMBER(SEARCH(STATEMENT!$F$9,Table4[Customer\nالعميل])),MAX($A$1:A467)+1,0)","v":0}]
[{"$f":"IF(ISNUMBER(SEARCH(STATEMENT!$F$9,Table4[Customer\nالعميل])),MAX($A$1:A468)+1,0)","v":0}]
[{"$f":"IF(ISNUMBER(SEARCH(STATEMENT!$F$9,Table4[Customer\nالعميل])),MAX($A$1:A469)+1,0)","v":0}]
[{"$f":"IF(ISNUMBER(SEARCH(STATEMENT!$F$9,Table4[Customer\nالعميل])),MAX($A$1:A470)+1,0)","v":0}]
[{"$f":"IF(ISNUMBER(SEARCH(STATEMENT!$F$9,Table4[Customer\nالعميل])),MAX($A$1:A471)+1,0)","v":0}]
[{"$f":"IF(ISNUMBER(SEARCH(STATEMENT!$F$9,Table4[Customer\nالعميل])),MAX($A$1:A472)+1,0)","v":0}]
[{"$f":"IF(ISNUMBER(SEARCH(STATEMENT!$F$9,Table4[Customer\nالعميل])),MAX($A$1:A473)+1,0)","v":0}]
[{"$f":"IF(ISNUMBER(SEARCH(STATEMENT!$F$9,Table4[Customer\nالعميل])),MAX($A$1:A474)+1,0)","v":0}]
[{"$f":"IF(ISNUMBER(SEARCH(STATEMENT!$F$9,Table4[Customer\nالعميل])),MAX($A$1:A475)+1,0)","v":0}]
[{"$f":"IF(ISNUMBER(SEARCH(STATEMENT!$F$9,Table4[Customer\nالعميل])),MAX($A$1:A476)+1,0)","v":0}]
[{"$f":"IF(ISNUMBER(SEARCH(STATEMENT!$F$9,Table4[Customer\nالعميل])),MAX($A$1:A477)+1,0)","v":0}]
[{"$f":"IF(ISNUMBER(SEARCH(STATEMENT!$F$9,Table4[Customer\nالعميل])),MAX($A$1:A478)+1,0)","v":0}]
[{"$f":"IF(ISNUMBER(SEARCH(STATEMENT!$F$9,Table4[Customer\nالعميل])),MAX($A$1:A479)+1,0)","v":0}]
[{"$f":"IF(ISNUMBER(SEARCH(STATEMENT!$F$9,Table4[Customer\nالعميل])),MAX($A$1:A480)+1,0)","v":0}]
[{"$f":"IF(ISNUMBER(SEARCH(STATEMENT!$F$9,Table4[Customer\nالعميل])),MAX($A$1:A481)+1,0)","v":0}]
[{"$f":"IF(ISNUMBER(SEARCH(STATEMENT!$F$9,Table4[Customer\nالعميل])),MAX($A$1:A482)+1,0)","v":0}]
[{"$f":"IF(ISNUMBER(SEARCH(STATEMENT!$F$9,Table4[Customer\nالعميل])),MAX($A$1:A483)+1,0)","v":0}]
[{"$f":"IF(ISNUMBER(SEARCH(STATEMENT!$F$9,Table4[Customer\nالعميل])),MAX($A$1:A484)+1,0)","v":0}]
[{"$f":"IF(ISNUMBER(SEARCH(STATEMENT!$F$9,Table4[Customer\nالعميل])),MAX($A$1:A485)+1,0)","v":0}]
[{"$f":"IF(ISNUMBER(SEARCH(STATEMENT!$F$9,Table4[Customer\nالعميل])),MAX($A$1:A486)+1,0)","v":0}]
[{"$f":"IF(ISNUMBER(SEARCH(STATEMENT!$F$9,Table4[Customer\nالعميل])),MAX($A$1:A487)+1,0)","v":0}]
[{"$f":"IF(ISNUMBER(SEARCH(STATEMENT!$F$9,Table4[Customer\nالعميل])),MAX($A$1:A488)+1,0)","v":0}]
[{"$f":"IF(ISNUMBER(SEARCH(STATEMENT!$F$9,Table4[Customer\nالعميل])),MAX($A$1:A489)+1,0)","v":0}]
[{"$f":"IF(ISNUMBER(SEARCH(STATEMENT!$F$9,Table4[Customer\nالعميل])),MAX($A$1:A490)+1,0)","v":0}]
[{"$f":"IF(ISNUMBER(SEARCH(STATEMENT!$F$9,Table4[Customer\nالعميل])),MAX($A$1:A491)+1,0)","v":0}]
[{"$f":"IF(ISNUMBER(SEARCH(STATEMENT!$F$9,Table4[Customer\nالعميل])),MAX($A$1:A492)+1,0)","v":0}]
[{"$f":"IF(ISNUMBER(SEARCH(STATEMENT!$F$9,Table4[Customer\nالعميل])),MAX($A$1:A493)+1,0)","v":0}]
[{"$f":"IF(ISNUMBER(SEARCH(STATEMENT!$F$9,Table4[Customer\nالعميل])),MAX($A$1:A494)+1,0)","v":0}]
[{"$f":"IF(ISNUMBER(SEARCH(STATEMENT!$F$9,Table4[Customer\nالعميل])),MAX($A$1:A495)+1,0)","v":0}]
[{"$f":"IF(ISNUMBER(SEARCH(STATEMENT!$F$9,Table4[Customer\nالعميل])),MAX($A$1:A496)+1,0)","v":0}]
[{"$f":"IF(ISNUMBER(SEARCH(STATEMENT!$F$9,Table4[Customer\nالعميل])),MAX($A$1:A497)+1,0)","v":0}]
[{"$f":"IF(ISNUMBER(SEARCH(STATEMENT!$F$9,Table4[Customer\nالعميل])),MAX($A$1:A498)+1,0)","v":0}]
[{"$f":"IF(ISNUMBER(SEARCH(STATEMENT!$F$9,Table4[Customer\nالعميل])),MAX($A$1:A499)+1,0)","v":0}]
[{"$f":"IF(ISNUMBER(SEARCH(STATEMENT!$F$9,Table4[Customer\nالعميل])),MAX($A$1:A500)+1,0)","v":0}]
[{"$f":"IF(ISNUMBER(SEARCH(STATEMENT!$F$9,Table4[Customer\nالعميل])),MAX($A$1:A501)+1,0)","v":0}]
[{"$f":"IF(ISNUMBER(SEARCH(STATEMENT!$F$9,Table4[Customer\nالعميل])),MAX($A$1:A502)+1,0)","v":0}]
[{"$f":"IF(ISNUMBER(SEARCH(STATEMENT!$F$9,Table4[Customer\nالعميل])),MAX($A$1:A503)+1,0)","v":0}]
[{"$f":"IF(ISNUMBER(SEARCH(STATEMENT!$F$9,Table4[Customer\nالعميل])),MAX($A$1:A504)+1,0)","v":0}]
[{"$f":"IF(ISNUMBER(SEARCH(STATEMENT!$F$9,Table4[Customer\nالعميل])),MAX($A$1:A505)+1,0)","v":0}]
[{"$f":"IF(ISNUMBER(SEARCH(STATEMENT!$F$9,Table4[Customer\nالعميل])),MAX($A$1:A506)+1,0)","v":0}]
[{"$f":"IF(ISNUMBER(SEARCH(STATEMENT!$F$9,Table4[Customer\nالعميل])),MAX($A$1:A507)+1,0)","v":0}]
[{"$f":"IF(ISNUMBER(SEARCH(STATEMENT!$F$9,Table4[Customer\nالعميل])),MAX($A$1:A508)+1,0)","v":0}]
[{"$f":"IF(ISNUMBER(SEARCH(STATEMENT!$F$9,Table4[Customer\nالعميل])),MAX($A$1:A509)+1,0)","v":0}]
[{"$f":"IF(ISNUMBER(SEARCH(STATEMENT!$F$9,Table4[Customer\nالعميل])),MAX($A$1:A510)+1,0)","v":0}]
[{"$f":"IF(ISNUMBER(SEARCH(STATEMENT!$F$9,Table4[Customer\nالعميل])),MAX($A$1:A511)+1,0)","v":0}]
[{"$f":"IF(ISNUMBER(SEARCH(STATEMENT!$F$9,Table4[Customer\nالعميل])),MAX($A$1:A512)+1,0)","v":0}]
[{"$f":"IF(ISNUMBER(SEARCH(STATEMENT!$F$9,Table4[Customer\nالعميل])),MAX($A$1:A513)+1,0)","v":0}]
[{"$f":"IF(ISNUMBER(SEARCH(STATEMENT!$F$9,Table4[Customer\nالعميل])),MAX($A$1:A514)+1,0)","v":0}]
[{"$f":"IF(ISNUMBER(SEARCH(STATEMENT!$F$9,Table4[Customer\nالعميل])),MAX($A$1:A515)+1,0)","v":0}]
[{"$f":"IF(ISNUMBER(SEARCH(STATEMENT!$F$9,Table4[Customer\nالعميل])),MAX($A$1:A516)+1,0)","v":0}]
[{"$f":"IF(ISNUMBER(SEARCH(STATEMENT!$F$9,Table4[Customer\nالعميل])),MAX($A$1:A517)+1,0)","v":0}]
[{"$f":"IF(ISNUMBER(SEARCH(STATEMENT!$F$9,Table4[Customer\nالعميل])),MAX($A$1:A518)+1,0)","v":0}]
[{"$f":"IF(ISNUMBER(SEARCH(STATEMENT!$F$9,Table4[Customer\nالعميل])),MAX($A$1:A519)+1,0)","v":0}]
[{"$f":"IF(ISNUMBER(SEARCH(STATEMENT!$F$9,Table4[Customer\nالعميل])),MAX($A$1:A520)+1,0)","v":0}]
[{"$f":"IF(ISNUMBER(SEARCH(STATEMENT!$F$9,Table4[Customer\nالعميل])),MAX($A$1:A521)+1,0)","v":0}]
[{"$f":"IF(ISNUMBER(SEARCH(STATEMENT!$F$9,Table4[Customer\nالعميل])),MAX($A$1:A522)+1,0)","v":0}]
[{"$f":"IF(ISNUMBER(SEARCH(STATEMENT!$F$9,Table4[Customer\nالعميل])),MAX($A$1:A523)+1,0)","v":0}]
[{"$f":"IF(ISNUMBER(SEARCH(STATEMENT!$F$9,Table4[Customer\nالعميل])),MAX($A$1:A524)+1,0)","v":0}]
[{"$f":"IF(ISNUMBER(SEARCH(STATEMENT!$F$9,Table4[Customer\nالعميل])),MAX($A$1:A525)+1,0)","v":0}]
[{"$f":"IF(ISNUMBER(SEARCH(STATEMENT!$F$9,Table4[Customer\nالعميل])),MAX($A$1:A526)+1,0)","v":0}]
[{"$f":"IF(ISNUMBER(SEARCH(STATEMENT!$F$9,Table4[Customer\nالعميل])),MAX($A$1:A527)+1,0)","v":0}]
[{"$f":"IF(ISNUMBER(SEARCH(STATEMENT!$F$9,Table4[Customer\nالعميل])),MAX($A$1:A528)+1,0)","v":0}]
[{"$f":"IF(ISNUMBER(SEARCH(STATEMENT!$F$9,Table4[Customer\nالعميل])),MAX($A$1:A529)+1,0)","v":0}]
[{"$f":"IF(ISNUMBER(SEARCH(STATEMENT!$F$9,Table4[Customer\nالعميل])),MAX($A$1:A530)+1,0)","v":0}]
[{"$f":"IF(ISNUMBER(SEARCH(STATEMENT!$F$9,Table4[Customer\nالعميل])),MAX($A$1:A531)+1,0)","v":0}]
[{"$f":"IF(ISNUMBER(SEARCH(STATEMENT!$F$9,Table4[Customer\nالعميل])),MAX($A$1:A532)+1,0)","v":0}]
[{"$f":"IF(ISNUMBER(SEARCH(STATEMENT!$F$9,Table4[Customer\nالعميل])),MAX($A$1:A533)+1,0)","v":0}]
[{"$f":"IF(ISNUMBER(SEARCH(STATEMENT!$F$9,Table4[Customer\nالعميل])),MAX($A$1:A534)+1,0)","v":0}]
[{"$f":"IF(ISNUMBER(SEARCH(STATEMENT!$F$9,Table4[Customer\nالعميل])),MAX($A$1:A535)+1,0)","v":0}]
[{"$f":"IF(ISNUMBER(SEARCH(STATEMENT!$F$9,Table4[Customer\nالعميل])),MAX($A$1:A536)+1,0)","v":0}]
[{"$f":"IF(ISNUMBER(SEARCH(STATEMENT!$F$9,Table4[Customer\nالعميل])),MAX($A$1:A537)+1,0)","v":0}]
[{"$f":"IF(ISNUMBER(SEARCH(STATEMENT!$F$9,Table4[Customer\nالعميل])),MAX($A$1:A538)+1,0)","v":0}]
[{"$f":"IF(ISNUMBER(SEARCH(STATEMENT!$F$9,Table4[Customer\nالعميل])),MAX($A$1:A539)+1,0)","v":0}]
[{"$f":"IF(ISNUMBER(SEARCH(STATEMENT!$F$9,Table4[Customer\nالعميل])),MAX($A$1:A540)+1,0)","v":0}]
[{"$f":"IF(ISNUMBER(SEARCH(STATEMENT!$F$9,Table4[Customer\nالعميل])),MAX($A$1:A541)+1,0)","v":0}]
[{"$f":"IF(ISNUMBER(SEARCH(STATEMENT!$F$9,Table4[Customer\nالعميل])),MAX($A$1:A542)+1,0)","v":0}]
[{"$f":"IF(ISNUMBER(SEARCH(STATEMENT!$F$9,Table4[Customer\nالعميل])),MAX($A$1:A543)+1,0)","v":0}]
[{"$f":"IF(ISNUMBER(SEARCH(STATEMENT!$F$9,Table4[Customer\nالعميل])),MAX($A$1:A544)+1,0)","v":0}]
[{"$f":"IF(ISNUMBER(SEARCH(STATEMENT!$F$9,Table4[Customer\nالعميل])),MAX($A$1:A545)+1,0)","v":0}]
[{"$f":"IF(ISNUMBER(SEARCH(STATEMENT!$F$9,Table4[Customer\nالعميل])),MAX($A$1:A546)+1,0)","v":0}]
[{"$f":"IF(ISNUMBER(SEARCH(STATEMENT!$F$9,Table4[Customer\nالعميل])),MAX($A$1:A547)+1,0)","v":0}]
[{"$f":"IF(ISNUMBER(SEARCH(STATEMENT!$F$9,Table4[Customer\nالعميل])),MAX($A$1:A548)+1,0)","v":0}]
[{"$f":"IF(ISNUMBER(SEARCH(STATEMENT!$F$9,Table4[Customer\nالعميل])),MAX($A$1:A549)+1,0)","v":0}]
[{"$f":"IF(ISNUMBER(SEARCH(STATEMENT!$F$9,Table4[Customer\nالعميل])),MAX($A$1:A550)+1,0)","v":0}]
[{"$f":"IF(ISNUMBER(SEARCH(STATEMENT!$F$9,Table4[Customer\nالعميل])),MAX($A$1:A551)+1,0)","v":0}]
[{"$f":"IF(ISNUMBER(SEARCH(STATEMENT!$F$9,Table4[Customer\nالعميل])),MAX($A$1:A552)+1,0)","v":0}]
[{"$f":"IF(ISNUMBER(SEARCH(STATEMENT!$F$9,Table4[Customer\nالعميل])),MAX($A$1:A553)+1,0)","v":0}]
[{"$f":"IF(ISNUMBER(SEARCH(STATEMENT!$F$9,Table4[Customer\nالعميل])),MAX($A$1:A554)+1,0)","v":0}]
[{"$f":"IF(ISNUMBER(SEARCH(STATEMENT!$F$9,Table4[Customer\nالعميل])),MAX($A$1:A555)+1,0)","v":0}]
[{"$f":"IF(ISNUMBER(SEARCH(STATEMENT!$F$9,Table4[Customer\nالعميل])),MAX($A$1:A556)+1,0)","v":0}]
[{"$f":"IF(ISNUMBER(SEARCH(STATEMENT!$F$9,Table4[Customer\nالعميل])),MAX($A$1:A557)+1,0)","v":0}]
[{"$f":"IF(ISNUMBER(SEARCH(STATEMENT!$F$9,Table4[Customer\nالعميل])),MAX($A$1:A558)+1,0)","v":0}]
[{"$f":"IF(ISNUMBER(SEARCH(STATEMENT!$F$9,Table4[Customer\nالعميل])),MAX($A$1:A559)+1,0)","v":0}]
[{"$f":"IF(ISNUMBER(SEARCH(STATEMENT!$F$9,Table4[Customer\nالعميل])),MAX($A$1:A560)+1,0)","v":0}]
[{"$f":"IF(ISNUMBER(SEARCH(STATEMENT!$F$9,Table4[Customer\nالعميل])),MAX($A$1:A561)+1,0)","v":0}]
[{"$f":"IF(ISNUMBER(SEARCH(STATEMENT!$F$9,Table4[Customer\nالعميل])),MAX($A$1:A562)+1,0)","v":0}]
[{"$f":"IF(ISNUMBER(SEARCH(STATEMENT!$F$9,Table4[Customer\nالعميل])),MAX($A$1:A563)+1,0)","v":0}]
[{"$f":"IF(ISNUMBER(SEARCH(STATEMENT!$F$9,Table4[Customer\nالعميل])),MAX($A$1:A564)+1,0)","v":0}]
[{"$f":"IF(ISNUMBER(SEARCH(STATEMENT!$F$9,Table4[Customer\nالعميل])),MAX($A$1:A565)+1,0)","v":0}]
[{"$f":"IF(ISNUMBER(SEARCH(STATEMENT!$F$9,Table4[Customer\nالعميل])),MAX($A$1:A566)+1,0)","v":0}]
[{"$f":"IF(ISNUMBER(SEARCH(STATEMENT!$F$9,Table4[Customer\nالعميل])),MAX($A$1:A567)+1,0)","v":0}]
[{"$f":"IF(ISNUMBER(SEARCH(STATEMENT!$F$9,Table4[Customer\nالعميل])),MAX($A$1:A568)+1,0)","v":0}]
[{"$f":"IF(ISNUMBER(SEARCH(STATEMENT!$F$9,Table4[Customer\nالعميل])),MAX($A$1:A569)+1,0)","v":0}]
[{"$f":"IF(ISNUMBER(SEARCH(STATEMENT!$F$9,Table4[Customer\nالعميل])),MAX($A$1:A570)+1,0)","v":0}]
[{"$f":"IF(ISNUMBER(SEARCH(STATEMENT!$F$9,Table4[Customer\nالعميل])),MAX($A$1:A571)+1,0)","v":0}]
[{"$f":"IF(ISNUMBER(SEARCH(STATEMENT!$F$9,Table4[Customer\nالعميل])),MAX($A$1:A572)+1,0)","v":0}]
[{"$f":"IF(ISNUMBER(SEARCH(STATEMENT!$F$9,Table4[Customer\nالعميل])),MAX($A$1:A573)+1,0)","v":0}]
[{"$f":"IF(ISNUMBER(SEARCH(STATEMENT!$F$9,Table4[Customer\nالعميل])),MAX($A$1:A574)+1,0)","v":0}]
[{"$f":"IF(ISNUMBER(SEARCH(STATEMENT!$F$9,Table4[Customer\nالعميل])),MAX($A$1:A575)+1,0)","v":0}]
[{"$f":"IF(ISNUMBER(SEARCH(STATEMENT!$F$9,Table4[Customer\nالعميل])),MAX($A$1:A576)+1,0)","v":0}]
[{"$f":"IF(ISNUMBER(SEARCH(STATEMENT!$F$9,Table4[Customer\nالعميل])),MAX($A$1:A577)+1,0)","v":0}]
[{"$f":"IF(ISNUMBER(SEARCH(STATEMENT!$F$9,Table4[Customer\nالعميل])),MAX($A$1:A578)+1,0)","v":0}]
[{"$f":"IF(ISNUMBER(SEARCH(STATEMENT!$F$9,Table4[Customer\nالعميل])),MAX($A$1:A579)+1,0)","v":0}]
[{"$f":"IF(ISNUMBER(SEARCH(STATEMENT!$F$9,Table4[Customer\nالعميل])),MAX($A$1:A580)+1,0)","v":0}]
[{"$f":"IF(ISNUMBER(SEARCH(STATEMENT!$F$9,Table4[Customer\nالعميل])),MAX($A$1:A581)+1,0)","v":0}]
[{"$f":"IF(ISNUMBER(SEARCH(STATEMENT!$F$9,Table4[Customer\nالعميل])),MAX($A$1:A582)+1,0)","v":0}]
[{"$f":"IF(ISNUMBER(SEARCH(STATEMENT!$F$9,Table4[Customer\nالعميل])),MAX($A$1:A583)+1,0)","v":0}]
[{"$f":"IF(ISNUMBER(SEARCH(STATEMENT!$F$9,Table4[Customer\nالعميل])),MAX($A$1:A584)+1,0)","v":0}]
[{"$f":"IF(ISNUMBER(SEARCH(STATEMENT!$F$9,Table4[Customer\nالعميل])),MAX($A$1:A585)+1,0)","v":0}]
[{"$f":"IF(ISNUMBER(SEARCH(STATEMENT!$F$9,Table4[Customer\nالعميل])),MAX($A$1:A586)+1,0)","v":0}]
[{"$f":"IF(ISNUMBER(SEARCH(STATEMENT!$F$9,Table4[Customer\nالعميل])),MAX($A$1:A587)+1,0)","v":0}]
[{"$f":"IF(ISNUMBER(SEARCH(STATEMENT!$F$9,Table4[Customer\nالعميل])),MAX($A$1:A588)+1,0)","v":0}]
[{"$f":"IF(ISNUMBER(SEARCH(STATEMENT!$F$9,Table4[Customer\nالعميل])),MAX($A$1:A589)+1,0)","v":0}]
[{"$f":"IF(ISNUMBER(SEARCH(STATEMENT!$F$9,Table4[Customer\nالعميل])),MAX($A$1:A590)+1,0)","v":0}]
[{"$f":"IF(ISNUMBER(SEARCH(STATEMENT!$F$9,Table4[Customer\nالعميل])),MAX($A$1:A591)+1,0)","v":0}]
[{"$f":"IF(ISNUMBER(SEARCH(STATEMENT!$F$9,Table4[Customer\nالعميل])),MAX($A$1:A592)+1,0)","v":0}]
[{"$f":"IF(ISNUMBER(SEARCH(STATEMENT!$F$9,Table4[Customer\nالعميل])),MAX($A$1:A593)+1,0)","v":0}]
[{"$f":"IF(ISNUMBER(SEARCH(STATEMENT!$F$9,Table4[Customer\nالعميل])),MAX($A$1:A594)+1,0)","v":0}]
[{"$f":"IF(ISNUMBER(SEARCH(STATEMENT!$F$9,Table4[Customer\nالعميل])),MAX($A$1:A595)+1,0)","v":0}]
[{"$f":"IF(ISNUMBER(SEARCH(STATEMENT!$F$9,Table4[Customer\nالعميل])),MAX($A$1:A596)+1,0)","v":0}]
[{"$f":"IF(ISNUMBER(SEARCH(STATEMENT!$F$9,Table4[Customer\nالعميل])),MAX($A$1:A597)+1,0)","v":0}]
[{"$f":"IF(ISNUMBER(SEARCH(STATEMENT!$F$9,Table4[Customer\nالعميل])),MAX($A$1:A598)+1,0)","v":0}]
[{"$f":"IF(ISNUMBER(SEARCH(STATEMENT!$F$9,Table4[Customer\nالعميل])),MAX($A$1:A599)+1,0)","v":0}]
[{"$f":"IF(ISNUMBER(SEARCH(STATEMENT!$F$9,Table4[Customer\nالعميل])),MAX($A$1:A600)+1,0)","v":0}]
[{"$f":"IF(ISNUMBER(SEARCH(STATEMENT!$F$9,Table4[Customer\nالعميل])),MAX($A$1:A601)+1,0)","v":0}]
[{"$f":"IF(ISNUMBER(SEARCH(STATEMENT!$F$9,Table4[Customer\nالعميل])),MAX($A$1:A602)+1,0)","v":0}]
[{"$f":"IF(ISNUMBER(SEARCH(STATEMENT!$F$9,Table4[Customer\nالعميل])),MAX($A$1:A603)+1,0)","v":0}]
[{"$f":"IF(ISNUMBER(SEARCH(STATEMENT!$F$9,Table4[Customer\nالعميل])),MAX($A$1:A604)+1,0)","v":0}]
[{"$f":"IF(ISNUMBER(SEARCH(STATEMENT!$F$9,Table4[Customer\nالعميل])),MAX($A$1:A605)+1,0)","v":0}]
[{"$f":"IF(ISNUMBER(SEARCH(STATEMENT!$F$9,Table4[Customer\nالعميل])),MAX($A$1:A606)+1,0)","v":0}]
[{"$f":"IF(ISNUMBER(SEARCH(STATEMENT!$F$9,Table4[Customer\nالعميل])),MAX($A$1:A607)+1,0)","v":0}]
[{"$f":"IF(ISNUMBER(SEARCH(STATEMENT!$F$9,Table4[Customer\nالعميل])),MAX($A$1:A608)+1,0)","v":0}]
[{"$f":"IF(ISNUMBER(SEARCH(STATEMENT!$F$9,Table4[Customer\nالعميل])),MAX($A$1:A609)+1,0)","v":0}]
[{"$f":"IF(ISNUMBER(SEARCH(STATEMENT!$F$9,Table4[Customer\nالعميل])),MAX($A$1:A610)+1,0)","v":0}]
[{"$f":"IF(ISNUMBER(SEARCH(STATEMENT!$F$9,Table4[Customer\nالعميل])),MAX($A$1:A611)+1,0)","v":0}]
[{"$f":"IF(ISNUMBER(SEARCH(STATEMENT!$F$9,Table4[Customer\nالعميل])),MAX($A$1:A612)+1,0)","v":0}]
[{"$f":"IF(ISNUMBER(SEARCH(STATEMENT!$F$9,Table4[Customer\nالعميل])),MAX($A$1:A613)+1,0)","v":0}]
[{"$f":"IF(ISNUMBER(SEARCH(STATEMENT!$F$9,Table4[Customer\nالعميل])),MAX($A$1:A614)+1,0)","v":0}]
[{"$f":"IF(ISNUMBER(SEARCH(STATEMENT!$F$9,Table4[Customer\nالعميل])),MAX($A$1:A615)+1,0)","v":0}]
[{"$f":"IF(ISNUMBER(SEARCH(STATEMENT!$F$9,Table4[Customer\nالعميل])),MAX($A$1:A616)+1,0)","v":0}]
[{"$f":"IF(ISNUMBER(SEARCH(STATEMENT!$F$9,Table4[Customer\nالعميل])),MAX($A$1:A617)+1,0)","v":0}]
[{"$f":"IF(ISNUMBER(SEARCH(STATEMENT!$F$9,Table4[Customer\nالعميل])),MAX($A$1:A618)+1,0)","v":0}]
[{"$f":"IF(ISNUMBER(SEARCH(STATEMENT!$F$9,Table4[Customer\nالعميل])),MAX($A$1:A619)+1,0)","v":0}]
[{"$f":"IF(ISNUMBER(SEARCH(STATEMENT!$F$9,Table4[Customer\nالعميل])),MAX($A$1:A620)+1,0)","v":0}]
[{"$f":"IF(ISNUMBER(SEARCH(STATEMENT!$F$9,Table4[Customer\nالعميل])),MAX($A$1:A621)+1,0)","v":0}]
[{"$f":"IF(ISNUMBER(SEARCH(STATEMENT!$F$9,Table4[Customer\nالعميل])),MAX($A$1:A622)+1,0)","v":0}]
[{"$f":"IF(ISNUMBER(SEARCH(STATEMENT!$F$9,Table4[Customer\nالعميل])),MAX($A$1:A623)+1,0)","v":0}]
[{"$f":"IF(ISNUMBER(SEARCH(STATEMENT!$F$9,Table4[Customer\nالعميل])),MAX($A$1:A624)+1,0)","v":0}]
[{"$f":"IF(ISNUMBER(SEARCH(STATEMENT!$F$9,Table4[Customer\nالعميل])),MAX($A$1:A625)+1,0)","v":0}]
[{"$f":"IF(ISNUMBER(SEARCH(STATEMENT!$F$9,Table4[Customer\nالعميل])),MAX($A$1:A626)+1,0)","v":0}]
[{"$f":"IF(ISNUMBER(SEARCH(STATEMENT!$F$9,Table4[Customer\nالعميل])),MAX($A$1:A627)+1,0)","v":0}]
[{"$f":"IF(ISNUMBER(SEARCH(STATEMENT!$F$9,Table4[Customer\nالعميل])),MAX($A$1:A628)+1,0)","v":0}]
[{"$f":"IF(ISNUMBER(SEARCH(STATEMENT!$F$9,Table4[Customer\nالعميل])),MAX($A$1:A629)+1,0)","v":0}]
[{"$f":"IF(ISNUMBER(SEARCH(STATEMENT!$F$9,Table4[Customer\nالعميل])),MAX($A$1:A630)+1,0)","v":0}]
[{"$f":"IF(ISNUMBER(SEARCH(STATEMENT!$F$9,Table4[Customer\nالعميل])),MAX($A$1:A631)+1,0)","v":0}]
[{"$f":"IF(ISNUMBER(SEARCH(STATEMENT!$F$9,Table4[Customer\nالعميل])),MAX($A$1:A632)+1,0)","v":0}]
[{"$f":"IF(ISNUMBER(SEARCH(STATEMENT!$F$9,Table4[Customer\nالعميل])),MAX($A$1:A633)+1,0)","v":0}]
[{"$f":"IF(ISNUMBER(SEARCH(STATEMENT!$F$9,Table4[Customer\nالعميل])),MAX($A$1:A634)+1,0)","v":0}]
[{"$f":"IF(ISNUMBER(SEARCH(STATEMENT!$F$9,Table4[Customer\nالعميل])),MAX($A$1:A635)+1,0)","v":0}]
[{"$f":"IF(ISNUMBER(SEARCH(STATEMENT!$F$9,Table4[Customer\nالعميل])),MAX($A$1:A636)+1,0)","v":0}]
[{"$f":"IF(ISNUMBER(SEARCH(STATEMENT!$F$9,Table4[Customer\nالعميل])),MAX($A$1:A637)+1,0)","v":0}]
[{"$f":"IF(ISNUMBER(SEARCH(STATEMENT!$F$9,Table4[Customer\nالعميل])),MAX($A$1:A638)+1,0)","v":0}]
[{"$f":"IF(ISNUMBER(SEARCH(STATEMENT!$F$9,Table4[Customer\nالعميل])),MAX($A$1:A639)+1,0)","v":0}]
[{"$f":"IF(ISNUMBER(SEARCH(STATEMENT!$F$9,Table4[Customer\nالعميل])),MAX($A$1:A640)+1,0)","v":0}]
[{"$f":"IF(ISNUMBER(SEARCH(STATEMENT!$F$9,Table4[Customer\nالعميل])),MAX($A$1:A641)+1,0)","v":0}]
[{"$f":"IF(ISNUMBER(SEARCH(STATEMENT!$F$9,Table4[Customer\nالعميل])),MAX($A$1:A642)+1,0)","v":0}]
[{"$f":"IF(ISNUMBER(SEARCH(STATEMENT!$F$9,Table4[Customer\nالعميل])),MAX($A$1:A643)+1,0)","v":0}]
[{"$f":"IF(ISNUMBER(SEARCH(STATEMENT!$F$9,Table4[Customer\nالعميل])),MAX($A$1:A644)+1,0)","v":0}]
[{"$f":"IF(ISNUMBER(SEARCH(STATEMENT!$F$9,Table4[Customer\nالعميل])),MAX($A$1:A645)+1,0)","v":0}]
[{"$f":"IF(ISNUMBER(SEARCH(STATEMENT!$F$9,Table4[Customer\nالعميل])),MAX($A$1:A646)+1,0)","v":0}]
[{"$f":"IF(ISNUMBER(SEARCH(STATEMENT!$F$9,Table4[Customer\nالعميل])),MAX($A$1:A647)+1,0)","v":0}]
[{"$f":"IF(ISNUMBER(SEARCH(STATEMENT!$F$9,Table4[Customer\nالعميل])),MAX($A$1:A648)+1,0)","v":0}]
[{"$f":"IF(ISNUMBER(SEARCH(STATEMENT!$F$9,Table4[Customer\nالعميل])),MAX($A$1:A649)+1,0)","v":0}]
[{"$f":"IF(ISNUMBER(SEARCH(STATEMENT!$F$9,Table4[Customer\nالعميل])),MAX($A$1:A650)+1,0)","v":0}]
[{"$f":"IF(ISNUMBER(SEARCH(STATEMENT!$F$9,Table4[Customer\nالعميل])),MAX($A$1:A651)+1,0)","v":0}]
[{"$f":"IF(ISNUMBER(SEARCH(STATEMENT!$F$9,Table4[Customer\nالعميل])),MAX($A$1:A652)+1,0)","v":0}]
[{"$f":"IF(ISNUMBER(SEARCH(STATEMENT!$F$9,Table4[Customer\nالعميل])),MAX($A$1:A653)+1,0)","v":0}]
[{"$f":"IF(ISNUMBER(SEARCH(STATEMENT!$F$9,Table4[Customer\nالعميل])),MAX($A$1:A654)+1,0)","v":0}]
[{"$f":"IF(ISNUMBER(SEARCH(STATEMENT!$F$9,Table4[Customer\nالعميل])),MAX($A$1:A655)+1,0)","v":0}]
[{"$f":"IF(ISNUMBER(SEARCH(STATEMENT!$F$9,Table4[Customer\nالعميل])),MAX($A$1:A656)+1,0)","v":0}]
[{"$f":"IF(ISNUMBER(SEARCH(STATEMENT!$F$9,Table4[Customer\nالعميل])),MAX($A$1:A657)+1,0)","v":0}]
[{"$f":"IF(ISNUMBER(SEARCH(STATEMENT!$F$9,Table4[Customer\nالعميل])),MAX($A$1:A658)+1,0)","v":0}]
[{"$f":"IF(ISNUMBER(SEARCH(STATEMENT!$F$9,Table4[Customer\nالعميل])),MAX($A$1:A659)+1,0)","v":0}]
[{"$f":"IF(ISNUMBER(SEARCH(STATEMENT!$F$9,Table4[Customer\nالعميل])),MAX($A$1:A660)+1,0)","v":0}]
[{"$f":"IF(ISNUMBER(SEARCH(STATEMENT!$F$9,Table4[Customer\nالعميل])),MAX($A$1:A661)+1,0)","v":0}]
[{"$f":"IF(ISNUMBER(SEARCH(STATEMENT!$F$9,Table4[Customer\nالعميل])),MAX($A$1:A662)+1,0)","v":0}]
[{"$f":"IF(ISNUMBER(SEARCH(STATEMENT!$F$9,Table4[Customer\nالعميل])),MAX($A$1:A663)+1,0)","v":0}]
[{"$f":"IF(ISNUMBER(SEARCH(STATEMENT!$F$9,Table4[Customer\nالعميل])),MAX($A$1:A664)+1,0)","v":0}]
[{"$f":"IF(ISNUMBER(SEARCH(STATEMENT!$F$9,Table4[Customer\nالعميل])),MAX($A$1:A665)+1,0)","v":0}]
[{"$f":"IF(ISNUMBER(SEARCH(STATEMENT!$F$9,Table4[Customer\nالعميل])),MAX($A$1:A666)+1,0)","v":0}]
[{"$f":"IF(ISNUMBER(SEARCH(STATEMENT!$F$9,Table4[Customer\nالعميل])),MAX($A$1:A667)+1,0)","v":0}]
[{"$f":"IF(ISNUMBER(SEARCH(STATEMENT!$F$9,Table4[Customer\nالعميل])),MAX($A$1:A668)+1,0)","v":0}]
[{"$f":"IF(ISNUMBER(SEARCH(STATEMENT!$F$9,Table4[Customer\nالعميل])),MAX($A$1:A669)+1,0)","v":0}]
[{"$f":"IF(ISNUMBER(SEARCH(STATEMENT!$F$9,Table4[Customer\nالعميل])),MAX($A$1:A670)+1,0)","v":0}]
[{"$f":"IF(ISNUMBER(SEARCH(STATEMENT!$F$9,Table4[Customer\nالعميل])),MAX($A$1:A671)+1,0)","v":0}]
[{"$f":"IF(ISNUMBER(SEARCH(STATEMENT!$F$9,Table4[Customer\nالعميل])),MAX($A$1:A672)+1,0)","v":0}]
[{"$f":"IF(ISNUMBER(SEARCH(STATEMENT!$F$9,Table4[Customer\nالعميل])),MAX($A$1:A673)+1,0)","v":0}]
[{"$f":"IF(ISNUMBER(SEARCH(STATEMENT!$F$9,Table4[Customer\nالعميل])),MAX($A$1:A674)+1,0)","v":0}]
[{"$f":"IF(ISNUMBER(SEARCH(STATEMENT!$F$9,Table4[Customer\nالعميل])),MAX($A$1:A675)+1,0)","v":0}]
[{"$f":"IF(ISNUMBER(SEARCH(STATEMENT!$F$9,Table4[Customer\nالعميل])),MAX($A$1:A676)+1,0)","v":0}]
[{"$f":"IF(ISNUMBER(SEARCH(STATEMENT!$F$9,Table4[Customer\nالعميل])),MAX($A$1:A677)+1,0)","v":0}]
[{"$f":"IF(ISNUMBER(SEARCH(STATEMENT!$F$9,Table4[Customer\nالعميل])),MAX($A$1:A678)+1,0)","v":0}]
[{"$f":"IF(ISNUMBER(SEARCH(STATEMENT!$F$9,Table4[Customer\nالعميل])),MAX($A$1:A679)+1,0)","v":0}]
[{"$f":"IF(ISNUMBER(SEARCH(STATEMENT!$F$9,Table4[Customer\nالعميل])),MAX($A$1:A680)+1,0)","v":0}]
[{"$f":"IF(ISNUMBER(SEARCH(STATEMENT!$F$9,Table4[Customer\nالعميل])),MAX($A$1:A681)+1,0)","v":0}]
[{"$f":"IF(ISNUMBER(SEARCH(STATEMENT!$F$9,Table4[Customer\nالعميل])),MAX($A$1:A682)+1,0)","v":0}]
[{"$f":"IF(ISNUMBER(SEARCH(STATEMENT!$F$9,Table4[Customer\nالعميل])),MAX($A$1:A683)+1,0)","v":0}]
[{"$f":"IF(ISNUMBER(SEARCH(STATEMENT!$F$9,Table4[Customer\nالعميل])),MAX($A$1:A684)+1,0)","v":0}]
[{"$f":"IF(ISNUMBER(SEARCH(STATEMENT!$F$9,Table4[Customer\nالعميل])),MAX($A$1:A685)+1,0)","v":0}]
[{"$f":"IF(ISNUMBER(SEARCH(STATEMENT!$F$9,Table4[Customer\nالعميل])),MAX($A$1:A686)+1,0)","v":0}]
[{"$f":"IF(ISNUMBER(SEARCH(STATEMENT!$F$9,Table4[Customer\nالعميل])),MAX($A$1:A687)+1,0)","v":0}]
[{"$f":"IF(ISNUMBER(SEARCH(STATEMENT!$F$9,Table4[Customer\nالعميل])),MAX($A$1:A688)+1,0)","v":0}]
[{"$f":"IF(ISNUMBER(SEARCH(STATEMENT!$F$9,Table4[Customer\nالعميل])),MAX($A$1:A689)+1,0)","v":0}]
[{"$f":"IF(ISNUMBER(SEARCH(STATEMENT!$F$9,Table4[Customer\nالعميل])),MAX($A$1:A690)+1,0)","v":0}]
[{"$f":"IF(ISNUMBER(SEARCH(STATEMENT!$F$9,Table4[Customer\nالعميل])),MAX($A$1:A691)+1,0)","v":0}]
[{"$f":"IF(ISNUMBER(SEARCH(STATEMENT!$F$9,Table4[Customer\nالعميل])),MAX($A$1:A692)+1,0)","v":0}]
[{"$f":"IF(ISNUMBER(SEARCH(STATEMENT!$F$9,Table4[Customer\nالعميل])),MAX($A$1:A693)+1,0)","v":0}]
[{"$f":"IF(ISNUMBER(SEARCH(STATEMENT!$F$9,Table4[Customer\nالعميل])),MAX($A$1:A694)+1,0)","v":0}]
[{"$f":"IF(ISNUMBER(SEARCH(STATEMENT!$F$9,Table4[Customer\nالعميل])),MAX($A$1:A695)+1,0)","v":0}]
[{"$f":"IF(ISNUMBER(SEARCH(STATEMENT!$F$9,Table4[Customer\nالعميل])),MAX($A$1:A696)+1,0)","v":0}]
[{"$f":"IF(ISNUMBER(SEARCH(STATEMENT!$F$9,Table4[Customer\nالعميل])),MAX($A$1:A697)+1,0)","v":0}]
[{"$f":"IF(ISNUMBER(SEARCH(STATEMENT!$F$9,Table4[Customer\nالعميل])),MAX($A$1:A698)+1,0)","v":0}]
[{"$f":"IF(ISNUMBER(SEARCH(STATEMENT!$F$9,Table4[Customer\nالعميل])),MAX($A$1:A699)+1,0)","v":0}]
[{"$f":"IF(ISNUMBER(SEARCH(STATEMENT!$F$9,Table4[Customer\nالعميل])),MAX($A$1:A700)+1,0)","v":0}]
[{"$f":"IF(ISNUMBER(SEARCH(STATEMENT!$F$9,Table4[Customer\nالعميل])),MAX($A$1:A701)+1,0)","v":0}]
[{"$f":"IF(ISNUMBER(SEARCH(STATEMENT!$F$9,Table4[Customer\nالعميل])),MAX($A$1:A702)+1,0)","v":0}]
[{"$f":"IF(ISNUMBER(SEARCH(STATEMENT!$F$9,Table4[Customer\nالعميل])),MAX($A$1:A703)+1,0)","v":0}]
[{"$f":"IF(ISNUMBER(SEARCH(STATEMENT!$F$9,Table4[Customer\nالعميل])),MAX($A$1:A704)+1,0)","v":0}]
[{"$f":"IF(ISNUMBER(SEARCH(STATEMENT!$F$9,Table4[Customer\nالعميل])),MAX($A$1:A705)+1,0)","v":0}]
[{"$f":"IF(ISNUMBER(SEARCH(STATEMENT!$F$9,Table4[Customer\nالعميل])),MAX($A$1:A706)+1,0)","v":0}]
[{"$f":"IF(ISNUMBER(SEARCH(STATEMENT!$F$9,Table4[Customer\nالعميل])),MAX($A$1:A707)+1,0)","v":0}]
[{"$f":"IF(ISNUMBER(SEARCH(STATEMENT!$F$9,Table4[Customer\nالعميل])),MAX($A$1:A708)+1,0)","v":0}]
[{"$f":"IF(ISNUMBER(SEARCH(STATEMENT!$F$9,Table4[Customer\nالعميل])),MAX($A$1:A709)+1,0)","v":0}]
[{"$f":"IF(ISNUMBER(SEARCH(STATEMENT!$F$9,Table4[Customer\nالعميل])),MAX($A$1:A710)+1,0)","v":0}]
[{"$f":"IF(ISNUMBER(SEARCH(STATEMENT!$F$9,Table4[Customer\nالعميل])),MAX($A$1:A711)+1,0)","v":0}]
[{"$f":"IF(ISNUMBER(SEARCH(STATEMENT!$F$9,Table4[Customer\nالعميل])),MAX($A$1:A712)+1,0)","v":0}]
[{"$f":"IF(ISNUMBER(SEARCH(STATEMENT!$F$9,Table4[Customer\nالعميل])),MAX($A$1:A713)+1,0)","v":0}]
[{"$f":"IF(ISNUMBER(SEARCH(STATEMENT!$F$9,Table4[Customer\nالعميل])),MAX($A$1:A714)+1,0)","v":0}]
[{"$f":"IF(ISNUMBER(SEARCH(STATEMENT!$F$9,Table4[Customer\nالعميل])),MAX($A$1:A715)+1,0)","v":0}]
[{"$f":"IF(ISNUMBER(SEARCH(STATEMENT!$F$9,Table4[Customer\nالعميل])),MAX($A$1:A716)+1,0)","v":0}]
[{"$f":"IF(ISNUMBER(SEARCH(STATEMENT!$F$9,Table4[Customer\nالعميل])),MAX($A$1:A717)+1,0)","v":0}]
[{"$f":"IF(ISNUMBER(SEARCH(STATEMENT!$F$9,Table4[Customer\nالعميل])),MAX($A$1:A718)+1,0)","v":0}]
[{"$f":"IF(ISNUMBER(SEARCH(STATEMENT!$F$9,Table4[Customer\nالعميل])),MAX($A$1:A719)+1,0)","v":0}]
[{"$f":"IF(ISNUMBER(SEARCH(STATEMENT!$F$9,Table4[Customer\nالعميل])),MAX($A$1:A720)+1,0)","v":0}]
[{"$f":"IF(ISNUMBER(SEARCH(STATEMENT!$F$9,Table4[Customer\nالعميل])),MAX($A$1:A721)+1,0)","v":0}]
[{"$f":"IF(ISNUMBER(SEARCH(STATEMENT!$F$9,Table4[Customer\nالعميل])),MAX($A$1:A722)+1,0)","v":0}]
[{"$f":"IF(ISNUMBER(SEARCH(STATEMENT!$F$9,Table4[Customer\nالعميل])),MAX($A$1:A723)+1,0)","v":0}]
[{"$f":"IF(ISNUMBER(SEARCH(STATEMENT!$F$9,Table4[Customer\nالعميل])),MAX($A$1:A724)+1,0)","v":0}]
[{"$f":"IF(ISNUMBER(SEARCH(STATEMENT!$F$9,Table4[Customer\nالعميل])),MAX($A$1:A725)+1,0)","v":0}]
[{"$f":"IF(ISNUMBER(SEARCH(STATEMENT!$F$9,Table4[Customer\nالعميل])),MAX($A$1:A726)+1,0)","v":0}]
[{"$f":"IF(ISNUMBER(SEARCH(STATEMENT!$F$9,Table4[Customer\nالعميل])),MAX($A$1:A727)+1,0)","v":0}]
[{"$f":"IF(ISNUMBER(SEARCH(STATEMENT!$F$9,Table4[Customer\nالعميل])),MAX($A$1:A728)+1,0)","v":0}]
[{"$f":"IF(ISNUMBER(SEARCH(STATEMENT!$F$9,Table4[Customer\nالعميل])),MAX($A$1:A729)+1,0)","v":0}]
[{"$f":"IF(ISNUMBER(SEARCH(STATEMENT!$F$9,Table4[Customer\nالعميل])),MAX($A$1:A730)+1,0)","v":0}]
[{"$f":"IF(ISNUMBER(SEARCH(STATEMENT!$F$9,Table4[Customer\nالعميل])),MAX($A$1:A731)+1,0)","v":0}]
[{"$f":"IF(ISNUMBER(SEARCH(STATEMENT!$F$9,Table4[Customer\nالعميل])),MAX($A$1:A732)+1,0)","v":0}]
[{"$f":"IF(ISNUMBER(SEARCH(STATEMENT!$F$9,Table4[Customer\nالعميل])),MAX($A$1:A733)+1,0)","v":0}]
[{"$f":"IF(ISNUMBER(SEARCH(STATEMENT!$F$9,Table4[Customer\nالعميل])),MAX($A$1:A734)+1,0)","v":0}]
[{"$f":"IF(ISNUMBER(SEARCH(STATEMENT!$F$9,Table4[Customer\nالعميل])),MAX($A$1:A735)+1,0)","v":0}]
[{"$f":"IF(ISNUMBER(SEARCH(STATEMENT!$F$9,Table4[Customer\nالعميل])),MAX($A$1:A736)+1,0)","v":0}]
[{"$f":"IF(ISNUMBER(SEARCH(STATEMENT!$F$9,Table4[Customer\nالعميل])),MAX($A$1:A737)+1,0)","v":0}]
[{"$f":"IF(ISNUMBER(SEARCH(STATEMENT!$F$9,Table4[Customer\nالعميل])),MAX($A$1:A738)+1,0)","v":0}]
[{"$f":"IF(ISNUMBER(SEARCH(STATEMENT!$F$9,Table4[Customer\nالعميل])),MAX($A$1:A739)+1,0)","v":0}]
[{"$f":"IF(ISNUMBER(SEARCH(STATEMENT!$F$9,Table4[Customer\nالعميل])),MAX($A$1:A740)+1,0)","v":0}]
[{"$f":"IF(ISNUMBER(SEARCH(STATEMENT!$F$9,Table4[Customer\nالعميل])),MAX($A$1:A741)+1,0)","v":0}]
[{"$f":"IF(ISNUMBER(SEARCH(STATEMENT!$F$9,Table4[Customer\nالعميل])),MAX($A$1:A742)+1,0)","v":0}]
[{"$f":"IF(ISNUMBER(SEARCH(STATEMENT!$F$9,Table4[Customer\nالعميل])),MAX($A$1:A743)+1,0)","v":0}]
[{"$f":"IF(ISNUMBER(SEARCH(STATEMENT!$F$9,Table4[Customer\nالعميل])),MAX($A$1:A744)+1,0)","v":0}]
[{"$f":"IF(ISNUMBER(SEARCH(STATEMENT!$F$9,Table4[Customer\nالعميل])),MAX($A$1:A745)+1,0)","v":0}]
[{"$f":"IF(ISNUMBER(SEARCH(STATEMENT!$F$9,Table4[Customer\nالعميل])),MAX($A$1:A746)+1,0)","v":0}]
[{"$f":"IF(ISNUMBER(SEARCH(STATEMENT!$F$9,Table4[Customer\nالعميل])),MAX($A$1:A747)+1,0)","v":0}]
[{"$f":"IF(ISNUMBER(SEARCH(STATEMENT!$F$9,Table4[Customer\nالعميل])),MAX($A$1:A748)+1,0)","v":0}]
[{"$f":"IF(ISNUMBER(SEARCH(STATEMENT!$F$9,Table4[Customer\nالعميل])),MAX($A$1:A749)+1,0)","v":0}]
[{"$f":"IF(ISNUMBER(SEARCH(STATEMENT!$F$9,Table4[Customer\nالعميل])),MAX($A$1:A750)+1,0)","v":0}]
[{"$f":"IF(ISNUMBER(SEARCH(STATEMENT!$F$9,Table4[Customer\nالعميل])),MAX($A$1:A751)+1,0)","v":0}]
[{"$f":"IF(ISNUMBER(SEARCH(STATEMENT!$F$9,Table4[Customer\nالعميل])),MAX($A$1:A752)+1,0)","v":0}]
[{"$f":"IF(ISNUMBER(SEARCH(STATEMENT!$F$9,Table4[Customer\nالعميل])),MAX($A$1:A753)+1,0)","v":0}]
[{"$f":"IF(ISNUMBER(SEARCH(STATEMENT!$F$9,Table4[Customer\nالعميل])),MAX($A$1:A754)+1,0)","v":0}]
[{"$f":"IF(ISNUMBER(SEARCH(STATEMENT!$F$9,Table4[Customer\nالعميل])),MAX($A$1:A755)+1,0)","v":0}]
[{"$f":"IF(ISNUMBER(SEARCH(STATEMENT!$F$9,Table4[Customer\nالعميل])),MAX($A$1:A756)+1,0)","v":0}]
[{"$f":"IF(ISNUMBER(SEARCH(STATEMENT!$F$9,Table4[Customer\nالعميل])),MAX($A$1:A757)+1,0)","v":0}]
[{"$f":"IF(ISNUMBER(SEARCH(STATEMENT!$F$9,Table4[Customer\nالعميل])),MAX($A$1:A758)+1,0)","v":0}]
[{"$f":"IF(ISNUMBER(SEARCH(STATEMENT!$F$9,Table4[Customer\nالعميل])),MAX($A$1:A759)+1,0)","v":0}]
[{"$f":"IF(ISNUMBER(SEARCH(STATEMENT!$F$9,Table4[Customer\nالعميل])),MAX($A$1:A760)+1,0)","v":0}]
[{"$f":"IF(ISNUMBER(SEARCH(STATEMENT!$F$9,Table4[Customer\nالعميل])),MAX($A$1:A761)+1,0)","v":0}]
[{"$f":"IF(ISNUMBER(SEARCH(STATEMENT!$F$9,Table4[Customer\nالعميل])),MAX($A$1:A762)+1,0)","v":0}]
[{"$f":"IF(ISNUMBER(SEARCH(STATEMENT!$F$9,Table4[Customer\nالعميل])),MAX($A$1:A763)+1,0)","v":0}]
[{"$f":"IF(ISNUMBER(SEARCH(STATEMENT!$F$9,Table4[Customer\nالعميل])),MAX($A$1:A764)+1,0)","v":0}]
[{"$f":"IF(ISNUMBER(SEARCH(STATEMENT!$F$9,Table4[Customer\nالعميل])),MAX($A$1:A765)+1,0)","v":0}]
[{"$f":"IF(ISNUMBER(SEARCH(STATEMENT!$F$9,Table4[Customer\nالعميل])),MAX($A$1:A766)+1,0)","v":0}]
[{"$f":"IF(ISNUMBER(SEARCH(STATEMENT!$F$9,Table4[Customer\nالعميل])),MAX($A$1:A767)+1,0)","v":0}]
[{"$f":"IF(ISNUMBER(SEARCH(STATEMENT!$F$9,Table4[Customer\nالعميل])),MAX($A$1:A768)+1,0)","v":0}]
[{"$f":"IF(ISNUMBER(SEARCH(STATEMENT!$F$9,Table4[Customer\nالعميل])),MAX($A$1:A769)+1,0)","v":0}]
[{"$f":"IF(ISNUMBER(SEARCH(STATEMENT!$F$9,Table4[Customer\nالعميل])),MAX($A$1:A770)+1,0)","v":0}]
[{"$f":"IF(ISNUMBER(SEARCH(STATEMENT!$F$9,Table4[Customer\nالعميل])),MAX($A$1:A771)+1,0)","v":0}]
[{"$f":"IF(ISNUMBER(SEARCH(STATEMENT!$F$9,Table4[Customer\nالعميل])),MAX($A$1:A772)+1,0)","v":0}]
[{"$f":"IF(ISNUMBER(SEARCH(STATEMENT!$F$9,Table4[Customer\nالعميل])),MAX($A$1:A773)+1,0)","v":0}]
[{"$f":"IF(ISNUMBER(SEARCH(STATEMENT!$F$9,Table4[Customer\nالعميل])),MAX($A$1:A774)+1,0)","v":0}]
[{"$f":"IF(ISNUMBER(SEARCH(STATEMENT!$F$9,Table4[Customer\nالعميل])),MAX($A$1:A775)+1,0)","v":0}]
[{"$f":"IF(ISNUMBER(SEARCH(STATEMENT!$F$9,Table4[Customer\nالعميل])),MAX($A$1:A776)+1,0)","v":0}]
[{"$f":"IF(ISNUMBER(SEARCH(STATEMENT!$F$9,Table4[Customer\nالعميل])),MAX($A$1:A777)+1,0)","v":0}]
[{"$f":"IF(ISNUMBER(SEARCH(STATEMENT!$F$9,Table4[Customer\nالعميل])),MAX($A$1:A778)+1,0)","v":0}]
[{"$f":"IF(ISNUMBER(SEARCH(STATEMENT!$F$9,Table4[Customer\nالعميل])),MAX($A$1:A779)+1,0)","v":0}]
[{"$f":"IF(ISNUMBER(SEARCH(STATEMENT!$F$9,Table4[Customer\nالعميل])),MAX($A$1:A780)+1,0)","v":0}]
[{"$f":"IF(ISNUMBER(SEARCH(STATEMENT!$F$9,Table4[Customer\nالعميل])),MAX($A$1:A781)+1,0)","v":0}]
[{"$f":"IF(ISNUMBER(SEARCH(STATEMENT!$F$9,Table4[Customer\nالعميل])),MAX($A$1:A782)+1,0)","v":0}]
[{"$f":"IF(ISNUMBER(SEARCH(STATEMENT!$F$9,Table4[Customer\nالعميل])),MAX($A$1:A783)+1,0)","v":0}]
[{"$f":"IF(ISNUMBER(SEARCH(STATEMENT!$F$9,Table4[Customer\nالعميل])),MAX($A$1:A784)+1,0)","v":0}]
[{"$f":"IF(ISNUMBER(SEARCH(STATEMENT!$F$9,Table4[Customer\nالعميل])),MAX($A$1:A785)+1,0)","v":0}]
[{"$f":"IF(ISNUMBER(SEARCH(STATEMENT!$F$9,Table4[Customer\nالعميل])),MAX($A$1:A786)+1,0)","v":0}]
[{"$f":"IF(ISNUMBER(SEARCH(STATEMENT!$F$9,Table4[Customer\nالعميل])),MAX($A$1:A787)+1,0)","v":0}]
[{"$f":"IF(ISNUMBER(SEARCH(STATEMENT!$F$9,Table4[Customer\nالعميل])),MAX($A$1:A788)+1,0)","v":0}]
[{"$f":"IF(ISNUMBER(SEARCH(STATEMENT!$F$9,Table4[Customer\nالعميل])),MAX($A$1:A789)+1,0)","v":0}]
[{"$f":"IF(ISNUMBER(SEARCH(STATEMENT!$F$9,Table4[Customer\nالعميل])),MAX($A$1:A790)+1,0)","v":0}]
[{"$f":"IF(ISNUMBER(SEARCH(STATEMENT!$F$9,Table4[Customer\nالعميل])),MAX($A$1:A791)+1,0)","v":0}]
[{"$f":"IF(ISNUMBER(SEARCH(STATEMENT!$F$9,Table4[Customer\nالعميل])),MAX($A$1:A792)+1,0)","v":0}]
[{"$f":"IF(ISNUMBER(SEARCH(STATEMENT!$F$9,Table4[Customer\nالعميل])),MAX($A$1:A793)+1,0)","v":0}]
[{"$f":"IF(ISNUMBER(SEARCH(STATEMENT!$F$9,Table4[Customer\nالعميل])),MAX($A$1:A794)+1,0)","v":0}]
[{"$f":"IF(ISNUMBER(SEARCH(STATEMENT!$F$9,Table4[Customer\nالعميل])),MAX($A$1:A795)+1,0)","v":0}]
[{"$f":"IF(ISNUMBER(SEARCH(STATEMENT!$F$9,Table4[Customer\nالعميل])),MAX($A$1:A796)+1,0)","v":0}]
[{"$f":"IF(ISNUMBER(SEARCH(STATEMENT!$F$9,Table4[Customer\nالعميل])),MAX($A$1:A797)+1,0)","v":0}]
[{"$f":"IF(ISNUMBER(SEARCH(STATEMENT!$F$9,Table4[Customer\nالعميل])),MAX($A$1:A798)+1,0)","v":0}]
[{"$f":"IF(ISNUMBER(SEARCH(STATEMENT!$F$9,Table4[Customer\nالعميل])),MAX($A$1:A799)+1,0)","v":0}]
[{"$f":"IF(ISNUMBER(SEARCH(STATEMENT!$F$9,Table4[Customer\nالعميل])),MAX($A$1:A800)+1,0)","v":0}]
[{"$f":"IF(ISNUMBER(SEARCH(STATEMENT!$F$9,Table4[Customer\nالعميل])),MAX($A$1:A801)+1,0)","v":0}]
[{"$f":"IF(ISNUMBER(SEARCH(STATEMENT!$F$9,Table4[Customer\nالعميل])),MAX($A$1:A802)+1,0)","v":0}]
[{"$f":"IF(ISNUMBER(SEARCH(STATEMENT!$F$9,Table4[Customer\nالعميل])),MAX($A$1:A803)+1,0)","v":0}]
[{"$f":"IF(ISNUMBER(SEARCH(STATEMENT!$F$9,Table4[Customer\nالعميل])),MAX($A$1:A804)+1,0)","v":0}]
[{"$f":"IF(ISNUMBER(SEARCH(STATEMENT!$F$9,Table4[Customer\nالعميل])),MAX($A$1:A805)+1,0)","v":0}]
[{"$f":"IF(ISNUMBER(SEARCH(STATEMENT!$F$9,Table4[Customer\nالعميل])),MAX($A$1:A806)+1,0)","v":0}]
[{"$f":"IF(ISNUMBER(SEARCH(STATEMENT!$F$9,Table4[Customer\nالعميل])),MAX($A$1:A807)+1,0)","v":0}]
[{"$f":"IF(ISNUMBER(SEARCH(STATEMENT!$F$9,Table4[Customer\nالعميل])),MAX($A$1:A808)+1,0)","v":0}]
[{"$f":"IF(ISNUMBER(SEARCH(STATEMENT!$F$9,Table4[Customer\nالعميل])),MAX($A$1:A809)+1,0)","v":0}]
[{"$f":"IF(ISNUMBER(SEARCH(STATEMENT!$F$9,Table4[Customer\nالعميل])),MAX($A$1:A810)+1,0)","v":0}]
[{"$f":"IF(ISNUMBER(SEARCH(STATEMENT!$F$9,Table4[Customer\nالعميل])),MAX($A$1:A811)+1,0)","v":0}]
[{"$f":"IF(ISNUMBER(SEARCH(STATEMENT!$F$9,Table4[Customer\nالعميل])),MAX($A$1:A812)+1,0)","v":0}]
[{"$f":"IF(ISNUMBER(SEARCH(STATEMENT!$F$9,Table4[Customer\nالعميل])),MAX($A$1:A813)+1,0)","v":0}]
[{"$f":"IF(ISNUMBER(SEARCH(STATEMENT!$F$9,Table4[Customer\nالعميل])),MAX($A$1:A814)+1,0)","v":0}]
[{"$f":"IF(ISNUMBER(SEARCH(STATEMENT!$F$9,Table4[Customer\nالعميل])),MAX($A$1:A815)+1,0)","v":0}]
[{"$f":"IF(ISNUMBER(SEARCH(STATEMENT!$F$9,Table4[Customer\nالعميل])),MAX($A$1:A816)+1,0)","v":0}]
[{"$f":"IF(ISNUMBER(SEARCH(STATEMENT!$F$9,Table4[Customer\nالعميل])),MAX($A$1:A817)+1,0)","v":0}]
[{"$f":"IF(ISNUMBER(SEARCH(STATEMENT!$F$9,Table4[Customer\nالعميل])),MAX($A$1:A818)+1,0)","v":0}]
[{"$f":"IF(ISNUMBER(SEARCH(STATEMENT!$F$9,Table4[Customer\nالعميل])),MAX($A$1:A819)+1,0)","v":0}]
[{"$f":"IF(ISNUMBER(SEARCH(STATEMENT!$F$9,Table4[Customer\nالعميل])),MAX($A$1:A820)+1,0)","v":0}]
[{"$f":"IF(ISNUMBER(SEARCH(STATEMENT!$F$9,Table4[Customer\nالعميل])),MAX($A$1:A821)+1,0)","v":0}]
[{"$f":"IF(ISNUMBER(SEARCH(STATEMENT!$F$9,Table4[Customer\nالعميل])),MAX($A$1:A822)+1,0)","v":0}]
[{"$f":"IF(ISNUMBER(SEARCH(STATEMENT!$F$9,Table4[Customer\nالعميل])),MAX($A$1:A823)+1,0)","v":0}]
[{"$f":"IF(ISNUMBER(SEARCH(STATEMENT!$F$9,Table4[Customer\nالعميل])),MAX($A$1:A824)+1,0)","v":0}]
[{"$f":"IF(ISNUMBER(SEARCH(STATEMENT!$F$9,Table4[Customer\nالعميل])),MAX($A$1:A825)+1,0)","v":0}]
[{"$f":"IF(ISNUMBER(SEARCH(STATEMENT!$F$9,Table4[Customer\nالعميل])),MAX($A$1:A826)+1,0)","v":0}]
[{"$f":"IF(ISNUMBER(SEARCH(STATEMENT!$F$9,Table4[Customer\nالعميل])),MAX($A$1:A827)+1,0)","v":0}]
[{"$f":"IF(ISNUMBER(SEARCH(STATEMENT!$F$9,Table4[Customer\nالعميل])),MAX($A$1:A828)+1,0)","v":0}]
[{"$f":"IF(ISNUMBER(SEARCH(STATEMENT!$F$9,Table4[Customer\nالعميل])),MAX($A$1:A829)+1,0)","v":0}]
[{"$f":"IF(ISNUMBER(SEARCH(STATEMENT!$F$9,Table4[Customer\nالعميل])),MAX($A$1:A830)+1,0)","v":0}]
[{"$f":"IF(ISNUMBER(SEARCH(STATEMENT!$F$9,Table4[Customer\nالعميل])),MAX($A$1:A831)+1,0)","v":0}]
[{"$f":"IF(ISNUMBER(SEARCH(STATEMENT!$F$9,Table4[Customer\nالعميل])),MAX($A$1:A832)+1,0)","v":0}]
[{"$f":"IF(ISNUMBER(SEARCH(STATEMENT!$F$9,Table4[Customer\nالعميل])),MAX($A$1:A833)+1,0)","v":0}]
[{"$f":"IF(ISNUMBER(SEARCH(STATEMENT!$F$9,Table4[Customer\nالعميل])),MAX($A$1:A834)+1,0)","v":0}]
[{"$f":"IF(ISNUMBER(SEARCH(STATEMENT!$F$9,Table4[Customer\nالعميل])),MAX($A$1:A835)+1,0)","v":0}]
[{"$f":"IF(ISNUMBER(SEARCH(STATEMENT!$F$9,Table4[Customer\nالعميل])),MAX($A$1:A836)+1,0)","v":0}]
[{"$f":"IF(ISNUMBER(SEARCH(STATEMENT!$F$9,Table4[Customer\nالعميل])),MAX($A$1:A837)+1,0)","v":0}]
[{"$f":"IF(ISNUMBER(SEARCH(STATEMENT!$F$9,Table4[Customer\nالعميل])),MAX($A$1:A838)+1,0)","v":0}]
[{"$f":"IF(ISNUMBER(SEARCH(STATEMENT!$F$9,Table4[Customer\nالعميل])),MAX($A$1:A839)+1,0)","v":0}]
[{"$f":"IF(ISNUMBER(SEARCH(STATEMENT!$F$9,Table4[Customer\nالعميل])),MAX($A$1:A840)+1,0)","v":0}]
[{"$f":"IF(ISNUMBER(SEARCH(STATEMENT!$F$9,Table4[Customer\nالعميل])),MAX($A$1:A841)+1,0)","v":0}]
[{"$f":"IF(ISNUMBER(SEARCH(STATEMENT!$F$9,Table4[Customer\nالعميل])),MAX($A$1:A842)+1,0)","v":0}]
[{"$f":"IF(ISNUMBER(SEARCH(STATEMENT!$F$9,Table4[Customer\nالعميل])),MAX($A$1:A843)+1,0)","v":0}]
[{"$f":"IF(ISNUMBER(SEARCH(STATEMENT!$F$9,Table4[Customer\nالعميل])),MAX($A$1:A844)+1,0)","v":0}]
[{"$f":"IF(ISNUMBER(SEARCH(STATEMENT!$F$9,Table4[Customer\nالعميل])),MAX($A$1:A845)+1,0)","v":0}]
[{"$f":"IF(ISNUMBER(SEARCH(STATEMENT!$F$9,Table4[Customer\nالعميل])),MAX($A$1:A846)+1,0)","v":0}]
[{"$f":"IF(ISNUMBER(SEARCH(STATEMENT!$F$9,Table4[Customer\nالعميل])),MAX($A$1:A847)+1,0)","v":0}]
[{"$f":"IF(ISNUMBER(SEARCH(STATEMENT!$F$9,Table4[Customer\nالعميل])),MAX($A$1:A848)+1,0)","v":0}]
[{"$f":"IF(ISNUMBER(SEARCH(STATEMENT!$F$9,Table4[Customer\nالعميل])),MAX($A$1:A849)+1,0)","v":0}]
[{"$f":"IF(ISNUMBER(SEARCH(STATEMENT!$F$9,Table4[Customer\nالعميل])),MAX($A$1:A850)+1,0)","v":0}]
[{"$f":"IF(ISNUMBER(SEARCH(STATEMENT!$F$9,Table4[Customer\nالعميل])),MAX($A$1:A851)+1,0)","v":0}]
[{"$f":"IF(ISNUMBER(SEARCH(STATEMENT!$F$9,Table4[Customer\nالعميل])),MAX($A$1:A852)+1,0)","v":0}]
[{"$f":"IF(ISNUMBER(SEARCH(STATEMENT!$F$9,Table4[Customer\nالعميل])),MAX($A$1:A853)+1,0)","v":0}]
[{"$f":"IF(ISNUMBER(SEARCH(STATEMENT!$F$9,Table4[Customer\nالعميل])),MAX($A$1:A854)+1,0)","v":0}]
[{"$f":"IF(ISNUMBER(SEARCH(STATEMENT!$F$9,Table4[Customer\nالعميل])),MAX($A$1:A855)+1,0)","v":0}]
[{"$f":"IF(ISNUMBER(SEARCH(STATEMENT!$F$9,Table4[Customer\nالعميل])),MAX($A$1:A856)+1,0)","v":0}]
[{"$f":"IF(ISNUMBER(SEARCH(STATEMENT!$F$9,Table4[Customer\nالعميل])),MAX($A$1:A857)+1,0)","v":0}]
[{"$f":"IF(ISNUMBER(SEARCH(STATEMENT!$F$9,Table4[Customer\nالعميل])),MAX($A$1:A858)+1,0)","v":0}]
[{"$f":"IF(ISNUMBER(SEARCH(STATEMENT!$F$9,Table4[Customer\nالعميل])),MAX($A$1:A859)+1,0)","v":0}]
[{"$f":"IF(ISNUMBER(SEARCH(STATEMENT!$F$9,Table4[Customer\nالعميل])),MAX($A$1:A860)+1,0)","v":0}]
[{"$f":"IF(ISNUMBER(SEARCH(STATEMENT!$F$9,Table4[Customer\nالعميل])),MAX($A$1:A861)+1,0)","v":0}]
[{"$f":"IF(ISNUMBER(SEARCH(STATEMENT!$F$9,Table4[Customer\nالعميل])),MAX($A$1:A862)+1,0)","v":0}]
[{"$f":"IF(ISNUMBER(SEARCH(STATEMENT!$F$9,Table4[Customer\nالعميل])),MAX($A$1:A863)+1,0)","v":0}]
[{"$f":"IF(ISNUMBER(SEARCH(STATEMENT!$F$9,Table4[Customer\nالعميل])),MAX($A$1:A864)+1,0)","v":0}]
[{"$f":"IF(ISNUMBER(SEARCH(STATEMENT!$F$9,Table4[Customer\nالعميل])),MAX($A$1:A865)+1,0)","v":0}]
[{"$f":"IF(ISNUMBER(SEARCH(STATEMENT!$F$9,Table4[Customer\nالعميل])),MAX($A$1:A866)+1,0)","v":0}]
[{"$f":"IF(ISNUMBER(SEARCH(STATEMENT!$F$9,Table4[Customer\nالعميل])),MAX($A$1:A867)+1,0)","v":0}]
[{"$f":"IF(ISNUMBER(SEARCH(STATEMENT!$F$9,Table4[Customer\nالعميل])),MAX($A$1:A868)+1,0)","v":0}]
[{"$f":"IF(ISNUMBER(SEARCH(STATEMENT!$F$9,Table4[Customer\nالعميل])),MAX($A$1:A869)+1,0)","v":0}]
[{"$f":"IF(ISNUMBER(SEARCH(STATEMENT!$F$9,Table4[Customer\nالعميل])),MAX($A$1:A870)+1,0)","v":0}]
[{"$f":"IF(ISNUMBER(SEARCH(STATEMENT!$F$9,Table4[Customer\nالعميل])),MAX($A$1:A871)+1,0)","v":0}]
[{"$f":"IF(ISNUMBER(SEARCH(STATEMENT!$F$9,Table4[Customer\nالعميل])),MAX($A$1:A872)+1,0)","v":0}]
[{"$f":"IF(ISNUMBER(SEARCH(STATEMENT!$F$9,Table4[Customer\nالعميل])),MAX($A$1:A873)+1,0)","v":0}]
[{"$f":"IF(ISNUMBER(SEARCH(STATEMENT!$F$9,Table4[Customer\nالعميل])),MAX($A$1:A874)+1,0)","v":0}]
[{"$f":"IF(ISNUMBER(SEARCH(STATEMENT!$F$9,Table4[Customer\nالعميل])),MAX($A$1:A875)+1,0)","v":0}]
[{"$f":"IF(ISNUMBER(SEARCH(STATEMENT!$F$9,Table4[Customer\nالعميل])),MAX($A$1:A876)+1,0)","v":0}]
[{"$f":"IF(ISNUMBER(SEARCH(STATEMENT!$F$9,Table4[Customer\nالعميل])),MAX($A$1:A877)+1,0)","v":0}]
[{"$f":"IF(ISNUMBER(SEARCH(STATEMENT!$F$9,Table4[Customer\nالعميل])),MAX($A$1:A878)+1,0)","v":0}]
[{"$f":"IF(ISNUMBER(SEARCH(STATEMENT!$F$9,Table4[Customer\nالعميل])),MAX($A$1:A879)+1,0)","v":0}]
[{"$f":"IF(ISNUMBER(SEARCH(STATEMENT!$F$9,Table4[Customer\nالعميل])),MAX($A$1:A880)+1,0)","v":0}]
[{"$f":"IF(ISNUMBER(SEARCH(STATEMENT!$F$9,Table4[Customer\nالعميل])),MAX($A$1:A881)+1,0)","v":0}]
[{"$f":"IF(ISNUMBER(SEARCH(STATEMENT!$F$9,Table4[Customer\nالعميل])),MAX($A$1:A882)+1,0)","v":0}]
[{"$f":"IF(ISNUMBER(SEARCH(STATEMENT!$F$9,Table4[Customer\nالعميل])),MAX($A$1:A883)+1,0)","v":0}]
[{"$f":"IF(ISNUMBER(SEARCH(STATEMENT!$F$9,Table4[Customer\nالعميل])),MAX($A$1:A884)+1,0)","v":0}]
[{"$f":"IF(ISNUMBER(SEARCH(STATEMENT!$F$9,Table4[Customer\nالعميل])),MAX($A$1:A885)+1,0)","v":0}]
[{"$f":"IF(ISNUMBER(SEARCH(STATEMENT!$F$9,Table4[Customer\nالعميل])),MAX($A$1:A886)+1,0)","v":0}]
[{"$f":"IF(ISNUMBER(SEARCH(STATEMENT!$F$9,Table4[Customer\nالعميل])),MAX($A$1:A887)+1,0)","v":0}]
[{"$f":"IF(ISNUMBER(SEARCH(STATEMENT!$F$9,Table4[Customer\nالعميل])),MAX($A$1:A888)+1,0)","v":0}]
[{"$f":"IF(ISNUMBER(SEARCH(STATEMENT!$F$9,Table4[Customer\nالعميل])),MAX($A$1:A889)+1,0)","v":0}]
[{"$f":"IF(ISNUMBER(SEARCH(STATEMENT!$F$9,Table4[Customer\nالعميل])),MAX($A$1:A890)+1,0)","v":0}]
[{"$f":"IF(ISNUMBER(SEARCH(STATEMENT!$F$9,Table4[Customer\nالعميل])),MAX($A$1:A891)+1,0)","v":0}]
[{"$f":"IF(ISNUMBER(SEARCH(STATEMENT!$F$9,Table4[Customer\nالعميل])),MAX($A$1:A892)+1,0)","v":0}]
[{"$f":"IF(ISNUMBER(SEARCH(STATEMENT!$F$9,Table4[Customer\nالعميل])),MAX($A$1:A893)+1,0)","v":0}]
[{"$f":"IF(ISNUMBER(SEARCH(STATEMENT!$F$9,Table4[Customer\nالعميل])),MAX($A$1:A894)+1,0)","v":0}]
[{"$f":"IF(ISNUMBER(SEARCH(STATEMENT!$F$9,Table4[Customer\nالعميل])),MAX($A$1:A895)+1,0)","v":0}]
[{"$f":"IF(ISNUMBER(SEARCH(STATEMENT!$F$9,Table4[Customer\nالعميل])),MAX($A$1:A896)+1,0)","v":0}]
[{"$f":"IF(ISNUMBER(SEARCH(STATEMENT!$F$9,Table4[Customer\nالعميل])),MAX($A$1:A897)+1,0)","v":0}]
[{"$f":"IF(ISNUMBER(SEARCH(STATEMENT!$F$9,Table4[Customer\nالعميل])),MAX($A$1:A898)+1,0)","v":0}]
[{"$f":"IF(ISNUMBER(SEARCH(STATEMENT!$F$9,Table4[Customer\nالعميل])),MAX($A$1:A899)+1,0)","v":0}]
[{"$f":"IF(ISNUMBER(SEARCH(STATEMENT!$F$9,Table4[Customer\nالعميل])),MAX($A$1:A900)+1,0)","v":0}]
[{"$f":"IF(ISNUMBER(SEARCH(STATEMENT!$F$9,Table4[Customer\nالعميل])),MAX($A$1:A901)+1,0)","v":0}]
[{"$f":"IF(ISNUMBER(SEARCH(STATEMENT!$F$9,Table4[Customer\nالعميل])),MAX($A$1:A902)+1,0)","v":0}]
[{"$f":"IF(ISNUMBER(SEARCH(STATEMENT!$F$9,Table4[Customer\nالعميل])),MAX($A$1:A903)+1,0)","v":0}]
[{"$f":"IF(ISNUMBER(SEARCH(STATEMENT!$F$9,Table4[Customer\nالعميل])),MAX($A$1:A904)+1,0)","v":0}]
[{"$f":"IF(ISNUMBER(SEARCH(STATEMENT!$F$9,Table4[Customer\nالعميل])),MAX($A$1:A905)+1,0)","v":0}]
[{"$f":"IF(ISNUMBER(SEARCH(STATEMENT!$F$9,Table4[Customer\nالعميل])),MAX($A$1:A906)+1,0)","v":0}]
[{"$f":"IF(ISNUMBER(SEARCH(STATEMENT!$F$9,Table4[Customer\nالعميل])),MAX($A$1:A907)+1,0)","v":0}]
[{"$f":"IF(ISNUMBER(SEARCH(STATEMENT!$F$9,Table4[Customer\nالعميل])),MAX($A$1:A908)+1,0)","v":0}]
[{"$f":"IF(ISNUMBER(SEARCH(STATEMENT!$F$9,Table4[Customer\nالعميل])),MAX($A$1:A909)+1,0)","v":0}]
[{"$f":"IF(ISNUMBER(SEARCH(STATEMENT!$F$9,Table4[Customer\nالعميل])),MAX($A$1:A910)+1,0)","v":0}]
[{"$f":"IF(ISNUMBER(SEARCH(STATEMENT!$F$9,Table4[Customer\nالعميل])),MAX($A$1:A911)+1,0)","v":0}]
[{"$f":"IF(ISNUMBER(SEARCH(STATEMENT!$F$9,Table4[Customer\nالعميل])),MAX($A$1:A912)+1,0)","v":0}]
[{"$f":"IF(ISNUMBER(SEARCH(STATEMENT!$F$9,Table4[Customer\nالعميل])),MAX($A$1:A913)+1,0)","v":0}]
[{"$f":"IF(ISNUMBER(SEARCH(STATEMENT!$F$9,Table4[Customer\nالعميل])),MAX($A$1:A914)+1,0)","v":0}]
[{"$f":"IF(ISNUMBER(SEARCH(STATEMENT!$F$9,Table4[Customer\nالعميل])),MAX($A$1:A915)+1,0)","v":0}]
[{"$f":"IF(ISNUMBER(SEARCH(STATEMENT!$F$9,Table4[Customer\nالعميل])),MAX($A$1:A916)+1,0)","v":0}]
[{"$f":"IF(ISNUMBER(SEARCH(STATEMENT!$F$9,Table4[Customer\nالعميل])),MAX($A$1:A917)+1,0)","v":0}]
[{"$f":"IF(ISNUMBER(SEARCH(STATEMENT!$F$9,Table4[Customer\nالعميل])),MAX($A$1:A918)+1,0)","v":0}]
[{"$f":"IF(ISNUMBER(SEARCH(STATEMENT!$F$9,Table4[Customer\nالعميل])),MAX($A$1:A919)+1,0)","v":0}]
[{"$f":"IF(ISNUMBER(SEARCH(STATEMENT!$F$9,Table4[Customer\nالعميل])),MAX($A$1:A920)+1,0)","v":0}]
[{"$f":"IF(ISNUMBER(SEARCH(STATEMENT!$F$9,Table4[Customer\nالعميل])),MAX($A$1:A921)+1,0)","v":0}]
[{"$f":"IF(ISNUMBER(SEARCH(STATEMENT!$F$9,Table4[Customer\nالعميل])),MAX($A$1:A922)+1,0)","v":0}]
[{"$f":"IF(ISNUMBER(SEARCH(STATEMENT!$F$9,Table4[Customer\nالعميل])),MAX($A$1:A923)+1,0)","v":0}]
[{"$f":"IF(ISNUMBER(SEARCH(STATEMENT!$F$9,Table4[Customer\nالعميل])),MAX($A$1:A924)+1,0)","v":0}]
[{"$f":"IF(ISNUMBER(SEARCH(STATEMENT!$F$9,Table4[Customer\nالعميل])),MAX($A$1:A925)+1,0)","v":0}]
[{"$f":"IF(ISNUMBER(SEARCH(STATEMENT!$F$9,Table4[Customer\nالعميل])),MAX($A$1:A926)+1,0)","v":0}]
[{"$f":"IF(ISNUMBER(SEARCH(STATEMENT!$F$9,Table4[Customer\nالعميل])),MAX($A$1:A927)+1,0)","v":0}]
[{"$f":"IF(ISNUMBER(SEARCH(STATEMENT!$F$9,Table4[Customer\nالعميل])),MAX($A$1:A928)+1,0)","v":0}]
[{"$f":"IF(ISNUMBER(SEARCH(STATEMENT!$F$9,Table4[Customer\nالعميل])),MAX($A$1:A929)+1,0)","v":0}]
[{"$f":"IF(ISNUMBER(SEARCH(STATEMENT!$F$9,Table4[Customer\nالعميل])),MAX($A$1:A930)+1,0)","v":0}]
[{"$f":"IF(ISNUMBER(SEARCH(STATEMENT!$F$9,Table4[Customer\nالعميل])),MAX($A$1:A931)+1,0)","v":0}]
[{"$f":"IF(ISNUMBER(SEARCH(STATEMENT!$F$9,Table4[Customer\nالعميل])),MAX($A$1:A932)+1,0)","v":0}]
[{"$f":"IF(ISNUMBER(SEARCH(STATEMENT!$F$9,Table4[Customer\nالعميل])),MAX($A$1:A933)+1,0)","v":0}]
[{"$f":"IF(ISNUMBER(SEARCH(STATEMENT!$F$9,Table4[Customer\nالعميل])),MAX($A$1:A934)+1,0)","v":0}]
[{"$f":"IF(ISNUMBER(SEARCH(STATEMENT!$F$9,Table4[Customer\nالعميل])),MAX($A$1:A935)+1,0)","v":0}]
[{"$f":"IF(ISNUMBER(SEARCH(STATEMENT!$F$9,Table4[Customer\nالعميل])),MAX($A$1:A936)+1,0)","v":0}]
[{"$f":"IF(ISNUMBER(SEARCH(STATEMENT!$F$9,Table4[Customer\nالعميل])),MAX($A$1:A937)+1,0)","v":0}]
[{"$f":"IF(ISNUMBER(SEARCH(STATEMENT!$F$9,Table4[Customer\nالعميل])),MAX($A$1:A938)+1,0)","v":0}]
[{"$f":"IF(ISNUMBER(SEARCH(STATEMENT!$F$9,Table4[Customer\nالعميل])),MAX($A$1:A939)+1,0)","v":0}]
[{"$f":"IF(ISNUMBER(SEARCH(STATEMENT!$F$9,Table4[Customer\nالعميل])),MAX($A$1:A940)+1,0)","v":0}]
[{"$f":"IF(ISNUMBER(SEARCH(STATEMENT!$F$9,Table4[Customer\nالعميل])),MAX($A$1:A941)+1,0)","v":0}]
[{"$f":"IF(ISNUMBER(SEARCH(STATEMENT!$F$9,Table4[Customer\nالعميل])),MAX($A$1:A942)+1,0)","v":0}]
[{"$f":"IF(ISNUMBER(SEARCH(STATEMENT!$F$9,Table4[Customer\nالعميل])),MAX($A$1:A943)+1,0)","v":0}]
[{"$f":"IF(ISNUMBER(SEARCH(STATEMENT!$F$9,Table4[Customer\nالعميل])),MAX($A$1:A944)+1,0)","v":0}]
[{"$f":"IF(ISNUMBER(SEARCH(STATEMENT!$F$9,Table4[Customer\nالعميل])),MAX($A$1:A945)+1,0)","v":0}]
[{"$f":"IF(ISNUMBER(SEARCH(STATEMENT!$F$9,Table4[Customer\nالعميل])),MAX($A$1:A946)+1,0)","v":0}]
[{"$f":"IF(ISNUMBER(SEARCH(STATEMENT!$F$9,Table4[Customer\nالعميل])),MAX($A$1:A947)+1,0)","v":0}]
[{"$f":"IF(ISNUMBER(SEARCH(STATEMENT!$F$9,Table4[Customer\nالعميل])),MAX($A$1:A948)+1,0)","v":0}]
[{"$f":"IF(ISNUMBER(SEARCH(STATEMENT!$F$9,Table4[Customer\nالعميل])),MAX($A$1:A949)+1,0)","v":0}]
[{"$f":"IF(ISNUMBER(SEARCH(STATEMENT!$F$9,Table4[Customer\nالعميل])),MAX($A$1:A950)+1,0)","v":0}]
[{"$f":"IF(ISNUMBER(SEARCH(STATEMENT!$F$9,Table4[Customer\nالعميل])),MAX($A$1:A951)+1,0)","v":0}]
[{"$f":"IF(ISNUMBER(SEARCH(STATEMENT!$F$9,Table4[Customer\nالعميل])),MAX($A$1:A952)+1,0)","v":0}]
[{"$f":"IF(ISNUMBER(SEARCH(STATEMENT!$F$9,Table4[Customer\nالعميل])),MAX($A$1:A953)+1,0)","v":0}]
[{"$f":"IF(ISNUMBER(SEARCH(STATEMENT!$F$9,Table4[Customer\nالعميل])),MAX($A$1:A954)+1,0)","v":0}]
[{"$f":"IF(ISNUMBER(SEARCH(STATEMENT!$F$9,Table4[Customer\nالعميل])),MAX($A$1:A955)+1,0)","v":0}]
[{"$f":"IF(ISNUMBER(SEARCH(STATEMENT!$F$9,Table4[Customer\nالعميل])),MAX($A$1:A956)+1,0)","v":0}]
[{"$f":"IF(ISNUMBER(SEARCH(STATEMENT!$F$9,Table4[Customer\nالعميل])),MAX($A$1:A957)+1,0)","v":0}]
[{"$f":"IF(ISNUMBER(SEARCH(STATEMENT!$F$9,Table4[Customer\nالعميل])),MAX($A$1:A958)+1,0)","v":0}]
[{"$f":"IF(ISNUMBER(SEARCH(STATEMENT!$F$9,Table4[Customer\nالعميل])),MAX($A$1:A959)+1,0)","v":0}]
[{"$f":"IF(ISNUMBER(SEARCH(STATEMENT!$F$9,Table4[Customer\nالعميل])),MAX($A$1:A960)+1,0)","v":0}]
[{"$f":"IF(ISNUMBER(SEARCH(STATEMENT!$F$9,Table4[Customer\nالعميل])),MAX($A$1:A961)+1,0)","v":0}]
[{"$f":"IF(ISNUMBER(SEARCH(STATEMENT!$F$9,Table4[Customer\nالعميل])),MAX($A$1:A962)+1,0)","v":0}]
[{"$f":"IF(ISNUMBER(SEARCH(STATEMENT!$F$9,Table4[Customer\nالعميل])),MAX($A$1:A963)+1,0)","v":0}]
[{"$f":"IF(ISNUMBER(SEARCH(STATEMENT!$F$9,Table4[Customer\nالعميل])),MAX($A$1:A964)+1,0)","v":0}]
[{"$f":"IF(ISNUMBER(SEARCH(STATEMENT!$F$9,Table4[Customer\nالعميل])),MAX($A$1:A965)+1,0)","v":0}]
[{"$f":"IF(ISNUMBER(SEARCH(STATEMENT!$F$9,Table4[Customer\nالعميل])),MAX($A$1:A966)+1,0)","v":0}]
[{"$f":"IF(ISNUMBER(SEARCH(STATEMENT!$F$9,Table4[Customer\nالعميل])),MAX($A$1:A967)+1,0)","v":0}]
[{"$f":"IF(ISNUMBER(SEARCH(STATEMENT!$F$9,Table4[Customer\nالعميل])),MAX($A$1:A968)+1,0)","v":0}]
[{"$f":"IF(ISNUMBER(SEARCH(STATEMENT!$F$9,Table4[Customer\nالعميل])),MAX($A$1:A969)+1,0)","v":0}]
[{"$f":"IF(ISNUMBER(SEARCH(STATEMENT!$F$9,Table4[Customer\nالعميل])),MAX($A$1:A970)+1,0)","v":0}]
[{"$f":"IF(ISNUMBER(SEARCH(STATEMENT!$F$9,Table4[Customer\nالعميل])),MAX($A$1:A971)+1,0)","v":0}]
[{"$f":"IF(ISNUMBER(SEARCH(STATEMENT!$F$9,Table4[Customer\nالعميل])),MAX($A$1:A972)+1,0)","v":0}]
[{"$f":"IF(ISNUMBER(SEARCH(STATEMENT!$F$9,Table4[Customer\nالعميل])),MAX($A$1:A973)+1,0)","v":0}]
[{"$f":"IF(ISNUMBER(SEARCH(STATEMENT!$F$9,Table4[Customer\nالعميل])),MAX($A$1:A974)+1,0)","v":0}]
[{"$f":"IF(ISNUMBER(SEARCH(STATEMENT!$F$9,Table4[Customer\nالعميل])),MAX($A$1:A975)+1,0)","v":0}]
[{"$f":"IF(ISNUMBER(SEARCH(STATEMENT!$F$9,Table4[Customer\nالعميل])),MAX($A$1:A976)+1,0)","v":0}]
[{"$f":"IF(ISNUMBER(SEARCH(STATEMENT!$F$9,Table4[Customer\nالعميل])),MAX($A$1:A977)+1,0)","v":0}]
[{"$f":"IF(ISNUMBER(SEARCH(STATEMENT!$F$9,Table4[Customer\nالعميل])),MAX($A$1:A978)+1,0)","v":0}]
[{"$f":"IF(ISNUMBER(SEARCH(STATEMENT!$F$9,Table4[Customer\nالعميل])),MAX($A$1:A979)+1,0)","v":0}]
[{"$f":"IF(ISNUMBER(SEARCH(STATEMENT!$F$9,Table4[Customer\nالعميل])),MAX($A$1:A980)+1,0)","v":0}]
[{"$f":"IF(ISNUMBER(SEARCH(STATEMENT!$F$9,Table4[Customer\nالعميل])),MAX($A$1:A981)+1,0)","v":0}]
[{"$f":"IF(ISNUMBER(SEARCH(STATEMENT!$F$9,Table4[Customer\nالعميل])),MAX($A$1:A982)+1,0)","v":0}]
[{"$f":"IF(ISNUMBER(SEARCH(STATEMENT!$F$9,Table4[Customer\nالعميل])),MAX($A$1:A983)+1,0)","v":0}]
[{"$f":"IF(ISNUMBER(SEARCH(STATEMENT!$F$9,Table4[Customer\nالعميل])),MAX($A$1:A984)+1,0)","v":0}]
[{"$f":"IF(ISNUMBER(SEARCH(STATEMENT!$F$9,Table4[Customer\nالعميل])),MAX($A$1:A985)+1,0)","v":0}]
[{"$f":"IF(ISNUMBER(SEARCH(STATEMENT!$F$9,Table4[Customer\nالعميل])),MAX($A$1:A986)+1,0)","v":0}]
[{"$f":"IF(ISNUMBER(SEARCH(STATEMENT!$F$9,Table4[Customer\nالعميل])),MAX($A$1:A987)+1,0)","v":0}]
[{"$f":"IF(ISNUMBER(SEARCH(STATEMENT!$F$9,Table4[Customer\nالعميل])),MAX($A$1:A988)+1,0)","v":0}]
[{"$f":"IF(ISNUMBER(SEARCH(STATEMENT!$F$9,Table4[Customer\nالعميل])),MAX($A$1:A989)+1,0)","v":0}]
[{"$f":"IF(ISNUMBER(SEARCH(STATEMENT!$F$9,Table4[Customer\nالعميل])),MAX($A$1:A990)+1,0)","v":0}]
[{"$f":"IF(ISNUMBER(SEARCH(STATEMENT!$F$9,Table4[Customer\nالعميل])),MAX($A$1:A991)+1,0)","v":0}]
[{"$f":"IF(ISNUMBER(SEARCH(STATEMENT!$F$9,Table4[Customer\nالعميل])),MAX($A$1:A992)+1,0)","v":0}]
[{"$f":"IF(ISNUMBER(SEARCH(STATEMENT!$F$9,Table4[Customer\nالعميل])),MAX($A$1:A993)+1,0)","v":0}]
[{"$f":"IF(ISNUMBER(SEARCH(STATEMENT!$F$9,Table4[Customer\nالعميل])),MAX($A$1:A994)+1,0)","v":0}]
[{"$f":"IF(ISNUMBER(SEARCH(STATEMENT!$F$9,Table4[Customer\nالعميل])),MAX($A$1:A995)+1,0)","v":0}]
[{"$f":"IF(ISNUMBER(SEARCH(STATEMENT!$F$9,Table4[Customer\nالعميل])),MAX($A$1:A996)+1,0)","v":0}]
[{"$f":"IF(ISNUMBER(SEARCH(STATEMENT!$F$9,Table4[Customer\nالعميل])),MAX($A$1:A997)+1,0)","v":0}]
[{"$f":"IF(ISNUMBER(SEARCH(STATEMENT!$F$9,Table4[Customer\nالعميل])),MAX($A$1:A998)+1,0)","v":0}]
[{"$f":"IF(ISNUMBER(SEARCH(STATEMENT!$F$9,Table4[Customer\nالعميل])),MAX($A$1:A999)+1,0)","v":0}]
[{"$f":"IF(ISNUMBER(SEARCH(STATEMENT!$F$9,Table4[Customer\nالعميل])),MAX($A$1:A1000)+1,0)","v":0}]
[{"$f":"IF(ISNUMBER(SEARCH(STATEMENT!$F$9,Table4[Customer\nالعميل])),MAX($A$1:A1001)+1,0)","v":0}]
[{"$f":"IF(ISNUMBER(SEARCH(STATEMENT!$F$9,Table4[Customer\nالعميل])),MAX($A$1:A1002)+1,0)","v":0}]
[{"$f":"IF(ISNUMBER(SEARCH(STATEMENT!$F$9,Table4[Customer\nالعميل])),MAX($A$1:A1003)+1,0)","v":0}]
[{"$f":"IF(ISNUMBER(SEARCH(STATEMENT!$F$9,Table4[Customer\nالعميل])),MAX($A$1:A1004)+1,0)","v":0}]
[{"$f":"IF(ISNUMBER(SEARCH(STATEMENT!$F$9,Table4[Customer\nالعميل])),MAX($A$1:A1005)+1,0)","v":0}]
[{"$f":"IF(ISNUMBER(SEARCH(STATEMENT!$F$9,Table4[Customer\nالعميل])),MAX($A$1:A1006)+1,0)","v":0}]
[{"$f":"IF(ISNUMBER(SEARCH(STATEMENT!$F$9,Table4[Customer\nالعميل])),MAX($A$1:A1007)+1,0)","v":0}]
[{"$f":"IF(ISNUMBER(SEARCH(STATEMENT!$F$9,Table4[Customer\nالعميل])),MAX($A$1:A1008)+1,0)","v":0}]
[{"$f":"IF(ISNUMBER(SEARCH(STATEMENT!$F$9,Table4[Customer\nالعميل])),MAX($A$1:A1009)+1,0)","v":0}]
[{"$f":"IF(ISNUMBER(SEARCH(STATEMENT!$F$9,Table4[Customer\nالعميل])),MAX($A$1:A1010)+1,0)","v":0}]
[{"$f":"IF(ISNUMBER(SEARCH(STATEMENT!$F$9,Table4[Customer\nالعميل])),MAX($A$1:A1011)+1,0)","v":0}]
[{"$f":"IF(ISNUMBER(SEARCH(STATEMENT!$F$9,Table4[Customer\nالعميل])),MAX($A$1:A1012)+1,0)","v":0}]
[{"$f":"IF(ISNUMBER(SEARCH(STATEMENT!$F$9,Table4[Customer\nالعميل])),MAX($A$1:A1013)+1,0)","v":0}]
[{"$f":"IF(ISNUMBER(SEARCH(STATEMENT!$F$9,Table4[Customer\nالعميل])),MAX($A$1:A1014)+1,0)","v":0}]
[{"$f":"IF(ISNUMBER(SEARCH(STATEMENT!$F$9,Table4[Customer\nالعميل])),MAX($A$1:A1015)+1,0)","v":0}]
[{"$f":"IF(ISNUMBER(SEARCH(STATEMENT!$F$9,Table4[Customer\nالعميل])),MAX($A$1:A1016)+1,0)","v":0}]
[{"$f":"IF(ISNUMBER(SEARCH(STATEMENT!$F$9,Table4[Customer\nالعميل])),MAX($A$1:A1017)+1,0)","v":0}]
[{"$f":"IF(ISNUMBER(SEARCH(STATEMENT!$F$9,Table4[Customer\nالعميل])),MAX($A$1:A1018)+1,0)","v":0}]
[{"$f":"IF(ISNUMBER(SEARCH(STATEMENT!$F$9,Table4[Customer\nالعميل])),MAX($A$1:A1019)+1,0)","v":0}]
[{"$f":"IF(ISNUMBER(SEARCH(STATEMENT!$F$9,Table4[Customer\nالعميل])),MAX($A$1:A1020)+1,0)","v":0}]
[{"$f":"IF(ISNUMBER(SEARCH(STATEMENT!$F$9,Table4[Customer\nالعميل])),MAX($A$1:A1021)+1,0)","v":0}]
[{"$f":"IF(ISNUMBER(SEARCH(STATEMENT!$F$9,Table4[Customer\nالعميل])),MAX($A$1:A1022)+1,0)","v":0}]
[{"$f":"IF(ISNUMBER(SEARCH(STATEMENT!$F$9,Table4[Customer\nالعميل])),MAX($A$1:A1023)+1,0)","v":0}]
[{"$f":"IF(ISNUMBER(SEARCH(STATEMENT!$F$9,Table4[Customer\nالعميل])),MAX($A$1:A1024)+1,0)","v":0}]
[{"$f":"IF(ISNUMBER(SEARCH(STATEMENT!$F$9,Table4[Customer\nالعميل])),MAX($A$1:A1025)+1,0)","v":0}]
[{"$f":"IF(ISNUMBER(SEARCH(STATEMENT!$F$9,Table4[Customer\nالعميل])),MAX($A$1:A1026)+1,0)","v":0}]
[{"$f":"IF(ISNUMBER(SEARCH(STATEMENT!$F$9,Table4[Customer\nالعميل])),MAX($A$1:A1027)+1,0)","v":0}]
[{"$f":"IF(ISNUMBER(SEARCH(STATEMENT!$F$9,Table4[Customer\nالعميل])),MAX($A$1:A1028)+1,0)","v":0}]
[{"$f":"IF(ISNUMBER(SEARCH(STATEMENT!$F$9,Table4[Customer\nالعميل])),MAX($A$1:A1029)+1,0)","v":0}]
[{"$f":"IF(ISNUMBER(SEARCH(STATEMENT!$F$9,Table4[Customer\nالعميل])),MAX($A$1:A1030)+1,0)","v":0}]
[{"$f":"IF(ISNUMBER(SEARCH(STATEMENT!$F$9,Table4[Customer\nالعميل])),MAX($A$1:A1031)+1,0)","v":0}]
[{"$f":"IF(ISNUMBER(SEARCH(STATEMENT!$F$9,Table4[Customer\nالعميل])),MAX($A$1:A1032)+1,0)","v":0}]
[{"$f":"IF(ISNUMBER(SEARCH(STATEMENT!$F$9,Table4[Customer\nالعميل])),MAX($A$1:A1033)+1,0)","v":0}]
[{"$f":"IF(ISNUMBER(SEARCH(STATEMENT!$F$9,Table4[Customer\nالعميل])),MAX($A$1:A1034)+1,0)","v":0}]
[{"$f":"IF(ISNUMBER(SEARCH(STATEMENT!$F$9,Table4[Customer\nالعميل])),MAX($A$1:A1035)+1,0)","v":0}]
[{"$f":"IF(ISNUMBER(SEARCH(STATEMENT!$F$9,Table4[Customer\nالعميل])),MAX($A$1:A1036)+1,0)","v":0}]
[{"$f":"IF(ISNUMBER(SEARCH(STATEMENT!$F$9,Table4[Customer\nالعميل])),MAX($A$1:A1037)+1,0)","v":0}]
[{"$f":"IF(ISNUMBER(SEARCH(STATEMENT!$F$9,Table4[Customer\nالعميل])),MAX($A$1:A1038)+1,0)","v":0}]
[{"$f":"IF(ISNUMBER(SEARCH(STATEMENT!$F$9,Table4[Customer\nالعميل])),MAX($A$1:A1039)+1,0)","v":0}]
[{"$f":"IF(ISNUMBER(SEARCH(STATEMENT!$F$9,Table4[Customer\nالعميل])),MAX($A$1:A1040)+1,0)","v":0}]
[{"$f":"IF(ISNUMBER(SEARCH(STATEMENT!$F$9,Table4[Customer\nالعميل])),MAX($A$1:A1041)+1,0)","v":0}]
[{"$f":"IF(ISNUMBER(SEARCH(STATEMENT!$F$9,Table4[Customer\nالعميل])),MAX($A$1:A1042)+1,0)","v":0}]
[{"$f":"IF(ISNUMBER(SEARCH(STATEMENT!$F$9,Table4[Customer\nالعميل])),MAX($A$1:A1043)+1,0)","v":0}]
[{"$f":"IF(ISNUMBER(SEARCH(STATEMENT!$F$9,Table4[Customer\nالعميل])),MAX($A$1:A1044)+1,0)","v":0}]
[{"$f":"IF(ISNUMBER(SEARCH(STATEMENT!$F$9,Table4[Customer\nالعميل])),MAX($A$1:A1045)+1,0)","v":0}]
[{"$f":"IF(ISNUMBER(SEARCH(STATEMENT!$F$9,Table4[Customer\nالعميل])),MAX($A$1:A1046)+1,0)","v":0}]
[{"$f":"IF(ISNUMBER(SEARCH(STATEMENT!$F$9,Table4[Customer\nالعميل])),MAX($A$1:A1047)+1,0)","v":0}]
[{"$f":"IF(ISNUMBER(SEARCH(STATEMENT!$F$9,Table4[Customer\nالعميل])),MAX($A$1:A1048)+1,0)","v":0}]
[{"$f":"IF(ISNUMBER(SEARCH(STATEMENT!$F$9,Table4[Customer\nالعميل])),MAX($A$1:A1049)+1,0)","v":0}]
[{"$f":"IF(ISNUMBER(SEARCH(STATEMENT!$F$9,Table4[Customer\nالعميل])),MAX($A$1:A1050)+1,0)","v":0}]
[{"$f":"IF(ISNUMBER(SEARCH(STATEMENT!$F$9,Table4[Customer\nالعميل])),MAX($A$1:A1051)+1,0)","v":0}]
[{"$f":"IF(ISNUMBER(SEARCH(STATEMENT!$F$9,Table4[Customer\nالعميل])),MAX($A$1:A1052)+1,0)","v":0}]
[{"$f":"IF(ISNUMBER(SEARCH(STATEMENT!$F$9,Table4[Customer\nالعميل])),MAX($A$1:A1053)+1,0)","v":0}]
[{"$f":"IF(ISNUMBER(SEARCH(STATEMENT!$F$9,Table4[Customer\nالعميل])),MAX($A$1:A1054)+1,0)","v":0}]
[{"$f":"IF(ISNUMBER(SEARCH(STATEMENT!$F$9,Table4[Customer\nالعميل])),MAX($A$1:A1055)+1,0)","v":0}]
[{"$f":"IF(ISNUMBER(SEARCH(STATEMENT!$F$9,Table4[Customer\nالعميل])),MAX($A$1:A1056)+1,0)","v":0}]
[{"$f":"IF(ISNUMBER(SEARCH(STATEMENT!$F$9,Table4[Customer\nالعميل])),MAX($A$1:A1057)+1,0)","v":0}]
[{"$f":"IF(ISNUMBER(SEARCH(STATEMENT!$F$9,Table4[Customer\nالعميل])),MAX($A$1:A1058)+1,0)","v":0}]
[{"$f":"IF(ISNUMBER(SEARCH(STATEMENT!$F$9,Table4[Customer\nالعميل])),MAX($A$1:A1059)+1,0)","v":0}]
[{"$f":"IF(ISNUMBER(SEARCH(STATEMENT!$F$9,Table4[Customer\nالعميل])),MAX($A$1:A1060)+1,0)","v":0}]
[{"$f":"IF(ISNUMBER(SEARCH(STATEMENT!$F$9,Table4[Customer\nالعميل])),MAX($A$1:A1061)+1,0)","v":0}]
[{"$f":"IF(ISNUMBER(SEARCH(STATEMENT!$F$9,Table4[Customer\nالعميل])),MAX($A$1:A1062)+1,0)","v":0}]
[{"$f":"IF(ISNUMBER(SEARCH(STATEMENT!$F$9,Table4[Customer\nالعميل])),MAX($A$1:A1063)+1,0)","v":0}]
[{"$f":"IF(ISNUMBER(SEARCH(STATEMENT!$F$9,Table4[Customer\nالعميل])),MAX($A$1:A1064)+1,0)","v":0}]
[{"$f":"IF(ISNUMBER(SEARCH(STATEMENT!$F$9,Table4[Customer\nالعميل])),MAX($A$1:A1065)+1,0)","v":0}]
[{"$f":"IF(ISNUMBER(SEARCH(STATEMENT!$F$9,Table4[Customer\nالعميل])),MAX($A$1:A1066)+1,0)","v":0}]
[{"$f":"IF(ISNUMBER(SEARCH(STATEMENT!$F$9,Table4[Customer\nالعميل])),MAX($A$1:A1067)+1,0)","v":0}]
[{"$f":"IF(ISNUMBER(SEARCH(STATEMENT!$F$9,Table4[Customer\nالعميل])),MAX($A$1:A1068)+1,0)","v":0}]
[{"$f":"IF(ISNUMBER(SEARCH(STATEMENT!$F$9,Table4[Customer\nالعميل])),MAX($A$1:A1069)+1,0)","v":0}]
[{"$f":"IF(ISNUMBER(SEARCH(STATEMENT!$F$9,Table4[Customer\nالعميل])),MAX($A$1:A1070)+1,0)","v":0}]
[{"$f":"IF(ISNUMBER(SEARCH(STATEMENT!$F$9,Table4[Customer\nالعميل])),MAX($A$1:A1071)+1,0)","v":0}]
[{"$f":"IF(ISNUMBER(SEARCH(STATEMENT!$F$9,Table4[Customer\nالعميل])),MAX($A$1:A1072)+1,0)","v":0}]
[{"$f":"IF(ISNUMBER(SEARCH(STATEMENT!$F$9,Table4[Customer\nالعميل])),MAX($A$1:A1073)+1,0)","v":0}]
[{"$f":"IF(ISNUMBER(SEARCH(STATEMENT!$F$9,Table4[Customer\nالعميل])),MAX($A$1:A1074)+1,0)","v":0}]
[{"$f":"IF(ISNUMBER(SEARCH(STATEMENT!$F$9,Table4[Customer\nالعميل])),MAX($A$1:A1075)+1,0)","v":0}]
[{"$f":"IF(ISNUMBER(SEARCH(STATEMENT!$F$9,Table4[Customer\nالعميل])),MAX($A$1:A1076)+1,0)","v":0}]
[{"$f":"IF(ISNUMBER(SEARCH(STATEMENT!$F$9,Table4[Customer\nالعميل])),MAX($A$1:A1077)+1,0)","v":0}]
[{"$f":"IF(ISNUMBER(SEARCH(STATEMENT!$F$9,Table4[Customer\nالعميل])),MAX($A$1:A1078)+1,0)","v":0}]
[{"$f":"IF(ISNUMBER(SEARCH(STATEMENT!$F$9,Table4[Customer\nالعميل])),MAX($A$1:A1079)+1,0)","v":0}]
[{"$f":"IF(ISNUMBER(SEARCH(STATEMENT!$F$9,Table4[Customer\nالعميل])),MAX($A$1:A1080)+1,0)","v":0}]
[{"$f":"IF(ISNUMBER(SEARCH(STATEMENT!$F$9,Table4[Customer\nالعميل])),MAX($A$1:A1081)+1,0)","v":0}]
[{"$f":"IF(ISNUMBER(SEARCH(STATEMENT!$F$9,Table4[Customer\nالعميل])),MAX($A$1:A1082)+1,0)","v":0}]
[{"$f":"IF(ISNUMBER(SEARCH(STATEMENT!$F$9,Table4[Customer\nالعميل])),MAX($A$1:A1083)+1,0)","v":0}]
[{"$f":"IF(ISNUMBER(SEARCH(STATEMENT!$F$9,Table4[Customer\nالعميل])),MAX($A$1:A1084)+1,0)","v":0}]
[{"$f":"IF(ISNUMBER(SEARCH(STATEMENT!$F$9,Table4[Customer\nالعميل])),MAX($A$1:A1085)+1,0)","v":0}]
[{"$f":"IF(ISNUMBER(SEARCH(STATEMENT!$F$9,Table4[Customer\nالعميل])),MAX($A$1:A1086)+1,0)","v":0}]
[{"$f":"IF(ISNUMBER(SEARCH(STATEMENT!$F$9,Table4[Customer\nالعميل])),MAX($A$1:A1087)+1,0)","v":0}]
[{"$f":"IF(ISNUMBER(SEARCH(STATEMENT!$F$9,Table4[Customer\nالعميل])),MAX($A$1:A1088)+1,0)","v":0}]
[{"$f":"IF(ISNUMBER(SEARCH(STATEMENT!$F$9,Table4[Customer\nالعميل])),MAX($A$1:A1089)+1,0)","v":0}]
[{"$f":"IF(ISNUMBER(SEARCH(STATEMENT!$F$9,Table4[Customer\nالعميل])),MAX($A$1:A1090)+1,0)","v":0}]
[{"$f":"IF(ISNUMBER(SEARCH(STATEMENT!$F$9,Table4[Customer\nالعميل])),MAX($A$1:A1091)+1,0)","v":0}]
[{"$f":"IF(ISNUMBER(SEARCH(STATEMENT!$F$9,Table4[Customer\nالعميل])),MAX($A$1:A1092)+1,0)","v":0}]
[{"$f":"IF(ISNUMBER(SEARCH(STATEMENT!$F$9,Table4[Customer\nالعميل])),MAX($A$1:A1093)+1,0)","v":0}]
[{"$f":"IF(ISNUMBER(SEARCH(STATEMENT!$F$9,Table4[Customer\nالعميل])),MAX($A$1:A1094)+1,0)","v":0}]
[{"$f":"IF(ISNUMBER(SEARCH(STATEMENT!$F$9,Table4[Customer\nالعميل])),MAX($A$1:A1095)+1,0)","v":0}]
[{"$f":"IF(ISNUMBER(SEARCH(STATEMENT!$F$9,Table4[Customer\nالعميل])),MAX($A$1:A1096)+1,0)","v":0}]
[{"$f":"IF(ISNUMBER(SEARCH(STATEMENT!$F$9,Table4[Customer\nالعميل])),MAX($A$1:A1097)+1,0)","v":0}]
[{"$f":"IF(ISNUMBER(SEARCH(STATEMENT!$F$9,Table4[Customer\nالعميل])),MAX($A$1:A1098)+1,0)","v":0}]
[{"$f":"IF(ISNUMBER(SEARCH(STATEMENT!$F$9,Table4[Customer\nالعميل])),MAX($A$1:A1099)+1,0)","v":0}]
[{"$f":"IF(ISNUMBER(SEARCH(STATEMENT!$F$9,Table4[Customer\nالعميل])),MAX($A$1:A1100)+1,0)","v":0}]
[{"$f":"IF(ISNUMBER(SEARCH(STATEMENT!$F$9,Table4[Customer\nالعميل])),MAX($A$1:A1101)+1,0)","v":0}]
[{"$f":"IF(ISNUMBER(SEARCH(STATEMENT!$F$9,Table4[Customer\nالعميل])),MAX($A$1:A1102)+1,0)","v":0}]
[{"$f":"IF(ISNUMBER(SEARCH(STATEMENT!$F$9,Table4[Customer\nالعميل])),MAX($A$1:A1103)+1,0)","v":0}]
[{"$f":"IF(ISNUMBER(SEARCH(STATEMENT!$F$9,Table4[Customer\nالعميل])),MAX($A$1:A1104)+1,0)","v":0}]
[{"$f":"IF(ISNUMBER(SEARCH(STATEMENT!$F$9,Table4[Customer\nالعميل])),MAX($A$1:A1105)+1,0)","v":0}]
[{"$f":"IF(ISNUMBER(SEARCH(STATEMENT!$F$9,Table4[Customer\nالعميل])),MAX($A$1:A1106)+1,0)","v":0}]
[{"$f":"IF(ISNUMBER(SEARCH(STATEMENT!$F$9,Table4[Customer\nالعميل])),MAX($A$1:A1107)+1,0)","v":0}]
[{"$f":"IF(ISNUMBER(SEARCH(STATEMENT!$F$9,Table4[Customer\nالعميل])),MAX($A$1:A1108)+1,0)","v":0}]
[{"$f":"IF(ISNUMBER(SEARCH(STATEMENT!$F$9,Table4[Customer\nالعميل])),MAX($A$1:A1109)+1,0)","v":0}]
[{"$f":"IF(ISNUMBER(SEARCH(STATEMENT!$F$9,Table4[Customer\nالعميل])),MAX($A$1:A1110)+1,0)","v":0}]
[{"$f":"IF(ISNUMBER(SEARCH(STATEMENT!$F$9,Table4[Customer\nالعميل])),MAX($A$1:A1111)+1,0)","v":0}]
[{"$f":"IF(ISNUMBER(SEARCH(STATEMENT!$F$9,Table4[Customer\nالعميل])),MAX($A$1:A1112)+1,0)","v":0}]
[{"$f":"IF(ISNUMBER(SEARCH(STATEMENT!$F$9,Table4[Customer\nالعميل])),MAX($A$1:A1113)+1,0)","v":0}]
[{"$f":"IF(ISNUMBER(SEARCH(STATEMENT!$F$9,Table4[Customer\nالعميل])),MAX($A$1:A1114)+1,0)","v":0}]
[{"$f":"IF(ISNUMBER(SEARCH(STATEMENT!$F$9,Table4[Customer\nالعميل])),MAX($A$1:A1115)+1,0)","v":0}]
[{"$f":"IF(ISNUMBER(SEARCH(STATEMENT!$F$9,Table4[Customer\nالعميل])),MAX($A$1:A1116)+1,0)","v":0}]
[{"$f":"IF(ISNUMBER(SEARCH(STATEMENT!$F$9,Table4[Customer\nالعميل])),MAX($A$1:A1117)+1,0)","v":0}]
[{"$f":"IF(ISNUMBER(SEARCH(STATEMENT!$F$9,Table4[Customer\nالعميل])),MAX($A$1:A1118)+1,0)","v":0}]
[{"$f":"IF(ISNUMBER(SEARCH(STATEMENT!$F$9,Table4[Customer\nالعميل])),MAX($A$1:A1119)+1,0)","v":0}]
[{"$f":"IF(ISNUMBER(SEARCH(STATEMENT!$F$9,Table4[Customer\nالعميل])),MAX($A$1:A1120)+1,0)","v":0}]
[{"$f":"IF(ISNUMBER(SEARCH(STATEMENT!$F$9,Table4[Customer\nالعميل])),MAX($A$1:A1121)+1,0)","v":0}]
[{"$f":"IF(ISNUMBER(SEARCH(STATEMENT!$F$9,Table4[Customer\nالعميل])),MAX($A$1:A1122)+1,0)","v":0}]
[{"$f":"IF(ISNUMBER(SEARCH(STATEMENT!$F$9,Table4[Customer\nالعميل])),MAX($A$1:A1123)+1,0)","v":0}]
[{"$f":"IF(ISNUMBER(SEARCH(STATEMENT!$F$9,Table4[Customer\nالعميل])),MAX($A$1:A1124)+1,0)","v":0}]
[{"$f":"IF(ISNUMBER(SEARCH(STATEMENT!$F$9,Table4[Customer\nالعميل])),MAX($A$1:A1125)+1,0)","v":0}]
[{"$f":"IF(ISNUMBER(SEARCH(STATEMENT!$F$9,Table4[Customer\nالعميل])),MAX($A$1:A1126)+1,0)","v":0}]
[{"$f":"IF(ISNUMBER(SEARCH(STATEMENT!$F$9,Table4[Customer\nالعميل])),MAX($A$1:A1127)+1,0)","v":0}]
[{"$f":"IF(ISNUMBER(SEARCH(STATEMENT!$F$9,Table4[Customer\nالعميل])),MAX($A$1:A1128)+1,0)","v":0}]
[{"$f":"IF(ISNUMBER(SEARCH(STATEMENT!$F$9,Table4[Customer\nالعميل])),MAX($A$1:A1129)+1,0)","v":0}]
[{"$f":"IF(ISNUMBER(SEARCH(STATEMENT!$F$9,Table4[Customer\nالعميل])),MAX($A$1:A1130)+1,0)","v":0}]
[{"$f":"IF(ISNUMBER(SEARCH(STATEMENT!$F$9,Table4[Customer\nالعميل])),MAX($A$1:A1131)+1,0)","v":0}]
[{"$f":"IF(ISNUMBER(SEARCH(STATEMENT!$F$9,Table4[Customer\nالعميل])),MAX($A$1:A1132)+1,0)","v":0}]
[{"$f":"IF(ISNUMBER(SEARCH(STATEMENT!$F$9,Table4[Customer\nالعميل])),MAX($A$1:A1133)+1,0)","v":0}]
[{"$f":"IF(ISNUMBER(SEARCH(STATEMENT!$F$9,Table4[Customer\nالعميل])),MAX($A$1:A1134)+1,0)","v":0}]
[{"$f":"IF(ISNUMBER(SEARCH(STATEMENT!$F$9,Table4[Customer\nالعميل])),MAX($A$1:A1135)+1,0)","v":0}]
[{"$f":"IF(ISNUMBER(SEARCH(STATEMENT!$F$9,Table4[Customer\nالعميل])),MAX($A$1:A1136)+1,0)","v":0}]
[{"$f":"IF(ISNUMBER(SEARCH(STATEMENT!$F$9,Table4[Customer\nالعميل])),MAX($A$1:A1137)+1,0)","v":0}]
[{"$f":"IF(ISNUMBER(SEARCH(STATEMENT!$F$9,Table4[Customer\nالعميل])),MAX($A$1:A1138)+1,0)","v":0}]
[{"$f":"IF(ISNUMBER(SEARCH(STATEMENT!$F$9,Table4[Customer\nالعميل])),MAX($A$1:A1139)+1,0)","v":0}]
[{"$f":"IF(ISNUMBER(SEARCH(STATEMENT!$F$9,Table4[Customer\nالعميل])),MAX($A$1:A1140)+1,0)","v":0}]
[{"$f":"IF(ISNUMBER(SEARCH(STATEMENT!$F$9,Table4[Customer\nالعميل])),MAX($A$1:A1141)+1,0)","v":0}]
[{"$f":"IF(ISNUMBER(SEARCH(STATEMENT!$F$9,Table4[Customer\nالعميل])),MAX($A$1:A1142)+1,0)","v":0}]
[{"$f":"IF(ISNUMBER(SEARCH(STATEMENT!$F$9,Table4[Customer\nالعميل])),MAX($A$1:A1143)+1,0)","v":0}]
[{"$f":"IF(ISNUMBER(SEARCH(STATEMENT!$F$9,Table4[Customer\nالعميل])),MAX($A$1:A1144)+1,0)","v":0}]
[{"$f":"IF(ISNUMBER(SEARCH(STATEMENT!$F$9,Table4[Customer\nالعميل])),MAX($A$1:A1145)+1,0)","v":0}]
[{"$f":"IF(ISNUMBER(SEARCH(STATEMENT!$F$9,Table4[Customer\nالعميل])),MAX($A$1:A1146)+1,0)","v":0}]
[{"$f":"IF(ISNUMBER(SEARCH(STATEMENT!$F$9,Table4[Customer\nالعميل])),MAX($A$1:A1147)+1,0)","v":0}]
[{"$f":"IF(ISNUMBER(SEARCH(STATEMENT!$F$9,Table4[Customer\nالعميل])),MAX($A$1:A1148)+1,0)","v":0}]
[{"$f":"IF(ISNUMBER(SEARCH(STATEMENT!$F$9,Table4[Customer\nالعميل])),MAX($A$1:A1149)+1,0)","v":0}]
[{"$f":"IF(ISNUMBER(SEARCH(STATEMENT!$F$9,Table4[Customer\nالعميل])),MAX($A$1:A1150)+1,0)","v":0}]
[{"$f":"IF(ISNUMBER(SEARCH(STATEMENT!$F$9,Table4[Customer\nالعميل])),MAX($A$1:A1151)+1,0)","v":0}]
[{"$f":"IF(ISNUMBER(SEARCH(STATEMENT!$F$9,Table4[Customer\nالعميل])),MAX($A$1:A1152)+1,0)","v":0}]
[{"$f":"IF(ISNUMBER(SEARCH(STATEMENT!$F$9,Table4[Customer\nالعميل])),MAX($A$1:A1153)+1,0)","v":0}]
[{"$f":"IF(ISNUMBER(SEARCH(STATEMENT!$F$9,Table4[Customer\nالعميل])),MAX($A$1:A1154)+1,0)","v":0}]
[{"$f":"IF(ISNUMBER(SEARCH(STATEMENT!$F$9,Table4[Customer\nالعميل])),MAX($A$1:A1155)+1,0)","v":0}]
[{"$f":"IF(ISNUMBER(SEARCH(STATEMENT!$F$9,Table4[Customer\nالعميل])),MAX($A$1:A1156)+1,0)","v":0}]
[{"$f":"IF(ISNUMBER(SEARCH(STATEMENT!$F$9,Table4[Customer\nالعميل])),MAX($A$1:A1157)+1,0)","v":0}]
[{"$f":"IF(ISNUMBER(SEARCH(STATEMENT!$F$9,Table4[Customer\nالعميل])),MAX($A$1:A1158)+1,0)","v":0}]
[{"$f":"IF(ISNUMBER(SEARCH(STATEMENT!$F$9,Table4[Customer\nالعميل])),MAX($A$1:A1159)+1,0)","v":0}]
[{"$f":"IF(ISNUMBER(SEARCH(STATEMENT!$F$9,Table4[Customer\nالعميل])),MAX($A$1:A1160)+1,0)","v":0}]
[{"$f":"IF(ISNUMBER(SEARCH(STATEMENT!$F$9,Table4[Customer\nالعميل])),MAX($A$1:A1161)+1,0)","v":0}]
[{"$f":"IF(ISNUMBER(SEARCH(STATEMENT!$F$9,Table4[Customer\nالعميل])),MAX($A$1:A1162)+1,0)","v":0}]
[{"$f":"IF(ISNUMBER(SEARCH(STATEMENT!$F$9,Table4[Customer\nالعميل])),MAX($A$1:A1163)+1,0)","v":0}]
[{"$f":"IF(ISNUMBER(SEARCH(STATEMENT!$F$9,Table4[Customer\nالعميل])),MAX($A$1:A1164)+1,0)","v":0}]
[{"$f":"IF(ISNUMBER(SEARCH(STATEMENT!$F$9,Table4[Customer\nالعميل])),MAX($A$1:A1165)+1,0)","v":0}]
[{"$f":"IF(ISNUMBER(SEARCH(STATEMENT!$F$9,Table4[Customer\nالعميل])),MAX($A$1:A1166)+1,0)","v":0}]
[{"$f":"IF(ISNUMBER(SEARCH(STATEMENT!$F$9,Table4[Customer\nالعميل])),MAX($A$1:A1167)+1,0)","v":0}]
[{"$f":"IF(ISNUMBER(SEARCH(STATEMENT!$F$9,Table4[Customer\nالعميل])),MAX($A$1:A1168)+1,0)","v":0}]
[{"$f":"IF(ISNUMBER(SEARCH(STATEMENT!$F$9,Table4[Customer\nالعميل])),MAX($A$1:A1169)+1,0)","v":0}]
[{"$f":"IF(ISNUMBER(SEARCH(STATEMENT!$F$9,Table4[Customer\nالعميل])),MAX($A$1:A1170)+1,0)","v":0}]
[{"$f":"IF(ISNUMBER(SEARCH(STATEMENT!$F$9,Table4[Customer\nالعميل])),MAX($A$1:A1171)+1,0)","v":0}]
[{"$f":"IF(ISNUMBER(SEARCH(STATEMENT!$F$9,Table4[Customer\nالعميل])),MAX($A$1:A1172)+1,0)","v":0}]
[{"$f":"IF(ISNUMBER(SEARCH(STATEMENT!$F$9,Table4[Customer\nالعميل])),MAX($A$1:A1173)+1,0)","v":0}]
[{"$f":"IF(ISNUMBER(SEARCH(STATEMENT!$F$9,Table4[Customer\nالعميل])),MAX($A$1:A1174)+1,0)","v":0}]
[{"$f":"IF(ISNUMBER(SEARCH(STATEMENT!$F$9,Table4[Customer\nالعميل])),MAX($A$1:A1175)+1,0)","v":0}]
[{"$f":"IF(ISNUMBER(SEARCH(STATEMENT!$F$9,Table4[Customer\nالعميل])),MAX($A$1:A1176)+1,0)","v":0}]
[{"$f":"IF(ISNUMBER(SEARCH(STATEMENT!$F$9,Table4[Customer\nالعميل])),MAX($A$1:A1177)+1,0)","v":0}]
[{"$f":"IF(ISNUMBER(SEARCH(STATEMENT!$F$9,Table4[Customer\nالعميل])),MAX($A$1:A1178)+1,0)","v":0}]
[{"$f":"IF(ISNUMBER(SEARCH(STATEMENT!$F$9,Table4[Customer\nالعميل])),MAX($A$1:A1179)+1,0)","v":0}]
[{"$f":"IF(ISNUMBER(SEARCH(STATEMENT!$F$9,Table4[Customer\nالعميل])),MAX($A$1:A1180)+1,0)","v":0}]
[{"$f":"IF(ISNUMBER(SEARCH(STATEMENT!$F$9,Table4[Customer\nالعميل])),MAX($A$1:A1181)+1,0)","v":0}]
[{"$f":"IF(ISNUMBER(SEARCH(STATEMENT!$F$9,Table4[Customer\nالعميل])),MAX($A$1:A1182)+1,0)","v":0}]
[{"$f":"IF(ISNUMBER(SEARCH(STATEMENT!$F$9,Table4[Customer\nالعميل])),MAX($A$1:A1183)+1,0)","v":0}]
[{"$f":"IF(ISNUMBER(SEARCH(STATEMENT!$F$9,Table4[Customer\nالعميل])),MAX($A$1:A1184)+1,0)","v":0}]
[{"$f":"IF(ISNUMBER(SEARCH(STATEMENT!$F$9,Table4[Customer\nالعميل])),MAX($A$1:A1185)+1,0)","v":0}]
[{"$f":"IF(ISNUMBER(SEARCH(STATEMENT!$F$9,Table4[Customer\nالعميل])),MAX($A$1:A1186)+1,0)","v":0}]
[{"$f":"IF(ISNUMBER(SEARCH(STATEMENT!$F$9,Table4[Customer\nالعميل])),MAX($A$1:A1187)+1,0)","v":0}]
[{"$f":"IF(ISNUMBER(SEARCH(STATEMENT!$F$9,Table4[Customer\nالعميل])),MAX($A$1:A1188)+1,0)","v":0}]
[{"$f":"IF(ISNUMBER(SEARCH(STATEMENT!$F$9,Table4[Customer\nالعميل])),MAX($A$1:A1189)+1,0)","v":0}]
[{"$f":"IF(ISNUMBER(SEARCH(STATEMENT!$F$9,Table4[Customer\nالعميل])),MAX($A$1:A1190)+1,0)","v":0}]
[{"$f":"IF(ISNUMBER(SEARCH(STATEMENT!$F$9,Table4[Customer\nالعميل])),MAX($A$1:A1191)+1,0)","v":0}]
[{"$f":"IF(ISNUMBER(SEARCH(STATEMENT!$F$9,Table4[Customer\nالعميل])),MAX($A$1:A1192)+1,0)","v":0}]
[{"$f":"IF(ISNUMBER(SEARCH(STATEMENT!$F$9,Table4[Customer\nالعميل])),MAX($A$1:A1193)+1,0)","v":0}]
[{"$f":"IF(ISNUMBER(SEARCH(STATEMENT!$F$9,Table4[Customer\nالعميل])),MAX($A$1:A1194)+1,0)","v":0}]
[{"$f":"IF(ISNUMBER(SEARCH(STATEMENT!$F$9,Table4[Customer\nالعميل])),MAX($A$1:A1195)+1,0)","v":0}]
[{"$f":"IF(ISNUMBER(SEARCH(STATEMENT!$F$9,Table4[Customer\nالعميل])),MAX($A$1:A1196)+1,0)","v":0}]
[{"$f":"IF(ISNUMBER(SEARCH(STATEMENT!$F$9,Table4[Customer\nالعميل])),MAX($A$1:A1197)+1,0)","v":0}]
[{"$f":"IF(ISNUMBER(SEARCH(STATEMENT!$F$9,Table4[Customer\nالعميل])),MAX($A$1:A1198)+1,0)","v":0}]
[{"$f":"IF(ISNUMBER(SEARCH(STATEMENT!$F$9,Table4[Customer\nالعميل])),MAX($A$1:A1199)+1,0)","v":0}]
[{"$f":"IF(ISNUMBER(SEARCH(STATEMENT!$F$9,Table4[Customer\nالعميل])),MAX($A$1:A1200)+1,0)","v":0}]
[{"$f":"IF(ISNUMBER(SEARCH(STATEMENT!$F$9,Table4[Customer\nالعميل])),MAX($A$1:A1201)+1,0)","v":0}]
[{"$f":"IF(ISNUMBER(SEARCH(STATEMENT!$F$9,Table4[Customer\nالعميل])),MAX($A$1:A1202)+1,0)","v":0}]
[{"$f":"IF(ISNUMBER(SEARCH(STATEMENT!$F$9,Table4[Customer\nالعميل])),MAX($A$1:A1203)+1,0)","v":0}]
[{"$f":"IF(ISNUMBER(SEARCH(STATEMENT!$F$9,Table4[Customer\nالعميل])),MAX($A$1:A1204)+1,0)","v":0}]
[{"$f":"IF(ISNUMBER(SEARCH(STATEMENT!$F$9,Table4[Customer\nالعميل])),MAX($A$1:A1205)+1,0)","v":0}]
[{"$f":"IF(ISNUMBER(SEARCH(STATEMENT!$F$9,Table4[Customer\nالعميل])),MAX($A$1:A1206)+1,0)","v":0}]
[{"$f":"IF(ISNUMBER(SEARCH(STATEMENT!$F$9,Table4[Customer\nالعميل])),MAX($A$1:A1207)+1,0)","v":0}]
[{"$f":"IF(ISNUMBER(SEARCH(STATEMENT!$F$9,Table4[Customer\nالعميل])),MAX($A$1:A1208)+1,0)","v":0}]
[{"$f":"IF(ISNUMBER(SEARCH(STATEMENT!$F$9,Table4[Customer\nالعميل])),MAX($A$1:A1209)+1,0)","v":0}]
[{"$f":"IF(ISNUMBER(SEARCH(STATEMENT!$F$9,Table4[Customer\nالعميل])),MAX($A$1:A1210)+1,0)","v":0}]
[{"$f":"IF(ISNUMBER(SEARCH(STATEMENT!$F$9,Table4[Customer\nالعميل])),MAX($A$1:A1211)+1,0)","v":0}]
[{"$f":"IF(ISNUMBER(SEARCH(STATEMENT!$F$9,Table4[Customer\nالعميل])),MAX($A$1:A1212)+1,0)","v":0}]
[{"$f":"IF(ISNUMBER(SEARCH(STATEMENT!$F$9,Table4[Customer\nالعميل])),MAX($A$1:A1213)+1,0)","v":0}]
[{"$f":"IF(ISNUMBER(SEARCH(STATEMENT!$F$9,Table4[Customer\nالعميل])),MAX($A$1:A1214)+1,0)","v":0}]
[{"$f":"IF(ISNUMBER(SEARCH(STATEMENT!$F$9,Table4[Customer\nالعميل])),MAX($A$1:A1215)+1,0)","v":0}]
[{"$f":"IF(ISNUMBER(SEARCH(STATEMENT!$F$9,Table4[Customer\nالعميل])),MAX($A$1:A1216)+1,0)","v":0}]
[{"$f":"IF(ISNUMBER(SEARCH(STATEMENT!$F$9,Table4[Customer\nالعميل])),MAX($A$1:A1217)+1,0)","v":0}]
[{"$f":"IF(ISNUMBER(SEARCH(STATEMENT!$F$9,Table4[Customer\nالعميل])),MAX($A$1:A1218)+1,0)","v":0}]
[{"$f":"IF(ISNUMBER(SEARCH(STATEMENT!$F$9,Table4[Customer\nالعميل])),MAX($A$1:A1219)+1,0)","v":0}]
[{"$f":"IF(ISNUMBER(SEARCH(STATEMENT!$F$9,Table4[Customer\nالعميل])),MAX($A$1:A1220)+1,0)","v":0}]
[{"$f":"IF(ISNUMBER(SEARCH(STATEMENT!$F$9,Table4[Customer\nالعميل])),MAX($A$1:A1221)+1,0)","v":0}]
[{"$f":"IF(ISNUMBER(SEARCH(STATEMENT!$F$9,Table4[Customer\nالعميل])),MAX($A$1:A1222)+1,0)","v":0}]
[{"$f":"IF(ISNUMBER(SEARCH(STATEMENT!$F$9,Table4[Customer\nالعميل])),MAX($A$1:A1223)+1,0)","v":0}]
[{"$f":"IF(ISNUMBER(SEARCH(STATEMENT!$F$9,Table4[Customer\nالعميل])),MAX($A$1:A1224)+1,0)","v":0}]
[{"$f":"IF(ISNUMBER(SEARCH(STATEMENT!$F$9,Table4[Customer\nالعميل])),MAX($A$1:A1225)+1,0)","v":0}]
[{"$f":"IF(ISNUMBER(SEARCH(STATEMENT!$F$9,Table4[Customer\nالعميل])),MAX($A$1:A1226)+1,0)","v":0}]
[{"$f":"IF(ISNUMBER(SEARCH(STATEMENT!$F$9,Table4[Customer\nالعميل])),MAX($A$1:A1227)+1,0)","v":0}]
[{"$f":"IF(ISNUMBER(SEARCH(STATEMENT!$F$9,Table4[Customer\nالعميل])),MAX($A$1:A1228)+1,0)","v":0}]
[{"$f":"IF(ISNUMBER(SEARCH(STATEMENT!$F$9,Table4[Customer\nالعميل])),MAX($A$1:A1229)+1,0)","v":0}]
[{"$f":"IF(ISNUMBER(SEARCH(STATEMENT!$F$9,Table4[Customer\nالعميل])),MAX($A$1:A1230)+1,0)","v":0}]
[{"$f":"IF(ISNUMBER(SEARCH(STATEMENT!$F$9,Table4[Customer\nالعميل])),MAX($A$1:A1231)+1,0)","v":0}]
[{"$f":"IF(ISNUMBER(SEARCH(STATEMENT!$F$9,Table4[Customer\nالعميل])),MAX($A$1:A1232)+1,0)","v":0}]
[{"$f":"IF(ISNUMBER(SEARCH(STATEMENT!$F$9,Table4[Customer\nالعميل])),MAX($A$1:A1233)+1,0)","v":0}]
[{"$f":"IF(ISNUMBER(SEARCH(STATEMENT!$F$9,Table4[Customer\nالعميل])),MAX($A$1:A1234)+1,0)","v":0}]
[{"$f":"IF(ISNUMBER(SEARCH(STATEMENT!$F$9,Table4[Customer\nالعميل])),MAX($A$1:A1235)+1,0)","v":0}]
[{"$f":"IF(ISNUMBER(SEARCH(STATEMENT!$F$9,Table4[Customer\nالعميل])),MAX($A$1:A1236)+1,0)","v":0}]
[{"$f":"IF(ISNUMBER(SEARCH(STATEMENT!$F$9,Table4[Customer\nالعميل])),MAX($A$1:A1237)+1,0)","v":0}]
[{"$f":"IF(ISNUMBER(SEARCH(STATEMENT!$F$9,Table4[Customer\nالعميل])),MAX($A$1:A1238)+1,0)","v":0}]
[{"$f":"IF(ISNUMBER(SEARCH(STATEMENT!$F$9,Table4[Customer\nالعميل])),MAX($A$1:A1239)+1,0)","v":0}]
[{"$f":"IF(ISNUMBER(SEARCH(STATEMENT!$F$9,Table4[Customer\nالعميل])),MAX($A$1:A1240)+1,0)","v":0}]
[{"$f":"IF(ISNUMBER(SEARCH(STATEMENT!$F$9,Table4[Customer\nالعميل])),MAX($A$1:A1241)+1,0)","v":0}]
[{"$f":"IF(ISNUMBER(SEARCH(STATEMENT!$F$9,Table4[Customer\nالعميل])),MAX($A$1:A1242)+1,0)","v":0}]
[{"$f":"IF(ISNUMBER(SEARCH(STATEMENT!$F$9,Table4[Customer\nالعميل])),MAX($A$1:A1243)+1,0)","v":0}]
[{"$f":"IF(ISNUMBER(SEARCH(STATEMENT!$F$9,Table4[Customer\nالعميل])),MAX($A$1:A1244)+1,0)","v":0}]
[{"$f":"IF(ISNUMBER(SEARCH(STATEMENT!$F$9,Table4[Customer\nالعميل])),MAX($A$1:A1245)+1,0)","v":0}]
[{"$f":"IF(ISNUMBER(SEARCH(STATEMENT!$F$9,Table4[Customer\nالعميل])),MAX($A$1:A1246)+1,0)","v":0}]
[{"$f":"IF(ISNUMBER(SEARCH(STATEMENT!$F$9,Table4[Customer\nالعميل])),MAX($A$1:A1247)+1,0)","v":0}]
[{"$f":"IF(ISNUMBER(SEARCH(STATEMENT!$F$9,Table4[Customer\nالعميل])),MAX($A$1:A1248)+1,0)","v":0}]
[{"$f":"IF(ISNUMBER(SEARCH(STATEMENT!$F$9,Table4[Customer\nالعميل])),MAX($A$1:A1249)+1,0)","v":0}]
[{"$f":"IF(ISNUMBER(SEARCH(STATEMENT!$F$9,Table4[Customer\nالعميل])),MAX($A$1:A1250)+1,0)","v":0}]
[{"$f":"IF(ISNUMBER(SEARCH(STATEMENT!$F$9,Table4[Customer\nالعميل])),MAX($A$1:A1251)+1,0)","v":0}]
[{"$f":"IF(ISNUMBER(SEARCH(STATEMENT!$F$9,Table4[Customer\nالعميل])),MAX($A$1:A1252)+1,0)","v":0}]
[{"$f":"IF(ISNUMBER(SEARCH(STATEMENT!$F$9,Table4[Customer\nالعميل])),MAX($A$1:A1253)+1,0)","v":0}]
[{"$f":"IF(ISNUMBER(SEARCH(STATEMENT!$F$9,Table4[Customer\nالعميل])),MAX($A$1:A1254)+1,0)","v":0}]
[{"$f":"IF(ISNUMBER(SEARCH(STATEMENT!$F$9,Table4[Customer\nالعميل])),MAX($A$1:A1255)+1,0)","v":0}]
[{"$f":"IF(ISNUMBER(SEARCH(STATEMENT!$F$9,Table4[Customer\nالعميل])),MAX($A$1:A1256)+1,0)","v":0}]
[{"$f":"IF(ISNUMBER(SEARCH(STATEMENT!$F$9,Table4[Customer\nالعميل])),MAX($A$1:A1257)+1,0)","v":0}]
[{"$f":"IF(ISNUMBER(SEARCH(STATEMENT!$F$9,Table4[Customer\nالعميل])),MAX($A$1:A1258)+1,0)","v":0}]
[{"$f":"IF(ISNUMBER(SEARCH(STATEMENT!$F$9,Table4[Customer\nالعميل])),MAX($A$1:A1259)+1,0)","v":0}]
[{"$f":"IF(ISNUMBER(SEARCH(STATEMENT!$F$9,Table4[Customer\nالعميل])),MAX($A$1:A1260)+1,0)","v":0}]
[{"$f":"IF(ISNUMBER(SEARCH(STATEMENT!$F$9,Table4[Customer\nالعميل])),MAX($A$1:A1261)+1,0)","v":0}]
[{"$f":"IF(ISNUMBER(SEARCH(STATEMENT!$F$9,Table4[Customer\nالعميل])),MAX($A$1:A1262)+1,0)","v":0}]
[{"$f":"IF(ISNUMBER(SEARCH(STATEMENT!$F$9,Table4[Customer\nالعميل])),MAX($A$1:A1263)+1,0)","v":0}]
[{"$f":"IF(ISNUMBER(SEARCH(STATEMENT!$F$9,Table4[Customer\nالعميل])),MAX($A$1:A1264)+1,0)","v":0}]
[{"$f":"IF(ISNUMBER(SEARCH(STATEMENT!$F$9,Table4[Customer\nالعميل])),MAX($A$1:A1265)+1,0)","v":0}]
[{"$f":"IF(ISNUMBER(SEARCH(STATEMENT!$F$9,Table4[Customer\nالعميل])),MAX($A$1:A1266)+1,0)","v":0}]
[{"$f":"IF(ISNUMBER(SEARCH(STATEMENT!$F$9,Table4[Customer\nالعميل])),MAX($A$1:A1267)+1,0)","v":0}]
[{"$f":"IF(ISNUMBER(SEARCH(STATEMENT!$F$9,Table4[Customer\nالعميل])),MAX($A$1:A1268)+1,0)","v":0}]
[{"$f":"IF(ISNUMBER(SEARCH(STATEMENT!$F$9,Table4[Customer\nالعميل])),MAX($A$1:A1269)+1,0)","v":0}]
[{"$f":"IF(ISNUMBER(SEARCH(STATEMENT!$F$9,Table4[Customer\nالعميل])),MAX($A$1:A1270)+1,0)","v":0}]
[{"$f":"IF(ISNUMBER(SEARCH(STATEMENT!$F$9,Table4[Customer\nالعميل])),MAX($A$1:A1271)+1,0)","v":0}]
[{"$f":"IF(ISNUMBER(SEARCH(STATEMENT!$F$9,Table4[Customer\nالعميل])),MAX($A$1:A1272)+1,0)","v":0}]
[{"$f":"IF(ISNUMBER(SEARCH(STATEMENT!$F$9,Table4[Customer\nالعميل])),MAX($A$1:A1273)+1,0)","v":0}]
[{"$f":"IF(ISNUMBER(SEARCH(STATEMENT!$F$9,Table4[Customer\nالعميل])),MAX($A$1:A1274)+1,0)","v":0}]
[{"$f":"IF(ISNUMBER(SEARCH(STATEMENT!$F$9,Table4[Customer\nالعميل])),MAX($A$1:A1275)+1,0)","v":0}]
[{"$f":"IF(ISNUMBER(SEARCH(STATEMENT!$F$9,Table4[Customer\nالعميل])),MAX($A$1:A1276)+1,0)","v":0}]
[{"$f":"IF(ISNUMBER(SEARCH(STATEMENT!$F$9,Table4[Customer\nالعميل])),MAX($A$1:A1277)+1,0)","v":0}]
[{"$f":"IF(ISNUMBER(SEARCH(STATEMENT!$F$9,Table4[Customer\nالعميل])),MAX($A$1:A1278)+1,0)","v":0}]
[{"$f":"IF(ISNUMBER(SEARCH(STATEMENT!$F$9,Table4[Customer\nالعميل])),MAX($A$1:A1279)+1,0)","v":0}]
[{"$f":"IF(ISNUMBER(SEARCH(STATEMENT!$F$9,Table4[Customer\nالعميل])),MAX($A$1:A1280)+1,0)","v":0}]
[{"$f":"IF(ISNUMBER(SEARCH(STATEMENT!$F$9,Table4[Customer\nالعميل])),MAX($A$1:A1281)+1,0)","v":0}]
[{"$f":"IF(ISNUMBER(SEARCH(STATEMENT!$F$9,Table4[Customer\nالعميل])),MAX($A$1:A1282)+1,0)","v":0}]
[{"$f":"IF(ISNUMBER(SEARCH(STATEMENT!$F$9,Table4[Customer\nالعميل])),MAX($A$1:A1283)+1,0)","v":0}]
[{"$f":"IF(ISNUMBER(SEARCH(STATEMENT!$F$9,Table4[Customer\nالعميل])),MAX($A$1:A1284)+1,0)","v":0}]
[{"$f":"IF(ISNUMBER(SEARCH(STATEMENT!$F$9,Table4[Customer\nالعميل])),MAX($A$1:A1285)+1,0)","v":0}]
[{"$f":"IF(ISNUMBER(SEARCH(STATEMENT!$F$9,Table4[Customer\nالعميل])),MAX($A$1:A1286)+1,0)","v":0}]
[{"$f":"IF(ISNUMBER(SEARCH(STATEMENT!$F$9,Table4[Customer\nالعميل])),MAX($A$1:A1287)+1,0)","v":0}]
[{"$f":"IF(ISNUMBER(SEARCH(STATEMENT!$F$9,Table4[Customer\nالعميل])),MAX($A$1:A1288)+1,0)","v":0}]
[{"$f":"IF(ISNUMBER(SEARCH(STATEMENT!$F$9,Table4[Customer\nالعميل])),MAX($A$1:A1289)+1,0)","v":0}]
[{"$f":"IF(ISNUMBER(SEARCH(STATEMENT!$F$9,Table4[Customer\nالعميل])),MAX($A$1:A1290)+1,0)","v":0}]
[{"$f":"IF(ISNUMBER(SEARCH(STATEMENT!$F$9,Table4[Customer\nالعميل])),MAX($A$1:A1291)+1,0)","v":0}]
[{"$f":"IF(ISNUMBER(SEARCH(STATEMENT!$F$9,Table4[Customer\nالعميل])),MAX($A$1:A1292)+1,0)","v":0}]
[{"$f":"IF(ISNUMBER(SEARCH(STATEMENT!$F$9,Table4[Customer\nالعميل])),MAX($A$1:A1293)+1,0)","v":0}]
[{"$f":"IF(ISNUMBER(SEARCH(STATEMENT!$F$9,Table4[Customer\nالعميل])),MAX($A$1:A1294)+1,0)","v":0}]
[{"$f":"IF(ISNUMBER(SEARCH(STATEMENT!$F$9,Table4[Customer\nالعميل])),MAX($A$1:A1295)+1,0)","v":0}]
[{"$f":"IF(ISNUMBER(SEARCH(STATEMENT!$F$9,Table4[Customer\nالعميل])),MAX($A$1:A1296)+1,0)","v":0}]
[{"$f":"IF(ISNUMBER(SEARCH(STATEMENT!$F$9,Table4[Customer\nالعميل])),MAX($A$1:A1297)+1,0)","v":0}]
[{"$f":"IF(ISNUMBER(SEARCH(STATEMENT!$F$9,Table4[Customer\nالعميل])),MAX($A$1:A1298)+1,0)","v":0}]
[{"$f":"IF(ISNUMBER(SEARCH(STATEMENT!$F$9,Table4[Customer\nالعميل])),MAX($A$1:A1299)+1,0)","v":0}]
[{"$f":"IF(ISNUMBER(SEARCH(STATEMENT!$F$9,Table4[Customer\nالعميل])),MAX($A$1:A1300)+1,0)","v":0}]
[{"$f":"IF(ISNUMBER(SEARCH(STATEMENT!$F$9,Table4[Customer\nالعميل])),MAX($A$1:A1301)+1,0)","v":0}]
[{"$f":"IF(ISNUMBER(SEARCH(STATEMENT!$F$9,Table4[Customer\nالعميل])),MAX($A$1:A1302)+1,0)","v":0}]
[{"$f":"IF(ISNUMBER(SEARCH(STATEMENT!$F$9,Table4[Customer\nالعميل])),MAX($A$1:A1303)+1,0)","v":0}]
[{"$f":"IF(ISNUMBER(SEARCH(STATEMENT!$F$9,Table4[Customer\nالعميل])),MAX($A$1:A1304)+1,0)","v":0}]
[{"$f":"IF(ISNUMBER(SEARCH(STATEMENT!$F$9,Table4[Customer\nالعميل])),MAX($A$1:A1305)+1,0)","v":0}]
[{"$f":"IF(ISNUMBER(SEARCH(STATEMENT!$F$9,Table4[Customer\nالعميل])),MAX($A$1:A1306)+1,0)","v":0}]
[{"$f":"IF(ISNUMBER(SEARCH(STATEMENT!$F$9,Table4[Customer\nالعميل])),MAX($A$1:A1307)+1,0)","v":0}]
[{"$f":"IF(ISNUMBER(SEARCH(STATEMENT!$F$9,Table4[Customer\nالعميل])),MAX($A$1:A1308)+1,0)","v":0}]
[{"$f":"IF(ISNUMBER(SEARCH(STATEMENT!$F$9,Table4[Customer\nالعميل])),MAX($A$1:A1309)+1,0)","v":0}]
[{"$f":"IF(ISNUMBER(SEARCH(STATEMENT!$F$9,Table4[Customer\nالعميل])),MAX($A$1:A1310)+1,0)","v":0}]
[{"$f":"IF(ISNUMBER(SEARCH(STATEMENT!$F$9,Table4[Customer\nالعميل])),MAX($A$1:A1311)+1,0)","v":0}]
[{"$f":"IF(ISNUMBER(SEARCH(STATEMENT!$F$9,Table4[Customer\nالعميل])),MAX($A$1:A1312)+1,0)","v":0}]
[{"$f":"IF(ISNUMBER(SEARCH(STATEMENT!$F$9,Table4[Customer\nالعميل])),MAX($A$1:A1313)+1,0)","v":0}]
[{"$f":"IF(ISNUMBER(SEARCH(STATEMENT!$F$9,Table4[Customer\nالعميل])),MAX($A$1:A1314)+1,0)","v":0}]
[{"$f":"IF(ISNUMBER(SEARCH(STATEMENT!$F$9,Table4[Customer\nالعميل])),MAX($A$1:A1315)+1,0)","v":0}]
[{"$f":"IF(ISNUMBER(SEARCH(STATEMENT!$F$9,Table4[Customer\nالعميل])),MAX($A$1:A1316)+1,0)","v":0}]
[{"$f":"IF(ISNUMBER(SEARCH(STATEMENT!$F$9,Table4[Customer\nالعميل])),MAX($A$1:A1317)+1,0)","v":0}]
[{"$f":"IF(ISNUMBER(SEARCH(STATEMENT!$F$9,Table4[Customer\nالعميل])),MAX($A$1:A1318)+1,0)","v":0}]
[{"$f":"IF(ISNUMBER(SEARCH(STATEMENT!$F$9,Table4[Customer\nالعميل])),MAX($A$1:A1319)+1,0)","v":0}]
[{"$f":"IF(ISNUMBER(SEARCH(STATEMENT!$F$9,Table4[Customer\nالعميل])),MAX($A$1:A1320)+1,0)","v":0}]
[{"$f":"IF(ISNUMBER(SEARCH(STATEMENT!$F$9,Table4[Customer\nالعميل])),MAX($A$1:A1321)+1,0)","v":0}]
[{"$f":"IF(ISNUMBER(SEARCH(STATEMENT!$F$9,Table4[Customer\nالعميل])),MAX($A$1:A1322)+1,0)","v":0}]
[{"$f":"IF(ISNUMBER(SEARCH(STATEMENT!$F$9,Table4[Customer\nالعميل])),MAX($A$1:A1323)+1,0)","v":0}]
[{"$f":"IF(ISNUMBER(SEARCH(STATEMENT!$F$9,Table4[Customer\nالعميل])),MAX($A$1:A1324)+1,0)","v":0}]
[{"$f":"IF(ISNUMBER(SEARCH(STATEMENT!$F$9,Table4[Customer\nالعميل])),MAX($A$1:A1325)+1,0)","v":0}]
[{"$f":"IF(ISNUMBER(SEARCH(STATEMENT!$F$9,Table4[Customer\nالعميل])),MAX($A$1:A1326)+1,0)","v":0}]
[{"$f":"IF(ISNUMBER(SEARCH(STATEMENT!$F$9,Table4[Customer\nالعميل])),MAX($A$1:A1327)+1,0)","v":0}]
[{"$f":"IF(ISNUMBER(SEARCH(STATEMENT!$F$9,Table4[Customer\nالعميل])),MAX($A$1:A1328)+1,0)","v":0}]
[{"$f":"IF(ISNUMBER(SEARCH(STATEMENT!$F$9,Table4[Customer\nالعميل])),MAX($A$1:A1329)+1,0)","v":0}]
[{"$f":"IF(ISNUMBER(SEARCH(STATEMENT!$F$9,Table4[Customer\nالعميل])),MAX($A$1:A1330)+1,0)","v":0}]
[{"$f":"IF(ISNUMBER(SEARCH(STATEMENT!$F$9,Table4[Customer\nالعميل])),MAX($A$1:A1331)+1,0)","v":0}]
[{"$f":"IF(ISNUMBER(SEARCH(STATEMENT!$F$9,Table4[Customer\nالعميل])),MAX($A$1:A1332)+1,0)","v":0}]
[{"$f":"IF(ISNUMBER(SEARCH(STATEMENT!$F$9,Table4[Customer\nالعميل])),MAX($A$1:A1333)+1,0)","v":0}]
[{"$f":"IF(ISNUMBER(SEARCH(STATEMENT!$F$9,Table4[Customer\nالعميل])),MAX($A$1:A1334)+1,0)","v":0}]
[{"$f":"IF(ISNUMBER(SEARCH(STATEMENT!$F$9,Table4[Customer\nالعميل])),MAX($A$1:A1335)+1,0)","v":0}]
[{"$f":"IF(ISNUMBER(SEARCH(STATEMENT!$F$9,Table4[Customer\nالعميل])),MAX($A$1:A1336)+1,0)","v":0}]
[{"$f":"IF(ISNUMBER(SEARCH(STATEMENT!$F$9,Table4[Customer\nالعميل])),MAX($A$1:A1337)+1,0)","v":0}]
[{"$f":"IF(ISNUMBER(SEARCH(STATEMENT!$F$9,Table4[Customer\nالعميل])),MAX($A$1:A1338)+1,0)","v":0}]
[{"$f":"IF(ISNUMBER(SEARCH(STATEMENT!$F$9,Table4[Customer\nالعميل])),MAX($A$1:A1339)+1,0)","v":0}]
[{"$f":"IF(ISNUMBER(SEARCH(STATEMENT!$F$9,Table4[Customer\nالعميل])),MAX($A$1:A1340)+1,0)","v":0}]
[{"$f":"IF(ISNUMBER(SEARCH(STATEMENT!$F$9,Table4[Customer\nالعميل])),MAX($A$1:A1341)+1,0)","v":0}]
[{"$f":"IF(ISNUMBER(SEARCH(STATEMENT!$F$9,Table4[Customer\nالعميل])),MAX($A$1:A1342)+1,0)","v":0}]
[{"$f":"IF(ISNUMBER(SEARCH(STATEMENT!$F$9,Table4[Customer\nالعميل])),MAX($A$1:A1343)+1,0)","v":0}]
[{"$f":"IF(ISNUMBER(SEARCH(STATEMENT!$F$9,Table4[Customer\nالعميل])),MAX($A$1:A1344)+1,0)","v":0}]
[{"$f":"IF(ISNUMBER(SEARCH(STATEMENT!$F$9,Table4[Customer\nالعميل])),MAX($A$1:A1345)+1,0)","v":0}]
[{"$f":"IF(ISNUMBER(SEARCH(STATEMENT!$F$9,Table4[Customer\nالعميل])),MAX($A$1:A1346)+1,0)","v":0}]
[{"$f":"IF(ISNUMBER(SEARCH(STATEMENT!$F$9,Table4[Customer\nالعميل])),MAX($A$1:A1347)+1,0)","v":0}]
[{"$f":"IF(ISNUMBER(SEARCH(STATEMENT!$F$9,Table4[Customer\nالعميل])),MAX($A$1:A1348)+1,0)","v":0}]
[{"$f":"IF(ISNUMBER(SEARCH(STATEMENT!$F$9,Table4[Customer\nالعميل])),MAX($A$1:A1349)+1,0)","v":0}]
[{"$f":"IF(ISNUMBER(SEARCH(STATEMENT!$F$9,Table4[Customer\nالعميل])),MAX($A$1:A1350)+1,0)","v":0}]
[{"$f":"IF(ISNUMBER(SEARCH(STATEMENT!$F$9,Table4[Customer\nالعميل])),MAX($A$1:A1351)+1,0)","v":0}]
[{"$f":"IF(ISNUMBER(SEARCH(STATEMENT!$F$9,Table4[Customer\nالعميل])),MAX($A$1:A1352)+1,0)","v":0}]
[{"$f":"IF(ISNUMBER(SEARCH(STATEMENT!$F$9,Table4[Customer\nالعميل])),MAX($A$1:A1353)+1,0)","v":0}]
[{"$f":"IF(ISNUMBER(SEARCH(STATEMENT!$F$9,Table4[Customer\nالعميل])),MAX($A$1:A1354)+1,0)","v":0}]
[{"$f":"IF(ISNUMBER(SEARCH(STATEMENT!$F$9,Table4[Customer\nالعميل])),MAX($A$1:A1355)+1,0)","v":0}]
[{"$f":"IF(ISNUMBER(SEARCH(STATEMENT!$F$9,Table4[Customer\nالعميل])),MAX($A$1:A1356)+1,0)","v":0}]
[{"$f":"IF(ISNUMBER(SEARCH(STATEMENT!$F$9,Table4[Customer\nالعميل])),MAX($A$1:A1357)+1,0)","v":0}]
[{"$f":"IF(ISNUMBER(SEARCH(STATEMENT!$F$9,Table4[Customer\nالعميل])),MAX($A$1:A1358)+1,0)","v":0}]
[{"$f":"IF(ISNUMBER(SEARCH(STATEMENT!$F$9,Table4[Customer\nالعميل])),MAX($A$1:A1359)+1,0)","v":0}]
[{"$f":"IF(ISNUMBER(SEARCH(STATEMENT!$F$9,Table4[Customer\nالعميل])),MAX($A$1:A1360)+1,0)","v":0}]
[{"$f":"IF(ISNUMBER(SEARCH(STATEMENT!$F$9,Table4[Customer\nالعميل])),MAX($A$1:A1361)+1,0)","v":0}]
[{"$f":"IF(ISNUMBER(SEARCH(STATEMENT!$F$9,Table4[Customer\nالعميل])),MAX($A$1:A1362)+1,0)","v":0}]
[{"$f":"IF(ISNUMBER(SEARCH(STATEMENT!$F$9,Table4[Customer\nالعميل])),MAX($A$1:A1363)+1,0)","v":0}]
[{"$f":"IF(ISNUMBER(SEARCH(STATEMENT!$F$9,Table4[Customer\nالعميل])),MAX($A$1:A1364)+1,0)","v":0}]
[{"$f":"IF(ISNUMBER(SEARCH(STATEMENT!$F$9,Table4[Customer\nالعميل])),MAX($A$1:A1365)+1,0)","v":0}]
[{"$f":"IF(ISNUMBER(SEARCH(STATEMENT!$F$9,Table4[Customer\nالعميل])),MAX($A$1:A1366)+1,0)","v":0}]
[{"$f":"IF(ISNUMBER(SEARCH(STATEMENT!$F$9,Table4[Customer\nالعميل])),MAX($A$1:A1367)+1,0)","v":0}]
[{"$f":"IF(ISNUMBER(SEARCH(STATEMENT!$F$9,Table4[Customer\nالعميل])),MAX($A$1:A1368)+1,0)","v":0}]
[{"$f":"IF(ISNUMBER(SEARCH(STATEMENT!$F$9,Table4[Customer\nالعميل])),MAX($A$1:A1369)+1,0)","v":0}]
[{"$f":"IF(ISNUMBER(SEARCH(STATEMENT!$F$9,Table4[Customer\nالعميل])),MAX($A$1:A1370)+1,0)","v":0}]
[{"$f":"IF(ISNUMBER(SEARCH(STATEMENT!$F$9,Table4[Customer\nالعميل])),MAX($A$1:A1371)+1,0)","v":0}]
[{"$f":"IF(ISNUMBER(SEARCH(STATEMENT!$F$9,Table4[Customer\nالعميل])),MAX($A$1:A1372)+1,0)","v":0}]
[{"$f":"IF(ISNUMBER(SEARCH(STATEMENT!$F$9,Table4[Customer\nالعميل])),MAX($A$1:A1373)+1,0)","v":0}]
[{"$f":"IF(ISNUMBER(SEARCH(STATEMENT!$F$9,Table4[Customer\nالعميل])),MAX($A$1:A1374)+1,0)","v":0}]
[{"$f":"IF(ISNUMBER(SEARCH(STATEMENT!$F$9,Table4[Customer\nالعميل])),MAX($A$1:A1375)+1,0)","v":0}]
[{"$f":"IF(ISNUMBER(SEARCH(STATEMENT!$F$9,Table4[Customer\nالعميل])),MAX($A$1:A1376)+1,0)","v":0}]
[{"$f":"IF(ISNUMBER(SEARCH(STATEMENT!$F$9,Table4[Customer\nالعميل])),MAX($A$1:A1377)+1,0)","v":0}]
[{"$f":"IF(ISNUMBER(SEARCH(STATEMENT!$F$9,Table4[Customer\nالعميل])),MAX($A$1:A1378)+1,0)","v":0}]
[{"$f":"IF(ISNUMBER(SEARCH(STATEMENT!$F$9,Table4[Customer\nالعميل])),MAX($A$1:A1379)+1,0)","v":0}]
[{"$f":"IF(ISNUMBER(SEARCH(STATEMENT!$F$9,Table4[Customer\nالعميل])),MAX($A$1:A1380)+1,0)","v":0}]
[{"$f":"IF(ISNUMBER(SEARCH(STATEMENT!$F$9,Table4[Customer\nالعميل])),MAX($A$1:A1381)+1,0)","v":0}]
[{"$f":"IF(ISNUMBER(SEARCH(STATEMENT!$F$9,Table4[Customer\nالعميل])),MAX($A$1:A1382)+1,0)","v":0}]
[{"$f":"IF(ISNUMBER(SEARCH(STATEMENT!$F$9,Table4[Customer\nالعميل])),MAX($A$1:A1383)+1,0)","v":0}]
[{"$f":"IF(ISNUMBER(SEARCH(STATEMENT!$F$9,Table4[Customer\nالعميل])),MAX($A$1:A1384)+1,0)","v":0}]
[{"$f":"IF(ISNUMBER(SEARCH(STATEMENT!$F$9,Table4[Customer\nالعميل])),MAX($A$1:A1385)+1,0)","v":0}]
[{"$f":"IF(ISNUMBER(SEARCH(STATEMENT!$F$9,Table4[Customer\nالعميل])),MAX($A$1:A1386)+1,0)","v":0}]
[{"$f":"IF(ISNUMBER(SEARCH(STATEMENT!$F$9,Table4[Customer\nالعميل])),MAX($A$1:A1387)+1,0)","v":0}]
[{"$f":"IF(ISNUMBER(SEARCH(STATEMENT!$F$9,Table4[Customer\nالعميل])),MAX($A$1:A1388)+1,0)","v":0}]
[{"$f":"IF(ISNUMBER(SEARCH(STATEMENT!$F$9,Table4[Customer\nالعميل])),MAX($A$1:A1389)+1,0)","v":0}]
[{"$f":"IF(ISNUMBER(SEARCH(STATEMENT!$F$9,Table4[Customer\nالعميل])),MAX($A$1:A1390)+1,0)","v":0}]
[{"$f":"IF(ISNUMBER(SEARCH(STATEMENT!$F$9,Table4[Customer\nالعميل])),MAX($A$1:A1391)+1,0)","v":0}]
[{"$f":"IF(ISNUMBER(SEARCH(STATEMENT!$F$9,Table4[Customer\nالعميل])),MAX($A$1:A1392)+1,0)","v":0}]
[{"$f":"IF(ISNUMBER(SEARCH(STATEMENT!$F$9,Table4[Customer\nالعميل])),MAX($A$1:A1393)+1,0)","v":0}]
[{"$f":"IF(ISNUMBER(SEARCH(STATEMENT!$F$9,Table4[Customer\nالعميل])),MAX($A$1:A1394)+1,0)","v":0}]
[{"$f":"IF(ISNUMBER(SEARCH(STATEMENT!$F$9,Table4[Customer\nالعميل])),MAX($A$1:A1395)+1,0)","v":0}]
[{"$f":"IF(ISNUMBER(SEARCH(STATEMENT!$F$9,Table4[Customer\nالعميل])),MAX($A$1:A1396)+1,0)","v":0}]
[{"$f":"IF(ISNUMBER(SEARCH(STATEMENT!$F$9,Table4[Customer\nالعميل])),MAX($A$1:A1397)+1,0)","v":0}]
[{"$f":"IF(ISNUMBER(SEARCH(STATEMENT!$F$9,Table4[Customer\nالعميل])),MAX($A$1:A1398)+1,0)","v":0}]
[{"$f":"IF(ISNUMBER(SEARCH(STATEMENT!$F$9,Table4[Customer\nالعميل])),MAX($A$1:A1399)+1,0)","v":0}]
[{"$f":"IF(ISNUMBER(SEARCH(STATEMENT!$F$9,Table4[Customer\nالعميل])),MAX($A$1:A1400)+1,0)","v":0}]
[{"$f":"IF(ISNUMBER(SEARCH(STATEMENT!$F$9,Table4[Customer\nالعميل])),MAX($A$1:A1401)+1,0)","v":0}]
[{"$f":"IF(ISNUMBER(SEARCH(STATEMENT!$F$9,Table4[Customer\nالعميل])),MAX($A$1:A1402)+1,0)","v":0}]
[{"$f":"IF(ISNUMBER(SEARCH(STATEMENT!$F$9,Table4[Customer\nالعميل])),MAX($A$1:A1403)+1,0)","v":0}]
[{"$f":"IF(ISNUMBER(SEARCH(STATEMENT!$F$9,Table4[Customer\nالعميل])),MAX($A$1:A1404)+1,0)","v":0}]
[{"$f":"IF(ISNUMBER(SEARCH(STATEMENT!$F$9,Table4[Customer\nالعميل])),MAX($A$1:A1405)+1,0)","v":0}]
[{"$f":"IF(ISNUMBER(SEARCH(STATEMENT!$F$9,Table4[Customer\nالعميل])),MAX($A$1:A1406)+1,0)","v":0}]
[{"$f":"IF(ISNUMBER(SEARCH(STATEMENT!$F$9,Table4[Customer\nالعميل])),MAX($A$1:A1407)+1,0)","v":0}]
[{"$f":"IF(ISNUMBER(SEARCH(STATEMENT!$F$9,Table4[Customer\nالعميل])),MAX($A$1:A1408)+1,0)","v":0}]
[{"$f":"IF(ISNUMBER(SEARCH(STATEMENT!$F$9,Table4[Customer\nالعميل])),MAX($A$1:A1409)+1,0)","v":0}]
[{"$f":"IF(ISNUMBER(SEARCH(STATEMENT!$F$9,Table4[Customer\nالعميل])),MAX($A$1:A1410)+1,0)","v":0}]
[{"$f":"IF(ISNUMBER(SEARCH(STATEMENT!$F$9,Table4[Customer\nالعميل])),MAX($A$1:A1411)+1,0)","v":0}]
[{"$f":"IF(ISNUMBER(SEARCH(STATEMENT!$F$9,Table4[Customer\nالعميل])),MAX($A$1:A1412)+1,0)","v":0}]
[{"$f":"IF(ISNUMBER(SEARCH(STATEMENT!$F$9,Table4[Customer\nالعميل])),MAX($A$1:A1413)+1,0)","v":0}]
[{"$f":"IF(ISNUMBER(SEARCH(STATEMENT!$F$9,Table4[Customer\nالعميل])),MAX($A$1:A1414)+1,0)","v":0}]
[{"$f":"IF(ISNUMBER(SEARCH(STATEMENT!$F$9,Table4[Customer\nالعميل])),MAX($A$1:A1415)+1,0)","v":0}]
[{"$f":"IF(ISNUMBER(SEARCH(STATEMENT!$F$9,Table4[Customer\nالعميل])),MAX($A$1:A1416)+1,0)","v":0}]
[{"$f":"IF(ISNUMBER(SEARCH(STATEMENT!$F$9,Table4[Customer\nالعميل])),MAX($A$1:A1417)+1,0)","v":0}]
[{"$f":"IF(ISNUMBER(SEARCH(STATEMENT!$F$9,Table4[Customer\nالعميل])),MAX($A$1:A1418)+1,0)","v":0}]
[{"$f":"IF(ISNUMBER(SEARCH(STATEMENT!$F$9,Table4[Customer\nالعميل])),MAX($A$1:A1419)+1,0)","v":0}]
[{"$f":"IF(ISNUMBER(SEARCH(STATEMENT!$F$9,Table4[Customer\nالعميل])),MAX($A$1:A1420)+1,0)","v":0}]
[{"$f":"IF(ISNUMBER(SEARCH(STATEMENT!$F$9,Table4[Customer\nالعميل])),MAX($A$1:A1421)+1,0)","v":0}]
[{"$f":"IF(ISNUMBER(SEARCH(STATEMENT!$F$9,Table4[Customer\nالعميل])),MAX($A$1:A1422)+1,0)","v":0}]
[{"$f":"IF(ISNUMBER(SEARCH(STATEMENT!$F$9,Table4[Customer\nالعميل])),MAX($A$1:A1423)+1,0)","v":0}]
[{"$f":"IF(ISNUMBER(SEARCH(STATEMENT!$F$9,Table4[Customer\nالعميل])),MAX($A$1:A1424)+1,0)","v":0}]
[{"$f":"IF(ISNUMBER(SEARCH(STATEMENT!$F$9,Table4[Customer\nالعميل])),MAX($A$1:A1425)+1,0)","v":0}]
[{"$f":"IF(ISNUMBER(SEARCH(STATEMENT!$F$9,Table4[Customer\nالعميل])),MAX($A$1:A1426)+1,0)","v":0}]
[{"$f":"IF(ISNUMBER(SEARCH(STATEMENT!$F$9,Table4[Customer\nالعميل])),MAX($A$1:A1427)+1,0)","v":0}]
[{"$f":"IF(ISNUMBER(SEARCH(STATEMENT!$F$9,Table4[Customer\nالعميل])),MAX($A$1:A1428)+1,0)","v":0}]
[{"$f":"IF(ISNUMBER(SEARCH(STATEMENT!$F$9,Table4[Customer\nالعميل])),MAX($A$1:A1429)+1,0)","v":0}]
[{"$f":"IF(ISNUMBER(SEARCH(STATEMENT!$F$9,Table4[Customer\nالعميل])),MAX($A$1:A1430)+1,0)","v":0}]
[{"$f":"IF(ISNUMBER(SEARCH(STATEMENT!$F$9,Table4[Customer\nالعميل])),MAX($A$1:A1431)+1,0)","v":0}]
[{"$f":"IF(ISNUMBER(SEARCH(STATEMENT!$F$9,Table4[Customer\nالعميل])),MAX($A$1:A1432)+1,0)","v":0}]
[{"$f":"IF(ISNUMBER(SEARCH(STATEMENT!$F$9,Table4[Customer\nالعميل])),MAX($A$1:A1433)+1,0)","v":0}]
[{"$f":"IF(ISNUMBER(SEARCH(STATEMENT!$F$9,Table4[Customer\nالعميل])),MAX($A$1:A1434)+1,0)","v":0}]
[{"$f":"IF(ISNUMBER(SEARCH(STATEMENT!$F$9,Table4[Customer\nالعميل])),MAX($A$1:A1435)+1,0)","v":0}]
[{"$f":"IF(ISNUMBER(SEARCH(STATEMENT!$F$9,Table4[Customer\nالعميل])),MAX($A$1:A1436)+1,0)","v":0}]
[{"$f":"IF(ISNUMBER(SEARCH(STATEMENT!$F$9,Table4[Customer\nالعميل])),MAX($A$1:A1437)+1,0)","v":0}]
[{"$f":"IF(ISNUMBER(SEARCH(STATEMENT!$F$9,Table4[Customer\nالعميل])),MAX($A$1:A1438)+1,0)","v":0}]
[{"$f":"IF(ISNUMBER(SEARCH(STATEMENT!$F$9,Table4[Customer\nالعميل])),MAX($A$1:A1439)+1,0)","v":0}]
[{"$f":"IF(ISNUMBER(SEARCH(STATEMENT!$F$9,Table4[Customer\nالعميل])),MAX($A$1:A1440)+1,0)","v":0}]
[{"$f":"IF(ISNUMBER(SEARCH(STATEMENT!$F$9,Table4[Customer\nالعميل])),MAX($A$1:A1441)+1,0)","v":0}]
[{"$f":"IF(ISNUMBER(SEARCH(STATEMENT!$F$9,Table4[Customer\nالعميل])),MAX($A$1:A1442)+1,0)","v":0}]
[{"$f":"IF(ISNUMBER(SEARCH(STATEMENT!$F$9,Table4[Customer\nالعميل])),MAX($A$1:A1443)+1,0)","v":0}]
[{"$f":"IF(ISNUMBER(SEARCH(STATEMENT!$F$9,Table4[Customer\nالعميل])),MAX($A$1:A1444)+1,0)","v":0}]
[{"$f":"IF(ISNUMBER(SEARCH(STATEMENT!$F$9,Table4[Customer\nالعميل])),MAX($A$1:A1445)+1,0)","v":0}]
[{"$f":"IF(ISNUMBER(SEARCH(STATEMENT!$F$9,Table4[Customer\nالعميل])),MAX($A$1:A1446)+1,0)","v":0}]
[{"$f":"IF(ISNUMBER(SEARCH(STATEMENT!$F$9,Table4[Customer\nالعميل])),MAX($A$1:A1447)+1,0)","v":0}]
[{"$f":"IF(ISNUMBER(SEARCH(STATEMENT!$F$9,Table4[Customer\nالعميل])),MAX($A$1:A1448)+1,0)","v":0}]
[{"$f":"IF(ISNUMBER(SEARCH(STATEMENT!$F$9,Table4[Customer\nالعميل])),MAX($A$1:A1449)+1,0)","v":0}]
[{"$f":"IF(ISNUMBER(SEARCH(STATEMENT!$F$9,Table4[Customer\nالعميل])),MAX($A$1:A1450)+1,0)","v":0}]
[{"$f":"IF(ISNUMBER(SEARCH(STATEMENT!$F$9,Table4[Customer\nالعميل])),MAX($A$1:A1451)+1,0)","v":0}]
[{"$f":"IF(ISNUMBER(SEARCH(STATEMENT!$F$9,Table4[Customer\nالعميل])),MAX($A$1:A1452)+1,0)","v":0}]
[{"$f":"IF(ISNUMBER(SEARCH(STATEMENT!$F$9,Table4[Customer\nالعميل])),MAX($A$1:A1453)+1,0)","v":0}]
[{"$f":"IF(ISNUMBER(SEARCH(STATEMENT!$F$9,Table4[Customer\nالعميل])),MAX($A$1:A1454)+1,0)","v":0}]
[{"$f":"IF(ISNUMBER(SEARCH(STATEMENT!$F$9,Table4[Customer\nالعميل])),MAX($A$1:A1455)+1,0)","v":0}]
[{"$f":"IF(ISNUMBER(SEARCH(STATEMENT!$F$9,Table4[Customer\nالعميل])),MAX($A$1:A1456)+1,0)","v":0}]
[{"$f":"IF(ISNUMBER(SEARCH(STATEMENT!$F$9,Table4[Customer\nالعميل])),MAX($A$1:A1457)+1,0)","v":0}]
[{"$f":"IF(ISNUMBER(SEARCH(STATEMENT!$F$9,Table4[Customer\nالعميل])),MAX($A$1:A1458)+1,0)","v":0}]
[{"$f":"IF(ISNUMBER(SEARCH(STATEMENT!$F$9,Table4[Customer\nالعميل])),MAX($A$1:A1459)+1,0)","v":0}]
[{"$f":"IF(ISNUMBER(SEARCH(STATEMENT!$F$9,Table4[Customer\nالعميل])),MAX($A$1:A1460)+1,0)","v":0}]
[{"$f":"IF(ISNUMBER(SEARCH(STATEMENT!$F$9,Table4[Customer\nالعميل])),MAX($A$1:A1461)+1,0)","v":0}]
[{"$f":"IF(ISNUMBER(SEARCH(STATEMENT!$F$9,Table4[Customer\nالعميل])),MAX($A$1:A1462)+1,0)","v":0}]
[{"$f":"IF(ISNUMBER(SEARCH(STATEMENT!$F$9,Table4[Customer\nالعميل])),MAX($A$1:A1463)+1,0)","v":0}]
[{"$f":"IF(ISNUMBER(SEARCH(STATEMENT!$F$9,Table4[Customer\nالعميل])),MAX($A$1:A1464)+1,0)","v":0}]
[{"$f":"IF(ISNUMBER(SEARCH(STATEMENT!$F$9,Table4[Customer\nالعميل])),MAX($A$1:A1465)+1,0)","v":0}]
[{"$f":"IF(ISNUMBER(SEARCH(STATEMENT!$F$9,Table4[Customer\nالعميل])),MAX($A$1:A1466)+1,0)","v":0}]
[{"$f":"IF(ISNUMBER(SEARCH(STATEMENT!$F$9,Table4[Customer\nالعميل])),MAX($A$1:A1467)+1,0)","v":0}]
[{"$f":"IF(ISNUMBER(SEARCH(STATEMENT!$F$9,Table4[Customer\nالعميل])),MAX($A$1:A1468)+1,0)","v":0}]

{"sheet":"Payments","index":4,"n_rows":1053,"n_cols":6,"rows_kept":1053,"cut":false,"hidden":false,"merged":[[59,1,59,3]]}
["PAYMENTS","#","Customer\nالعميل","Payment Date\nتاريخ الدفع","Paid Amount\nالمبلغ المدفوع","Notes\nملاحظات"]
[{"$f":"IF(ISNUMBER(SEARCH(STATEMENT!$F$9,Table5[Customer\nالعميل])),MAX($A$1:A1)+1,0)","v":0},{"$f":"ROW()-1","v":1},"Mohamed Jazouli","2017-03-04",1000,"INV 22803"]
[{"$f":"IF(ISNUMBER(SEARCH(STATEMENT!$F$9,Table5[Customer\nالعميل])),MAX($A$1:A2)+1,0)","v":1},2,"Dallah Healthcare Co. / Dallah Hospital","2017-10-26",3540.23,"INV 28"]
[{"$f":"IF(ISNUMBER(SEARCH(STATEMENT!$F$9,Table5[Customer\nالعميل])),MAX($A$1:A3)+1,0)","v":2},3,"Dallah Healthcare Co. / Dallah Hospital","2017-10-26",1523.63,"INV 27"]
[{"$f":"IF(ISNUMBER(SEARCH(STATEMENT!$F$9,Table5[Customer\nالعميل])),MAX($A$1:A4)+1,0)","v":0},4,"AlKhair Pharmacy","2017-12-03",500]
[{"$f":"IF(ISNUMBER(SEARCH(STATEMENT!$F$9,Table5[Customer\nالعميل])),MAX($A$1:A5)+1,0)","v":3},5,"Dallah Healthcare Co. / Dallah Hospital","2018-01-17",2344.96,"INV 65"]
[{"$f":"IF(ISNUMBER(SEARCH(STATEMENT!$F$9,Table5[Customer\nالعميل])),MAX($A$1:A6)+1,0)","v":4},6,"Dallah Healthcare Co. / Dallah Hospital","2018-01-17",2008,"INV 41"]
[{"$f":"IF(ISNUMBER(SEARCH(STATEMENT!$F$9,Table5[Customer\nالعميل])),MAX($A$1:A7)+1,0)","v":5},7,"Dallah Healthcare Co. / Dallah Hospital","2018-01-17",998.26,"INV 23268"]
[{"$f":"IF(ISNUMBER(SEARCH(STATEMENT!$F$9,Table5[Customer\nالعميل])),MAX($A$1:A8)+1,0)","v":6},8,"Dallah Healthcare Co. / Dallah Hospital","2018-01-17",637,"INV 18"]
[{"$f":"IF(ISNUMBER(SEARCH(STATEMENT!$F$9,Table5[Customer\nالعميل])),MAX($A$1:A9)+1,0)","v":0},9,"Attar Alhakeem","2018-01-25",1049.1099999999999,"INV 126  16-4-2018 paid 849.11, earlier 200"]
[{"$f":"IF(ISNUMBER(SEARCH(STATEMENT!$F$9,Table5[Customer\nالعميل])),MAX($A$1:A10)+1,0)","v":7},10,"Dallah Healthcare Co. / Dallah Hospital","2018-03-10",3782.76,"INV 12"]
[{"$f":"IF(ISNUMBER(SEARCH(STATEMENT!$F$9,Table5[Customer\nالعميل])),MAX($A$1:A11)+1,0)","v":0},11,"AlKhair Pharmacy","2018-04-12",108.6]
[{"$f":"IF(ISNUMBER(SEARCH(STATEMENT!$F$9,Table5[Customer\nالعميل])),MAX($A$1:A12)+1,0)","v":0},12,"Mohamed Jazouli","2018-04-20",628,"INV 5000"]
[{"$f":"IF(ISNUMBER(SEARCH(STATEMENT!$F$9,Table5[Customer\nالعميل])),MAX($A$1:A13)+1,0)","v":0},13,"AlKhair Pharmacy","2018-04-24",500]
[{"$f":"IF(ISNUMBER(SEARCH(STATEMENT!$F$9,Table5[Customer\nالعميل])),MAX($A$1:A14)+1,0)","v":8},14,"Dallah Healthcare Co. / Dallah Hospital","2018-04-28",2354.63,"INV 102"]
[{"$f":"IF(ISNUMBER(SEARCH(STATEMENT!$F$9,Table5[Customer\nالعميل])),MAX($A$1:A15)+1,0)","v":9},15,"Dallah Healthcare Co. / Dallah Hospital","2018-04-28",2006.55,"INV 101"]
[{"$f":"IF(ISNUMBER(SEARCH(STATEMENT!$F$9,Table5[Customer\nالعميل])),MAX($A$1:A16)+1,0)","v":10},16,"Dallah Healthcare Co. / Dallah Hospital","2018-04-28",1250.3399999999999,"INV 35"]
[{"$f":"IF(ISNUMBER(SEARCH(STATEMENT!$F$9,Table5[Customer\nالعميل])),MAX($A$1:A17)+1,0)","v":11},17,"Dallah Healthcare Co. / Dallah Hospital","2018-05-31",2956.08,"INV 4991"]
[{"$f":"IF(ISNUMBER(SEARCH(STATEMENT!$F$9,Table5[Customer\nالعميل])),MAX($A$1:A18)+1,0)","v":0},18,"Attar AlKuwait","2018-06-08",1600]
[{"$f":"IF(ISNUMBER(SEARCH(STATEMENT!$F$9,Table5[Customer\nالعميل])),MAX($A$1:A19)+1,0)","v":12},19,"Dallah Healthcare Co. / Dallah Hospital","2018-06-26",1576.58,"INV 4600"]
[{"$f":"IF(ISNUMBER(SEARCH(STATEMENT!$F$9,Table5[Customer\nالعميل])),MAX($A$1:A20)+1,0)","v":13},20,"Dallah Healthcare Co. / Dallah Hospital","2018-08-09",2813.61,"INV 4810"]
[{"$f":"IF(ISNUMBER(SEARCH(STATEMENT!$F$9,Table5[Customer\nالعميل])),MAX($A$1:A21)+1,0)","v":14},21,"Dallah Healthcare Co. / Dallah Hospital","2018-10-10",7169.66,"INV 4999"]
[{"$f":"IF(ISNUMBER(SEARCH(STATEMENT!$F$9,Table5[Customer\nالعميل])),MAX($A$1:A22)+1,0)","v":15},22,"Dallah Healthcare Co. / Dallah Hospital","2018-10-10",2204.48,"INV 5001"]
[{"$f":"IF(ISNUMBER(SEARCH(STATEMENT!$F$9,Table5[Customer\nالعميل])),MAX($A$1:A23)+1,0)","v":0},23,"AlKhair Pharmacy","2018-10-20",300]
[{"$f":"IF(ISNUMBER(SEARCH(STATEMENT!$F$9,Table5[Customer\nالعميل])),MAX($A$1:A24)+1,0)","v":0},24]
[{"$f":"IF(ISNUMBER(SEARCH(STATEMENT!$F$9,Table5[Customer\nالعميل])),MAX($A$1:A25)+1,0)","v":0},25]
[{"$f":"IF(ISNUMBER(SEARCH(STATEMENT!$F$9,Table5[Customer\nالعميل])),MAX($A$1:A26)+1,0)","v":0},26]
[{"$f":"IF(ISNUMBER(SEARCH(STATEMENT!$F$9,Table5[Customer\nالعميل])),MAX($A$1:A27)+1,0)","v":0},27]
[{"$f":"IF(ISNUMBER(SEARCH(STATEMENT!$F$9,Table5[Customer\nالعميل])),MAX($A$1:A28)+1,0)","v":0},28]
[{"$f":"IF(ISNUMBER(SEARCH(STATEMENT!$F$9,Table5[Customer\nالعميل])),MAX($A$1:A29)+1,0)","v":0},29]
[{"$f":"IF(ISNUMBER(SEARCH(STATEMENT!$F$9,Table5[Customer\nالعميل])),MAX($A$1:A30)+1,0)","v":0},30]
[{"$f":"IF(ISNUMBER(SEARCH(STATEMENT!$F$9,Table5[Customer\nالعميل])),MAX($A$1:A31)+1,0)","v":0},31]
[{"$f":"IF(ISNUMBER(SEARCH(STATEMENT!$F$9,Table5[Customer\nالعميل])),MAX($A$1:A32)+1,0)","v":0},32]
[{"$f":"IF(ISNUMBER(SEARCH(STATEMENT!$F$9,Table5[Customer\nالعميل])),MAX($A$1:A33)+1,0)","v":0},{"$f":"ROW()-1","v":33}]
[{"$f":"IF(ISNUMBER(SEARCH(STATEMENT!$F$9,Table5[Customer\nالعميل])),MAX($A$1:A34)+1,0)","v":0},34]
[{"$f":"IF(ISNUMBER(SEARCH(STATEMENT!$F$9,Table5[Customer\nالعميل])),MAX($A$1:A35)+1,0)","v":0},35]
[{"$f":"IF(ISNUMBER(SEARCH(STATEMENT!$F$9,Table5[Customer\nالعميل])),MAX($A$1:A36)+1,0)","v":0},36]
[{"$f":"IF(ISNUMBER(SEARCH(STATEMENT!$F$9,Table5[Customer\nالعميل])),MAX($A$1:A37)+1,0)","v":0},37]
[{"$f":"IF(ISNUMBER(SEARCH(STATEMENT!$F$9,Table5[Customer\nالعميل])),MAX($A$1:A38)+1,0)","v":0},38]
[{"$f":"IF(ISNUMBER(SEARCH(STATEMENT!$F$9,Table5[Customer\nالعميل])),MAX($A$1:A39)+1,0)","v":0},39]
[{"$f":"IF(ISNUMBER(SEARCH(STATEMENT!$F$9,Table5[Customer\nالعميل])),MAX($A$1:A40)+1,0)","v":0},40]
[{"$f":"IF(ISNUMBER(SEARCH(STATEMENT!$F$9,Table5[Customer\nالعميل])),MAX($A$1:A41)+1,0)","v":0},41]
[{"$f":"IF(ISNUMBER(SEARCH(STATEMENT!$F$9,Table5[Customer\nالعميل])),MAX($A$1:A42)+1,0)","v":0},42]
[{"$f":"IF(ISNUMBER(SEARCH(STATEMENT!$F$9,Table5[Customer\nالعميل])),MAX($A$1:A43)+1,0)","v":0},43]
[{"$f":"IF(ISNUMBER(SEARCH(STATEMENT!$F$9,Table5[Customer\nالعميل])),MAX($A$1:A44)+1,0)","v":0},44]
[{"$f":"IF(ISNUMBER(SEARCH(STATEMENT!$F$9,Table5[Customer\nالعميل])),MAX($A$1:A45)+1,0)","v":0},45]
[{"$f":"IF(ISNUMBER(SEARCH(STATEMENT!$F$9,Table5[Customer\nالعميل])),MAX($A$1:A46)+1,0)","v":0},46]
[{"$f":"IF(ISNUMBER(SEARCH(STATEMENT!$F$9,Table5[Customer\nالعميل])),MAX($A$1:A47)+1,0)","v":0},47]
[{"$f":"IF(ISNUMBER(SEARCH(STATEMENT!$F$9,Table5[Customer\nالعميل])),MAX($A$1:A48)+1,0)","v":0},48]
[{"$f":"IF(ISNUMBER(SEARCH(STATEMENT!$F$9,Table5[Customer\nالعميل])),MAX($A$1:A49)+1,0)","v":0},49]
[{"$f":"IF(ISNUMBER(SEARCH(STATEMENT!$F$9,Table5[Customer\nالعميل])),MAX($A$1:A50)+1,0)","v":0},50]
[{"$f":"IF(ISNUMBER(SEARCH(STATEMENT!$F$9,Table5[Customer\nالعميل])),MAX($A$1:A51)+1,0)","v":0},{"$f":"ROW()-1","v":51}]
[{"$f":"IF(ISNUMBER(SEARCH(STATEMENT!$F$9,Table5[Customer\nالعميل])),MAX($A$1:A52)+1,0)","v":0},{"$f":"ROW()-1","v":52}]
[{"$f":"IF(ISNUMBER(SEARCH(STATEMENT!$F$9,Table5[Customer\nالعميل])),MAX($A$1:A53)+1,0)","v":0},null,{"$f":"SUBTOTAL(103,Table5[Customer\nالعميل])&\"  Payments\"","v":"23  Payments"},null,{"$f":"SUBTOTAL(109,Table5[Paid Amount\nالمبلغ المدفوع])","v":42852.480000000003}]
[{"$f":"IF(ISNUMBER(SEARCH(STATEMENT!$F$9,Table5[Customer\nالعميل])),MAX($A$1:A54)+1,0)","v":0}]
[{"$f":"IF(ISNUMBER(SEARCH(STATEMENT!$F$9,Table5[Customer\nالعميل])),MAX($A$1:A55)+1,0)","v":0}]
[{"$f":"IF(ISNUMBER(SEARCH(STATEMENT!$F$9,Table5[Customer\nالعميل])),MAX($A$1:A56)+1,0)","v":0}]
[{"$f":"IF(ISNUMBER(SEARCH(STATEMENT!$F$9,Table5[Customer\nالعميل])),MAX($A$1:A57)+1,0)","v":0}]
[{"$f":"IF(ISNUMBER(SEARCH(STATEMENT!$F$9,Table5[Customer\nالعميل])),MAX($A$1:A58)+1,0)","v":0}]
[{"$f":"IF(ISNUMBER(SEARCH(STATEMENT!$F$9,Table5[Customer\nالعميل])),MAX($A$1:A59)+1,0)","v":0},"Balances"]
[{"$f":"IF(ISNUMBER(SEARCH(STATEMENT!$F$9,Table5[Customer\nالعميل])),MAX($A$1:A60)+1,0)","v":0},null,"Customer","Balance"]
[{"$f":"IF(ISNUMBER(SEARCH(STATEMENT!$F$9,Table5[Customer\nالعميل])),MAX($A$1:A61)+1,0)","v":0},null,"AlGaili Omar Bakheet",{"$f":"VLOOKUP(C62,Customers!$C$2:$G$13,5,0)","v":958.38}]
[{"$f":"IF(ISNUMBER(SEARCH(STATEMENT!$F$9,Table5[Customer\nالعميل])),MAX($A$1:A62)+1,0)","v":0},null,"AlKhair Pharmacy",{"$f":"VLOOKUP(C63,Customers!$C$2:$G$13,5,0)","v":1245.0300000000002}]
[{"$f":"IF(ISNUMBER(SEARCH(STATEMENT!$F$9,Table5[Customer\nالعميل])),MAX($A$1:A63)+1,0)","v":0},null,"Attar Alhakeem",{"$f":"VLOOKUP(C64,Customers!$C$2:$G$13,5,0)","v":4288.5}]
[{"$f":"IF(ISNUMBER(SEARCH(STATEMENT!$F$9,Table5[Customer\nالعميل])),MAX($A$1:A64)+1,0)","v":0},null,"Attar AlKuwait",{"$f":"VLOOKUP(C65,Customers!$C$2:$G$13,5,0)","v":-1600}]
[{"$f":"IF(ISNUMBER(SEARCH(STATEMENT!$F$9,Table5[Customer\nالعميل])),MAX($A$1:A65)+1,0)","v":0},null,"Dallah Healthcare Co. / Dallah Hospital",{"$f":"VLOOKUP(C66,Customers!$C$2:$G$13,5,0)","v":1870.0500000000029}]
[{"$f":"IF(ISNUMBER(SEARCH(STATEMENT!$F$9,Table5[Customer\nالعميل])),MAX($A$1:A66)+1,0)","v":0},null,"Hala Mohamed Alomdeh",{"$f":"VLOOKUP(C67,Customers!$C$2:$G$13,5,0)","v":1831.54}]
[{"$f":"IF(ISNUMBER(SEARCH(STATEMENT!$F$9,Table5[Customer\nالعميل])),MAX($A$1:A67)+1,0)","v":0},null,"Ibrahim Bakhit",{"$f":"VLOOKUP(C68,Customers!$C$2:$G$13,5,0)","v":79.66}]
[{"$f":"IF(ISNUMBER(SEARCH(STATEMENT!$F$9,Table5[Customer\nالعميل])),MAX($A$1:A68)+1,0)","v":0},null,"Moath Abdul Raqib",{"$f":"VLOOKUP(C69,Customers!$C$2:$G$13,5,0)","v":673.7}]
[{"$f":"IF(ISNUMBER(SEARCH(STATEMENT!$F$9,Table5[Customer\nالعميل])),MAX($A$1:A69)+1,0)","v":0},null,"Mohamed Abduldayem Ahmad",{"$f":"VLOOKUP(C70,Customers!$C$2:$G$13,5,0)","v":1761.87}]
[{"$f":"IF(ISNUMBER(SEARCH(STATEMENT!$F$9,Table5[Customer\nالعميل])),MAX($A$1:A70)+1,0)","v":0},null,"Mohamed Jazouli",{"$f":"VLOOKUP(C71,Customers!$C$2:$G$13,5,0)","v":2331.59}]
[{"$f":"IF(ISNUMBER(SEARCH(STATEMENT!$F$9,Table5[Customer\nالعميل])),MAX($A$1:A71)+1,0)","v":0},null,"Yousri Mousa Othman",{"$f":"VLOOKUP(C72,Customers!$C$2:$G$13,5,0)","v":860.82999999999993}]
[{"$f":"IF(ISNUMBER(SEARCH(STATEMENT!$F$9,Table5[Customer\nالعميل])),MAX($A$1:A72)+1,0)","v":0},null,"Zawaq Alasal",{"$f":"VLOOKUP(C73,Customers!$C$2:$G$13,5,0)","v":2770}]
[{"$f":"IF(ISNUMBER(SEARCH(STATEMENT!$F$9,Table5[Customer\nالعميل])),MAX($A$1:A73)+1,0)","v":0},null,null,{"$f":"SUM(D62:D73)","v":17071.150000000001}]
[{"$f":"IF(ISNUMBER(SEARCH(STATEMENT!$F$9,Table5[Customer\nالعميل])),MAX($A$1:A74)+1,0)","v":0}]
[{"$f":"IF(ISNUMBER(SEARCH(STATEMENT!$F$9,Table5[Customer\nالعميل])),MAX($A$1:A75)+1,0)","v":0}]
[{"$f":"IF(ISNUMBER(SEARCH(STATEMENT!$F$9,Table5[Customer\nالعميل])),MAX($A$1:A76)+1,0)","v":0}]
[{"$f":"IF(ISNUMBER(SEARCH(STATEMENT!$F$9,Table5[Customer\nالعميل])),MAX($A$1:A77)+1,0)","v":0}]
[{"$f":"IF(ISNUMBER(SEARCH(STATEMENT!$F$9,Table5[Customer\nالعميل])),MAX($A$1:A78)+1,0)","v":0}]
[{"$f":"IF(ISNUMBER(SEARCH(STATEMENT!$F$9,Table5[Customer\nالعميل])),MAX($A$1:A79)+1,0)","v":0}]
[{"$f":"IF(ISNUMBER(SEARCH(STATEMENT!$F$9,Table5[Customer\nالعميل])),MAX($A$1:A80)+1,0)","v":0}]
[{"$f":"IF(ISNUMBER(SEARCH(STATEMENT!$F$9,Table5[Customer\nالعميل])),MAX($A$1:A81)+1,0)","v":0}]
[{"$f":"IF(ISNUMBER(SEARCH(STATEMENT!$F$9,Table5[Customer\nالعميل])),MAX($A$1:A82)+1,0)","v":0}]
[{"$f":"IF(ISNUMBER(SEARCH(STATEMENT!$F$9,Table5[Customer\nالعميل])),MAX($A$1:A83)+1,0)","v":0}]
[{"$f":"IF(ISNUMBER(SEARCH(STATEMENT!$F$9,Table5[Customer\nالعميل])),MAX($A$1:A84)+1,0)","v":0}]
[{"$f":"IF(ISNUMBER(SEARCH(STATEMENT!$F$9,Table5[Customer\nالعميل])),MAX($A$1:A85)+1,0)","v":0}]
[{"$f":"IF(ISNUMBER(SEARCH(STATEMENT!$F$9,Table5[Customer\nالعميل])),MAX($A$1:A86)+1,0)","v":0}]
[{"$f":"IF(ISNUMBER(SEARCH(STATEMENT!$F$9,Table5[Customer\nالعميل])),MAX($A$1:A87)+1,0)","v":0}]
[{"$f":"IF(ISNUMBER(SEARCH(STATEMENT!$F$9,Table5[Customer\nالعميل])),MAX($A$1:A88)+1,0)","v":0}]
[{"$f":"IF(ISNUMBER(SEARCH(STATEMENT!$F$9,Table5[Customer\nالعميل])),MAX($A$1:A89)+1,0)","v":0}]
[{"$f":"IF(ISNUMBER(SEARCH(STATEMENT!$F$9,Table5[Customer\nالعميل])),MAX($A$1:A90)+1,0)","v":0}]
[{"$f":"IF(ISNUMBER(SEARCH(STATEMENT!$F$9,Table5[Customer\nالعميل])),MAX($A$1:A91)+1,0)","v":0}]
[{"$f":"IF(ISNUMBER(SEARCH(STATEMENT!$F$9,Table5[Customer\nالعميل])),MAX($A$1:A92)+1,0)","v":0}]
[{"$f":"IF(ISNUMBER(SEARCH(STATEMENT!$F$9,Table5[Customer\nالعميل])),MAX($A$1:A93)+1,0)","v":0}]
[{"$f":"IF(ISNUMBER(SEARCH(STATEMENT!$F$9,Table5[Customer\nالعميل])),MAX($A$1:A94)+1,0)","v":0}]
[{"$f":"IF(ISNUMBER(SEARCH(STATEMENT!$F$9,Table5[Customer\nالعميل])),MAX($A$1:A95)+1,0)","v":0}]
[{"$f":"IF(ISNUMBER(SEARCH(STATEMENT!$F$9,Table5[Customer\nالعميل])),MAX($A$1:A96)+1,0)","v":0}]
[{"$f":"IF(ISNUMBER(SEARCH(STATEMENT!$F$9,Table5[Customer\nالعميل])),MAX($A$1:A97)+1,0)","v":0}]
[{"$f":"IF(ISNUMBER(SEARCH(STATEMENT!$F$9,Table5[Customer\nالعميل])),MAX($A$1:A98)+1,0)","v":0}]
[{"$f":"IF(ISNUMBER(SEARCH(STATEMENT!$F$9,Table5[Customer\nالعميل])),MAX($A$1:A99)+1,0)","v":0}]
[{"$f":"IF(ISNUMBER(SEARCH(STATEMENT!$F$9,Table5[Customer\nالعميل])),MAX($A$1:A100)+1,0)","v":0}]
[{"$f":"IF(ISNUMBER(SEARCH(STATEMENT!$F$9,Table5[Customer\nالعميل])),MAX($A$1:A101)+1,0)","v":0}]
[{"$f":"IF(ISNUMBER(SEARCH(STATEMENT!$F$9,Table5[Customer\nالعميل])),MAX($A$1:A102)+1,0)","v":0}]
[{"$f":"IF(ISNUMBER(SEARCH(STATEMENT!$F$9,Table5[Customer\nالعميل])),MAX($A$1:A103)+1,0)","v":0}]
[{"$f":"IF(ISNUMBER(SEARCH(STATEMENT!$F$9,Table5[Customer\nالعميل])),MAX($A$1:A104)+1,0)","v":0}]
[{"$f":"IF(ISNUMBER(SEARCH(STATEMENT!$F$9,Table5[Customer\nالعميل])),MAX($A$1:A105)+1,0)","v":0}]
[{"$f":"IF(ISNUMBER(SEARCH(STATEMENT!$F$9,Table5[Customer\nالعميل])),MAX($A$1:A106)+1,0)","v":0}]
[{"$f":"IF(ISNUMBER(SEARCH(STATEMENT!$F$9,Table5[Customer\nالعميل])),MAX($A$1:A107)+1,0)","v":0}]
[{"$f":"IF(ISNUMBER(SEARCH(STATEMENT!$F$9,Table5[Customer\nالعميل])),MAX($A$1:A108)+1,0)","v":0}]
[{"$f":"IF(ISNUMBER(SEARCH(STATEMENT!$F$9,Table5[Customer\nالعميل])),MAX($A$1:A109)+1,0)","v":0}]
[{"$f":"IF(ISNUMBER(SEARCH(STATEMENT!$F$9,Table5[Customer\nالعميل])),MAX($A$1:A110)+1,0)","v":0}]
[{"$f":"IF(ISNUMBER(SEARCH(STATEMENT!$F$9,Table5[Customer\nالعميل])),MAX($A$1:A111)+1,0)","v":0}]
[{"$f":"IF(ISNUMBER(SEARCH(STATEMENT!$F$9,Table5[Customer\nالعميل])),MAX($A$1:A112)+1,0)","v":0}]
[{"$f":"IF(ISNUMBER(SEARCH(STATEMENT!$F$9,Table5[Customer\nالعميل])),MAX($A$1:A113)+1,0)","v":0}]
[{"$f":"IF(ISNUMBER(SEARCH(STATEMENT!$F$9,Table5[Customer\nالعميل])),MAX($A$1:A114)+1,0)","v":0}]
[{"$f":"IF(ISNUMBER(SEARCH(STATEMENT!$F$9,Table5[Customer\nالعميل])),MAX($A$1:A115)+1,0)","v":0}]
[{"$f":"IF(ISNUMBER(SEARCH(STATEMENT!$F$9,Table5[Customer\nالعميل])),MAX($A$1:A116)+1,0)","v":0}]
[{"$f":"IF(ISNUMBER(SEARCH(STATEMENT!$F$9,Table5[Customer\nالعميل])),MAX($A$1:A117)+1,0)","v":0}]
[{"$f":"IF(ISNUMBER(SEARCH(STATEMENT!$F$9,Table5[Customer\nالعميل])),MAX($A$1:A118)+1,0)","v":0}]
[{"$f":"IF(ISNUMBER(SEARCH(STATEMENT!$F$9,Table5[Customer\nالعميل])),MAX($A$1:A119)+1,0)","v":0}]
[{"$f":"IF(ISNUMBER(SEARCH(STATEMENT!$F$9,Table5[Customer\nالعميل])),MAX($A$1:A120)+1,0)","v":0}]
[{"$f":"IF(ISNUMBER(SEARCH(STATEMENT!$F$9,Table5[Customer\nالعميل])),MAX($A$1:A121)+1,0)","v":0}]
[{"$f":"IF(ISNUMBER(SEARCH(STATEMENT!$F$9,Table5[Customer\nالعميل])),MAX($A$1:A122)+1,0)","v":0}]
[{"$f":"IF(ISNUMBER(SEARCH(STATEMENT!$F$9,Table5[Customer\nالعميل])),MAX($A$1:A123)+1,0)","v":0}]
[{"$f":"IF(ISNUMBER(SEARCH(STATEMENT!$F$9,Table5[Customer\nالعميل])),MAX($A$1:A124)+1,0)","v":0}]
[{"$f":"IF(ISNUMBER(SEARCH(STATEMENT!$F$9,Table5[Customer\nالعميل])),MAX($A$1:A125)+1,0)","v":0}]
[{"$f":"IF(ISNUMBER(SEARCH(STATEMENT!$F$9,Table5[Customer\nالعميل])),MAX($A$1:A126)+1,0)","v":0}]
[{"$f":"IF(ISNUMBER(SEARCH(STATEMENT!$F$9,Table5[Customer\nالعميل])),MAX($A$1:A127)+1,0)","v":0}]
[{"$f":"IF(ISNUMBER(SEARCH(STATEMENT!$F$9,Table5[Customer\nالعميل])),MAX($A$1:A128)+1,0)","v":0}]
[{"$f":"IF(ISNUMBER(SEARCH(STATEMENT!$F$9,Table5[Customer\nالعميل])),MAX($A$1:A129)+1,0)","v":0}]
[{"$f":"IF(ISNUMBER(SEARCH(STATEMENT!$F$9,Table5[Customer\nالعميل])),MAX($A$1:A130)+1,0)","v":0}]
[{"$f":"IF(ISNUMBER(SEARCH(STATEMENT!$F$9,Table5[Customer\nالعميل])),MAX($A$1:A131)+1,0)","v":0}]
[{"$f":"IF(ISNUMBER(SEARCH(STATEMENT!$F$9,Table5[Customer\nالعميل])),MAX($A$1:A132)+1,0)","v":0}]
[{"$f":"IF(ISNUMBER(SEARCH(STATEMENT!$F$9,Table5[Customer\nالعميل])),MAX($A$1:A133)+1,0)","v":0}]
[{"$f":"IF(ISNUMBER(SEARCH(STATEMENT!$F$9,Table5[Customer\nالعميل])),MAX($A$1:A134)+1,0)","v":0}]
[{"$f":"IF(ISNUMBER(SEARCH(STATEMENT!$F$9,Table5[Customer\nالعميل])),MAX($A$1:A135)+1,0)","v":0}]
[{"$f":"IF(ISNUMBER(SEARCH(STATEMENT!$F$9,Table5[Customer\nالعميل])),MAX($A$1:A136)+1,0)","v":0}]
[{"$f":"IF(ISNUMBER(SEARCH(STATEMENT!$F$9,Table5[Customer\nالعميل])),MAX($A$1:A137)+1,0)","v":0}]
[{"$f":"IF(ISNUMBER(SEARCH(STATEMENT!$F$9,Table5[Customer\nالعميل])),MAX($A$1:A138)+1,0)","v":0}]
[{"$f":"IF(ISNUMBER(SEARCH(STATEMENT!$F$9,Table5[Customer\nالعميل])),MAX($A$1:A139)+1,0)","v":0}]
[{"$f":"IF(ISNUMBER(SEARCH(STATEMENT!$F$9,Table5[Customer\nالعميل])),MAX($A$1:A140)+1,0)","v":0}]
[{"$f":"IF(ISNUMBER(SEARCH(STATEMENT!$F$9,Table5[Customer\nالعميل])),MAX($A$1:A141)+1,0)","v":0}]
[{"$f":"IF(ISNUMBER(SEARCH(STATEMENT!$F$9,Table5[Customer\nالعميل])),MAX($A$1:A142)+1,0)","v":0}]
[{"$f":"IF(ISNUMBER(SEARCH(STATEMENT!$F$9,Table5[Customer\nالعميل])),MAX($A$1:A143)+1,0)","v":0}]
[{"$f":"IF(ISNUMBER(SEARCH(STATEMENT!$F$9,Table5[Customer\nالعميل])),MAX($A$1:A144)+1,0)","v":0}]
[{"$f":"IF(ISNUMBER(SEARCH(STATEMENT!$F$9,Table5[Customer\nالعميل])),MAX($A$1:A145)+1,0)","v":0}]
[{"$f":"IF(ISNUMBER(SEARCH(STATEMENT!$F$9,Table5[Customer\nالعميل])),MAX($A$1:A146)+1,0)","v":0}]
[{"$f":"IF(ISNUMBER(SEARCH(STATEMENT!$F$9,Table5[Customer\nالعميل])),MAX($A$1:A147)+1,0)","v":0}]
[{"$f":"IF(ISNUMBER(SEARCH(STATEMENT!$F$9,Table5[Customer\nالعميل])),MAX($A$1:A148)+1,0)","v":0}]
[{"$f":"IF(ISNUMBER(SEARCH(STATEMENT!$F$9,Table5[Customer\nالعميل])),MAX($A$1:A149)+1,0)","v":0}]
[{"$f":"IF(ISNUMBER(SEARCH(STATEMENT!$F$9,Table5[Customer\nالعميل])),MAX($A$1:A150)+1,0)","v":0}]
[{"$f":"IF(ISNUMBER(SEARCH(STATEMENT!$F$9,Table5[Customer\nالعميل])),MAX($A$1:A151)+1,0)","v":0}]
[{"$f":"IF(ISNUMBER(SEARCH(STATEMENT!$F$9,Table5[Customer\nالعميل])),MAX($A$1:A152)+1,0)","v":0}]
[{"$f":"IF(ISNUMBER(SEARCH(STATEMENT!$F$9,Table5[Customer\nالعميل])),MAX($A$1:A153)+1,0)","v":0}]
[{"$f":"IF(ISNUMBER(SEARCH(STATEMENT!$F$9,Table5[Customer\nالعميل])),MAX($A$1:A154)+1,0)","v":0}]
[{"$f":"IF(ISNUMBER(SEARCH(STATEMENT!$F$9,Table5[Customer\nالعميل])),MAX($A$1:A155)+1,0)","v":0}]
[{"$f":"IF(ISNUMBER(SEARCH(STATEMENT!$F$9,Table5[Customer\nالعميل])),MAX($A$1:A156)+1,0)","v":0}]
[{"$f":"IF(ISNUMBER(SEARCH(STATEMENT!$F$9,Table5[Customer\nالعميل])),MAX($A$1:A157)+1,0)","v":0}]
[{"$f":"IF(ISNUMBER(SEARCH(STATEMENT!$F$9,Table5[Customer\nالعميل])),MAX($A$1:A158)+1,0)","v":0}]
[{"$f":"IF(ISNUMBER(SEARCH(STATEMENT!$F$9,Table5[Customer\nالعميل])),MAX($A$1:A159)+1,0)","v":0}]
[{"$f":"IF(ISNUMBER(SEARCH(STATEMENT!$F$9,Table5[Customer\nالعميل])),MAX($A$1:A160)+1,0)","v":0}]
[{"$f":"IF(ISNUMBER(SEARCH(STATEMENT!$F$9,Table5[Customer\nالعميل])),MAX($A$1:A161)+1,0)","v":0}]
[{"$f":"IF(ISNUMBER(SEARCH(STATEMENT!$F$9,Table5[Customer\nالعميل])),MAX($A$1:A162)+1,0)","v":0}]
[{"$f":"IF(ISNUMBER(SEARCH(STATEMENT!$F$9,Table5[Customer\nالعميل])),MAX($A$1:A163)+1,0)","v":0}]
[{"$f":"IF(ISNUMBER(SEARCH(STATEMENT!$F$9,Table5[Customer\nالعميل])),MAX($A$1:A164)+1,0)","v":0}]
[{"$f":"IF(ISNUMBER(SEARCH(STATEMENT!$F$9,Table5[Customer\nالعميل])),MAX($A$1:A165)+1,0)","v":0}]
[{"$f":"IF(ISNUMBER(SEARCH(STATEMENT!$F$9,Table5[Customer\nالعميل])),MAX($A$1:A166)+1,0)","v":0}]
[{"$f":"IF(ISNUMBER(SEARCH(STATEMENT!$F$9,Table5[Customer\nالعميل])),MAX($A$1:A167)+1,0)","v":0}]
[{"$f":"IF(ISNUMBER(SEARCH(STATEMENT!$F$9,Table5[Customer\nالعميل])),MAX($A$1:A168)+1,0)","v":0}]
[{"$f":"IF(ISNUMBER(SEARCH(STATEMENT!$F$9,Table5[Customer\nالعميل])),MAX($A$1:A169)+1,0)","v":0}]
[{"$f":"IF(ISNUMBER(SEARCH(STATEMENT!$F$9,Table5[Customer\nالعميل])),MAX($A$1:A170)+1,0)","v":0}]
[{"$f":"IF(ISNUMBER(SEARCH(STATEMENT!$F$9,Table5[Customer\nالعميل])),MAX($A$1:A171)+1,0)","v":0}]
[{"$f":"IF(ISNUMBER(SEARCH(STATEMENT!$F$9,Table5[Customer\nالعميل])),MAX($A$1:A172)+1,0)","v":0}]
[{"$f":"IF(ISNUMBER(SEARCH(STATEMENT!$F$9,Table5[Customer\nالعميل])),MAX($A$1:A173)+1,0)","v":0}]
[{"$f":"IF(ISNUMBER(SEARCH(STATEMENT!$F$9,Table5[Customer\nالعميل])),MAX($A$1:A174)+1,0)","v":0}]
[{"$f":"IF(ISNUMBER(SEARCH(STATEMENT!$F$9,Table5[Customer\nالعميل])),MAX($A$1:A175)+1,0)","v":0}]
[{"$f":"IF(ISNUMBER(SEARCH(STATEMENT!$F$9,Table5[Customer\nالعميل])),MAX($A$1:A176)+1,0)","v":0}]
[{"$f":"IF(ISNUMBER(SEARCH(STATEMENT!$F$9,Table5[Customer\nالعميل])),MAX($A$1:A177)+1,0)","v":0}]
[{"$f":"IF(ISNUMBER(SEARCH(STATEMENT!$F$9,Table5[Customer\nالعميل])),MAX($A$1:A178)+1,0)","v":0}]
[{"$f":"IF(ISNUMBER(SEARCH(STATEMENT!$F$9,Table5[Customer\nالعميل])),MAX($A$1:A179)+1,0)","v":0}]
[{"$f":"IF(ISNUMBER(SEARCH(STATEMENT!$F$9,Table5[Customer\nالعميل])),MAX($A$1:A180)+1,0)","v":0}]
[{"$f":"IF(ISNUMBER(SEARCH(STATEMENT!$F$9,Table5[Customer\nالعميل])),MAX($A$1:A181)+1,0)","v":0}]
[{"$f":"IF(ISNUMBER(SEARCH(STATEMENT!$F$9,Table5[Customer\nالعميل])),MAX($A$1:A182)+1,0)","v":0}]
[{"$f":"IF(ISNUMBER(SEARCH(STATEMENT!$F$9,Table5[Customer\nالعميل])),MAX($A$1:A183)+1,0)","v":0}]
[{"$f":"IF(ISNUMBER(SEARCH(STATEMENT!$F$9,Table5[Customer\nالعميل])),MAX($A$1:A184)+1,0)","v":0}]
[{"$f":"IF(ISNUMBER(SEARCH(STATEMENT!$F$9,Table5[Customer\nالعميل])),MAX($A$1:A185)+1,0)","v":0}]
[{"$f":"IF(ISNUMBER(SEARCH(STATEMENT!$F$9,Table5[Customer\nالعميل])),MAX($A$1:A186)+1,0)","v":0}]
[{"$f":"IF(ISNUMBER(SEARCH(STATEMENT!$F$9,Table5[Customer\nالعميل])),MAX($A$1:A187)+1,0)","v":0}]
[{"$f":"IF(ISNUMBER(SEARCH(STATEMENT!$F$9,Table5[Customer\nالعميل])),MAX($A$1:A188)+1,0)","v":0}]
[{"$f":"IF(ISNUMBER(SEARCH(STATEMENT!$F$9,Table5[Customer\nالعميل])),MAX($A$1:A189)+1,0)","v":0}]
[{"$f":"IF(ISNUMBER(SEARCH(STATEMENT!$F$9,Table5[Customer\nالعميل])),MAX($A$1:A190)+1,0)","v":0}]
[{"$f":"IF(ISNUMBER(SEARCH(STATEMENT!$F$9,Table5[Customer\nالعميل])),MAX($A$1:A191)+1,0)","v":0}]
[{"$f":"IF(ISNUMBER(SEARCH(STATEMENT!$F$9,Table5[Customer\nالعميل])),MAX($A$1:A192)+1,0)","v":0}]
[{"$f":"IF(ISNUMBER(SEARCH(STATEMENT!$F$9,Table5[Customer\nالعميل])),MAX($A$1:A193)+1,0)","v":0}]
[{"$f":"IF(ISNUMBER(SEARCH(STATEMENT!$F$9,Table5[Customer\nالعميل])),MAX($A$1:A194)+1,0)","v":0}]
[{"$f":"IF(ISNUMBER(SEARCH(STATEMENT!$F$9,Table5[Customer\nالعميل])),MAX($A$1:A195)+1,0)","v":0}]
[{"$f":"IF(ISNUMBER(SEARCH(STATEMENT!$F$9,Table5[Customer\nالعميل])),MAX($A$1:A196)+1,0)","v":0}]
[{"$f":"IF(ISNUMBER(SEARCH(STATEMENT!$F$9,Table5[Customer\nالعميل])),MAX($A$1:A197)+1,0)","v":0}]
[{"$f":"IF(ISNUMBER(SEARCH(STATEMENT!$F$9,Table5[Customer\nالعميل])),MAX($A$1:A198)+1,0)","v":0}]
[{"$f":"IF(ISNUMBER(SEARCH(STATEMENT!$F$9,Table5[Customer\nالعميل])),MAX($A$1:A199)+1,0)","v":0}]
[{"$f":"IF(ISNUMBER(SEARCH(STATEMENT!$F$9,Table5[Customer\nالعميل])),MAX($A$1:A200)+1,0)","v":0}]
[{"$f":"IF(ISNUMBER(SEARCH(STATEMENT!$F$9,Table5[Customer\nالعميل])),MAX($A$1:A201)+1,0)","v":0}]
[{"$f":"IF(ISNUMBER(SEARCH(STATEMENT!$F$9,Table5[Customer\nالعميل])),MAX($A$1:A202)+1,0)","v":0}]
[{"$f":"IF(ISNUMBER(SEARCH(STATEMENT!$F$9,Table5[Customer\nالعميل])),MAX($A$1:A203)+1,0)","v":0}]
[{"$f":"IF(ISNUMBER(SEARCH(STATEMENT!$F$9,Table5[Customer\nالعميل])),MAX($A$1:A204)+1,0)","v":0}]
[{"$f":"IF(ISNUMBER(SEARCH(STATEMENT!$F$9,Table5[Customer\nالعميل])),MAX($A$1:A205)+1,0)","v":0}]
[{"$f":"IF(ISNUMBER(SEARCH(STATEMENT!$F$9,Table5[Customer\nالعميل])),MAX($A$1:A206)+1,0)","v":0}]
[{"$f":"IF(ISNUMBER(SEARCH(STATEMENT!$F$9,Table5[Customer\nالعميل])),MAX($A$1:A207)+1,0)","v":0}]
[{"$f":"IF(ISNUMBER(SEARCH(STATEMENT!$F$9,Table5[Customer\nالعميل])),MAX($A$1:A208)+1,0)","v":0}]
[{"$f":"IF(ISNUMBER(SEARCH(STATEMENT!$F$9,Table5[Customer\nالعميل])),MAX($A$1:A209)+1,0)","v":0}]
[{"$f":"IF(ISNUMBER(SEARCH(STATEMENT!$F$9,Table5[Customer\nالعميل])),MAX($A$1:A210)+1,0)","v":0}]
[{"$f":"IF(ISNUMBER(SEARCH(STATEMENT!$F$9,Table5[Customer\nالعميل])),MAX($A$1:A211)+1,0)","v":0}]
[{"$f":"IF(ISNUMBER(SEARCH(STATEMENT!$F$9,Table5[Customer\nالعميل])),MAX($A$1:A212)+1,0)","v":0}]
[{"$f":"IF(ISNUMBER(SEARCH(STATEMENT!$F$9,Table5[Customer\nالعميل])),MAX($A$1:A213)+1,0)","v":0}]
[{"$f":"IF(ISNUMBER(SEARCH(STATEMENT!$F$9,Table5[Customer\nالعميل])),MAX($A$1:A214)+1,0)","v":0}]
[{"$f":"IF(ISNUMBER(SEARCH(STATEMENT!$F$9,Table5[Customer\nالعميل])),MAX($A$1:A215)+1,0)","v":0}]
[{"$f":"IF(ISNUMBER(SEARCH(STATEMENT!$F$9,Table5[Customer\nالعميل])),MAX($A$1:A216)+1,0)","v":0}]
[{"$f":"IF(ISNUMBER(SEARCH(STATEMENT!$F$9,Table5[Customer\nالعميل])),MAX($A$1:A217)+1,0)","v":0}]
[{"$f":"IF(ISNUMBER(SEARCH(STATEMENT!$F$9,Table5[Customer\nالعميل])),MAX($A$1:A218)+1,0)","v":0}]
[{"$f":"IF(ISNUMBER(SEARCH(STATEMENT!$F$9,Table5[Customer\nالعميل])),MAX($A$1:A219)+1,0)","v":0}]
[{"$f":"IF(ISNUMBER(SEARCH(STATEMENT!$F$9,Table5[Customer\nالعميل])),MAX($A$1:A220)+1,0)","v":0}]
[{"$f":"IF(ISNUMBER(SEARCH(STATEMENT!$F$9,Table5[Customer\nالعميل])),MAX($A$1:A221)+1,0)","v":0}]
[{"$f":"IF(ISNUMBER(SEARCH(STATEMENT!$F$9,Table5[Customer\nالعميل])),MAX($A$1:A222)+1,0)","v":0}]
[{"$f":"IF(ISNUMBER(SEARCH(STATEMENT!$F$9,Table5[Customer\nالعميل])),MAX($A$1:A223)+1,0)","v":0}]
[{"$f":"IF(ISNUMBER(SEARCH(STATEMENT!$F$9,Table5[Customer\nالعميل])),MAX($A$1:A224)+1,0)","v":0}]
[{"$f":"IF(ISNUMBER(SEARCH(STATEMENT!$F$9,Table5[Customer\nالعميل])),MAX($A$1:A225)+1,0)","v":0}]
[{"$f":"IF(ISNUMBER(SEARCH(STATEMENT!$F$9,Table5[Customer\nالعميل])),MAX($A$1:A226)+1,0)","v":0}]
[{"$f":"IF(ISNUMBER(SEARCH(STATEMENT!$F$9,Table5[Customer\nالعميل])),MAX($A$1:A227)+1,0)","v":0}]
[{"$f":"IF(ISNUMBER(SEARCH(STATEMENT!$F$9,Table5[Customer\nالعميل])),MAX($A$1:A228)+1,0)","v":0}]
[{"$f":"IF(ISNUMBER(SEARCH(STATEMENT!$F$9,Table5[Customer\nالعميل])),MAX($A$1:A229)+1,0)","v":0}]
[{"$f":"IF(ISNUMBER(SEARCH(STATEMENT!$F$9,Table5[Customer\nالعميل])),MAX($A$1:A230)+1,0)","v":0}]
[{"$f":"IF(ISNUMBER(SEARCH(STATEMENT!$F$9,Table5[Customer\nالعميل])),MAX($A$1:A231)+1,0)","v":0}]
[{"$f":"IF(ISNUMBER(SEARCH(STATEMENT!$F$9,Table5[Customer\nالعميل])),MAX($A$1:A232)+1,0)","v":0}]
[{"$f":"IF(ISNUMBER(SEARCH(STATEMENT!$F$9,Table5[Customer\nالعميل])),MAX($A$1:A233)+1,0)","v":0}]
[{"$f":"IF(ISNUMBER(SEARCH(STATEMENT!$F$9,Table5[Customer\nالعميل])),MAX($A$1:A234)+1,0)","v":0}]
[{"$f":"IF(ISNUMBER(SEARCH(STATEMENT!$F$9,Table5[Customer\nالعميل])),MAX($A$1:A235)+1,0)","v":0}]
[{"$f":"IF(ISNUMBER(SEARCH(STATEMENT!$F$9,Table5[Customer\nالعميل])),MAX($A$1:A236)+1,0)","v":0}]
[{"$f":"IF(ISNUMBER(SEARCH(STATEMENT!$F$9,Table5[Customer\nالعميل])),MAX($A$1:A237)+1,0)","v":0}]
[{"$f":"IF(ISNUMBER(SEARCH(STATEMENT!$F$9,Table5[Customer\nالعميل])),MAX($A$1:A238)+1,0)","v":0}]
[{"$f":"IF(ISNUMBER(SEARCH(STATEMENT!$F$9,Table5[Customer\nالعميل])),MAX($A$1:A239)+1,0)","v":0}]
[{"$f":"IF(ISNUMBER(SEARCH(STATEMENT!$F$9,Table5[Customer\nالعميل])),MAX($A$1:A240)+1,0)","v":0}]
[{"$f":"IF(ISNUMBER(SEARCH(STATEMENT!$F$9,Table5[Customer\nالعميل])),MAX($A$1:A241)+1,0)","v":0}]
[{"$f":"IF(ISNUMBER(SEARCH(STATEMENT!$F$9,Table5[Customer\nالعميل])),MAX($A$1:A242)+1,0)","v":0}]
[{"$f":"IF(ISNUMBER(SEARCH(STATEMENT!$F$9,Table5[Customer\nالعميل])),MAX($A$1:A243)+1,0)","v":0}]
[{"$f":"IF(ISNUMBER(SEARCH(STATEMENT!$F$9,Table5[Customer\nالعميل])),MAX($A$1:A244)+1,0)","v":0}]
[{"$f":"IF(ISNUMBER(SEARCH(STATEMENT!$F$9,Table5[Customer\nالعميل])),MAX($A$1:A245)+1,0)","v":0}]
[{"$f":"IF(ISNUMBER(SEARCH(STATEMENT!$F$9,Table5[Customer\nالعميل])),MAX($A$1:A246)+1,0)","v":0}]
[{"$f":"IF(ISNUMBER(SEARCH(STATEMENT!$F$9,Table5[Customer\nالعميل])),MAX($A$1:A247)+1,0)","v":0}]
[{"$f":"IF(ISNUMBER(SEARCH(STATEMENT!$F$9,Table5[Customer\nالعميل])),MAX($A$1:A248)+1,0)","v":0}]
[{"$f":"IF(ISNUMBER(SEARCH(STATEMENT!$F$9,Table5[Customer\nالعميل])),MAX($A$1:A249)+1,0)","v":0}]
[{"$f":"IF(ISNUMBER(SEARCH(STATEMENT!$F$9,Table5[Customer\nالعميل])),MAX($A$1:A250)+1,0)","v":0}]
[{"$f":"IF(ISNUMBER(SEARCH(STATEMENT!$F$9,Table5[Customer\nالعميل])),MAX($A$1:A251)+1,0)","v":0}]
[{"$f":"IF(ISNUMBER(SEARCH(STATEMENT!$F$9,Table5[Customer\nالعميل])),MAX($A$1:A252)+1,0)","v":0}]
[{"$f":"IF(ISNUMBER(SEARCH(STATEMENT!$F$9,Table5[Customer\nالعميل])),MAX($A$1:A253)+1,0)","v":0}]
[{"$f":"IF(ISNUMBER(SEARCH(STATEMENT!$F$9,Table5[Customer\nالعميل])),MAX($A$1:A254)+1,0)","v":0}]
[{"$f":"IF(ISNUMBER(SEARCH(STATEMENT!$F$9,Table5[Customer\nالعميل])),MAX($A$1:A255)+1,0)","v":0}]
[{"$f":"IF(ISNUMBER(SEARCH(STATEMENT!$F$9,Table5[Customer\nالعميل])),MAX($A$1:A256)+1,0)","v":0}]
[{"$f":"IF(ISNUMBER(SEARCH(STATEMENT!$F$9,Table5[Customer\nالعميل])),MAX($A$1:A257)+1,0)","v":0}]
[{"$f":"IF(ISNUMBER(SEARCH(STATEMENT!$F$9,Table5[Customer\nالعميل])),MAX($A$1:A258)+1,0)","v":0}]
[{"$f":"IF(ISNUMBER(SEARCH(STATEMENT!$F$9,Table5[Customer\nالعميل])),MAX($A$1:A259)+1,0)","v":0}]
[{"$f":"IF(ISNUMBER(SEARCH(STATEMENT!$F$9,Table5[Customer\nالعميل])),MAX($A$1:A260)+1,0)","v":0}]
[{"$f":"IF(ISNUMBER(SEARCH(STATEMENT!$F$9,Table5[Customer\nالعميل])),MAX($A$1:A261)+1,0)","v":0}]
[{"$f":"IF(ISNUMBER(SEARCH(STATEMENT!$F$9,Table5[Customer\nالعميل])),MAX($A$1:A262)+1,0)","v":0}]
[{"$f":"IF(ISNUMBER(SEARCH(STATEMENT!$F$9,Table5[Customer\nالعميل])),MAX($A$1:A263)+1,0)","v":0}]
[{"$f":"IF(ISNUMBER(SEARCH(STATEMENT!$F$9,Table5[Customer\nالعميل])),MAX($A$1:A264)+1,0)","v":0}]
[{"$f":"IF(ISNUMBER(SEARCH(STATEMENT!$F$9,Table5[Customer\nالعميل])),MAX($A$1:A265)+1,0)","v":0}]
[{"$f":"IF(ISNUMBER(SEARCH(STATEMENT!$F$9,Table5[Customer\nالعميل])),MAX($A$1:A266)+1,0)","v":0}]
[{"$f":"IF(ISNUMBER(SEARCH(STATEMENT!$F$9,Table5[Customer\nالعميل])),MAX($A$1:A267)+1,0)","v":0}]
[{"$f":"IF(ISNUMBER(SEARCH(STATEMENT!$F$9,Table5[Customer\nالعميل])),MAX($A$1:A268)+1,0)","v":0}]
[{"$f":"IF(ISNUMBER(SEARCH(STATEMENT!$F$9,Table5[Customer\nالعميل])),MAX($A$1:A269)+1,0)","v":0}]
[{"$f":"IF(ISNUMBER(SEARCH(STATEMENT!$F$9,Table5[Customer\nالعميل])),MAX($A$1:A270)+1,0)","v":0}]
[{"$f":"IF(ISNUMBER(SEARCH(STATEMENT!$F$9,Table5[Customer\nالعميل])),MAX($A$1:A271)+1,0)","v":0}]
[{"$f":"IF(ISNUMBER(SEARCH(STATEMENT!$F$9,Table5[Customer\nالعميل])),MAX($A$1:A272)+1,0)","v":0}]
[{"$f":"IF(ISNUMBER(SEARCH(STATEMENT!$F$9,Table5[Customer\nالعميل])),MAX($A$1:A273)+1,0)","v":0}]
[{"$f":"IF(ISNUMBER(SEARCH(STATEMENT!$F$9,Table5[Customer\nالعميل])),MAX($A$1:A274)+1,0)","v":0}]
[{"$f":"IF(ISNUMBER(SEARCH(STATEMENT!$F$9,Table5[Customer\nالعميل])),MAX($A$1:A275)+1,0)","v":0}]
[{"$f":"IF(ISNUMBER(SEARCH(STATEMENT!$F$9,Table5[Customer\nالعميل])),MAX($A$1:A276)+1,0)","v":0}]
[{"$f":"IF(ISNUMBER(SEARCH(STATEMENT!$F$9,Table5[Customer\nالعميل])),MAX($A$1:A277)+1,0)","v":0}]
[{"$f":"IF(ISNUMBER(SEARCH(STATEMENT!$F$9,Table5[Customer\nالعميل])),MAX($A$1:A278)+1,0)","v":0}]
[{"$f":"IF(ISNUMBER(SEARCH(STATEMENT!$F$9,Table5[Customer\nالعميل])),MAX($A$1:A279)+1,0)","v":0}]
[{"$f":"IF(ISNUMBER(SEARCH(STATEMENT!$F$9,Table5[Customer\nالعميل])),MAX($A$1:A280)+1,0)","v":0}]
[{"$f":"IF(ISNUMBER(SEARCH(STATEMENT!$F$9,Table5[Customer\nالعميل])),MAX($A$1:A281)+1,0)","v":0}]
[{"$f":"IF(ISNUMBER(SEARCH(STATEMENT!$F$9,Table5[Customer\nالعميل])),MAX($A$1:A282)+1,0)","v":0}]
[{"$f":"IF(ISNUMBER(SEARCH(STATEMENT!$F$9,Table5[Customer\nالعميل])),MAX($A$1:A283)+1,0)","v":0}]
[{"$f":"IF(ISNUMBER(SEARCH(STATEMENT!$F$9,Table5[Customer\nالعميل])),MAX($A$1:A284)+1,0)","v":0}]
[{"$f":"IF(ISNUMBER(SEARCH(STATEMENT!$F$9,Table5[Customer\nالعميل])),MAX($A$1:A285)+1,0)","v":0}]
[{"$f":"IF(ISNUMBER(SEARCH(STATEMENT!$F$9,Table5[Customer\nالعميل])),MAX($A$1:A286)+1,0)","v":0}]
[{"$f":"IF(ISNUMBER(SEARCH(STATEMENT!$F$9,Table5[Customer\nالعميل])),MAX($A$1:A287)+1,0)","v":0}]
[{"$f":"IF(ISNUMBER(SEARCH(STATEMENT!$F$9,Table5[Customer\nالعميل])),MAX($A$1:A288)+1,0)","v":0}]
[{"$f":"IF(ISNUMBER(SEARCH(STATEMENT!$F$9,Table5[Customer\nالعميل])),MAX($A$1:A289)+1,0)","v":0}]
[{"$f":"IF(ISNUMBER(SEARCH(STATEMENT!$F$9,Table5[Customer\nالعميل])),MAX($A$1:A290)+1,0)","v":0}]
[{"$f":"IF(ISNUMBER(SEARCH(STATEMENT!$F$9,Table5[Customer\nالعميل])),MAX($A$1:A291)+1,0)","v":0}]
[{"$f":"IF(ISNUMBER(SEARCH(STATEMENT!$F$9,Table5[Customer\nالعميل])),MAX($A$1:A292)+1,0)","v":0}]
[{"$f":"IF(ISNUMBER(SEARCH(STATEMENT!$F$9,Table5[Customer\nالعميل])),MAX($A$1:A293)+1,0)","v":0}]
[{"$f":"IF(ISNUMBER(SEARCH(STATEMENT!$F$9,Table5[Customer\nالعميل])),MAX($A$1:A294)+1,0)","v":0}]
[{"$f":"IF(ISNUMBER(SEARCH(STATEMENT!$F$9,Table5[Customer\nالعميل])),MAX($A$1:A295)+1,0)","v":0}]
[{"$f":"IF(ISNUMBER(SEARCH(STATEMENT!$F$9,Table5[Customer\nالعميل])),MAX($A$1:A296)+1,0)","v":0}]
[{"$f":"IF(ISNUMBER(SEARCH(STATEMENT!$F$9,Table5[Customer\nالعميل])),MAX($A$1:A297)+1,0)","v":0}]
[{"$f":"IF(ISNUMBER(SEARCH(STATEMENT!$F$9,Table5[Customer\nالعميل])),MAX($A$1:A298)+1,0)","v":0}]
[{"$f":"IF(ISNUMBER(SEARCH(STATEMENT!$F$9,Table5[Customer\nالعميل])),MAX($A$1:A299)+1,0)","v":0}]
[{"$f":"IF(ISNUMBER(SEARCH(STATEMENT!$F$9,Table5[Customer\nالعميل])),MAX($A$1:A300)+1,0)","v":0}]
[{"$f":"IF(ISNUMBER(SEARCH(STATEMENT!$F$9,Table5[Customer\nالعميل])),MAX($A$1:A301)+1,0)","v":0}]
[{"$f":"IF(ISNUMBER(SEARCH(STATEMENT!$F$9,Table5[Customer\nالعميل])),MAX($A$1:A302)+1,0)","v":0}]
[{"$f":"IF(ISNUMBER(SEARCH(STATEMENT!$F$9,Table5[Customer\nالعميل])),MAX($A$1:A303)+1,0)","v":0}]
[{"$f":"IF(ISNUMBER(SEARCH(STATEMENT!$F$9,Table5[Customer\nالعميل])),MAX($A$1:A304)+1,0)","v":0}]
[{"$f":"IF(ISNUMBER(SEARCH(STATEMENT!$F$9,Table5[Customer\nالعميل])),MAX($A$1:A305)+1,0)","v":0}]
[{"$f":"IF(ISNUMBER(SEARCH(STATEMENT!$F$9,Table5[Customer\nالعميل])),MAX($A$1:A306)+1,0)","v":0}]
[{"$f":"IF(ISNUMBER(SEARCH(STATEMENT!$F$9,Table5[Customer\nالعميل])),MAX($A$1:A307)+1,0)","v":0}]
[{"$f":"IF(ISNUMBER(SEARCH(STATEMENT!$F$9,Table5[Customer\nالعميل])),MAX($A$1:A308)+1,0)","v":0}]
[{"$f":"IF(ISNUMBER(SEARCH(STATEMENT!$F$9,Table5[Customer\nالعميل])),MAX($A$1:A309)+1,0)","v":0}]
[{"$f":"IF(ISNUMBER(SEARCH(STATEMENT!$F$9,Table5[Customer\nالعميل])),MAX($A$1:A310)+1,0)","v":0}]
[{"$f":"IF(ISNUMBER(SEARCH(STATEMENT!$F$9,Table5[Customer\nالعميل])),MAX($A$1:A311)+1,0)","v":0}]
[{"$f":"IF(ISNUMBER(SEARCH(STATEMENT!$F$9,Table5[Customer\nالعميل])),MAX($A$1:A312)+1,0)","v":0}]
[{"$f":"IF(ISNUMBER(SEARCH(STATEMENT!$F$9,Table5[Customer\nالعميل])),MAX($A$1:A313)+1,0)","v":0}]
[{"$f":"IF(ISNUMBER(SEARCH(STATEMENT!$F$9,Table5[Customer\nالعميل])),MAX($A$1:A314)+1,0)","v":0}]
[{"$f":"IF(ISNUMBER(SEARCH(STATEMENT!$F$9,Table5[Customer\nالعميل])),MAX($A$1:A315)+1,0)","v":0}]
[{"$f":"IF(ISNUMBER(SEARCH(STATEMENT!$F$9,Table5[Customer\nالعميل])),MAX($A$1:A316)+1,0)","v":0}]
[{"$f":"IF(ISNUMBER(SEARCH(STATEMENT!$F$9,Table5[Customer\nالعميل])),MAX($A$1:A317)+1,0)","v":0}]
[{"$f":"IF(ISNUMBER(SEARCH(STATEMENT!$F$9,Table5[Customer\nالعميل])),MAX($A$1:A318)+1,0)","v":0}]
[{"$f":"IF(ISNUMBER(SEARCH(STATEMENT!$F$9,Table5[Customer\nالعميل])),MAX($A$1:A319)+1,0)","v":0}]
[{"$f":"IF(ISNUMBER(SEARCH(STATEMENT!$F$9,Table5[Customer\nالعميل])),MAX($A$1:A320)+1,0)","v":0}]
[{"$f":"IF(ISNUMBER(SEARCH(STATEMENT!$F$9,Table5[Customer\nالعميل])),MAX($A$1:A321)+1,0)","v":0}]
[{"$f":"IF(ISNUMBER(SEARCH(STATEMENT!$F$9,Table5[Customer\nالعميل])),MAX($A$1:A322)+1,0)","v":0}]
[{"$f":"IF(ISNUMBER(SEARCH(STATEMENT!$F$9,Table5[Customer\nالعميل])),MAX($A$1:A323)+1,0)","v":0}]
[{"$f":"IF(ISNUMBER(SEARCH(STATEMENT!$F$9,Table5[Customer\nالعميل])),MAX($A$1:A324)+1,0)","v":0}]
[{"$f":"IF(ISNUMBER(SEARCH(STATEMENT!$F$9,Table5[Customer\nالعميل])),MAX($A$1:A325)+1,0)","v":0}]
[{"$f":"IF(ISNUMBER(SEARCH(STATEMENT!$F$9,Table5[Customer\nالعميل])),MAX($A$1:A326)+1,0)","v":0}]
[{"$f":"IF(ISNUMBER(SEARCH(STATEMENT!$F$9,Table5[Customer\nالعميل])),MAX($A$1:A327)+1,0)","v":0}]
[{"$f":"IF(ISNUMBER(SEARCH(STATEMENT!$F$9,Table5[Customer\nالعميل])),MAX($A$1:A328)+1,0)","v":0}]
[{"$f":"IF(ISNUMBER(SEARCH(STATEMENT!$F$9,Table5[Customer\nالعميل])),MAX($A$1:A329)+1,0)","v":0}]
[{"$f":"IF(ISNUMBER(SEARCH(STATEMENT!$F$9,Table5[Customer\nالعميل])),MAX($A$1:A330)+1,0)","v":0}]
[{"$f":"IF(ISNUMBER(SEARCH(STATEMENT!$F$9,Table5[Customer\nالعميل])),MAX($A$1:A331)+1,0)","v":0}]
[{"$f":"IF(ISNUMBER(SEARCH(STATEMENT!$F$9,Table5[Customer\nالعميل])),MAX($A$1:A332)+1,0)","v":0}]
[{"$f":"IF(ISNUMBER(SEARCH(STATEMENT!$F$9,Table5[Customer\nالعميل])),MAX($A$1:A333)+1,0)","v":0}]
[{"$f":"IF(ISNUMBER(SEARCH(STATEMENT!$F$9,Table5[Customer\nالعميل])),MAX($A$1:A334)+1,0)","v":0}]
[{"$f":"IF(ISNUMBER(SEARCH(STATEMENT!$F$9,Table5[Customer\nالعميل])),MAX($A$1:A335)+1,0)","v":0}]
[{"$f":"IF(ISNUMBER(SEARCH(STATEMENT!$F$9,Table5[Customer\nالعميل])),MAX($A$1:A336)+1,0)","v":0}]
[{"$f":"IF(ISNUMBER(SEARCH(STATEMENT!$F$9,Table5[Customer\nالعميل])),MAX($A$1:A337)+1,0)","v":0}]
[{"$f":"IF(ISNUMBER(SEARCH(STATEMENT!$F$9,Table5[Customer\nالعميل])),MAX($A$1:A338)+1,0)","v":0}]
[{"$f":"IF(ISNUMBER(SEARCH(STATEMENT!$F$9,Table5[Customer\nالعميل])),MAX($A$1:A339)+1,0)","v":0}]
[{"$f":"IF(ISNUMBER(SEARCH(STATEMENT!$F$9,Table5[Customer\nالعميل])),MAX($A$1:A340)+1,0)","v":0}]
[{"$f":"IF(ISNUMBER(SEARCH(STATEMENT!$F$9,Table5[Customer\nالعميل])),MAX($A$1:A341)+1,0)","v":0}]
[{"$f":"IF(ISNUMBER(SEARCH(STATEMENT!$F$9,Table5[Customer\nالعميل])),MAX($A$1:A342)+1,0)","v":0}]
[{"$f":"IF(ISNUMBER(SEARCH(STATEMENT!$F$9,Table5[Customer\nالعميل])),MAX($A$1:A343)+1,0)","v":0}]
[{"$f":"IF(ISNUMBER(SEARCH(STATEMENT!$F$9,Table5[Customer\nالعميل])),MAX($A$1:A344)+1,0)","v":0}]
[{"$f":"IF(ISNUMBER(SEARCH(STATEMENT!$F$9,Table5[Customer\nالعميل])),MAX($A$1:A345)+1,0)","v":0}]
[{"$f":"IF(ISNUMBER(SEARCH(STATEMENT!$F$9,Table5[Customer\nالعميل])),MAX($A$1:A346)+1,0)","v":0}]
[{"$f":"IF(ISNUMBER(SEARCH(STATEMENT!$F$9,Table5[Customer\nالعميل])),MAX($A$1:A347)+1,0)","v":0}]
[{"$f":"IF(ISNUMBER(SEARCH(STATEMENT!$F$9,Table5[Customer\nالعميل])),MAX($A$1:A348)+1,0)","v":0}]
[{"$f":"IF(ISNUMBER(SEARCH(STATEMENT!$F$9,Table5[Customer\nالعميل])),MAX($A$1:A349)+1,0)","v":0}]
[{"$f":"IF(ISNUMBER(SEARCH(STATEMENT!$F$9,Table5[Customer\nالعميل])),MAX($A$1:A350)+1,0)","v":0}]
[{"$f":"IF(ISNUMBER(SEARCH(STATEMENT!$F$9,Table5[Customer\nالعميل])),MAX($A$1:A351)+1,0)","v":0}]
[{"$f":"IF(ISNUMBER(SEARCH(STATEMENT!$F$9,Table5[Customer\nالعميل])),MAX($A$1:A352)+1,0)","v":0}]
[{"$f":"IF(ISNUMBER(SEARCH(STATEMENT!$F$9,Table5[Customer\nالعميل])),MAX($A$1:A353)+1,0)","v":0}]
[{"$f":"IF(ISNUMBER(SEARCH(STATEMENT!$F$9,Table5[Customer\nالعميل])),MAX($A$1:A354)+1,0)","v":0}]
[{"$f":"IF(ISNUMBER(SEARCH(STATEMENT!$F$9,Table5[Customer\nالعميل])),MAX($A$1:A355)+1,0)","v":0}]
[{"$f":"IF(ISNUMBER(SEARCH(STATEMENT!$F$9,Table5[Customer\nالعميل])),MAX($A$1:A356)+1,0)","v":0}]
[{"$f":"IF(ISNUMBER(SEARCH(STATEMENT!$F$9,Table5[Customer\nالعميل])),MAX($A$1:A357)+1,0)","v":0}]
[{"$f":"IF(ISNUMBER(SEARCH(STATEMENT!$F$9,Table5[Customer\nالعميل])),MAX($A$1:A358)+1,0)","v":0}]
[{"$f":"IF(ISNUMBER(SEARCH(STATEMENT!$F$9,Table5[Customer\nالعميل])),MAX($A$1:A359)+1,0)","v":0}]
[{"$f":"IF(ISNUMBER(SEARCH(STATEMENT!$F$9,Table5[Customer\nالعميل])),MAX($A$1:A360)+1,0)","v":0}]
[{"$f":"IF(ISNUMBER(SEARCH(STATEMENT!$F$9,Table5[Customer\nالعميل])),MAX($A$1:A361)+1,0)","v":0}]
[{"$f":"IF(ISNUMBER(SEARCH(STATEMENT!$F$9,Table5[Customer\nالعميل])),MAX($A$1:A362)+1,0)","v":0}]
[{"$f":"IF(ISNUMBER(SEARCH(STATEMENT!$F$9,Table5[Customer\nالعميل])),MAX($A$1:A363)+1,0)","v":0}]
[{"$f":"IF(ISNUMBER(SEARCH(STATEMENT!$F$9,Table5[Customer\nالعميل])),MAX($A$1:A364)+1,0)","v":0}]
[{"$f":"IF(ISNUMBER(SEARCH(STATEMENT!$F$9,Table5[Customer\nالعميل])),MAX($A$1:A365)+1,0)","v":0}]
[{"$f":"IF(ISNUMBER(SEARCH(STATEMENT!$F$9,Table5[Customer\nالعميل])),MAX($A$1:A366)+1,0)","v":0}]
[{"$f":"IF(ISNUMBER(SEARCH(STATEMENT!$F$9,Table5[Customer\nالعميل])),MAX($A$1:A367)+1,0)","v":0}]
[{"$f":"IF(ISNUMBER(SEARCH(STATEMENT!$F$9,Table5[Customer\nالعميل])),MAX($A$1:A368)+1,0)","v":0}]
[{"$f":"IF(ISNUMBER(SEARCH(STATEMENT!$F$9,Table5[Customer\nالعميل])),MAX($A$1:A369)+1,0)","v":0}]
[{"$f":"IF(ISNUMBER(SEARCH(STATEMENT!$F$9,Table5[Customer\nالعميل])),MAX($A$1:A370)+1,0)","v":0}]
[{"$f":"IF(ISNUMBER(SEARCH(STATEMENT!$F$9,Table5[Customer\nالعميل])),MAX($A$1:A371)+1,0)","v":0}]
[{"$f":"IF(ISNUMBER(SEARCH(STATEMENT!$F$9,Table5[Customer\nالعميل])),MAX($A$1:A372)+1,0)","v":0}]
[{"$f":"IF(ISNUMBER(SEARCH(STATEMENT!$F$9,Table5[Customer\nالعميل])),MAX($A$1:A373)+1,0)","v":0}]
[{"$f":"IF(ISNUMBER(SEARCH(STATEMENT!$F$9,Table5[Customer\nالعميل])),MAX($A$1:A374)+1,0)","v":0}]
[{"$f":"IF(ISNUMBER(SEARCH(STATEMENT!$F$9,Table5[Customer\nالعميل])),MAX($A$1:A375)+1,0)","v":0}]
[{"$f":"IF(ISNUMBER(SEARCH(STATEMENT!$F$9,Table5[Customer\nالعميل])),MAX($A$1:A376)+1,0)","v":0}]
[{"$f":"IF(ISNUMBER(SEARCH(STATEMENT!$F$9,Table5[Customer\nالعميل])),MAX($A$1:A377)+1,0)","v":0}]
[{"$f":"IF(ISNUMBER(SEARCH(STATEMENT!$F$9,Table5[Customer\nالعميل])),MAX($A$1:A378)+1,0)","v":0}]
[{"$f":"IF(ISNUMBER(SEARCH(STATEMENT!$F$9,Table5[Customer\nالعميل])),MAX($A$1:A379)+1,0)","v":0}]
[{"$f":"IF(ISNUMBER(SEARCH(STATEMENT!$F$9,Table5[Customer\nالعميل])),MAX($A$1:A380)+1,0)","v":0}]
[{"$f":"IF(ISNUMBER(SEARCH(STATEMENT!$F$9,Table5[Customer\nالعميل])),MAX($A$1:A381)+1,0)","v":0}]
[{"$f":"IF(ISNUMBER(SEARCH(STATEMENT!$F$9,Table5[Customer\nالعميل])),MAX($A$1:A382)+1,0)","v":0}]
[{"$f":"IF(ISNUMBER(SEARCH(STATEMENT!$F$9,Table5[Customer\nالعميل])),MAX($A$1:A383)+1,0)","v":0}]
[{"$f":"IF(ISNUMBER(SEARCH(STATEMENT!$F$9,Table5[Customer\nالعميل])),MAX($A$1:A384)+1,0)","v":0}]
[{"$f":"IF(ISNUMBER(SEARCH(STATEMENT!$F$9,Table5[Customer\nالعميل])),MAX($A$1:A385)+1,0)","v":0}]
[{"$f":"IF(ISNUMBER(SEARCH(STATEMENT!$F$9,Table5[Customer\nالعميل])),MAX($A$1:A386)+1,0)","v":0}]
[{"$f":"IF(ISNUMBER(SEARCH(STATEMENT!$F$9,Table5[Customer\nالعميل])),MAX($A$1:A387)+1,0)","v":0}]
[{"$f":"IF(ISNUMBER(SEARCH(STATEMENT!$F$9,Table5[Customer\nالعميل])),MAX($A$1:A388)+1,0)","v":0}]
[{"$f":"IF(ISNUMBER(SEARCH(STATEMENT!$F$9,Table5[Customer\nالعميل])),MAX($A$1:A389)+1,0)","v":0}]
[{"$f":"IF(ISNUMBER(SEARCH(STATEMENT!$F$9,Table5[Customer\nالعميل])),MAX($A$1:A390)+1,0)","v":0}]
[{"$f":"IF(ISNUMBER(SEARCH(STATEMENT!$F$9,Table5[Customer\nالعميل])),MAX($A$1:A391)+1,0)","v":0}]
[{"$f":"IF(ISNUMBER(SEARCH(STATEMENT!$F$9,Table5[Customer\nالعميل])),MAX($A$1:A392)+1,0)","v":0}]
[{"$f":"IF(ISNUMBER(SEARCH(STATEMENT!$F$9,Table5[Customer\nالعميل])),MAX($A$1:A393)+1,0)","v":0}]
[{"$f":"IF(ISNUMBER(SEARCH(STATEMENT!$F$9,Table5[Customer\nالعميل])),MAX($A$1:A394)+1,0)","v":0}]
[{"$f":"IF(ISNUMBER(SEARCH(STATEMENT!$F$9,Table5[Customer\nالعميل])),MAX($A$1:A395)+1,0)","v":0}]
[{"$f":"IF(ISNUMBER(SEARCH(STATEMENT!$F$9,Table5[Customer\nالعميل])),MAX($A$1:A396)+1,0)","v":0}]
[{"$f":"IF(ISNUMBER(SEARCH(STATEMENT!$F$9,Table5[Customer\nالعميل])),MAX($A$1:A397)+1,0)","v":0}]
[{"$f":"IF(ISNUMBER(SEARCH(STATEMENT!$F$9,Table5[Customer\nالعميل])),MAX($A$1:A398)+1,0)","v":0}]
[{"$f":"IF(ISNUMBER(SEARCH(STATEMENT!$F$9,Table5[Customer\nالعميل])),MAX($A$1:A399)+1,0)","v":0}]
[{"$f":"IF(ISNUMBER(SEARCH(STATEMENT!$F$9,Table5[Customer\nالعميل])),MAX($A$1:A400)+1,0)","v":0}]
[{"$f":"IF(ISNUMBER(SEARCH(STATEMENT!$F$9,Table5[Customer\nالعميل])),MAX($A$1:A401)+1,0)","v":0}]
[{"$f":"IF(ISNUMBER(SEARCH(STATEMENT!$F$9,Table5[Customer\nالعميل])),MAX($A$1:A402)+1,0)","v":0}]
[{"$f":"IF(ISNUMBER(SEARCH(STATEMENT!$F$9,Table5[Customer\nالعميل])),MAX($A$1:A403)+1,0)","v":0}]
[{"$f":"IF(ISNUMBER(SEARCH(STATEMENT!$F$9,Table5[Customer\nالعميل])),MAX($A$1:A404)+1,0)","v":0}]
[{"$f":"IF(ISNUMBER(SEARCH(STATEMENT!$F$9,Table5[Customer\nالعميل])),MAX($A$1:A405)+1,0)","v":0}]
[{"$f":"IF(ISNUMBER(SEARCH(STATEMENT!$F$9,Table5[Customer\nالعميل])),MAX($A$1:A406)+1,0)","v":0}]
[{"$f":"IF(ISNUMBER(SEARCH(STATEMENT!$F$9,Table5[Customer\nالعميل])),MAX($A$1:A407)+1,0)","v":0}]
[{"$f":"IF(ISNUMBER(SEARCH(STATEMENT!$F$9,Table5[Customer\nالعميل])),MAX($A$1:A408)+1,0)","v":0}]
[{"$f":"IF(ISNUMBER(SEARCH(STATEMENT!$F$9,Table5[Customer\nالعميل])),MAX($A$1:A409)+1,0)","v":0}]
[{"$f":"IF(ISNUMBER(SEARCH(STATEMENT!$F$9,Table5[Customer\nالعميل])),MAX($A$1:A410)+1,0)","v":0}]
[{"$f":"IF(ISNUMBER(SEARCH(STATEMENT!$F$9,Table5[Customer\nالعميل])),MAX($A$1:A411)+1,0)","v":0}]
[{"$f":"IF(ISNUMBER(SEARCH(STATEMENT!$F$9,Table5[Customer\nالعميل])),MAX($A$1:A412)+1,0)","v":0}]
[{"$f":"IF(ISNUMBER(SEARCH(STATEMENT!$F$9,Table5[Customer\nالعميل])),MAX($A$1:A413)+1,0)","v":0}]
[{"$f":"IF(ISNUMBER(SEARCH(STATEMENT!$F$9,Table5[Customer\nالعميل])),MAX($A$1:A414)+1,0)","v":0}]
[{"$f":"IF(ISNUMBER(SEARCH(STATEMENT!$F$9,Table5[Customer\nالعميل])),MAX($A$1:A415)+1,0)","v":0}]
[{"$f":"IF(ISNUMBER(SEARCH(STATEMENT!$F$9,Table5[Customer\nالعميل])),MAX($A$1:A416)+1,0)","v":0}]
[{"$f":"IF(ISNUMBER(SEARCH(STATEMENT!$F$9,Table5[Customer\nالعميل])),MAX($A$1:A417)+1,0)","v":0}]
[{"$f":"IF(ISNUMBER(SEARCH(STATEMENT!$F$9,Table5[Customer\nالعميل])),MAX($A$1:A418)+1,0)","v":0}]
[{"$f":"IF(ISNUMBER(SEARCH(STATEMENT!$F$9,Table5[Customer\nالعميل])),MAX($A$1:A419)+1,0)","v":0}]
[{"$f":"IF(ISNUMBER(SEARCH(STATEMENT!$F$9,Table5[Customer\nالعميل])),MAX($A$1:A420)+1,0)","v":0}]
[{"$f":"IF(ISNUMBER(SEARCH(STATEMENT!$F$9,Table5[Customer\nالعميل])),MAX($A$1:A421)+1,0)","v":0}]
[{"$f":"IF(ISNUMBER(SEARCH(STATEMENT!$F$9,Table5[Customer\nالعميل])),MAX($A$1:A422)+1,0)","v":0}]
[{"$f":"IF(ISNUMBER(SEARCH(STATEMENT!$F$9,Table5[Customer\nالعميل])),MAX($A$1:A423)+1,0)","v":0}]
[{"$f":"IF(ISNUMBER(SEARCH(STATEMENT!$F$9,Table5[Customer\nالعميل])),MAX($A$1:A424)+1,0)","v":0}]
[{"$f":"IF(ISNUMBER(SEARCH(STATEMENT!$F$9,Table5[Customer\nالعميل])),MAX($A$1:A425)+1,0)","v":0}]
[{"$f":"IF(ISNUMBER(SEARCH(STATEMENT!$F$9,Table5[Customer\nالعميل])),MAX($A$1:A426)+1,0)","v":0}]
[{"$f":"IF(ISNUMBER(SEARCH(STATEMENT!$F$9,Table5[Customer\nالعميل])),MAX($A$1:A427)+1,0)","v":0}]
[{"$f":"IF(ISNUMBER(SEARCH(STATEMENT!$F$9,Table5[Customer\nالعميل])),MAX($A$1:A428)+1,0)","v":0}]
[{"$f":"IF(ISNUMBER(SEARCH(STATEMENT!$F$9,Table5[Customer\nالعميل])),MAX($A$1:A429)+1,0)","v":0}]
[{"$f":"IF(ISNUMBER(SEARCH(STATEMENT!$F$9,Table5[Customer\nالعميل])),MAX($A$1:A430)+1,0)","v":0}]
[{"$f":"IF(ISNUMBER(SEARCH(STATEMENT!$F$9,Table5[Customer\nالعميل])),MAX($A$1:A431)+1,0)","v":0}]
[{"$f":"IF(ISNUMBER(SEARCH(STATEMENT!$F$9,Table5[Customer\nالعميل])),MAX($A$1:A432)+1,0)","v":0}]
[{"$f":"IF(ISNUMBER(SEARCH(STATEMENT!$F$9,Table5[Customer\nالعميل])),MAX($A$1:A433)+1,0)","v":0}]
[{"$f":"IF(ISNUMBER(SEARCH(STATEMENT!$F$9,Table5[Customer\nالعميل])),MAX($A$1:A434)+1,0)","v":0}]
[{"$f":"IF(ISNUMBER(SEARCH(STATEMENT!$F$9,Table5[Customer\nالعميل])),MAX($A$1:A435)+1,0)","v":0}]
[{"$f":"IF(ISNUMBER(SEARCH(STATEMENT!$F$9,Table5[Customer\nالعميل])),MAX($A$1:A436)+1,0)","v":0}]
[{"$f":"IF(ISNUMBER(SEARCH(STATEMENT!$F$9,Table5[Customer\nالعميل])),MAX($A$1:A437)+1,0)","v":0}]
[{"$f":"IF(ISNUMBER(SEARCH(STATEMENT!$F$9,Table5[Customer\nالعميل])),MAX($A$1:A438)+1,0)","v":0}]
[{"$f":"IF(ISNUMBER(SEARCH(STATEMENT!$F$9,Table5[Customer\nالعميل])),MAX($A$1:A439)+1,0)","v":0}]
[{"$f":"IF(ISNUMBER(SEARCH(STATEMENT!$F$9,Table5[Customer\nالعميل])),MAX($A$1:A440)+1,0)","v":0}]
[{"$f":"IF(ISNUMBER(SEARCH(STATEMENT!$F$9,Table5[Customer\nالعميل])),MAX($A$1:A441)+1,0)","v":0}]
[{"$f":"IF(ISNUMBER(SEARCH(STATEMENT!$F$9,Table5[Customer\nالعميل])),MAX($A$1:A442)+1,0)","v":0}]
[{"$f":"IF(ISNUMBER(SEARCH(STATEMENT!$F$9,Table5[Customer\nالعميل])),MAX($A$1:A443)+1,0)","v":0}]
[{"$f":"IF(ISNUMBER(SEARCH(STATEMENT!$F$9,Table5[Customer\nالعميل])),MAX($A$1:A444)+1,0)","v":0}]
[{"$f":"IF(ISNUMBER(SEARCH(STATEMENT!$F$9,Table5[Customer\nالعميل])),MAX($A$1:A445)+1,0)","v":0}]
[{"$f":"IF(ISNUMBER(SEARCH(STATEMENT!$F$9,Table5[Customer\nالعميل])),MAX($A$1:A446)+1,0)","v":0}]
[{"$f":"IF(ISNUMBER(SEARCH(STATEMENT!$F$9,Table5[Customer\nالعميل])),MAX($A$1:A447)+1,0)","v":0}]
[{"$f":"IF(ISNUMBER(SEARCH(STATEMENT!$F$9,Table5[Customer\nالعميل])),MAX($A$1:A448)+1,0)","v":0}]
[{"$f":"IF(ISNUMBER(SEARCH(STATEMENT!$F$9,Table5[Customer\nالعميل])),MAX($A$1:A449)+1,0)","v":0}]
[{"$f":"IF(ISNUMBER(SEARCH(STATEMENT!$F$9,Table5[Customer\nالعميل])),MAX($A$1:A450)+1,0)","v":0}]
[{"$f":"IF(ISNUMBER(SEARCH(STATEMENT!$F$9,Table5[Customer\nالعميل])),MAX($A$1:A451)+1,0)","v":0}]
[{"$f":"IF(ISNUMBER(SEARCH(STATEMENT!$F$9,Table5[Customer\nالعميل])),MAX($A$1:A452)+1,0)","v":0}]
[{"$f":"IF(ISNUMBER(SEARCH(STATEMENT!$F$9,Table5[Customer\nالعميل])),MAX($A$1:A453)+1,0)","v":0}]
[{"$f":"IF(ISNUMBER(SEARCH(STATEMENT!$F$9,Table5[Customer\nالعميل])),MAX($A$1:A454)+1,0)","v":0}]
[{"$f":"IF(ISNUMBER(SEARCH(STATEMENT!$F$9,Table5[Customer\nالعميل])),MAX($A$1:A455)+1,0)","v":0}]
[{"$f":"IF(ISNUMBER(SEARCH(STATEMENT!$F$9,Table5[Customer\nالعميل])),MAX($A$1:A456)+1,0)","v":0}]
[{"$f":"IF(ISNUMBER(SEARCH(STATEMENT!$F$9,Table5[Customer\nالعميل])),MAX($A$1:A457)+1,0)","v":0}]
[{"$f":"IF(ISNUMBER(SEARCH(STATEMENT!$F$9,Table5[Customer\nالعميل])),MAX($A$1:A458)+1,0)","v":0}]
[{"$f":"IF(ISNUMBER(SEARCH(STATEMENT!$F$9,Table5[Customer\nالعميل])),MAX($A$1:A459)+1,0)","v":0}]
[{"$f":"IF(ISNUMBER(SEARCH(STATEMENT!$F$9,Table5[Customer\nالعميل])),MAX($A$1:A460)+1,0)","v":0}]
[{"$f":"IF(ISNUMBER(SEARCH(STATEMENT!$F$9,Table5[Customer\nالعميل])),MAX($A$1:A461)+1,0)","v":0}]
[{"$f":"IF(ISNUMBER(SEARCH(STATEMENT!$F$9,Table5[Customer\nالعميل])),MAX($A$1:A462)+1,0)","v":0}]
[{"$f":"IF(ISNUMBER(SEARCH(STATEMENT!$F$9,Table5[Customer\nالعميل])),MAX($A$1:A463)+1,0)","v":0}]
[{"$f":"IF(ISNUMBER(SEARCH(STATEMENT!$F$9,Table5[Customer\nالعميل])),MAX($A$1:A464)+1,0)","v":0}]
[{"$f":"IF(ISNUMBER(SEARCH(STATEMENT!$F$9,Table5[Customer\nالعميل])),MAX($A$1:A465)+1,0)","v":0}]
[{"$f":"IF(ISNUMBER(SEARCH(STATEMENT!$F$9,Table5[Customer\nالعميل])),MAX($A$1:A466)+1,0)","v":0}]
[{"$f":"IF(ISNUMBER(SEARCH(STATEMENT!$F$9,Table5[Customer\nالعميل])),MAX($A$1:A467)+1,0)","v":0}]
[{"$f":"IF(ISNUMBER(SEARCH(STATEMENT!$F$9,Table5[Customer\nالعميل])),MAX($A$1:A468)+1,0)","v":0}]
[{"$f":"IF(ISNUMBER(SEARCH(STATEMENT!$F$9,Table5[Customer\nالعميل])),MAX($A$1:A469)+1,0)","v":0}]
[{"$f":"IF(ISNUMBER(SEARCH(STATEMENT!$F$9,Table5[Customer\nالعميل])),MAX($A$1:A470)+1,0)","v":0}]
[{"$f":"IF(ISNUMBER(SEARCH(STATEMENT!$F$9,Table5[Customer\nالعميل])),MAX($A$1:A471)+1,0)","v":0}]
[{"$f":"IF(ISNUMBER(SEARCH(STATEMENT!$F$9,Table5[Customer\nالعميل])),MAX($A$1:A472)+1,0)","v":0}]
[{"$f":"IF(ISNUMBER(SEARCH(STATEMENT!$F$9,Table5[Customer\nالعميل])),MAX($A$1:A473)+1,0)","v":0}]
[{"$f":"IF(ISNUMBER(SEARCH(STATEMENT!$F$9,Table5[Customer\nالعميل])),MAX($A$1:A474)+1,0)","v":0}]
[{"$f":"IF(ISNUMBER(SEARCH(STATEMENT!$F$9,Table5[Customer\nالعميل])),MAX($A$1:A475)+1,0)","v":0}]
[{"$f":"IF(ISNUMBER(SEARCH(STATEMENT!$F$9,Table5[Customer\nالعميل])),MAX($A$1:A476)+1,0)","v":0}]
[{"$f":"IF(ISNUMBER(SEARCH(STATEMENT!$F$9,Table5[Customer\nالعميل])),MAX($A$1:A477)+1,0)","v":0}]
[{"$f":"IF(ISNUMBER(SEARCH(STATEMENT!$F$9,Table5[Customer\nالعميل])),MAX($A$1:A478)+1,0)","v":0}]
[{"$f":"IF(ISNUMBER(SEARCH(STATEMENT!$F$9,Table5[Customer\nالعميل])),MAX($A$1:A479)+1,0)","v":0}]
[{"$f":"IF(ISNUMBER(SEARCH(STATEMENT!$F$9,Table5[Customer\nالعميل])),MAX($A$1:A480)+1,0)","v":0}]
[{"$f":"IF(ISNUMBER(SEARCH(STATEMENT!$F$9,Table5[Customer\nالعميل])),MAX($A$1:A481)+1,0)","v":0}]
[{"$f":"IF(ISNUMBER(SEARCH(STATEMENT!$F$9,Table5[Customer\nالعميل])),MAX($A$1:A482)+1,0)","v":0}]
[{"$f":"IF(ISNUMBER(SEARCH(STATEMENT!$F$9,Table5[Customer\nالعميل])),MAX($A$1:A483)+1,0)","v":0}]
[{"$f":"IF(ISNUMBER(SEARCH(STATEMENT!$F$9,Table5[Customer\nالعميل])),MAX($A$1:A484)+1,0)","v":0}]
[{"$f":"IF(ISNUMBER(SEARCH(STATEMENT!$F$9,Table5[Customer\nالعميل])),MAX($A$1:A485)+1,0)","v":0}]
[{"$f":"IF(ISNUMBER(SEARCH(STATEMENT!$F$9,Table5[Customer\nالعميل])),MAX($A$1:A486)+1,0)","v":0}]
[{"$f":"IF(ISNUMBER(SEARCH(STATEMENT!$F$9,Table5[Customer\nالعميل])),MAX($A$1:A487)+1,0)","v":0}]
[{"$f":"IF(ISNUMBER(SEARCH(STATEMENT!$F$9,Table5[Customer\nالعميل])),MAX($A$1:A488)+1,0)","v":0}]
[{"$f":"IF(ISNUMBER(SEARCH(STATEMENT!$F$9,Table5[Customer\nالعميل])),MAX($A$1:A489)+1,0)","v":0}]
[{"$f":"IF(ISNUMBER(SEARCH(STATEMENT!$F$9,Table5[Customer\nالعميل])),MAX($A$1:A490)+1,0)","v":0}]
[{"$f":"IF(ISNUMBER(SEARCH(STATEMENT!$F$9,Table5[Customer\nالعميل])),MAX($A$1:A491)+1,0)","v":0}]
[{"$f":"IF(ISNUMBER(SEARCH(STATEMENT!$F$9,Table5[Customer\nالعميل])),MAX($A$1:A492)+1,0)","v":0}]
[{"$f":"IF(ISNUMBER(SEARCH(STATEMENT!$F$9,Table5[Customer\nالعميل])),MAX($A$1:A493)+1,0)","v":0}]
[{"$f":"IF(ISNUMBER(SEARCH(STATEMENT!$F$9,Table5[Customer\nالعميل])),MAX($A$1:A494)+1,0)","v":0}]
[{"$f":"IF(ISNUMBER(SEARCH(STATEMENT!$F$9,Table5[Customer\nالعميل])),MAX($A$1:A495)+1,0)","v":0}]
[{"$f":"IF(ISNUMBER(SEARCH(STATEMENT!$F$9,Table5[Customer\nالعميل])),MAX($A$1:A496)+1,0)","v":0}]
[{"$f":"IF(ISNUMBER(SEARCH(STATEMENT!$F$9,Table5[Customer\nالعميل])),MAX($A$1:A497)+1,0)","v":0}]
[{"$f":"IF(ISNUMBER(SEARCH(STATEMENT!$F$9,Table5[Customer\nالعميل])),MAX($A$1:A498)+1,0)","v":0}]
[{"$f":"IF(ISNUMBER(SEARCH(STATEMENT!$F$9,Table5[Customer\nالعميل])),MAX($A$1:A499)+1,0)","v":0}]
[{"$f":"IF(ISNUMBER(SEARCH(STATEMENT!$F$9,Table5[Customer\nالعميل])),MAX($A$1:A500)+1,0)","v":0}]
[{"$f":"IF(ISNUMBER(SEARCH(STATEMENT!$F$9,Table5[Customer\nالعميل])),MAX($A$1:A501)+1,0)","v":0}]
[{"$f":"IF(ISNUMBER(SEARCH(STATEMENT!$F$9,Table5[Customer\nالعميل])),MAX($A$1:A502)+1,0)","v":0}]
[{"$f":"IF(ISNUMBER(SEARCH(STATEMENT!$F$9,Table5[Customer\nالعميل])),MAX($A$1:A503)+1,0)","v":0}]
[{"$f":"IF(ISNUMBER(SEARCH(STATEMENT!$F$9,Table5[Customer\nالعميل])),MAX($A$1:A504)+1,0)","v":0}]
[{"$f":"IF(ISNUMBER(SEARCH(STATEMENT!$F$9,Table5[Customer\nالعميل])),MAX($A$1:A505)+1,0)","v":0}]
[{"$f":"IF(ISNUMBER(SEARCH(STATEMENT!$F$9,Table5[Customer\nالعميل])),MAX($A$1:A506)+1,0)","v":0}]
[{"$f":"IF(ISNUMBER(SEARCH(STATEMENT!$F$9,Table5[Customer\nالعميل])),MAX($A$1:A507)+1,0)","v":0}]
[{"$f":"IF(ISNUMBER(SEARCH(STATEMENT!$F$9,Table5[Customer\nالعميل])),MAX($A$1:A508)+1,0)","v":0}]
[{"$f":"IF(ISNUMBER(SEARCH(STATEMENT!$F$9,Table5[Customer\nالعميل])),MAX($A$1:A509)+1,0)","v":0}]
[{"$f":"IF(ISNUMBER(SEARCH(STATEMENT!$F$9,Table5[Customer\nالعميل])),MAX($A$1:A510)+1,0)","v":0}]
[{"$f":"IF(ISNUMBER(SEARCH(STATEMENT!$F$9,Table5[Customer\nالعميل])),MAX($A$1:A511)+1,0)","v":0}]
[{"$f":"IF(ISNUMBER(SEARCH(STATEMENT!$F$9,Table5[Customer\nالعميل])),MAX($A$1:A512)+1,0)","v":0}]
[{"$f":"IF(ISNUMBER(SEARCH(STATEMENT!$F$9,Table5[Customer\nالعميل])),MAX($A$1:A513)+1,0)","v":0}]
[{"$f":"IF(ISNUMBER(SEARCH(STATEMENT!$F$9,Table5[Customer\nالعميل])),MAX($A$1:A514)+1,0)","v":0}]
[{"$f":"IF(ISNUMBER(SEARCH(STATEMENT!$F$9,Table5[Customer\nالعميل])),MAX($A$1:A515)+1,0)","v":0}]
[{"$f":"IF(ISNUMBER(SEARCH(STATEMENT!$F$9,Table5[Customer\nالعميل])),MAX($A$1:A516)+1,0)","v":0}]
[{"$f":"IF(ISNUMBER(SEARCH(STATEMENT!$F$9,Table5[Customer\nالعميل])),MAX($A$1:A517)+1,0)","v":0}]
[{"$f":"IF(ISNUMBER(SEARCH(STATEMENT!$F$9,Table5[Customer\nالعميل])),MAX($A$1:A518)+1,0)","v":0}]
[{"$f":"IF(ISNUMBER(SEARCH(STATEMENT!$F$9,Table5[Customer\nالعميل])),MAX($A$1:A519)+1,0)","v":0}]
[{"$f":"IF(ISNUMBER(SEARCH(STATEMENT!$F$9,Table5[Customer\nالعميل])),MAX($A$1:A520)+1,0)","v":0}]
[{"$f":"IF(ISNUMBER(SEARCH(STATEMENT!$F$9,Table5[Customer\nالعميل])),MAX($A$1:A521)+1,0)","v":0}]
[{"$f":"IF(ISNUMBER(SEARCH(STATEMENT!$F$9,Table5[Customer\nالعميل])),MAX($A$1:A522)+1,0)","v":0}]
[{"$f":"IF(ISNUMBER(SEARCH(STATEMENT!$F$9,Table5[Customer\nالعميل])),MAX($A$1:A523)+1,0)","v":0}]
[{"$f":"IF(ISNUMBER(SEARCH(STATEMENT!$F$9,Table5[Customer\nالعميل])),MAX($A$1:A524)+1,0)","v":0}]
[{"$f":"IF(ISNUMBER(SEARCH(STATEMENT!$F$9,Table5[Customer\nالعميل])),MAX($A$1:A525)+1,0)","v":0}]
[{"$f":"IF(ISNUMBER(SEARCH(STATEMENT!$F$9,Table5[Customer\nالعميل])),MAX($A$1:A526)+1,0)","v":0}]
[{"$f":"IF(ISNUMBER(SEARCH(STATEMENT!$F$9,Table5[Customer\nالعميل])),MAX($A$1:A527)+1,0)","v":0}]
[{"$f":"IF(ISNUMBER(SEARCH(STATEMENT!$F$9,Table5[Customer\nالعميل])),MAX($A$1:A528)+1,0)","v":0}]
[{"$f":"IF(ISNUMBER(SEARCH(STATEMENT!$F$9,Table5[Customer\nالعميل])),MAX($A$1:A529)+1,0)","v":0}]
[{"$f":"IF(ISNUMBER(SEARCH(STATEMENT!$F$9,Table5[Customer\nالعميل])),MAX($A$1:A530)+1,0)","v":0}]
[{"$f":"IF(ISNUMBER(SEARCH(STATEMENT!$F$9,Table5[Customer\nالعميل])),MAX($A$1:A531)+1,0)","v":0}]
[{"$f":"IF(ISNUMBER(SEARCH(STATEMENT!$F$9,Table5[Customer\nالعميل])),MAX($A$1:A532)+1,0)","v":0}]
[{"$f":"IF(ISNUMBER(SEARCH(STATEMENT!$F$9,Table5[Customer\nالعميل])),MAX($A$1:A533)+1,0)","v":0}]
[{"$f":"IF(ISNUMBER(SEARCH(STATEMENT!$F$9,Table5[Customer\nالعميل])),MAX($A$1:A534)+1,0)","v":0}]
[{"$f":"IF(ISNUMBER(SEARCH(STATEMENT!$F$9,Table5[Customer\nالعميل])),MAX($A$1:A535)+1,0)","v":0}]
[{"$f":"IF(ISNUMBER(SEARCH(STATEMENT!$F$9,Table5[Customer\nالعميل])),MAX($A$1:A536)+1,0)","v":0}]
[{"$f":"IF(ISNUMBER(SEARCH(STATEMENT!$F$9,Table5[Customer\nالعميل])),MAX($A$1:A537)+1,0)","v":0}]
[{"$f":"IF(ISNUMBER(SEARCH(STATEMENT!$F$9,Table5[Customer\nالعميل])),MAX($A$1:A538)+1,0)","v":0}]
[{"$f":"IF(ISNUMBER(SEARCH(STATEMENT!$F$9,Table5[Customer\nالعميل])),MAX($A$1:A539)+1,0)","v":0}]
[{"$f":"IF(ISNUMBER(SEARCH(STATEMENT!$F$9,Table5[Customer\nالعميل])),MAX($A$1:A540)+1,0)","v":0}]
[{"$f":"IF(ISNUMBER(SEARCH(STATEMENT!$F$9,Table5[Customer\nالعميل])),MAX($A$1:A541)+1,0)","v":0}]
[{"$f":"IF(ISNUMBER(SEARCH(STATEMENT!$F$9,Table5[Customer\nالعميل])),MAX($A$1:A542)+1,0)","v":0}]
[{"$f":"IF(ISNUMBER(SEARCH(STATEMENT!$F$9,Table5[Customer\nالعميل])),MAX($A$1:A543)+1,0)","v":0}]
[{"$f":"IF(ISNUMBER(SEARCH(STATEMENT!$F$9,Table5[Customer\nالعميل])),MAX($A$1:A544)+1,0)","v":0}]
[{"$f":"IF(ISNUMBER(SEARCH(STATEMENT!$F$9,Table5[Customer\nالعميل])),MAX($A$1:A545)+1,0)","v":0}]
[{"$f":"IF(ISNUMBER(SEARCH(STATEMENT!$F$9,Table5[Customer\nالعميل])),MAX($A$1:A546)+1,0)","v":0}]
[{"$f":"IF(ISNUMBER(SEARCH(STATEMENT!$F$9,Table5[Customer\nالعميل])),MAX($A$1:A547)+1,0)","v":0}]
[{"$f":"IF(ISNUMBER(SEARCH(STATEMENT!$F$9,Table5[Customer\nالعميل])),MAX($A$1:A548)+1,0)","v":0}]
[{"$f":"IF(ISNUMBER(SEARCH(STATEMENT!$F$9,Table5[Customer\nالعميل])),MAX($A$1:A549)+1,0)","v":0}]
[{"$f":"IF(ISNUMBER(SEARCH(STATEMENT!$F$9,Table5[Customer\nالعميل])),MAX($A$1:A550)+1,0)","v":0}]
[{"$f":"IF(ISNUMBER(SEARCH(STATEMENT!$F$9,Table5[Customer\nالعميل])),MAX($A$1:A551)+1,0)","v":0}]
[{"$f":"IF(ISNUMBER(SEARCH(STATEMENT!$F$9,Table5[Customer\nالعميل])),MAX($A$1:A552)+1,0)","v":0}]
[{"$f":"IF(ISNUMBER(SEARCH(STATEMENT!$F$9,Table5[Customer\nالعميل])),MAX($A$1:A553)+1,0)","v":0}]
[{"$f":"IF(ISNUMBER(SEARCH(STATEMENT!$F$9,Table5[Customer\nالعميل])),MAX($A$1:A554)+1,0)","v":0}]
[{"$f":"IF(ISNUMBER(SEARCH(STATEMENT!$F$9,Table5[Customer\nالعميل])),MAX($A$1:A555)+1,0)","v":0}]
[{"$f":"IF(ISNUMBER(SEARCH(STATEMENT!$F$9,Table5[Customer\nالعميل])),MAX($A$1:A556)+1,0)","v":0}]
[{"$f":"IF(ISNUMBER(SEARCH(STATEMENT!$F$9,Table5[Customer\nالعميل])),MAX($A$1:A557)+1,0)","v":0}]
[{"$f":"IF(ISNUMBER(SEARCH(STATEMENT!$F$9,Table5[Customer\nالعميل])),MAX($A$1:A558)+1,0)","v":0}]
[{"$f":"IF(ISNUMBER(SEARCH(STATEMENT!$F$9,Table5[Customer\nالعميل])),MAX($A$1:A559)+1,0)","v":0}]
[{"$f":"IF(ISNUMBER(SEARCH(STATEMENT!$F$9,Table5[Customer\nالعميل])),MAX($A$1:A560)+1,0)","v":0}]
[{"$f":"IF(ISNUMBER(SEARCH(STATEMENT!$F$9,Table5[Customer\nالعميل])),MAX($A$1:A561)+1,0)","v":0}]
[{"$f":"IF(ISNUMBER(SEARCH(STATEMENT!$F$9,Table5[Customer\nالعميل])),MAX($A$1:A562)+1,0)","v":0}]
[{"$f":"IF(ISNUMBER(SEARCH(STATEMENT!$F$9,Table5[Customer\nالعميل])),MAX($A$1:A563)+1,0)","v":0}]
[{"$f":"IF(ISNUMBER(SEARCH(STATEMENT!$F$9,Table5[Customer\nالعميل])),MAX($A$1:A564)+1,0)","v":0}]
[{"$f":"IF(ISNUMBER(SEARCH(STATEMENT!$F$9,Table5[Customer\nالعميل])),MAX($A$1:A565)+1,0)","v":0}]
[{"$f":"IF(ISNUMBER(SEARCH(STATEMENT!$F$9,Table5[Customer\nالعميل])),MAX($A$1:A566)+1,0)","v":0}]
[{"$f":"IF(ISNUMBER(SEARCH(STATEMENT!$F$9,Table5[Customer\nالعميل])),MAX($A$1:A567)+1,0)","v":0}]
[{"$f":"IF(ISNUMBER(SEARCH(STATEMENT!$F$9,Table5[Customer\nالعميل])),MAX($A$1:A568)+1,0)","v":0}]
[{"$f":"IF(ISNUMBER(SEARCH(STATEMENT!$F$9,Table5[Customer\nالعميل])),MAX($A$1:A569)+1,0)","v":0}]
[{"$f":"IF(ISNUMBER(SEARCH(STATEMENT!$F$9,Table5[Customer\nالعميل])),MAX($A$1:A570)+1,0)","v":0}]
[{"$f":"IF(ISNUMBER(SEARCH(STATEMENT!$F$9,Table5[Customer\nالعميل])),MAX($A$1:A571)+1,0)","v":0}]
[{"$f":"IF(ISNUMBER(SEARCH(STATEMENT!$F$9,Table5[Customer\nالعميل])),MAX($A$1:A572)+1,0)","v":0}]
[{"$f":"IF(ISNUMBER(SEARCH(STATEMENT!$F$9,Table5[Customer\nالعميل])),MAX($A$1:A573)+1,0)","v":0}]
[{"$f":"IF(ISNUMBER(SEARCH(STATEMENT!$F$9,Table5[Customer\nالعميل])),MAX($A$1:A574)+1,0)","v":0}]
[{"$f":"IF(ISNUMBER(SEARCH(STATEMENT!$F$9,Table5[Customer\nالعميل])),MAX($A$1:A575)+1,0)","v":0}]
[{"$f":"IF(ISNUMBER(SEARCH(STATEMENT!$F$9,Table5[Customer\nالعميل])),MAX($A$1:A576)+1,0)","v":0}]
[{"$f":"IF(ISNUMBER(SEARCH(STATEMENT!$F$9,Table5[Customer\nالعميل])),MAX($A$1:A577)+1,0)","v":0}]
[{"$f":"IF(ISNUMBER(SEARCH(STATEMENT!$F$9,Table5[Customer\nالعميل])),MAX($A$1:A578)+1,0)","v":0}]
[{"$f":"IF(ISNUMBER(SEARCH(STATEMENT!$F$9,Table5[Customer\nالعميل])),MAX($A$1:A579)+1,0)","v":0}]
[{"$f":"IF(ISNUMBER(SEARCH(STATEMENT!$F$9,Table5[Customer\nالعميل])),MAX($A$1:A580)+1,0)","v":0}]
[{"$f":"IF(ISNUMBER(SEARCH(STATEMENT!$F$9,Table5[Customer\nالعميل])),MAX($A$1:A581)+1,0)","v":0}]
[{"$f":"IF(ISNUMBER(SEARCH(STATEMENT!$F$9,Table5[Customer\nالعميل])),MAX($A$1:A582)+1,0)","v":0}]
[{"$f":"IF(ISNUMBER(SEARCH(STATEMENT!$F$9,Table5[Customer\nالعميل])),MAX($A$1:A583)+1,0)","v":0}]
[{"$f":"IF(ISNUMBER(SEARCH(STATEMENT!$F$9,Table5[Customer\nالعميل])),MAX($A$1:A584)+1,0)","v":0}]
[{"$f":"IF(ISNUMBER(SEARCH(STATEMENT!$F$9,Table5[Customer\nالعميل])),MAX($A$1:A585)+1,0)","v":0}]
[{"$f":"IF(ISNUMBER(SEARCH(STATEMENT!$F$9,Table5[Customer\nالعميل])),MAX($A$1:A586)+1,0)","v":0}]
[{"$f":"IF(ISNUMBER(SEARCH(STATEMENT!$F$9,Table5[Customer\nالعميل])),MAX($A$1:A587)+1,0)","v":0}]
[{"$f":"IF(ISNUMBER(SEARCH(STATEMENT!$F$9,Table5[Customer\nالعميل])),MAX($A$1:A588)+1,0)","v":0}]
[{"$f":"IF(ISNUMBER(SEARCH(STATEMENT!$F$9,Table5[Customer\nالعميل])),MAX($A$1:A589)+1,0)","v":0}]
[{"$f":"IF(ISNUMBER(SEARCH(STATEMENT!$F$9,Table5[Customer\nالعميل])),MAX($A$1:A590)+1,0)","v":0}]
[{"$f":"IF(ISNUMBER(SEARCH(STATEMENT!$F$9,Table5[Customer\nالعميل])),MAX($A$1:A591)+1,0)","v":0}]
[{"$f":"IF(ISNUMBER(SEARCH(STATEMENT!$F$9,Table5[Customer\nالعميل])),MAX($A$1:A592)+1,0)","v":0}]
[{"$f":"IF(ISNUMBER(SEARCH(STATEMENT!$F$9,Table5[Customer\nالعميل])),MAX($A$1:A593)+1,0)","v":0}]
[{"$f":"IF(ISNUMBER(SEARCH(STATEMENT!$F$9,Table5[Customer\nالعميل])),MAX($A$1:A594)+1,0)","v":0}]
[{"$f":"IF(ISNUMBER(SEARCH(STATEMENT!$F$9,Table5[Customer\nالعميل])),MAX($A$1:A595)+1,0)","v":0}]
[{"$f":"IF(ISNUMBER(SEARCH(STATEMENT!$F$9,Table5[Customer\nالعميل])),MAX($A$1:A596)+1,0)","v":0}]
[{"$f":"IF(ISNUMBER(SEARCH(STATEMENT!$F$9,Table5[Customer\nالعميل])),MAX($A$1:A597)+1,0)","v":0}]
[{"$f":"IF(ISNUMBER(SEARCH(STATEMENT!$F$9,Table5[Customer\nالعميل])),MAX($A$1:A598)+1,0)","v":0}]
[{"$f":"IF(ISNUMBER(SEARCH(STATEMENT!$F$9,Table5[Customer\nالعميل])),MAX($A$1:A599)+1,0)","v":0}]
[{"$f":"IF(ISNUMBER(SEARCH(STATEMENT!$F$9,Table5[Customer\nالعميل])),MAX($A$1:A600)+1,0)","v":0}]
[{"$f":"IF(ISNUMBER(SEARCH(STATEMENT!$F$9,Table5[Customer\nالعميل])),MAX($A$1:A601)+1,0)","v":0}]
[{"$f":"IF(ISNUMBER(SEARCH(STATEMENT!$F$9,Table5[Customer\nالعميل])),MAX($A$1:A602)+1,0)","v":0}]
[{"$f":"IF(ISNUMBER(SEARCH(STATEMENT!$F$9,Table5[Customer\nالعميل])),MAX($A$1:A603)+1,0)","v":0}]
[{"$f":"IF(ISNUMBER(SEARCH(STATEMENT!$F$9,Table5[Customer\nالعميل])),MAX($A$1:A604)+1,0)","v":0}]
[{"$f":"IF(ISNUMBER(SEARCH(STATEMENT!$F$9,Table5[Customer\nالعميل])),MAX($A$1:A605)+1,0)","v":0}]
[{"$f":"IF(ISNUMBER(SEARCH(STATEMENT!$F$9,Table5[Customer\nالعميل])),MAX($A$1:A606)+1,0)","v":0}]
[{"$f":"IF(ISNUMBER(SEARCH(STATEMENT!$F$9,Table5[Customer\nالعميل])),MAX($A$1:A607)+1,0)","v":0}]
[{"$f":"IF(ISNUMBER(SEARCH(STATEMENT!$F$9,Table5[Customer\nالعميل])),MAX($A$1:A608)+1,0)","v":0}]
[{"$f":"IF(ISNUMBER(SEARCH(STATEMENT!$F$9,Table5[Customer\nالعميل])),MAX($A$1:A609)+1,0)","v":0}]
[{"$f":"IF(ISNUMBER(SEARCH(STATEMENT!$F$9,Table5[Customer\nالعميل])),MAX($A$1:A610)+1,0)","v":0}]
[{"$f":"IF(ISNUMBER(SEARCH(STATEMENT!$F$9,Table5[Customer\nالعميل])),MAX($A$1:A611)+1,0)","v":0}]
[{"$f":"IF(ISNUMBER(SEARCH(STATEMENT!$F$9,Table5[Customer\nالعميل])),MAX($A$1:A612)+1,0)","v":0}]
[{"$f":"IF(ISNUMBER(SEARCH(STATEMENT!$F$9,Table5[Customer\nالعميل])),MAX($A$1:A613)+1,0)","v":0}]
[{"$f":"IF(ISNUMBER(SEARCH(STATEMENT!$F$9,Table5[Customer\nالعميل])),MAX($A$1:A614)+1,0)","v":0}]
[{"$f":"IF(ISNUMBER(SEARCH(STATEMENT!$F$9,Table5[Customer\nالعميل])),MAX($A$1:A615)+1,0)","v":0}]
[{"$f":"IF(ISNUMBER(SEARCH(STATEMENT!$F$9,Table5[Customer\nالعميل])),MAX($A$1:A616)+1,0)","v":0}]
[{"$f":"IF(ISNUMBER(SEARCH(STATEMENT!$F$9,Table5[Customer\nالعميل])),MAX($A$1:A617)+1,0)","v":0}]
[{"$f":"IF(ISNUMBER(SEARCH(STATEMENT!$F$9,Table5[Customer\nالعميل])),MAX($A$1:A618)+1,0)","v":0}]
[{"$f":"IF(ISNUMBER(SEARCH(STATEMENT!$F$9,Table5[Customer\nالعميل])),MAX($A$1:A619)+1,0)","v":0}]
[{"$f":"IF(ISNUMBER(SEARCH(STATEMENT!$F$9,Table5[Customer\nالعميل])),MAX($A$1:A620)+1,0)","v":0}]
[{"$f":"IF(ISNUMBER(SEARCH(STATEMENT!$F$9,Table5[Customer\nالعميل])),MAX($A$1:A621)+1,0)","v":0}]
[{"$f":"IF(ISNUMBER(SEARCH(STATEMENT!$F$9,Table5[Customer\nالعميل])),MAX($A$1:A622)+1,0)","v":0}]
[{"$f":"IF(ISNUMBER(SEARCH(STATEMENT!$F$9,Table5[Customer\nالعميل])),MAX($A$1:A623)+1,0)","v":0}]
[{"$f":"IF(ISNUMBER(SEARCH(STATEMENT!$F$9,Table5[Customer\nالعميل])),MAX($A$1:A624)+1,0)","v":0}]
[{"$f":"IF(ISNUMBER(SEARCH(STATEMENT!$F$9,Table5[Customer\nالعميل])),MAX($A$1:A625)+1,0)","v":0}]
[{"$f":"IF(ISNUMBER(SEARCH(STATEMENT!$F$9,Table5[Customer\nالعميل])),MAX($A$1:A626)+1,0)","v":0}]
[{"$f":"IF(ISNUMBER(SEARCH(STATEMENT!$F$9,Table5[Customer\nالعميل])),MAX($A$1:A627)+1,0)","v":0}]
[{"$f":"IF(ISNUMBER(SEARCH(STATEMENT!$F$9,Table5[Customer\nالعميل])),MAX($A$1:A628)+1,0)","v":0}]
[{"$f":"IF(ISNUMBER(SEARCH(STATEMENT!$F$9,Table5[Customer\nالعميل])),MAX($A$1:A629)+1,0)","v":0}]
[{"$f":"IF(ISNUMBER(SEARCH(STATEMENT!$F$9,Table5[Customer\nالعميل])),MAX($A$1:A630)+1,0)","v":0}]
[{"$f":"IF(ISNUMBER(SEARCH(STATEMENT!$F$9,Table5[Customer\nالعميل])),MAX($A$1:A631)+1,0)","v":0}]
[{"$f":"IF(ISNUMBER(SEARCH(STATEMENT!$F$9,Table5[Customer\nالعميل])),MAX($A$1:A632)+1,0)","v":0}]
[{"$f":"IF(ISNUMBER(SEARCH(STATEMENT!$F$9,Table5[Customer\nالعميل])),MAX($A$1:A633)+1,0)","v":0}]
[{"$f":"IF(ISNUMBER(SEARCH(STATEMENT!$F$9,Table5[Customer\nالعميل])),MAX($A$1:A634)+1,0)","v":0}]
[{"$f":"IF(ISNUMBER(SEARCH(STATEMENT!$F$9,Table5[Customer\nالعميل])),MAX($A$1:A635)+1,0)","v":0}]
[{"$f":"IF(ISNUMBER(SEARCH(STATEMENT!$F$9,Table5[Customer\nالعميل])),MAX($A$1:A636)+1,0)","v":0}]
[{"$f":"IF(ISNUMBER(SEARCH(STATEMENT!$F$9,Table5[Customer\nالعميل])),MAX($A$1:A637)+1,0)","v":0}]
[{"$f":"IF(ISNUMBER(SEARCH(STATEMENT!$F$9,Table5[Customer\nالعميل])),MAX($A$1:A638)+1,0)","v":0}]
[{"$f":"IF(ISNUMBER(SEARCH(STATEMENT!$F$9,Table5[Customer\nالعميل])),MAX($A$1:A639)+1,0)","v":0}]
[{"$f":"IF(ISNUMBER(SEARCH(STATEMENT!$F$9,Table5[Customer\nالعميل])),MAX($A$1:A640)+1,0)","v":0}]
[{"$f":"IF(ISNUMBER(SEARCH(STATEMENT!$F$9,Table5[Customer\nالعميل])),MAX($A$1:A641)+1,0)","v":0}]
[{"$f":"IF(ISNUMBER(SEARCH(STATEMENT!$F$9,Table5[Customer\nالعميل])),MAX($A$1:A642)+1,0)","v":0}]
[{"$f":"IF(ISNUMBER(SEARCH(STATEMENT!$F$9,Table5[Customer\nالعميل])),MAX($A$1:A643)+1,0)","v":0}]
[{"$f":"IF(ISNUMBER(SEARCH(STATEMENT!$F$9,Table5[Customer\nالعميل])),MAX($A$1:A644)+1,0)","v":0}]
[{"$f":"IF(ISNUMBER(SEARCH(STATEMENT!$F$9,Table5[Customer\nالعميل])),MAX($A$1:A645)+1,0)","v":0}]
[{"$f":"IF(ISNUMBER(SEARCH(STATEMENT!$F$9,Table5[Customer\nالعميل])),MAX($A$1:A646)+1,0)","v":0}]
[{"$f":"IF(ISNUMBER(SEARCH(STATEMENT!$F$9,Table5[Customer\nالعميل])),MAX($A$1:A647)+1,0)","v":0}]
[{"$f":"IF(ISNUMBER(SEARCH(STATEMENT!$F$9,Table5[Customer\nالعميل])),MAX($A$1:A648)+1,0)","v":0}]
[{"$f":"IF(ISNUMBER(SEARCH(STATEMENT!$F$9,Table5[Customer\nالعميل])),MAX($A$1:A649)+1,0)","v":0}]
[{"$f":"IF(ISNUMBER(SEARCH(STATEMENT!$F$9,Table5[Customer\nالعميل])),MAX($A$1:A650)+1,0)","v":0}]
[{"$f":"IF(ISNUMBER(SEARCH(STATEMENT!$F$9,Table5[Customer\nالعميل])),MAX($A$1:A651)+1,0)","v":0}]
[{"$f":"IF(ISNUMBER(SEARCH(STATEMENT!$F$9,Table5[Customer\nالعميل])),MAX($A$1:A652)+1,0)","v":0}]
[{"$f":"IF(ISNUMBER(SEARCH(STATEMENT!$F$9,Table5[Customer\nالعميل])),MAX($A$1:A653)+1,0)","v":0}]
[{"$f":"IF(ISNUMBER(SEARCH(STATEMENT!$F$9,Table5[Customer\nالعميل])),MAX($A$1:A654)+1,0)","v":0}]
[{"$f":"IF(ISNUMBER(SEARCH(STATEMENT!$F$9,Table5[Customer\nالعميل])),MAX($A$1:A655)+1,0)","v":0}]
[{"$f":"IF(ISNUMBER(SEARCH(STATEMENT!$F$9,Table5[Customer\nالعميل])),MAX($A$1:A656)+1,0)","v":0}]
[{"$f":"IF(ISNUMBER(SEARCH(STATEMENT!$F$9,Table5[Customer\nالعميل])),MAX($A$1:A657)+1,0)","v":0}]
[{"$f":"IF(ISNUMBER(SEARCH(STATEMENT!$F$9,Table5[Customer\nالعميل])),MAX($A$1:A658)+1,0)","v":0}]
[{"$f":"IF(ISNUMBER(SEARCH(STATEMENT!$F$9,Table5[Customer\nالعميل])),MAX($A$1:A659)+1,0)","v":0}]
[{"$f":"IF(ISNUMBER(SEARCH(STATEMENT!$F$9,Table5[Customer\nالعميل])),MAX($A$1:A660)+1,0)","v":0}]
[{"$f":"IF(ISNUMBER(SEARCH(STATEMENT!$F$9,Table5[Customer\nالعميل])),MAX($A$1:A661)+1,0)","v":0}]
[{"$f":"IF(ISNUMBER(SEARCH(STATEMENT!$F$9,Table5[Customer\nالعميل])),MAX($A$1:A662)+1,0)","v":0}]
[{"$f":"IF(ISNUMBER(SEARCH(STATEMENT!$F$9,Table5[Customer\nالعميل])),MAX($A$1:A663)+1,0)","v":0}]
[{"$f":"IF(ISNUMBER(SEARCH(STATEMENT!$F$9,Table5[Customer\nالعميل])),MAX($A$1:A664)+1,0)","v":0}]
[{"$f":"IF(ISNUMBER(SEARCH(STATEMENT!$F$9,Table5[Customer\nالعميل])),MAX($A$1:A665)+1,0)","v":0}]
[{"$f":"IF(ISNUMBER(SEARCH(STATEMENT!$F$9,Table5[Customer\nالعميل])),MAX($A$1:A666)+1,0)","v":0}]
[{"$f":"IF(ISNUMBER(SEARCH(STATEMENT!$F$9,Table5[Customer\nالعميل])),MAX($A$1:A667)+1,0)","v":0}]
[{"$f":"IF(ISNUMBER(SEARCH(STATEMENT!$F$9,Table5[Customer\nالعميل])),MAX($A$1:A668)+1,0)","v":0}]
[{"$f":"IF(ISNUMBER(SEARCH(STATEMENT!$F$9,Table5[Customer\nالعميل])),MAX($A$1:A669)+1,0)","v":0}]
[{"$f":"IF(ISNUMBER(SEARCH(STATEMENT!$F$9,Table5[Customer\nالعميل])),MAX($A$1:A670)+1,0)","v":0}]
[{"$f":"IF(ISNUMBER(SEARCH(STATEMENT!$F$9,Table5[Customer\nالعميل])),MAX($A$1:A671)+1,0)","v":0}]
[{"$f":"IF(ISNUMBER(SEARCH(STATEMENT!$F$9,Table5[Customer\nالعميل])),MAX($A$1:A672)+1,0)","v":0}]
[{"$f":"IF(ISNUMBER(SEARCH(STATEMENT!$F$9,Table5[Customer\nالعميل])),MAX($A$1:A673)+1,0)","v":0}]
[{"$f":"IF(ISNUMBER(SEARCH(STATEMENT!$F$9,Table5[Customer\nالعميل])),MAX($A$1:A674)+1,0)","v":0}]
[{"$f":"IF(ISNUMBER(SEARCH(STATEMENT!$F$9,Table5[Customer\nالعميل])),MAX($A$1:A675)+1,0)","v":0}]
[{"$f":"IF(ISNUMBER(SEARCH(STATEMENT!$F$9,Table5[Customer\nالعميل])),MAX($A$1:A676)+1,0)","v":0}]
[{"$f":"IF(ISNUMBER(SEARCH(STATEMENT!$F$9,Table5[Customer\nالعميل])),MAX($A$1:A677)+1,0)","v":0}]
[{"$f":"IF(ISNUMBER(SEARCH(STATEMENT!$F$9,Table5[Customer\nالعميل])),MAX($A$1:A678)+1,0)","v":0}]
[{"$f":"IF(ISNUMBER(SEARCH(STATEMENT!$F$9,Table5[Customer\nالعميل])),MAX($A$1:A679)+1,0)","v":0}]
[{"$f":"IF(ISNUMBER(SEARCH(STATEMENT!$F$9,Table5[Customer\nالعميل])),MAX($A$1:A680)+1,0)","v":0}]
[{"$f":"IF(ISNUMBER(SEARCH(STATEMENT!$F$9,Table5[Customer\nالعميل])),MAX($A$1:A681)+1,0)","v":0}]
[{"$f":"IF(ISNUMBER(SEARCH(STATEMENT!$F$9,Table5[Customer\nالعميل])),MAX($A$1:A682)+1,0)","v":0}]
[{"$f":"IF(ISNUMBER(SEARCH(STATEMENT!$F$9,Table5[Customer\nالعميل])),MAX($A$1:A683)+1,0)","v":0}]
[{"$f":"IF(ISNUMBER(SEARCH(STATEMENT!$F$9,Table5[Customer\nالعميل])),MAX($A$1:A684)+1,0)","v":0}]
[{"$f":"IF(ISNUMBER(SEARCH(STATEMENT!$F$9,Table5[Customer\nالعميل])),MAX($A$1:A685)+1,0)","v":0}]
[{"$f":"IF(ISNUMBER(SEARCH(STATEMENT!$F$9,Table5[Customer\nالعميل])),MAX($A$1:A686)+1,0)","v":0}]
[{"$f":"IF(ISNUMBER(SEARCH(STATEMENT!$F$9,Table5[Customer\nالعميل])),MAX($A$1:A687)+1,0)","v":0}]
[{"$f":"IF(ISNUMBER(SEARCH(STATEMENT!$F$9,Table5[Customer\nالعميل])),MAX($A$1:A688)+1,0)","v":0}]
[{"$f":"IF(ISNUMBER(SEARCH(STATEMENT!$F$9,Table5[Customer\nالعميل])),MAX($A$1:A689)+1,0)","v":0}]
[{"$f":"IF(ISNUMBER(SEARCH(STATEMENT!$F$9,Table5[Customer\nالعميل])),MAX($A$1:A690)+1,0)","v":0}]
[{"$f":"IF(ISNUMBER(SEARCH(STATEMENT!$F$9,Table5[Customer\nالعميل])),MAX($A$1:A691)+1,0)","v":0}]
[{"$f":"IF(ISNUMBER(SEARCH(STATEMENT!$F$9,Table5[Customer\nالعميل])),MAX($A$1:A692)+1,0)","v":0}]
[{"$f":"IF(ISNUMBER(SEARCH(STATEMENT!$F$9,Table5[Customer\nالعميل])),MAX($A$1:A693)+1,0)","v":0}]
[{"$f":"IF(ISNUMBER(SEARCH(STATEMENT!$F$9,Table5[Customer\nالعميل])),MAX($A$1:A694)+1,0)","v":0}]
[{"$f":"IF(ISNUMBER(SEARCH(STATEMENT!$F$9,Table5[Customer\nالعميل])),MAX($A$1:A695)+1,0)","v":0}]
[{"$f":"IF(ISNUMBER(SEARCH(STATEMENT!$F$9,Table5[Customer\nالعميل])),MAX($A$1:A696)+1,0)","v":0}]
[{"$f":"IF(ISNUMBER(SEARCH(STATEMENT!$F$9,Table5[Customer\nالعميل])),MAX($A$1:A697)+1,0)","v":0}]
[{"$f":"IF(ISNUMBER(SEARCH(STATEMENT!$F$9,Table5[Customer\nالعميل])),MAX($A$1:A698)+1,0)","v":0}]
[{"$f":"IF(ISNUMBER(SEARCH(STATEMENT!$F$9,Table5[Customer\nالعميل])),MAX($A$1:A699)+1,0)","v":0}]
[{"$f":"IF(ISNUMBER(SEARCH(STATEMENT!$F$9,Table5[Customer\nالعميل])),MAX($A$1:A700)+1,0)","v":0}]
[{"$f":"IF(ISNUMBER(SEARCH(STATEMENT!$F$9,Table5[Customer\nالعميل])),MAX($A$1:A701)+1,0)","v":0}]
[{"$f":"IF(ISNUMBER(SEARCH(STATEMENT!$F$9,Table5[Customer\nالعميل])),MAX($A$1:A702)+1,0)","v":0}]
[{"$f":"IF(ISNUMBER(SEARCH(STATEMENT!$F$9,Table5[Customer\nالعميل])),MAX($A$1:A703)+1,0)","v":0}]
[{"$f":"IF(ISNUMBER(SEARCH(STATEMENT!$F$9,Table5[Customer\nالعميل])),MAX($A$1:A704)+1,0)","v":0}]
[{"$f":"IF(ISNUMBER(SEARCH(STATEMENT!$F$9,Table5[Customer\nالعميل])),MAX($A$1:A705)+1,0)","v":0}]
[{"$f":"IF(ISNUMBER(SEARCH(STATEMENT!$F$9,Table5[Customer\nالعميل])),MAX($A$1:A706)+1,0)","v":0}]
[{"$f":"IF(ISNUMBER(SEARCH(STATEMENT!$F$9,Table5[Customer\nالعميل])),MAX($A$1:A707)+1,0)","v":0}]
[{"$f":"IF(ISNUMBER(SEARCH(STATEMENT!$F$9,Table5[Customer\nالعميل])),MAX($A$1:A708)+1,0)","v":0}]
[{"$f":"IF(ISNUMBER(SEARCH(STATEMENT!$F$9,Table5[Customer\nالعميل])),MAX($A$1:A709)+1,0)","v":0}]
[{"$f":"IF(ISNUMBER(SEARCH(STATEMENT!$F$9,Table5[Customer\nالعميل])),MAX($A$1:A710)+1,0)","v":0}]
[{"$f":"IF(ISNUMBER(SEARCH(STATEMENT!$F$9,Table5[Customer\nالعميل])),MAX($A$1:A711)+1,0)","v":0}]
[{"$f":"IF(ISNUMBER(SEARCH(STATEMENT!$F$9,Table5[Customer\nالعميل])),MAX($A$1:A712)+1,0)","v":0}]
[{"$f":"IF(ISNUMBER(SEARCH(STATEMENT!$F$9,Table5[Customer\nالعميل])),MAX($A$1:A713)+1,0)","v":0}]
[{"$f":"IF(ISNUMBER(SEARCH(STATEMENT!$F$9,Table5[Customer\nالعميل])),MAX($A$1:A714)+1,0)","v":0}]
[{"$f":"IF(ISNUMBER(SEARCH(STATEMENT!$F$9,Table5[Customer\nالعميل])),MAX($A$1:A715)+1,0)","v":0}]
[{"$f":"IF(ISNUMBER(SEARCH(STATEMENT!$F$9,Table5[Customer\nالعميل])),MAX($A$1:A716)+1,0)","v":0}]
[{"$f":"IF(ISNUMBER(SEARCH(STATEMENT!$F$9,Table5[Customer\nالعميل])),MAX($A$1:A717)+1,0)","v":0}]
[{"$f":"IF(ISNUMBER(SEARCH(STATEMENT!$F$9,Table5[Customer\nالعميل])),MAX($A$1:A718)+1,0)","v":0}]
[{"$f":"IF(ISNUMBER(SEARCH(STATEMENT!$F$9,Table5[Customer\nالعميل])),MAX($A$1:A719)+1,0)","v":0}]
[{"$f":"IF(ISNUMBER(SEARCH(STATEMENT!$F$9,Table5[Customer\nالعميل])),MAX($A$1:A720)+1,0)","v":0}]
[{"$f":"IF(ISNUMBER(SEARCH(STATEMENT!$F$9,Table5[Customer\nالعميل])),MAX($A$1:A721)+1,0)","v":0}]
[{"$f":"IF(ISNUMBER(SEARCH(STATEMENT!$F$9,Table5[Customer\nالعميل])),MAX($A$1:A722)+1,0)","v":0}]
[{"$f":"IF(ISNUMBER(SEARCH(STATEMENT!$F$9,Table5[Customer\nالعميل])),MAX($A$1:A723)+1,0)","v":0}]
[{"$f":"IF(ISNUMBER(SEARCH(STATEMENT!$F$9,Table5[Customer\nالعميل])),MAX($A$1:A724)+1,0)","v":0}]
[{"$f":"IF(ISNUMBER(SEARCH(STATEMENT!$F$9,Table5[Customer\nالعميل])),MAX($A$1:A725)+1,0)","v":0}]
[{"$f":"IF(ISNUMBER(SEARCH(STATEMENT!$F$9,Table5[Customer\nالعميل])),MAX($A$1:A726)+1,0)","v":0}]
[{"$f":"IF(ISNUMBER(SEARCH(STATEMENT!$F$9,Table5[Customer\nالعميل])),MAX($A$1:A727)+1,0)","v":0}]
[{"$f":"IF(ISNUMBER(SEARCH(STATEMENT!$F$9,Table5[Customer\nالعميل])),MAX($A$1:A728)+1,0)","v":0}]
[{"$f":"IF(ISNUMBER(SEARCH(STATEMENT!$F$9,Table5[Customer\nالعميل])),MAX($A$1:A729)+1,0)","v":0}]
[{"$f":"IF(ISNUMBER(SEARCH(STATEMENT!$F$9,Table5[Customer\nالعميل])),MAX($A$1:A730)+1,0)","v":0}]
[{"$f":"IF(ISNUMBER(SEARCH(STATEMENT!$F$9,Table5[Customer\nالعميل])),MAX($A$1:A731)+1,0)","v":0}]
[{"$f":"IF(ISNUMBER(SEARCH(STATEMENT!$F$9,Table5[Customer\nالعميل])),MAX($A$1:A732)+1,0)","v":0}]
[{"$f":"IF(ISNUMBER(SEARCH(STATEMENT!$F$9,Table5[Customer\nالعميل])),MAX($A$1:A733)+1,0)","v":0}]
[{"$f":"IF(ISNUMBER(SEARCH(STATEMENT!$F$9,Table5[Customer\nالعميل])),MAX($A$1:A734)+1,0)","v":0}]
[{"$f":"IF(ISNUMBER(SEARCH(STATEMENT!$F$9,Table5[Customer\nالعميل])),MAX($A$1:A735)+1,0)","v":0}]
[{"$f":"IF(ISNUMBER(SEARCH(STATEMENT!$F$9,Table5[Customer\nالعميل])),MAX($A$1:A736)+1,0)","v":0}]
[{"$f":"IF(ISNUMBER(SEARCH(STATEMENT!$F$9,Table5[Customer\nالعميل])),MAX($A$1:A737)+1,0)","v":0}]
[{"$f":"IF(ISNUMBER(SEARCH(STATEMENT!$F$9,Table5[Customer\nالعميل])),MAX($A$1:A738)+1,0)","v":0}]
[{"$f":"IF(ISNUMBER(SEARCH(STATEMENT!$F$9,Table5[Customer\nالعميل])),MAX($A$1:A739)+1,0)","v":0}]
[{"$f":"IF(ISNUMBER(SEARCH(STATEMENT!$F$9,Table5[Customer\nالعميل])),MAX($A$1:A740)+1,0)","v":0}]
[{"$f":"IF(ISNUMBER(SEARCH(STATEMENT!$F$9,Table5[Customer\nالعميل])),MAX($A$1:A741)+1,0)","v":0}]
[{"$f":"IF(ISNUMBER(SEARCH(STATEMENT!$F$9,Table5[Customer\nالعميل])),MAX($A$1:A742)+1,0)","v":0}]
[{"$f":"IF(ISNUMBER(SEARCH(STATEMENT!$F$9,Table5[Customer\nالعميل])),MAX($A$1:A743)+1,0)","v":0}]
[{"$f":"IF(ISNUMBER(SEARCH(STATEMENT!$F$9,Table5[Customer\nالعميل])),MAX($A$1:A744)+1,0)","v":0}]
[{"$f":"IF(ISNUMBER(SEARCH(STATEMENT!$F$9,Table5[Customer\nالعميل])),MAX($A$1:A745)+1,0)","v":0}]
[{"$f":"IF(ISNUMBER(SEARCH(STATEMENT!$F$9,Table5[Customer\nالعميل])),MAX($A$1:A746)+1,0)","v":0}]
[{"$f":"IF(ISNUMBER(SEARCH(STATEMENT!$F$9,Table5[Customer\nالعميل])),MAX($A$1:A747)+1,0)","v":0}]
[{"$f":"IF(ISNUMBER(SEARCH(STATEMENT!$F$9,Table5[Customer\nالعميل])),MAX($A$1:A748)+1,0)","v":0}]
[{"$f":"IF(ISNUMBER(SEARCH(STATEMENT!$F$9,Table5[Customer\nالعميل])),MAX($A$1:A749)+1,0)","v":0}]
[{"$f":"IF(ISNUMBER(SEARCH(STATEMENT!$F$9,Table5[Customer\nالعميل])),MAX($A$1:A750)+1,0)","v":0}]
[{"$f":"IF(ISNUMBER(SEARCH(STATEMENT!$F$9,Table5[Customer\nالعميل])),MAX($A$1:A751)+1,0)","v":0}]
[{"$f":"IF(ISNUMBER(SEARCH(STATEMENT!$F$9,Table5[Customer\nالعميل])),MAX($A$1:A752)+1,0)","v":0}]
[{"$f":"IF(ISNUMBER(SEARCH(STATEMENT!$F$9,Table5[Customer\nالعميل])),MAX($A$1:A753)+1,0)","v":0}]
[{"$f":"IF(ISNUMBER(SEARCH(STATEMENT!$F$9,Table5[Customer\nالعميل])),MAX($A$1:A754)+1,0)","v":0}]
[{"$f":"IF(ISNUMBER(SEARCH(STATEMENT!$F$9,Table5[Customer\nالعميل])),MAX($A$1:A755)+1,0)","v":0}]
[{"$f":"IF(ISNUMBER(SEARCH(STATEMENT!$F$9,Table5[Customer\nالعميل])),MAX($A$1:A756)+1,0)","v":0}]
[{"$f":"IF(ISNUMBER(SEARCH(STATEMENT!$F$9,Table5[Customer\nالعميل])),MAX($A$1:A757)+1,0)","v":0}]
[{"$f":"IF(ISNUMBER(SEARCH(STATEMENT!$F$9,Table5[Customer\nالعميل])),MAX($A$1:A758)+1,0)","v":0}]
[{"$f":"IF(ISNUMBER(SEARCH(STATEMENT!$F$9,Table5[Customer\nالعميل])),MAX($A$1:A759)+1,0)","v":0}]
[{"$f":"IF(ISNUMBER(SEARCH(STATEMENT!$F$9,Table5[Customer\nالعميل])),MAX($A$1:A760)+1,0)","v":0}]
[{"$f":"IF(ISNUMBER(SEARCH(STATEMENT!$F$9,Table5[Customer\nالعميل])),MAX($A$1:A761)+1,0)","v":0}]
[{"$f":"IF(ISNUMBER(SEARCH(STATEMENT!$F$9,Table5[Customer\nالعميل])),MAX($A$1:A762)+1,0)","v":0}]
[{"$f":"IF(ISNUMBER(SEARCH(STATEMENT!$F$9,Table5[Customer\nالعميل])),MAX($A$1:A763)+1,0)","v":0}]
[{"$f":"IF(ISNUMBER(SEARCH(STATEMENT!$F$9,Table5[Customer\nالعميل])),MAX($A$1:A764)+1,0)","v":0}]
[{"$f":"IF(ISNUMBER(SEARCH(STATEMENT!$F$9,Table5[Customer\nالعميل])),MAX($A$1:A765)+1,0)","v":0}]
[{"$f":"IF(ISNUMBER(SEARCH(STATEMENT!$F$9,Table5[Customer\nالعميل])),MAX($A$1:A766)+1,0)","v":0}]
[{"$f":"IF(ISNUMBER(SEARCH(STATEMENT!$F$9,Table5[Customer\nالعميل])),MAX($A$1:A767)+1,0)","v":0}]
[{"$f":"IF(ISNUMBER(SEARCH(STATEMENT!$F$9,Table5[Customer\nالعميل])),MAX($A$1:A768)+1,0)","v":0}]
[{"$f":"IF(ISNUMBER(SEARCH(STATEMENT!$F$9,Table5[Customer\nالعميل])),MAX($A$1:A769)+1,0)","v":0}]
[{"$f":"IF(ISNUMBER(SEARCH(STATEMENT!$F$9,Table5[Customer\nالعميل])),MAX($A$1:A770)+1,0)","v":0}]
[{"$f":"IF(ISNUMBER(SEARCH(STATEMENT!$F$9,Table5[Customer\nالعميل])),MAX($A$1:A771)+1,0)","v":0}]
[{"$f":"IF(ISNUMBER(SEARCH(STATEMENT!$F$9,Table5[Customer\nالعميل])),MAX($A$1:A772)+1,0)","v":0}]
[{"$f":"IF(ISNUMBER(SEARCH(STATEMENT!$F$9,Table5[Customer\nالعميل])),MAX($A$1:A773)+1,0)","v":0}]
[{"$f":"IF(ISNUMBER(SEARCH(STATEMENT!$F$9,Table5[Customer\nالعميل])),MAX($A$1:A774)+1,0)","v":0}]
[{"$f":"IF(ISNUMBER(SEARCH(STATEMENT!$F$9,Table5[Customer\nالعميل])),MAX($A$1:A775)+1,0)","v":0}]
[{"$f":"IF(ISNUMBER(SEARCH(STATEMENT!$F$9,Table5[Customer\nالعميل])),MAX($A$1:A776)+1,0)","v":0}]
[{"$f":"IF(ISNUMBER(SEARCH(STATEMENT!$F$9,Table5[Customer\nالعميل])),MAX($A$1:A777)+1,0)","v":0}]
[{"$f":"IF(ISNUMBER(SEARCH(STATEMENT!$F$9,Table5[Customer\nالعميل])),MAX($A$1:A778)+1,0)","v":0}]
[{"$f":"IF(ISNUMBER(SEARCH(STATEMENT!$F$9,Table5[Customer\nالعميل])),MAX($A$1:A779)+1,0)","v":0}]
[{"$f":"IF(ISNUMBER(SEARCH(STATEMENT!$F$9,Table5[Customer\nالعميل])),MAX($A$1:A780)+1,0)","v":0}]
[{"$f":"IF(ISNUMBER(SEARCH(STATEMENT!$F$9,Table5[Customer\nالعميل])),MAX($A$1:A781)+1,0)","v":0}]
[{"$f":"IF(ISNUMBER(SEARCH(STATEMENT!$F$9,Table5[Customer\nالعميل])),MAX($A$1:A782)+1,0)","v":0}]
[{"$f":"IF(ISNUMBER(SEARCH(STATEMENT!$F$9,Table5[Customer\nالعميل])),MAX($A$1:A783)+1,0)","v":0}]
[{"$f":"IF(ISNUMBER(SEARCH(STATEMENT!$F$9,Table5[Customer\nالعميل])),MAX($A$1:A784)+1,0)","v":0}]
[{"$f":"IF(ISNUMBER(SEARCH(STATEMENT!$F$9,Table5[Customer\nالعميل])),MAX($A$1:A785)+1,0)","v":0}]
[{"$f":"IF(ISNUMBER(SEARCH(STATEMENT!$F$9,Table5[Customer\nالعميل])),MAX($A$1:A786)+1,0)","v":0}]
[{"$f":"IF(ISNUMBER(SEARCH(STATEMENT!$F$9,Table5[Customer\nالعميل])),MAX($A$1:A787)+1,0)","v":0}]
[{"$f":"IF(ISNUMBER(SEARCH(STATEMENT!$F$9,Table5[Customer\nالعميل])),MAX($A$1:A788)+1,0)","v":0}]
[{"$f":"IF(ISNUMBER(SEARCH(STATEMENT!$F$9,Table5[Customer\nالعميل])),MAX($A$1:A789)+1,0)","v":0}]
[{"$f":"IF(ISNUMBER(SEARCH(STATEMENT!$F$9,Table5[Customer\nالعميل])),MAX($A$1:A790)+1,0)","v":0}]
[{"$f":"IF(ISNUMBER(SEARCH(STATEMENT!$F$9,Table5[Customer\nالعميل])),MAX($A$1:A791)+1,0)","v":0}]
[{"$f":"IF(ISNUMBER(SEARCH(STATEMENT!$F$9,Table5[Customer\nالعميل])),MAX($A$1:A792)+1,0)","v":0}]
[{"$f":"IF(ISNUMBER(SEARCH(STATEMENT!$F$9,Table5[Customer\nالعميل])),MAX($A$1:A793)+1,0)","v":0}]
[{"$f":"IF(ISNUMBER(SEARCH(STATEMENT!$F$9,Table5[Customer\nالعميل])),MAX($A$1:A794)+1,0)","v":0}]
[{"$f":"IF(ISNUMBER(SEARCH(STATEMENT!$F$9,Table5[Customer\nالعميل])),MAX($A$1:A795)+1,0)","v":0}]
[{"$f":"IF(ISNUMBER(SEARCH(STATEMENT!$F$9,Table5[Customer\nالعميل])),MAX($A$1:A796)+1,0)","v":0}]
[{"$f":"IF(ISNUMBER(SEARCH(STATEMENT!$F$9,Table5[Customer\nالعميل])),MAX($A$1:A797)+1,0)","v":0}]
[{"$f":"IF(ISNUMBER(SEARCH(STATEMENT!$F$9,Table5[Customer\nالعميل])),MAX($A$1:A798)+1,0)","v":0}]
[{"$f":"IF(ISNUMBER(SEARCH(STATEMENT!$F$9,Table5[Customer\nالعميل])),MAX($A$1:A799)+1,0)","v":0}]
[{"$f":"IF(ISNUMBER(SEARCH(STATEMENT!$F$9,Table5[Customer\nالعميل])),MAX($A$1:A800)+1,0)","v":0}]
[{"$f":"IF(ISNUMBER(SEARCH(STATEMENT!$F$9,Table5[Customer\nالعميل])),MAX($A$1:A801)+1,0)","v":0}]
[{"$f":"IF(ISNUMBER(SEARCH(STATEMENT!$F$9,Table5[Customer\nالعميل])),MAX($A$1:A802)+1,0)","v":0}]
[{"$f":"IF(ISNUMBER(SEARCH(STATEMENT!$F$9,Table5[Customer\nالعميل])),MAX($A$1:A803)+1,0)","v":0}]
[{"$f":"IF(ISNUMBER(SEARCH(STATEMENT!$F$9,Table5[Customer\nالعميل])),MAX($A$1:A804)+1,0)","v":0}]
[{"$f":"IF(ISNUMBER(SEARCH(STATEMENT!$F$9,Table5[Customer\nالعميل])),MAX($A$1:A805)+1,0)","v":0}]
[{"$f":"IF(ISNUMBER(SEARCH(STATEMENT!$F$9,Table5[Customer\nالعميل])),MAX($A$1:A806)+1,0)","v":0}]
[{"$f":"IF(ISNUMBER(SEARCH(STATEMENT!$F$9,Table5[Customer\nالعميل])),MAX($A$1:A807)+1,0)","v":0}]
[{"$f":"IF(ISNUMBER(SEARCH(STATEMENT!$F$9,Table5[Customer\nالعميل])),MAX($A$1:A808)+1,0)","v":0}]
[{"$f":"IF(ISNUMBER(SEARCH(STATEMENT!$F$9,Table5[Customer\nالعميل])),MAX($A$1:A809)+1,0)","v":0}]
[{"$f":"IF(ISNUMBER(SEARCH(STATEMENT!$F$9,Table5[Customer\nالعميل])),MAX($A$1:A810)+1,0)","v":0}]
[{"$f":"IF(ISNUMBER(SEARCH(STATEMENT!$F$9,Table5[Customer\nالعميل])),MAX($A$1:A811)+1,0)","v":0}]
[{"$f":"IF(ISNUMBER(SEARCH(STATEMENT!$F$9,Table5[Customer\nالعميل])),MAX($A$1:A812)+1,0)","v":0}]
[{"$f":"IF(ISNUMBER(SEARCH(STATEMENT!$F$9,Table5[Customer\nالعميل])),MAX($A$1:A813)+1,0)","v":0}]
[{"$f":"IF(ISNUMBER(SEARCH(STATEMENT!$F$9,Table5[Customer\nالعميل])),MAX($A$1:A814)+1,0)","v":0}]
[{"$f":"IF(ISNUMBER(SEARCH(STATEMENT!$F$9,Table5[Customer\nالعميل])),MAX($A$1:A815)+1,0)","v":0}]
[{"$f":"IF(ISNUMBER(SEARCH(STATEMENT!$F$9,Table5[Customer\nالعميل])),MAX($A$1:A816)+1,0)","v":0}]
[{"$f":"IF(ISNUMBER(SEARCH(STATEMENT!$F$9,Table5[Customer\nالعميل])),MAX($A$1:A817)+1,0)","v":0}]
[{"$f":"IF(ISNUMBER(SEARCH(STATEMENT!$F$9,Table5[Customer\nالعميل])),MAX($A$1:A818)+1,0)","v":0}]
[{"$f":"IF(ISNUMBER(SEARCH(STATEMENT!$F$9,Table5[Customer\nالعميل])),MAX($A$1:A819)+1,0)","v":0}]
[{"$f":"IF(ISNUMBER(SEARCH(STATEMENT!$F$9,Table5[Customer\nالعميل])),MAX($A$1:A820)+1,0)","v":0}]
[{"$f":"IF(ISNUMBER(SEARCH(STATEMENT!$F$9,Table5[Customer\nالعميل])),MAX($A$1:A821)+1,0)","v":0}]
[{"$f":"IF(ISNUMBER(SEARCH(STATEMENT!$F$9,Table5[Customer\nالعميل])),MAX($A$1:A822)+1,0)","v":0}]
[{"$f":"IF(ISNUMBER(SEARCH(STATEMENT!$F$9,Table5[Customer\nالعميل])),MAX($A$1:A823)+1,0)","v":0}]
[{"$f":"IF(ISNUMBER(SEARCH(STATEMENT!$F$9,Table5[Customer\nالعميل])),MAX($A$1:A824)+1,0)","v":0}]
[{"$f":"IF(ISNUMBER(SEARCH(STATEMENT!$F$9,Table5[Customer\nالعميل])),MAX($A$1:A825)+1,0)","v":0}]
[{"$f":"IF(ISNUMBER(SEARCH(STATEMENT!$F$9,Table5[Customer\nالعميل])),MAX($A$1:A826)+1,0)","v":0}]
[{"$f":"IF(ISNUMBER(SEARCH(STATEMENT!$F$9,Table5[Customer\nالعميل])),MAX($A$1:A827)+1,0)","v":0}]
[{"$f":"IF(ISNUMBER(SEARCH(STATEMENT!$F$9,Table5[Customer\nالعميل])),MAX($A$1:A828)+1,0)","v":0}]
[{"$f":"IF(ISNUMBER(SEARCH(STATEMENT!$F$9,Table5[Customer\nالعميل])),MAX($A$1:A829)+1,0)","v":0}]
[{"$f":"IF(ISNUMBER(SEARCH(STATEMENT!$F$9,Table5[Customer\nالعميل])),MAX($A$1:A830)+1,0)","v":0}]
[{"$f":"IF(ISNUMBER(SEARCH(STATEMENT!$F$9,Table5[Customer\nالعميل])),MAX($A$1:A831)+1,0)","v":0}]
[{"$f":"IF(ISNUMBER(SEARCH(STATEMENT!$F$9,Table5[Customer\nالعميل])),MAX($A$1:A832)+1,0)","v":0}]
[{"$f":"IF(ISNUMBER(SEARCH(STATEMENT!$F$9,Table5[Customer\nالعميل])),MAX($A$1:A833)+1,0)","v":0}]
[{"$f":"IF(ISNUMBER(SEARCH(STATEMENT!$F$9,Table5[Customer\nالعميل])),MAX($A$1:A834)+1,0)","v":0}]
[{"$f":"IF(ISNUMBER(SEARCH(STATEMENT!$F$9,Table5[Customer\nالعميل])),MAX($A$1:A835)+1,0)","v":0}]
[{"$f":"IF(ISNUMBER(SEARCH(STATEMENT!$F$9,Table5[Customer\nالعميل])),MAX($A$1:A836)+1,0)","v":0}]
[{"$f":"IF(ISNUMBER(SEARCH(STATEMENT!$F$9,Table5[Customer\nالعميل])),MAX($A$1:A837)+1,0)","v":0}]
[{"$f":"IF(ISNUMBER(SEARCH(STATEMENT!$F$9,Table5[Customer\nالعميل])),MAX($A$1:A838)+1,0)","v":0}]
[{"$f":"IF(ISNUMBER(SEARCH(STATEMENT!$F$9,Table5[Customer\nالعميل])),MAX($A$1:A839)+1,0)","v":0}]
[{"$f":"IF(ISNUMBER(SEARCH(STATEMENT!$F$9,Table5[Customer\nالعميل])),MAX($A$1:A840)+1,0)","v":0}]
[{"$f":"IF(ISNUMBER(SEARCH(STATEMENT!$F$9,Table5[Customer\nالعميل])),MAX($A$1:A841)+1,0)","v":0}]
[{"$f":"IF(ISNUMBER(SEARCH(STATEMENT!$F$9,Table5[Customer\nالعميل])),MAX($A$1:A842)+1,0)","v":0}]
[{"$f":"IF(ISNUMBER(SEARCH(STATEMENT!$F$9,Table5[Customer\nالعميل])),MAX($A$1:A843)+1,0)","v":0}]
[{"$f":"IF(ISNUMBER(SEARCH(STATEMENT!$F$9,Table5[Customer\nالعميل])),MAX($A$1:A844)+1,0)","v":0}]
[{"$f":"IF(ISNUMBER(SEARCH(STATEMENT!$F$9,Table5[Customer\nالعميل])),MAX($A$1:A845)+1,0)","v":0}]
[{"$f":"IF(ISNUMBER(SEARCH(STATEMENT!$F$9,Table5[Customer\nالعميل])),MAX($A$1:A846)+1,0)","v":0}]
[{"$f":"IF(ISNUMBER(SEARCH(STATEMENT!$F$9,Table5[Customer\nالعميل])),MAX($A$1:A847)+1,0)","v":0}]
[{"$f":"IF(ISNUMBER(SEARCH(STATEMENT!$F$9,Table5[Customer\nالعميل])),MAX($A$1:A848)+1,0)","v":0}]
[{"$f":"IF(ISNUMBER(SEARCH(STATEMENT!$F$9,Table5[Customer\nالعميل])),MAX($A$1:A849)+1,0)","v":0}]
[{"$f":"IF(ISNUMBER(SEARCH(STATEMENT!$F$9,Table5[Customer\nالعميل])),MAX($A$1:A850)+1,0)","v":0}]
[{"$f":"IF(ISNUMBER(SEARCH(STATEMENT!$F$9,Table5[Customer\nالعميل])),MAX($A$1:A851)+1,0)","v":0}]
[{"$f":"IF(ISNUMBER(SEARCH(STATEMENT!$F$9,Table5[Customer\nالعميل])),MAX($A$1:A852)+1,0)","v":0}]
[{"$f":"IF(ISNUMBER(SEARCH(STATEMENT!$F$9,Table5[Customer\nالعميل])),MAX($A$1:A853)+1,0)","v":0}]
[{"$f":"IF(ISNUMBER(SEARCH(STATEMENT!$F$9,Table5[Customer\nالعميل])),MAX($A$1:A854)+1,0)","v":0}]
[{"$f":"IF(ISNUMBER(SEARCH(STATEMENT!$F$9,Table5[Customer\nالعميل])),MAX($A$1:A855)+1,0)","v":0}]
[{"$f":"IF(ISNUMBER(SEARCH(STATEMENT!$F$9,Table5[Customer\nالعميل])),MAX($A$1:A856)+1,0)","v":0}]
[{"$f":"IF(ISNUMBER(SEARCH(STATEMENT!$F$9,Table5[Customer\nالعميل])),MAX($A$1:A857)+1,0)","v":0}]
[{"$f":"IF(ISNUMBER(SEARCH(STATEMENT!$F$9,Table5[Customer\nالعميل])),MAX($A$1:A858)+1,0)","v":0}]
[{"$f":"IF(ISNUMBER(SEARCH(STATEMENT!$F$9,Table5[Customer\nالعميل])),MAX($A$1:A859)+1,0)","v":0}]
[{"$f":"IF(ISNUMBER(SEARCH(STATEMENT!$F$9,Table5[Customer\nالعميل])),MAX($A$1:A860)+1,0)","v":0}]
[{"$f":"IF(ISNUMBER(SEARCH(STATEMENT!$F$9,Table5[Customer\nالعميل])),MAX($A$1:A861)+1,0)","v":0}]
[{"$f":"IF(ISNUMBER(SEARCH(STATEMENT!$F$9,Table5[Customer\nالعميل])),MAX($A$1:A862)+1,0)","v":0}]
[{"$f":"IF(ISNUMBER(SEARCH(STATEMENT!$F$9,Table5[Customer\nالعميل])),MAX($A$1:A863)+1,0)","v":0}]
[{"$f":"IF(ISNUMBER(SEARCH(STATEMENT!$F$9,Table5[Customer\nالعميل])),MAX($A$1:A864)+1,0)","v":0}]
[{"$f":"IF(ISNUMBER(SEARCH(STATEMENT!$F$9,Table5[Customer\nالعميل])),MAX($A$1:A865)+1,0)","v":0}]
[{"$f":"IF(ISNUMBER(SEARCH(STATEMENT!$F$9,Table5[Customer\nالعميل])),MAX($A$1:A866)+1,0)","v":0}]
[{"$f":"IF(ISNUMBER(SEARCH(STATEMENT!$F$9,Table5[Customer\nالعميل])),MAX($A$1:A867)+1,0)","v":0}]
[{"$f":"IF(ISNUMBER(SEARCH(STATEMENT!$F$9,Table5[Customer\nالعميل])),MAX($A$1:A868)+1,0)","v":0}]
[{"$f":"IF(ISNUMBER(SEARCH(STATEMENT!$F$9,Table5[Customer\nالعميل])),MAX($A$1:A869)+1,0)","v":0}]
[{"$f":"IF(ISNUMBER(SEARCH(STATEMENT!$F$9,Table5[Customer\nالعميل])),MAX($A$1:A870)+1,0)","v":0}]
[{"$f":"IF(ISNUMBER(SEARCH(STATEMENT!$F$9,Table5[Customer\nالعميل])),MAX($A$1:A871)+1,0)","v":0}]
[{"$f":"IF(ISNUMBER(SEARCH(STATEMENT!$F$9,Table5[Customer\nالعميل])),MAX($A$1:A872)+1,0)","v":0}]
[{"$f":"IF(ISNUMBER(SEARCH(STATEMENT!$F$9,Table5[Customer\nالعميل])),MAX($A$1:A873)+1,0)","v":0}]
[{"$f":"IF(ISNUMBER(SEARCH(STATEMENT!$F$9,Table5[Customer\nالعميل])),MAX($A$1:A874)+1,0)","v":0}]
[{"$f":"IF(ISNUMBER(SEARCH(STATEMENT!$F$9,Table5[Customer\nالعميل])),MAX($A$1:A875)+1,0)","v":0}]
[{"$f":"IF(ISNUMBER(SEARCH(STATEMENT!$F$9,Table5[Customer\nالعميل])),MAX($A$1:A876)+1,0)","v":0}]
[{"$f":"IF(ISNUMBER(SEARCH(STATEMENT!$F$9,Table5[Customer\nالعميل])),MAX($A$1:A877)+1,0)","v":0}]
[{"$f":"IF(ISNUMBER(SEARCH(STATEMENT!$F$9,Table5[Customer\nالعميل])),MAX($A$1:A878)+1,0)","v":0}]
[{"$f":"IF(ISNUMBER(SEARCH(STATEMENT!$F$9,Table5[Customer\nالعميل])),MAX($A$1:A879)+1,0)","v":0}]
[{"$f":"IF(ISNUMBER(SEARCH(STATEMENT!$F$9,Table5[Customer\nالعميل])),MAX($A$1:A880)+1,0)","v":0}]
[{"$f":"IF(ISNUMBER(SEARCH(STATEMENT!$F$9,Table5[Customer\nالعميل])),MAX($A$1:A881)+1,0)","v":0}]
[{"$f":"IF(ISNUMBER(SEARCH(STATEMENT!$F$9,Table5[Customer\nالعميل])),MAX($A$1:A882)+1,0)","v":0}]
[{"$f":"IF(ISNUMBER(SEARCH(STATEMENT!$F$9,Table5[Customer\nالعميل])),MAX($A$1:A883)+1,0)","v":0}]
[{"$f":"IF(ISNUMBER(SEARCH(STATEMENT!$F$9,Table5[Customer\nالعميل])),MAX($A$1:A884)+1,0)","v":0}]
[{"$f":"IF(ISNUMBER(SEARCH(STATEMENT!$F$9,Table5[Customer\nالعميل])),MAX($A$1:A885)+1,0)","v":0}]
[{"$f":"IF(ISNUMBER(SEARCH(STATEMENT!$F$9,Table5[Customer\nالعميل])),MAX($A$1:A886)+1,0)","v":0}]
[{"$f":"IF(ISNUMBER(SEARCH(STATEMENT!$F$9,Table5[Customer\nالعميل])),MAX($A$1:A887)+1,0)","v":0}]
[{"$f":"IF(ISNUMBER(SEARCH(STATEMENT!$F$9,Table5[Customer\nالعميل])),MAX($A$1:A888)+1,0)","v":0}]
[{"$f":"IF(ISNUMBER(SEARCH(STATEMENT!$F$9,Table5[Customer\nالعميل])),MAX($A$1:A889)+1,0)","v":0}]
[{"$f":"IF(ISNUMBER(SEARCH(STATEMENT!$F$9,Table5[Customer\nالعميل])),MAX($A$1:A890)+1,0)","v":0}]
[{"$f":"IF(ISNUMBER(SEARCH(STATEMENT!$F$9,Table5[Customer\nالعميل])),MAX($A$1:A891)+1,0)","v":0}]
[{"$f":"IF(ISNUMBER(SEARCH(STATEMENT!$F$9,Table5[Customer\nالعميل])),MAX($A$1:A892)+1,0)","v":0}]
[{"$f":"IF(ISNUMBER(SEARCH(STATEMENT!$F$9,Table5[Customer\nالعميل])),MAX($A$1:A893)+1,0)","v":0}]
[{"$f":"IF(ISNUMBER(SEARCH(STATEMENT!$F$9,Table5[Customer\nالعميل])),MAX($A$1:A894)+1,0)","v":0}]
[{"$f":"IF(ISNUMBER(SEARCH(STATEMENT!$F$9,Table5[Customer\nالعميل])),MAX($A$1:A895)+1,0)","v":0}]
[{"$f":"IF(ISNUMBER(SEARCH(STATEMENT!$F$9,Table5[Customer\nالعميل])),MAX($A$1:A896)+1,0)","v":0}]
[{"$f":"IF(ISNUMBER(SEARCH(STATEMENT!$F$9,Table5[Customer\nالعميل])),MAX($A$1:A897)+1,0)","v":0}]
[{"$f":"IF(ISNUMBER(SEARCH(STATEMENT!$F$9,Table5[Customer\nالعميل])),MAX($A$1:A898)+1,0)","v":0}]
[{"$f":"IF(ISNUMBER(SEARCH(STATEMENT!$F$9,Table5[Customer\nالعميل])),MAX($A$1:A899)+1,0)","v":0}]
[{"$f":"IF(ISNUMBER(SEARCH(STATEMENT!$F$9,Table5[Customer\nالعميل])),MAX($A$1:A900)+1,0)","v":0}]
[{"$f":"IF(ISNUMBER(SEARCH(STATEMENT!$F$9,Table5[Customer\nالعميل])),MAX($A$1:A901)+1,0)","v":0}]
[{"$f":"IF(ISNUMBER(SEARCH(STATEMENT!$F$9,Table5[Customer\nالعميل])),MAX($A$1:A902)+1,0)","v":0}]
[{"$f":"IF(ISNUMBER(SEARCH(STATEMENT!$F$9,Table5[Customer\nالعميل])),MAX($A$1:A903)+1,0)","v":0}]
[{"$f":"IF(ISNUMBER(SEARCH(STATEMENT!$F$9,Table5[Customer\nالعميل])),MAX($A$1:A904)+1,0)","v":0}]
[{"$f":"IF(ISNUMBER(SEARCH(STATEMENT!$F$9,Table5[Customer\nالعميل])),MAX($A$1:A905)+1,0)","v":0}]
[{"$f":"IF(ISNUMBER(SEARCH(STATEMENT!$F$9,Table5[Customer\nالعميل])),MAX($A$1:A906)+1,0)","v":0}]
[{"$f":"IF(ISNUMBER(SEARCH(STATEMENT!$F$9,Table5[Customer\nالعميل])),MAX($A$1:A907)+1,0)","v":0}]
[{"$f":"IF(ISNUMBER(SEARCH(STATEMENT!$F$9,Table5[Customer\nالعميل])),MAX($A$1:A908)+1,0)","v":0}]
[{"$f":"IF(ISNUMBER(SEARCH(STATEMENT!$F$9,Table5[Customer\nالعميل])),MAX($A$1:A909)+1,0)","v":0}]
[{"$f":"IF(ISNUMBER(SEARCH(STATEMENT!$F$9,Table5[Customer\nالعميل])),MAX($A$1:A910)+1,0)","v":0}]
[{"$f":"IF(ISNUMBER(SEARCH(STATEMENT!$F$9,Table5[Customer\nالعميل])),MAX($A$1:A911)+1,0)","v":0}]
[{"$f":"IF(ISNUMBER(SEARCH(STATEMENT!$F$9,Table5[Customer\nالعميل])),MAX($A$1:A912)+1,0)","v":0}]
[{"$f":"IF(ISNUMBER(SEARCH(STATEMENT!$F$9,Table5[Customer\nالعميل])),MAX($A$1:A913)+1,0)","v":0}]
[{"$f":"IF(ISNUMBER(SEARCH(STATEMENT!$F$9,Table5[Customer\nالعميل])),MAX($A$1:A914)+1,0)","v":0}]
[{"$f":"IF(ISNUMBER(SEARCH(STATEMENT!$F$9,Table5[Customer\nالعميل])),MAX($A$1:A915)+1,0)","v":0}]
[{"$f":"IF(ISNUMBER(SEARCH(STATEMENT!$F$9,Table5[Customer\nالعميل])),MAX($A$1:A916)+1,0)","v":0}]
[{"$f":"IF(ISNUMBER(SEARCH(STATEMENT!$F$9,Table5[Customer\nالعميل])),MAX($A$1:A917)+1,0)","v":0}]
[{"$f":"IF(ISNUMBER(SEARCH(STATEMENT!$F$9,Table5[Customer\nالعميل])),MAX($A$1:A918)+1,0)","v":0}]
[{"$f":"IF(ISNUMBER(SEARCH(STATEMENT!$F$9,Table5[Customer\nالعميل])),MAX($A$1:A919)+1,0)","v":0}]
[{"$f":"IF(ISNUMBER(SEARCH(STATEMENT!$F$9,Table5[Customer\nالعميل])),MAX($A$1:A920)+1,0)","v":0}]
[{"$f":"IF(ISNUMBER(SEARCH(STATEMENT!$F$9,Table5[Customer\nالعميل])),MAX($A$1:A921)+1,0)","v":0}]
[{"$f":"IF(ISNUMBER(SEARCH(STATEMENT!$F$9,Table5[Customer\nالعميل])),MAX($A$1:A922)+1,0)","v":0}]
[{"$f":"IF(ISNUMBER(SEARCH(STATEMENT!$F$9,Table5[Customer\nالعميل])),MAX($A$1:A923)+1,0)","v":0}]
[{"$f":"IF(ISNUMBER(SEARCH(STATEMENT!$F$9,Table5[Customer\nالعميل])),MAX($A$1:A924)+1,0)","v":0}]
[{"$f":"IF(ISNUMBER(SEARCH(STATEMENT!$F$9,Table5[Customer\nالعميل])),MAX($A$1:A925)+1,0)","v":0}]
[{"$f":"IF(ISNUMBER(SEARCH(STATEMENT!$F$9,Table5[Customer\nالعميل])),MAX($A$1:A926)+1,0)","v":0}]
[{"$f":"IF(ISNUMBER(SEARCH(STATEMENT!$F$9,Table5[Customer\nالعميل])),MAX($A$1:A927)+1,0)","v":0}]
[{"$f":"IF(ISNUMBER(SEARCH(STATEMENT!$F$9,Table5[Customer\nالعميل])),MAX($A$1:A928)+1,0)","v":0}]
[{"$f":"IF(ISNUMBER(SEARCH(STATEMENT!$F$9,Table5[Customer\nالعميل])),MAX($A$1:A929)+1,0)","v":0}]
[{"$f":"IF(ISNUMBER(SEARCH(STATEMENT!$F$9,Table5[Customer\nالعميل])),MAX($A$1:A930)+1,0)","v":0}]
[{"$f":"IF(ISNUMBER(SEARCH(STATEMENT!$F$9,Table5[Customer\nالعميل])),MAX($A$1:A931)+1,0)","v":0}]
[{"$f":"IF(ISNUMBER(SEARCH(STATEMENT!$F$9,Table5[Customer\nالعميل])),MAX($A$1:A932)+1,0)","v":0}]
[{"$f":"IF(ISNUMBER(SEARCH(STATEMENT!$F$9,Table5[Customer\nالعميل])),MAX($A$1:A933)+1,0)","v":0}]
[{"$f":"IF(ISNUMBER(SEARCH(STATEMENT!$F$9,Table5[Customer\nالعميل])),MAX($A$1:A934)+1,0)","v":0}]
[{"$f":"IF(ISNUMBER(SEARCH(STATEMENT!$F$9,Table5[Customer\nالعميل])),MAX($A$1:A935)+1,0)","v":0}]
[{"$f":"IF(ISNUMBER(SEARCH(STATEMENT!$F$9,Table5[Customer\nالعميل])),MAX($A$1:A936)+1,0)","v":0}]
[{"$f":"IF(ISNUMBER(SEARCH(STATEMENT!$F$9,Table5[Customer\nالعميل])),MAX($A$1:A937)+1,0)","v":0}]
[{"$f":"IF(ISNUMBER(SEARCH(STATEMENT!$F$9,Table5[Customer\nالعميل])),MAX($A$1:A938)+1,0)","v":0}]
[{"$f":"IF(ISNUMBER(SEARCH(STATEMENT!$F$9,Table5[Customer\nالعميل])),MAX($A$1:A939)+1,0)","v":0}]
[{"$f":"IF(ISNUMBER(SEARCH(STATEMENT!$F$9,Table5[Customer\nالعميل])),MAX($A$1:A940)+1,0)","v":0}]
[{"$f":"IF(ISNUMBER(SEARCH(STATEMENT!$F$9,Table5[Customer\nالعميل])),MAX($A$1:A941)+1,0)","v":0}]
[{"$f":"IF(ISNUMBER(SEARCH(STATEMENT!$F$9,Table5[Customer\nالعميل])),MAX($A$1:A942)+1,0)","v":0}]
[{"$f":"IF(ISNUMBER(SEARCH(STATEMENT!$F$9,Table5[Customer\nالعميل])),MAX($A$1:A943)+1,0)","v":0}]
[{"$f":"IF(ISNUMBER(SEARCH(STATEMENT!$F$9,Table5[Customer\nالعميل])),MAX($A$1:A944)+1,0)","v":0}]
[{"$f":"IF(ISNUMBER(SEARCH(STATEMENT!$F$9,Table5[Customer\nالعميل])),MAX($A$1:A945)+1,0)","v":0}]
[{"$f":"IF(ISNUMBER(SEARCH(STATEMENT!$F$9,Table5[Customer\nالعميل])),MAX($A$1:A946)+1,0)","v":0}]
[{"$f":"IF(ISNUMBER(SEARCH(STATEMENT!$F$9,Table5[Customer\nالعميل])),MAX($A$1:A947)+1,0)","v":0}]
[{"$f":"IF(ISNUMBER(SEARCH(STATEMENT!$F$9,Table5[Customer\nالعميل])),MAX($A$1:A948)+1,0)","v":0}]
[{"$f":"IF(ISNUMBER(SEARCH(STATEMENT!$F$9,Table5[Customer\nالعميل])),MAX($A$1:A949)+1,0)","v":0}]
[{"$f":"IF(ISNUMBER(SEARCH(STATEMENT!$F$9,Table5[Customer\nالعميل])),MAX($A$1:A950)+1,0)","v":0}]
[{"$f":"IF(ISNUMBER(SEARCH(STATEMENT!$F$9,Table5[Customer\nالعميل])),MAX($A$1:A951)+1,0)","v":0}]
[{"$f":"IF(ISNUMBER(SEARCH(STATEMENT!$F$9,Table5[Customer\nالعميل])),MAX($A$1:A952)+1,0)","v":0}]
[{"$f":"IF(ISNUMBER(SEARCH(STATEMENT!$F$9,Table5[Customer\nالعميل])),MAX($A$1:A953)+1,0)","v":0}]
[{"$f":"IF(ISNUMBER(SEARCH(STATEMENT!$F$9,Table5[Customer\nالعميل])),MAX($A$1:A954)+1,0)","v":0}]
[{"$f":"IF(ISNUMBER(SEARCH(STATEMENT!$F$9,Table5[Customer\nالعميل])),MAX($A$1:A955)+1,0)","v":0}]
[{"$f":"IF(ISNUMBER(SEARCH(STATEMENT!$F$9,Table5[Customer\nالعميل])),MAX($A$1:A956)+1,0)","v":0}]
[{"$f":"IF(ISNUMBER(SEARCH(STATEMENT!$F$9,Table5[Customer\nالعميل])),MAX($A$1:A957)+1,0)","v":0}]
[{"$f":"IF(ISNUMBER(SEARCH(STATEMENT!$F$9,Table5[Customer\nالعميل])),MAX($A$1:A958)+1,0)","v":0}]
[{"$f":"IF(ISNUMBER(SEARCH(STATEMENT!$F$9,Table5[Customer\nالعميل])),MAX($A$1:A959)+1,0)","v":0}]
[{"$f":"IF(ISNUMBER(SEARCH(STATEMENT!$F$9,Table5[Customer\nالعميل])),MAX($A$1:A960)+1,0)","v":0}]
[{"$f":"IF(ISNUMBER(SEARCH(STATEMENT!$F$9,Table5[Customer\nالعميل])),MAX($A$1:A961)+1,0)","v":0}]
[{"$f":"IF(ISNUMBER(SEARCH(STATEMENT!$F$9,Table5[Customer\nالعميل])),MAX($A$1:A962)+1,0)","v":0}]
[{"$f":"IF(ISNUMBER(SEARCH(STATEMENT!$F$9,Table5[Customer\nالعميل])),MAX($A$1:A963)+1,0)","v":0}]
[{"$f":"IF(ISNUMBER(SEARCH(STATEMENT!$F$9,Table5[Customer\nالعميل])),MAX($A$1:A964)+1,0)","v":0}]
[{"$f":"IF(ISNUMBER(SEARCH(STATEMENT!$F$9,Table5[Customer\nالعميل])),MAX($A$1:A965)+1,0)","v":0}]
[{"$f":"IF(ISNUMBER(SEARCH(STATEMENT!$F$9,Table5[Customer\nالعميل])),MAX($A$1:A966)+1,0)","v":0}]
[{"$f":"IF(ISNUMBER(SEARCH(STATEMENT!$F$9,Table5[Customer\nالعميل])),MAX($A$1:A967)+1,0)","v":0}]
[{"$f":"IF(ISNUMBER(SEARCH(STATEMENT!$F$9,Table5[Customer\nالعميل])),MAX($A$1:A968)+1,0)","v":0}]
[{"$f":"IF(ISNUMBER(SEARCH(STATEMENT!$F$9,Table5[Customer\nالعميل])),MAX($A$1:A969)+1,0)","v":0}]
[{"$f":"IF(ISNUMBER(SEARCH(STATEMENT!$F$9,Table5[Customer\nالعميل])),MAX($A$1:A970)+1,0)","v":0}]
[{"$f":"IF(ISNUMBER(SEARCH(STATEMENT!$F$9,Table5[Customer\nالعميل])),MAX($A$1:A971)+1,0)","v":0}]
[{"$f":"IF(ISNUMBER(SEARCH(STATEMENT!$F$9,Table5[Customer\nالعميل])),MAX($A$1:A972)+1,0)","v":0}]
[{"$f":"IF(ISNUMBER(SEARCH(STATEMENT!$F$9,Table5[Customer\nالعميل])),MAX($A$1:A973)+1,0)","v":0}]
[{"$f":"IF(ISNUMBER(SEARCH(STATEMENT!$F$9,Table5[Customer\nالعميل])),MAX($A$1:A974)+1,0)","v":0}]
[{"$f":"IF(ISNUMBER(SEARCH(STATEMENT!$F$9,Table5[Customer\nالعميل])),MAX($A$1:A975)+1,0)","v":0}]
[{"$f":"IF(ISNUMBER(SEARCH(STATEMENT!$F$9,Table5[Customer\nالعميل])),MAX($A$1:A976)+1,0)","v":0}]
[{"$f":"IF(ISNUMBER(SEARCH(STATEMENT!$F$9,Table5[Customer\nالعميل])),MAX($A$1:A977)+1,0)","v":0}]
[{"$f":"IF(ISNUMBER(SEARCH(STATEMENT!$F$9,Table5[Customer\nالعميل])),MAX($A$1:A978)+1,0)","v":0}]
[{"$f":"IF(ISNUMBER(SEARCH(STATEMENT!$F$9,Table5[Customer\nالعميل])),MAX($A$1:A979)+1,0)","v":0}]
[{"$f":"IF(ISNUMBER(SEARCH(STATEMENT!$F$9,Table5[Customer\nالعميل])),MAX($A$1:A980)+1,0)","v":0}]
[{"$f":"IF(ISNUMBER(SEARCH(STATEMENT!$F$9,Table5[Customer\nالعميل])),MAX($A$1:A981)+1,0)","v":0}]
[{"$f":"IF(ISNUMBER(SEARCH(STATEMENT!$F$9,Table5[Customer\nالعميل])),MAX($A$1:A982)+1,0)","v":0}]
[{"$f":"IF(ISNUMBER(SEARCH(STATEMENT!$F$9,Table5[Customer\nالعميل])),MAX($A$1:A983)+1,0)","v":0}]
[{"$f":"IF(ISNUMBER(SEARCH(STATEMENT!$F$9,Table5[Customer\nالعميل])),MAX($A$1:A984)+1,0)","v":0}]
[{"$f":"IF(ISNUMBER(SEARCH(STATEMENT!$F$9,Table5[Customer\nالعميل])),MAX($A$1:A985)+1,0)","v":0}]
[{"$f":"IF(ISNUMBER(SEARCH(STATEMENT!$F$9,Table5[Customer\nالعميل])),MAX($A$1:A986)+1,0)","v":0}]
[{"$f":"IF(ISNUMBER(SEARCH(STATEMENT!$F$9,Table5[Customer\nالعميل])),MAX($A$1:A987)+1,0)","v":0}]
[{"$f":"IF(ISNUMBER(SEARCH(STATEMENT!$F$9,Table5[Customer\nالعميل])),MAX($A$1:A988)+1,0)","v":0}]
[{"$f":"IF(ISNUMBER(SEARCH(STATEMENT!$F$9,Table5[Customer\nالعميل])),MAX($A$1:A989)+1,0)","v":0}]
[{"$f":"IF(ISNUMBER(SEARCH(STATEMENT!$F$9,Table5[Customer\nالعميل])),MAX($A$1:A990)+1,0)","v":0}]
[{"$f":"IF(ISNUMBER(SEARCH(STATEMENT!$F$9,Table5[Customer\nالعميل])),MAX($A$1:A991)+1,0)","v":0}]
[{"$f":"IF(ISNUMBER(SEARCH(STATEMENT!$F$9,Table5[Customer\nالعميل])),MAX($A$1:A992)+1,0)","v":0}]
[{"$f":"IF(ISNUMBER(SEARCH(STATEMENT!$F$9,Table5[Customer\nالعميل])),MAX($A$1:A993)+1,0)","v":0}]
[{"$f":"IF(ISNUMBER(SEARCH(STATEMENT!$F$9,Table5[Customer\nالعميل])),MAX($A$1:A994)+1,0)","v":0}]
[{"$f":"IF(ISNUMBER(SEARCH(STATEMENT!$F$9,Table5[Customer\nالعميل])),MAX($A$1:A995)+1,0)","v":0}]
[{"$f":"IF(ISNUMBER(SEARCH(STATEMENT!$F$9,Table5[Customer\nالعميل])),MAX($A$1:A996)+1,0)","v":0}]
[{"$f":"IF(ISNUMBER(SEARCH(STATEMENT!$F$9,Table5[Customer\nالعميل])),MAX($A$1:A997)+1,0)","v":0}]
[{"$f":"IF(ISNUMBER(SEARCH(STATEMENT!$F$9,Table5[Customer\nالعميل])),MAX($A$1:A998)+1,0)","v":0}]
[{"$f":"IF(ISNUMBER(SEARCH(STATEMENT!$F$9,Table5[Customer\nالعميل])),MAX($A$1:A999)+1,0)","v":0}]
[{"$f":"IF(ISNUMBER(SEARCH(STATEMENT!$F$9,Table5[Customer\nالعميل])),MAX($A$1:A1000)+1,0)","v":0}]
[{"$f":"IF(ISNUMBER(SEARCH(STATEMENT!$F$9,Table5[Customer\nالعميل])),MAX($A$1:A1001)+1,0)","v":0}]
[{"$f":"IF(ISNUMBER(SEARCH(STATEMENT!$F$9,Table5[Customer\nالعميل])),MAX($A$1:A1002)+1,0)","v":0}]
[{"$f":"IF(ISNUMBER(SEARCH(STATEMENT!$F$9,Table5[Customer\nالعميل])),MAX($A$1:A1003)+1,0)","v":0}]
[{"$f":"IF(ISNUMBER(SEARCH(STATEMENT!$F$9,Table5[Customer\nالعميل])),MAX($A$1:A1004)+1,0)","v":0}]
[{"$f":"IF(ISNUMBER(SEARCH(STATEMENT!$F$9,Table5[Customer\nالعميل])),MAX($A$1:A1005)+1,0)","v":0}]
[{"$f":"IF(ISNUMBER(SEARCH(STATEMENT!$F$9,Table5[Customer\nالعميل])),MAX($A$1:A1006)+1,0)","v":0}]
[{"$f":"IF(ISNUMBER(SEARCH(STATEMENT!$F$9,Table5[Customer\nالعميل])),MAX($A$1:A1007)+1,0)","v":0}]
[{"$f":"IF(ISNUMBER(SEARCH(STATEMENT!$F$9,Table5[Customer\nالعميل])),MAX($A$1:A1008)+1,0)","v":0}]
[{"$f":"IF(ISNUMBER(SEARCH(STATEMENT!$F$9,Table5[Customer\nالعميل])),MAX($A$1:A1009)+1,0)","v":0}]
[{"$f":"IF(ISNUMBER(SEARCH(STATEMENT!$F$9,Table5[Customer\nالعميل])),MAX($A$1:A1010)+1,0)","v":0}]
[{"$f":"IF(ISNUMBER(SEARCH(STATEMENT!$F$9,Table5[Customer\nالعميل])),MAX($A$1:A1011)+1,0)","v":0}]
[{"$f":"IF(ISNUMBER(SEARCH(STATEMENT!$F$9,Table5[Customer\nالعميل])),MAX($A$1:A1012)+1,0)","v":0}]
[{"$f":"IF(ISNUMBER(SEARCH(STATEMENT!$F$9,Table5[Customer\nالعميل])),MAX($A$1:A1013)+1,0)","v":0}]
[{"$f":"IF(ISNUMBER(SEARCH(STATEMENT!$F$9,Table5[Customer\nالعميل])),MAX($A$1:A1014)+1,0)","v":0}]
[{"$f":"IF(ISNUMBER(SEARCH(STATEMENT!$F$9,Table5[Customer\nالعميل])),MAX($A$1:A1015)+1,0)","v":0}]
[{"$f":"IF(ISNUMBER(SEARCH(STATEMENT!$F$9,Table5[Customer\nالعميل])),MAX($A$1:A1016)+1,0)","v":0}]
[{"$f":"IF(ISNUMBER(SEARCH(STATEMENT!$F$9,Table5[Customer\nالعميل])),MAX($A$1:A1017)+1,0)","v":0}]
[{"$f":"IF(ISNUMBER(SEARCH(STATEMENT!$F$9,Table5[Customer\nالعميل])),MAX($A$1:A1018)+1,0)","v":0}]
[{"$f":"IF(ISNUMBER(SEARCH(STATEMENT!$F$9,Table5[Customer\nالعميل])),MAX($A$1:A1019)+1,0)","v":0}]
[{"$f":"IF(ISNUMBER(SEARCH(STATEMENT!$F$9,Table5[Customer\nالعميل])),MAX($A$1:A1020)+1,0)","v":0}]
[{"$f":"IF(ISNUMBER(SEARCH(STATEMENT!$F$9,Table5[Customer\nالعميل])),MAX($A$1:A1021)+1,0)","v":0}]
[{"$f":"IF(ISNUMBER(SEARCH(STATEMENT!$F$9,Table5[Customer\nالعميل])),MAX($A$1:A1022)+1,0)","v":0}]
[{"$f":"IF(ISNUMBER(SEARCH(STATEMENT!$F$9,Table5[Customer\nالعميل])),MAX($A$1:A1023)+1,0)","v":0}]
[{"$f":"IF(ISNUMBER(SEARCH(STATEMENT!$F$9,Table5[Customer\nالعميل])),MAX($A$1:A1024)+1,0)","v":0}]
[{"$f":"IF(ISNUMBER(SEARCH(STATEMENT!$F$9,Table5[Customer\nالعميل])),MAX($A$1:A1025)+1,0)","v":0}]
[{"$f":"IF(ISNUMBER(SEARCH(STATEMENT!$F$9,Table5[Customer\nالعميل])),MAX($A$1:A1026)+1,0)","v":0}]
[{"$f":"IF(ISNUMBER(SEARCH(STATEMENT!$F$9,Table5[Customer\nالعميل])),MAX($A$1:A1027)+1,0)","v":0}]
[{"$f":"IF(ISNUMBER(SEARCH(STATEMENT!$F$9,Table5[Customer\nالعميل])),MAX($A$1:A1028)+1,0)","v":0}]
[{"$f":"IF(ISNUMBER(SEARCH(STATEMENT!$F$9,Table5[Customer\nالعميل])),MAX($A$1:A1029)+1,0)","v":0}]
[{"$f":"IF(ISNUMBER(SEARCH(STATEMENT!$F$9,Table5[Customer\nالعميل])),MAX($A$1:A1030)+1,0)","v":0}]
[{"$f":"IF(ISNUMBER(SEARCH(STATEMENT!$F$9,Table5[Customer\nالعميل])),MAX($A$1:A1031)+1,0)","v":0}]
[{"$f":"IF(ISNUMBER(SEARCH(STATEMENT!$F$9,Table5[Customer\nالعميل])),MAX($A$1:A1032)+1,0)","v":0}]
[{"$f":"IF(ISNUMBER(SEARCH(STATEMENT!$F$9,Table5[Customer\nالعميل])),MAX($A$1:A1033)+1,0)","v":0}]
[{"$f":"IF(ISNUMBER(SEARCH(STATEMENT!$F$9,Table5[Customer\nالعميل])),MAX($A$1:A1034)+1,0)","v":0}]
[{"$f":"IF(ISNUMBER(SEARCH(STATEMENT!$F$9,Table5[Customer\nالعميل])),MAX($A$1:A1035)+1,0)","v":0}]
[{"$f":"IF(ISNUMBER(SEARCH(STATEMENT!$F$9,Table5[Customer\nالعميل])),MAX($A$1:A1036)+1,0)","v":0}]
[{"$f":"IF(ISNUMBER(SEARCH(STATEMENT!$F$9,Table5[Customer\nالعميل])),MAX($A$1:A1037)+1,0)","v":0}]
[{"$f":"IF(ISNUMBER(SEARCH(STATEMENT!$F$9,Table5[Customer\nالعميل])),MAX($A$1:A1038)+1,0)","v":0}]
[{"$f":"IF(ISNUMBER(SEARCH(STATEMENT!$F$9,Table5[Customer\nالعميل])),MAX($A$1:A1039)+1,0)","v":0}]
[{"$f":"IF(ISNUMBER(SEARCH(STATEMENT!$F$9,Table5[Customer\nالعميل])),MAX($A$1:A1040)+1,0)","v":0}]
[{"$f":"IF(ISNUMBER(SEARCH(STATEMENT!$F$9,Table5[Customer\nالعميل])),MAX($A$1:A1041)+1,0)","v":0}]
[{"$f":"IF(ISNUMBER(SEARCH(STATEMENT!$F$9,Table5[Customer\nالعميل])),MAX($A$1:A1042)+1,0)","v":0}]
[{"$f":"IF(ISNUMBER(SEARCH(STATEMENT!$F$9,Table5[Customer\nالعميل])),MAX($A$1:A1043)+1,0)","v":0}]
[{"$f":"IF(ISNUMBER(SEARCH(STATEMENT!$F$9,Table5[Customer\nالعميل])),MAX($A$1:A1044)+1,0)","v":0}]
[{"$f":"IF(ISNUMBER(SEARCH(STATEMENT!$F$9,Table5[Customer\nالعميل])),MAX($A$1:A1045)+1,0)","v":0}]
[{"$f":"IF(ISNUMBER(SEARCH(STATEMENT!$F$9,Table5[Customer\nالعميل])),MAX($A$1:A1046)+1,0)","v":0}]
[{"$f":"IF(ISNUMBER(SEARCH(STATEMENT!$F$9,Table5[Customer\nالعميل])),MAX($A$1:A1047)+1,0)","v":0}]
[{"$f":"IF(ISNUMBER(SEARCH(STATEMENT!$F$9,Table5[Customer\nالعميل])),MAX($A$1:A1048)+1,0)","v":0}]
[{"$f":"IF(ISNUMBER(SEARCH(STATEMENT!$F$9,Table5[Customer\nالعميل])),MAX($A$1:A1049)+1,0)","v":0}]
[{"$f":"IF(ISNUMBER(SEARCH(STATEMENT!$F$9,Table5[Customer\nالعميل])),MAX($A$1:A1050)+1,0)","v":0}]
[{"$f":"IF(ISNUMBER(SEARCH(STATEMENT!$F$9,Table5[Customer\nالعميل])),MAX($A$1:A1051)+1,0)","v":0}]
[{"$f":"IF(ISNUMBER(SEARCH(STATEMENT!$F$9,Table5[Customer\nالعميل])),MAX($A$1:A1052)+1,0)","v":0}]

{"sheet":"Customers","index":5,"n_rows":38,"n_cols":13,"rows_kept":38,"cut":false,"hidden":false,"merged":[]}
["CUSTOMERS","#","Customer","FOB ID","To Pay","Paid","Balance"," qty","VAT Registration","Mobile1","Office1","Address","Notes"]
[null,{"$f":"IF(Table3[[#This Row],[Customer]]=\"\",\"\",ROW()-1)","v":1},"AlGaili Omar Bakheet",822682,{"$f":"SUMIF(Table4[Customer\nالعميل],Table3[[#This Row],[Customer]],Table4[Invoice Amount\nمبلغ الفاتورة])","v":958.38},{"$f":"SUMIF(Table5[Customer\nالعميل],Table3[[#This Row],[Customer]],Table5[Paid Amount\nالمبلغ المدفوع])","v":0},{"$f":"Table3[[#This Row],[To Pay]]-Table3[[#This Row],[Paid]]","v":958.38},{"$f":"COUNTIF(Table4[Customer\nالعميل],Table3[[#This Row],[Customer]])","v":1}]
[null,{"$f":"IF(Table3[[#This Row],[Customer]]=\"\",\"\",ROW()-1)","v":2},"AlKhair Pharmacy",800037,{"$f":"SUMIF(Table4[Customer\nالعميل],Table3[[#This Row],[Customer]],Table4[Invoice Amount\nمبلغ الفاتورة])","v":2653.63},{"$f":"SUMIF(Table5[Customer\nالعميل],Table3[[#This Row],[Customer]],Table5[Paid Amount\nالمبلغ المدفوع])","v":1408.6},{"$f":"Table3[[#This Row],[To Pay]]-Table3[[#This Row],[Paid]]","v":1245.0300000000002},{"$f":"COUNTIF(Table4[Customer\nالعميل],Table3[[#This Row],[Customer]])","v":5}]
[null,{"$f":"IF(Table3[[#This Row],[Customer]]=\"\",\"\",ROW()-1)","v":3},"Attar Alhakeem",798004,{"$f":"SUMIF(Table4[Customer\nالعميل],Table3[[#This Row],[Customer]],Table4[Invoice Amount\nمبلغ الفاتورة])","v":5337.61},{"$f":"SUMIF(Table5[Customer\nالعميل],Table3[[#This Row],[Customer]],Table5[Paid Amount\nالمبلغ المدفوع])","v":1049.1099999999999},{"$f":"Table3[[#This Row],[To Pay]]-Table3[[#This Row],[Paid]]","v":4288.5},{"$f":"COUNTIF(Table4[Customer\nالعميل],Table3[[#This Row],[Customer]])","v":4}]
[null,{"$f":"IF(Table3[[#This Row],[Customer]]=\"\",\"\",ROW()-1)","v":4},"Attar AlKuwait",800042,{"$f":"SUMIF(Table4[Customer\nالعميل],Table3[[#This Row],[Customer]],Table4[Invoice Amount\nمبلغ الفاتورة])","v":0},{"$f":"SUMIF(Table5[Customer\nالعميل],Table3[[#This Row],[Customer]],Table5[Paid Amount\nالمبلغ المدفوع])","v":1600},{"$f":"Table3[[#This Row],[To Pay]]-Table3[[#This Row],[Paid]]","v":-1600},{"$f":"COUNTIF(Table4[Customer\nالعميل],Table3[[#This Row],[Customer]])","v":0}]
[null,{"$f":"IF(Table3[[#This Row],[Customer]]=\"\",\"\",ROW()-1)","v":5},"Dallah Healthcare Co. / Dallah Hospital",775962,{"$f":"SUMIF(Table4[Customer\nالعميل],Table3[[#This Row],[Customer]],Table4[Invoice Amount\nمبلغ الفاتورة])","v":39036.820000000014},{"$f":"SUMIF(Table5[Customer\nالعميل],Table3[[#This Row],[Customer]],Table5[Paid Amount\nالمبلغ المدفوع])","v":37166.770000000011},{"$f":"Table3[[#This Row],[To Pay]]-Table3[[#This Row],[Paid]]","v":1870.0500000000029},{"$f":"COUNTIF(Table4[Customer\nالعميل],Table3[[#This Row],[Customer]])","v":16},300049358500003,null,null,"King Fahd Road, Alnakheel Street , Riyadh, KSA"]
[null,{"$f":"IF(Table3[[#This Row],[Customer]]=\"\",\"\",ROW()-1)","v":6},"Hala Mohamed Alomdeh",725343,{"$f":"SUMIF(Table4[Customer\nالعميل],Table3[[#This Row],[Customer]],Table4[Invoice Amount\nمبلغ الفاتورة])","v":1831.54},{"$f":"SUMIF(Table5[Customer\nالعميل],Table3[[#This Row],[Customer]],Table5[Paid Amount\nالمبلغ المدفوع])","v":0},{"$f":"Table3[[#This Row],[To Pay]]-Table3[[#This Row],[Paid]]","v":1831.54},{"$f":"COUNTIF(Table4[Customer\nالعميل],Table3[[#This Row],[Customer]])","v":1}]
[null,{"$f":"IF(Table3[[#This Row],[Customer]]=\"\",\"\",ROW()-1)","v":7},"Ibrahim Bakhit",825009,{"$f":"SUMIF(Table4[Customer\nالعميل],Table3[[#This Row],[Customer]],Table4[Invoice Amount\nمبلغ الفاتورة])","v":79.66},{"$f":"SUMIF(Table5[Customer\nالعميل],Table3[[#This Row],[Customer]],Table5[Paid Amount\nالمبلغ المدفوع])","v":0},{"$f":"Table3[[#This Row],[To Pay]]-Table3[[#This Row],[Paid]]","v":79.66},{"$f":"COUNTIF(Table4[Customer\nالعميل],Table3[[#This Row],[Customer]])","v":1}]
[null,{"$f":"IF(Table3[[#This Row],[Customer]]=\"\",\"\",ROW()-1)","v":8},"Moath Abdul Raqib",784382,{"$f":"SUMIF(Table4[Customer\nالعميل],Table3[[#This Row],[Customer]],Table4[Invoice Amount\nمبلغ الفاتورة])","v":673.7},{"$f":"SUMIF(Table5[Customer\nالعميل],Table3[[#This Row],[Customer]],Table5[Paid Amount\nالمبلغ المدفوع])","v":0},{"$f":"Table3[[#This Row],[To Pay]]-Table3[[#This Row],[Paid]]","v":673.7},{"$f":"COUNTIF(Table4[Customer\nالعميل],Table3[[#This Row],[Customer]])","v":1}]
[null,{"$f":"IF(Table3[[#This Row],[Customer]]=\"\",\"\",ROW()-1)","v":9},"Mohamed Abduldayem Ahmad",807366,{"$f":"SUMIF(Table4[Customer\nالعميل],Table3[[#This Row],[Customer]],Table4[Invoice Amount\nمبلغ الفاتورة])","v":1761.87},{"$f":"SUMIF(Table5[Customer\nالعميل],Table3[[#This Row],[Customer]],Table5[Paid Amount\nالمبلغ المدفوع])","v":0},{"$f":"Table3[[#This Row],[To Pay]]-Table3[[#This Row],[Paid]]","v":1761.87},{"$f":"COUNTIF(Table4[Customer\nالعميل],Table3[[#This Row],[Customer]])","v":1}]
[null,{"$f":"IF(Table3[[#This Row],[Customer]]=\"\",\"\",ROW()-1)","v":10},"Mohamed Jazouli",726477,{"$f":"SUMIF(Table4[Customer\nالعميل],Table3[[#This Row],[Customer]],Table4[Invoice Amount\nمبلغ الفاتورة])","v":3959.59},{"$f":"SUMIF(Table5[Customer\nالعميل],Table3[[#This Row],[Customer]],Table5[Paid Amount\nالمبلغ المدفوع])","v":1628},{"$f":"Table3[[#This Row],[To Pay]]-Table3[[#This Row],[Paid]]","v":2331.59},{"$f":"COUNTIF(Table4[Customer\nالعميل],Table3[[#This Row],[Customer]])","v":3}]
[null,{"$f":"IF(Table3[[#This Row],[Customer]]=\"\",\"\",ROW()-1)","v":11},"Yousri Mousa Othman",769448,{"$f":"SUMIF(Table4[Customer\nالعميل],Table3[[#This Row],[Customer]],Table4[Invoice Amount\nمبلغ الفاتورة])","v":860.82999999999993},{"$f":"SUMIF(Table5[Customer\nالعميل],Table3[[#This Row],[Customer]],Table5[Paid Amount\nالمبلغ المدفوع])","v":0},{"$f":"Table3[[#This Row],[To Pay]]-Table3[[#This Row],[Paid]]","v":860.82999999999993},{"$f":"COUNTIF(Table4[Customer\nالعميل],Table3[[#This Row],[Customer]])","v":2}]
[null,{"$f":"IF(Table3[[#This Row],[Customer]]=\"\",\"\",ROW()-1)","v":12},"Zawaq Alasal",787477,{"$f":"SUMIF(Table4[Customer\nالعميل],Table3[[#This Row],[Customer]],Table4[Invoice Amount\nمبلغ الفاتورة])","v":2770},{"$f":"SUMIF(Table5[Customer\nالعميل],Table3[[#This Row],[Customer]],Table5[Paid Amount\nالمبلغ المدفوع])","v":0},{"$f":"Table3[[#This Row],[To Pay]]-Table3[[#This Row],[Paid]]","v":2770},{"$f":"COUNTIF(Table4[Customer\nالعميل],Table3[[#This Row],[Customer]])","v":2}]
[null,{"$f":"IF(Table3[[#This Row],[Customer]]=\"\",\"\",ROW()-1)","v":""},null,null,{"$f":"SUMIF(Table4[Customer\nالعميل],Table3[[#This Row],[Customer]],Table4[Invoice Amount\nمبلغ الفاتورة])","v":0},{"$f":"SUMIF(Table5[Customer\nالعميل],Table3[[#This Row],[Customer]],Table5[Paid Amount\nالمبلغ المدفوع])","v":0},{"$f":"Table3[[#This Row],[To Pay]]-Table3[[#This Row],[Paid]]","v":0},{"$f":"COUNTIF(Table4[Customer\nالعميل],Table3[[#This Row],[Customer]])","v":0}]
[null,{"$f":"IF(Table3[[#This Row],[Customer]]=\"\",\"\",ROW()-1)","v":""},null,null,{"$f":"SUMIF(Table4[Customer\nالعميل],Table3[[#This Row],[Customer]],Table4[Invoice Amount\nمبلغ الفاتورة])","v":0},{"$f":"SUMIF(Table5[Customer\nالعميل],Table3[[#This Row],[Customer]],Table5[Paid Amount\nالمبلغ المدفوع])","v":0},{"$f":"Table3[[#This Row],[To Pay]]-Table3[[#This Row],[Paid]]","v":0},{"$f":"COUNTIF(Table4[Customer\nالعميل],Table3[[#This Row],[Customer]])","v":0}]
[null,{"$f":"IF(Table3[[#This Row],[Customer]]=\"\",\"\",ROW()-1)","v":""},null,null,{"$f":"SUMIF(Table4[Customer\nالعميل],Table3[[#This Row],[Customer]],Table4[Invoice Amount\nمبلغ الفاتورة])","v":0},{"$f":"SUMIF(Table5[Customer\nالعميل],Table3[[#This Row],[Customer]],Table5[Paid Amount\nالمبلغ المدفوع])","v":0},{"$f":"Table3[[#This Row],[To Pay]]-Table3[[#This Row],[Paid]]","v":0},{"$f":"COUNTIF(Table4[Customer\nالعميل],Table3[[#This Row],[Customer]])","v":0}]
[null,{"$f":"IF(Table3[[#This Row],[Customer]]=\"\",\"\",ROW()-1)","v":""},null,null,{"$f":"SUMIF(Table4[Customer\nالعميل],Table3[[#This Row],[Customer]],Table4[Invoice Amount\nمبلغ الفاتورة])","v":0},{"$f":"SUMIF(Table5[Customer\nالعميل],Table3[[#This Row],[Customer]],Table5[Paid Amount\nالمبلغ المدفوع])","v":0},{"$f":"Table3[[#This Row],[To Pay]]-Table3[[#This Row],[Paid]]","v":0},{"$f":"COUNTIF(Table4[Customer\nالعميل],Table3[[#This Row],[Customer]])","v":0}]
[null,{"$f":"IF(Table3[[#This Row],[Customer]]=\"\",\"\",ROW()-1)","v":""},null,null,{"$f":"SUMIF(Table4[Customer\nالعميل],Table3[[#This Row],[Customer]],Table4[Invoice Amount\nمبلغ الفاتورة])","v":0},{"$f":"SUMIF(Table5[Customer\nالعميل],Table3[[#This Row],[Customer]],Table5[Paid Amount\nالمبلغ المدفوع])","v":0},{"$f":"Table3[[#This Row],[To Pay]]-Table3[[#This Row],[Paid]]","v":0},{"$f":"COUNTIF(Table4[Customer\nالعميل],Table3[[#This Row],[Customer]])","v":0}]
[null,{"$f":"IF(Table3[[#This Row],[Customer]]=\"\",\"\",ROW()-1)","v":""},null,null,{"$f":"SUMIF(Table4[Customer\nالعميل],Table3[[#This Row],[Customer]],Table4[Invoice Amount\nمبلغ الفاتورة])","v":0},{"$f":"SUMIF(Table5[Customer\nالعميل],Table3[[#This Row],[Customer]],Table5[Paid Amount\nالمبلغ المدفوع])","v":0},{"$f":"Table3[[#This Row],[To Pay]]-Table3[[#This Row],[Paid]]","v":0},{"$f":"COUNTIF(Table4[Customer\nالعميل],Table3[[#This Row],[Customer]])","v":0}]
[null,{"$f":"IF(Table3[[#This Row],[Customer]]=\"\",\"\",ROW()-1)","v":""},null,null,{"$f":"SUMIF(Table4[Customer\nالعميل],Table3[[#This Row],[Customer]],Table4[Invoice Amount\nمبلغ الفاتورة])","v":0},{"$f":"SUMIF(Table5[Customer\nالعميل],Table3[[#This Row],[Customer]],Table5[Paid Amount\nالمبلغ المدفوع])","v":0},{"$f":"Table3[[#This Row],[To Pay]]-Table3[[#This Row],[Paid]]","v":0},{"$f":"COUNTIF(Table4[Customer\nالعميل],Table3[[#This Row],[Customer]])","v":0}]
[null,{"$f":"IF(Table3[[#This Row],[Customer]]=\"\",\"\",ROW()-1)","v":""},null,null,{"$f":"SUMIF(Table4[Customer\nالعميل],Table3[[#This Row],[Customer]],Table4[Invoice Amount\nمبلغ الفاتورة])","v":0},{"$f":"SUMIF(Table5[Customer\nالعميل],Table3[[#This Row],[Customer]],Table5[Paid Amount\nالمبلغ المدفوع])","v":0},{"$f":"Table3[[#This Row],[To Pay]]-Table3[[#This Row],[Paid]]","v":0},{"$f":"COUNTIF(Table4[Customer\nالعميل],Table3[[#This Row],[Customer]])","v":0}]
[null,{"$f":"IF(Table3[[#This Row],[Customer]]=\"\",\"\",ROW()-1)","v":""},null,null,{"$f":"SUMIF(Table4[Customer\nالعميل],Table3[[#This Row],[Customer]],Table4[Invoice Amount\nمبلغ الفاتورة])","v":0},{"$f":"SUMIF(Table5[Customer\nالعميل],Table3[[#This Row],[Customer]],Table5[Paid Amount\nالمبلغ المدفوع])","v":0},{"$f":"Table3[[#This Row],[To Pay]]-Table3[[#This Row],[Paid]]","v":0},{"$f":"COUNTIF(Table4[Customer\nالعميل],Table3[[#This Row],[Customer]])","v":0}]
[null,{"$f":"IF(Table3[[#This Row],[Customer]]=\"\",\"\",ROW()-1)","v":""},null,null,{"$f":"SUMIF(Table4[Customer\nالعميل],Table3[[#This Row],[Customer]],Table4[Invoice Amount\nمبلغ الفاتورة])","v":0},{"$f":"SUMIF(Table5[Customer\nالعميل],Table3[[#This Row],[Customer]],Table5[Paid Amount\nالمبلغ المدفوع])","v":0},{"$f":"Table3[[#This Row],[To Pay]]-Table3[[#This Row],[Paid]]","v":0},{"$f":"COUNTIF(Table4[Customer\nالعميل],Table3[[#This Row],[Customer]])","v":0}]
[null,{"$f":"IF(Table3[[#This Row],[Customer]]=\"\",\"\",ROW()-1)","v":""},null,null,{"$f":"SUMIF(Table4[Customer\nالعميل],Table3[[#This Row],[Customer]],Table4[Invoice Amount\nمبلغ الفاتورة])","v":0},{"$f":"SUMIF(Table5[Customer\nالعميل],Table3[[#This Row],[Customer]],Table5[Paid Amount\nالمبلغ المدفوع])","v":0},{"$f":"Table3[[#This Row],[To Pay]]-Table3[[#This Row],[Paid]]","v":0},{"$f":"COUNTIF(Table4[Customer\nالعميل],Table3[[#This Row],[Customer]])","v":0}]
[null,{"$f":"IF(Table3[[#This Row],[Customer]]=\"\",\"\",ROW()-1)","v":""},null,null,{"$f":"SUMIF(Table4[Customer\nالعميل],Table3[[#This Row],[Customer]],Table4[Invoice Amount\nمبلغ الفاتورة])","v":0},{"$f":"SUMIF(Table5[Customer\nالعميل],Table3[[#This Row],[Customer]],Table5[Paid Amount\nالمبلغ المدفوع])","v":0},{"$f":"Table3[[#This Row],[To Pay]]-Table3[[#This Row],[Paid]]","v":0},{"$f":"COUNTIF(Table4[Customer\nالعميل],Table3[[#This Row],[Customer]])","v":0}]
[null,{"$f":"IF(Table3[[#This Row],[Customer]]=\"\",\"\",ROW()-1)","v":""},null,null,{"$f":"SUMIF(Table4[Customer\nالعميل],Table3[[#This Row],[Customer]],Table4[Invoice Amount\nمبلغ الفاتورة])","v":0},{"$f":"SUMIF(Table5[Customer\nالعميل],Table3[[#This Row],[Customer]],Table5[Paid Amount\nالمبلغ المدفوع])","v":0},{"$f":"Table3[[#This Row],[To Pay]]-Table3[[#This Row],[Paid]]","v":0},{"$f":"COUNTIF(Table4[Customer\nالعميل],Table3[[#This Row],[Customer]])","v":0}]
[null,{"$f":"IF(Table3[[#This Row],[Customer]]=\"\",\"\",ROW()-1)","v":""},null,null,{"$f":"SUMIF(Table4[Customer\nالعميل],Table3[[#This Row],[Customer]],Table4[Invoice Amount\nمبلغ الفاتورة])","v":0},{"$f":"SUMIF(Table5[Customer\nالعميل],Table3[[#This Row],[Customer]],Table5[Paid Amount\nالمبلغ المدفوع])","v":0},{"$f":"Table3[[#This Row],[To Pay]]-Table3[[#This Row],[Paid]]","v":0},{"$f":"COUNTIF(Table4[Customer\nالعميل],Table3[[#This Row],[Customer]])","v":0}]
[null,{"$f":"IF(Table3[[#This Row],[Customer]]=\"\",\"\",ROW()-1)","v":""},null,null,{"$f":"SUMIF(Table4[Customer\nالعميل],Table3[[#This Row],[Customer]],Table4[Invoice Amount\nمبلغ الفاتورة])","v":0},{"$f":"SUMIF(Table5[Customer\nالعميل],Table3[[#This Row],[Customer]],Table5[Paid Amount\nالمبلغ المدفوع])","v":0},{"$f":"Table3[[#This Row],[To Pay]]-Table3[[#This Row],[Paid]]","v":0},{"$f":"COUNTIF(Table4[Customer\nالعميل],Table3[[#This Row],[Customer]])","v":0}]
[null,{"$f":"IF(Table3[[#This Row],[Customer]]=\"\",\"\",ROW()-1)","v":""},null,null,{"$f":"SUMIF(Table4[Customer\nالعميل],Table3[[#This Row],[Customer]],Table4[Invoice Amount\nمبلغ الفاتورة])","v":0},{"$f":"SUMIF(Table5[Customer\nالعميل],Table3[[#This Row],[Customer]],Table5[Paid Amount\nالمبلغ المدفوع])","v":0},{"$f":"Table3[[#This Row],[To Pay]]-Table3[[#This Row],[Paid]]","v":0},{"$f":"COUNTIF(Table4[Customer\nالعميل],Table3[[#This Row],[Customer]])","v":0}]
[null,{"$f":"IF(Table3[[#This Row],[Customer]]=\"\",\"\",ROW()-1)","v":""},null,null,{"$f":"SUMIF(Table4[Customer\nالعميل],Table3[[#This Row],[Customer]],Table4[Invoice Amount\nمبلغ الفاتورة])","v":0},{"$f":"SUMIF(Table5[Customer\nالعميل],Table3[[#This Row],[Customer]],Table5[Paid Amount\nالمبلغ المدفوع])","v":0},{"$f":"Table3[[#This Row],[To Pay]]-Table3[[#This Row],[Paid]]","v":0},{"$f":"COUNTIF(Table4[Customer\nالعميل],Table3[[#This Row],[Customer]])","v":0}]
[null,{"$f":"IF(Table3[[#This Row],[Customer]]=\"\",\"\",ROW()-1)","v":""},null,null,{"$f":"SUMIF(Table4[Customer\nالعميل],Table3[[#This Row],[Customer]],Table4[Invoice Amount\nمبلغ الفاتورة])","v":0},{"$f":"SUMIF(Table5[Customer\nالعميل],Table3[[#This Row],[Customer]],Table5[Paid Amount\nالمبلغ المدفوع])","v":0},{"$f":"Table3[[#This Row],[To Pay]]-Table3[[#This Row],[Paid]]","v":0},{"$f":"COUNTIF(Table4[Customer\nالعميل],Table3[[#This Row],[Customer]])","v":0}]
[null,{"$f":"IF(Table3[[#This Row],[Customer]]=\"\",\"\",ROW()-1)","v":""},null,null,{"$f":"SUMIF(Table4[Customer\nالعميل],Table3[[#This Row],[Customer]],Table4[Invoice Amount\nمبلغ الفاتورة])","v":0},{"$f":"SUMIF(Table5[Customer\nالعميل],Table3[[#This Row],[Customer]],Table5[Paid Amount\nالمبلغ المدفوع])","v":0},{"$f":"Table3[[#This Row],[To Pay]]-Table3[[#This Row],[Paid]]","v":0},{"$f":"COUNTIF(Table4[Customer\nالعميل],Table3[[#This Row],[Customer]])","v":0}]
[null,{"$f":"IF(Table3[[#This Row],[Customer]]=\"\",\"\",ROW()-1)","v":""},null,null,{"$f":"SUMIF(Table4[Customer\nالعميل],Table3[[#This Row],[Customer]],Table4[Invoice Amount\nمبلغ الفاتورة])","v":0},{"$f":"SUMIF(Table5[Customer\nالعميل],Table3[[#This Row],[Customer]],Table5[Paid Amount\nالمبلغ المدفوع])","v":0},{"$f":"Table3[[#This Row],[To Pay]]-Table3[[#This Row],[Paid]]","v":0},{"$f":"COUNTIF(Table4[Customer\nالعميل],Table3[[#This Row],[Customer]])","v":0}]
[null,{"$f":"IF(Table3[[#This Row],[Customer]]=\"\",\"\",ROW()-1)","v":""},null,null,{"$f":"SUMIF(Table4[Customer\nالعميل],Table3[[#This Row],[Customer]],Table4[Invoice Amount\nمبلغ الفاتورة])","v":0},{"$f":"SUMIF(Table5[Customer\nالعميل],Table3[[#This Row],[Customer]],Table5[Paid Amount\nالمبلغ المدفوع])","v":0},{"$f":"Table3[[#This Row],[To Pay]]-Table3[[#This Row],[Paid]]","v":0},{"$f":"COUNTIF(Table4[Customer\nالعميل],Table3[[#This Row],[Customer]])","v":0}]
[null,{"$f":"IF(Table3[[#This Row],[Customer]]=\"\",\"\",ROW()-1)","v":""},null,null,{"$f":"SUMIF(Table4[Customer\nالعميل],Table3[[#This Row],[Customer]],Table4[Invoice Amount\nمبلغ الفاتورة])","v":0},{"$f":"SUMIF(Table5[Customer\nالعميل],Table3[[#This Row],[Customer]],Table5[Paid Amount\nالمبلغ المدفوع])","v":0},{"$f":"Table3[[#This Row],[To Pay]]-Table3[[#This Row],[Paid]]","v":0},{"$f":"COUNTIF(Table4[Customer\nالعميل],Table3[[#This Row],[Customer]])","v":0}]
[null,{"$f":"IF(Table3[[#This Row],[Customer]]=\"\",\"\",ROW()-1)","v":""},null,null,{"$f":"SUMIF(Table4[Customer\nالعميل],Table3[[#This Row],[Customer]],Table4[Invoice Amount\nمبلغ الفاتورة])","v":0},{"$f":"SUMIF(Table5[Customer\nالعميل],Table3[[#This Row],[Customer]],Table5[Paid Amount\nالمبلغ المدفوع])","v":0},{"$f":"Table3[[#This Row],[To Pay]]-Table3[[#This Row],[Paid]]","v":0},{"$f":"COUNTIF(Table4[Customer\nالعميل],Table3[[#This Row],[Customer]])","v":0}]
[null,{"$f":"IF(Table3[[#This Row],[Customer]]=\"\",\"\",ROW()-1)","v":""},null,null,{"$f":"SUMIF(Table4[Customer\nالعميل],Table3[[#This Row],[Customer]],Table4[Invoice Amount\nمبلغ الفاتورة])","v":0},{"$f":"SUMIF(Table5[Customer\nالعميل],Table3[[#This Row],[Customer]],Table5[Paid Amount\nالمبلغ المدفوع])","v":0},{"$f":"Table3[[#This Row],[To Pay]]-Table3[[#This Row],[Paid]]","v":0},{"$f":"COUNTIF(Table4[Customer\nالعميل],Table3[[#This Row],[Customer]])","v":0}]
[null,null,{"$f":"MAX($B$2:B37) & \"  Customer/s\"","v":"12  Customer/s"},null,{"$f":"SUBTOTAL(109,Table3[To Pay])","v":59923.630000000019},{"$f":"SUBTOTAL(109,Table3[Paid])","v":42852.48000000001},{"$f":"SUBTOTAL(109,Table3[Balance])","v":17071.150000000001},{"$f":"SUBTOTAL(109,Table3[[ qty]])","v":37}]